Workbook

Sheet Introduction
C4: Joint Monitoring Programme for Water Supply, Sanitation and Hygiene
C6: Estimates on household water, sanitation and hygiene by wealth quintile and sub-national region in
C7: =+Water!B5 -> Armenia
C9: Updated May 2021
C11: Follow the links below to find the following information:
C13: JMP Estimates
C14: WASH status and trends by wealth quintile (customized quintiles made without water and sanitation assets)
C15: Water
C16: Sanitation
C17: Hygiene
C19: Data inputs
C20: customized wealth quintiles and subnational data:
C21: =IF(INDIRECT(CONCATENATE("Water","!B105"))=0,"",INDIRECT(CONCATENATE("Water","!B105"))) -> DHS00
C22: =IF(INDIRECT(CONCATENATE("Water","!B106"))=0,"",INDIRECT(CONCATENATE("Water","!B106"))) -> DHS05
C23: =IF(INDIRECT(CONCATENATE("Water","!B107"))=0,"",INDIRECT(CONCATENATE("Water","!B107"))) -> DHS10
C24: =IF(INDIRECT(CONCATENATE("Water","!B108"))=0,"",INDIRECT(CONCATENATE("Water","!B108"))) -> DHS16
C25: =IF(INDIRECT(CONCATENATE("Water","!B109"))=0,"",INDIRECT(CONCATENATE("Water","!B109"))) -> 
C26: =IF(INDIRECT(CONCATENATE("Water","!B110"))=0,"",INDIRECT(CONCATENATE("Water","!B110"))) -> 
C27: =IF(INDIRECT(CONCATENATE("Water","!B111"))=0,"",INDIRECT(CONCATENATE("Water","!B111"))) -> 
C28: =IF(INDIRECT(CONCATENATE("Water","!B112"))=0,"",INDIRECT(CONCATENATE("Water","!B112"))) -> 
C29: =IF(INDIRECT(CONCATENATE("Water","!B113"))=0,"",INDIRECT(CONCATENATE("Water","!B113"))) -> 
C30: =IF(INDIRECT(CONCATENATE("Water","!B114"))=0,"",INDIRECT(CONCATENATE("Water","!B114"))) -> 
C31: =IF(INDIRECT(CONCATENATE("Water","!B115"))=0,"",INDIRECT(CONCATENATE("Water","!B115"))) -> 
C32: =IF(INDIRECT(CONCATENATE("Water","!B116"))=0,"",INDIRECT(CONCATENATE("Water","!B116"))) -> 
L55: =+IF(ISNUMBER(M48), "", "Insufficient data to estimate safely managed sanitation services at national level") -> Insufficient data to estimate safely managed sanitation services at national level

Sheet Water
A1: BGD
B4: Summary of trends in use of drinking water by wealth quintile (%)
B5: =IF(ISERROR(INDIRECT(CONCATENATE($B105,"!A2"))),"",INDIRECT(CONCATENATE($B105,"!A2"))) -> Armenia
B7: =B118 -> National use of drinking water sources, 2000–2020 | J7: =B218 -> Urban use of drinking water sources, 2000–2020 | R7: =B318 -> Rural use of drinking water sources, 2000–2020
B31: =IF(ISERROR(INDIRECT(CONCATENATE($B105,"!A2"))),"",INDIRECT(CONCATENATE($B105,"!A2"))) -> Armenia | F31: Poorest | J31: Poor | N31: Middle | R31: Rich | V31: Richest
F32: Basic | G32: Limited | H32: Unimproved | I32: Surface water | J32: Basic | K32: Limited | L32: Unimproved | M32: Surface water | N32: Basic | O32: Limited | P32: Unimproved | Q32: Surface water | R32: Basic | S32: Limited | T32: Unimproved | U32: Surface water | V32: Basic | W32: Limited | X32: Unimproved | Y32: Surface water
B33: NATIONAL | D33: Estimate | E33: =C99 -> 2000 | F33: =E99 -> 94.77751374 | G33: =F99 -> 0.9010248789 | H33: 4.001259898 | I33: 0.3202014796 | J33: =J99 -> 96.96704714 | K33: =K99 -> 0.6777564676 | L33: 2.238306639 | M33: 0.1168897522 | N33: =O99 -> 99.01442102 | O33: =P99 -> 0.2035597589 | P33: 0.7706460688 | Q33: 0.01137315603 | R33: =T99 -> 99.45713863 | S33: =U99 -> 0.2029539233 | T33: 0.2744286324 | U33: 0.06547881924 | V33: =Y99 -> 99.716526 | W33: =Z99 -> 0.1087632668 | X33: 0.1747107286 | Y33: 0
E34: =C100 -> 2020 | F34: =E100 -> 99.05827901 | G34: 0.9417209876 | H34: 0 | I34: 0 | J34: =J100 -> 99.30589602 | K34: 0.6941039795 | L34: 0 | M34: 0 | N34: =O100 -> 99.79342966 | O34: 0.2051612914 | P34: 0 | Q34: 0.001409043725 | R34: =T100 -> 99.76615374 | S34: 0.2035845048 | T34: 0 | U34: 0.03026175862 | V34: =Y100 -> 99.89104638 | W34: 0.1089536205 | X34: 0 | Y34: 0
B36: URBAN | D36: Estimate | E36: =C199 -> 2000 | F36: =E199 -> 98.9282445 | G36: =F199 -> 0.1897123428 | H36: 0.8820431606 | I36: 0 | J36: =J199 -> 99.60559777 | K36: =K199 -> 0.05596200378 | L36: 0.3202809974 | M36: 0.01815922989 | N36: =O199 -> 99.77684972 | O36: =P199 -> 0.06711958255 | P36: 0.05107235552 | Q36: 0.1049583398 | R36: =T199 -> 99.31626043 | S36: =U199 -> 0.0218073 | T36: 0.6619322733 | U36: 0 | V36: =Y199 -> 99.21679823 | W36: =Z199 -> 0 | X36: 0.7832017748 | Y36: 0
E37: =C200 -> 2020 | F37: =E200 -> 99.79862639 | G37: 0.1913814535 | H37: 0.009992161445 | I37: 0 | J37: =J200 -> 99.80567456 | K37: 0.05607441411 | L37: 0.1360012087 | M37: 0.002249816093 | N37: =O200 -> 99.88416947 | O37: 0.06719177621 | P37: 0 | Q37: 0.04863875819 | R37: =T200 -> 99.97804739 | S37: 0.02195261142 | T37: 0 | U37: 0 | V37: =Y200 -> 100 | W37: 0 | X37: 0 | Y37: 0
B39: RURAL | D39: Estimate | E39: =C299 -> 2000 | F39: =E299 -> 91.47540234 | G39: =F299 -> 1.284321653 | H39: 6.568468134 | I39: 0.671807873 | J39: =J299 -> 95.28194027 | K39: =K299 -> 1.416147377 | L39: 3.211310048 | M39: 0.09060230286 | N39: =O299 -> 95.62738177 | O39: =P299 -> 0.8406835579 | P39: 3.24866972 | Q39: 0.2832649538 | R39: =T299 -> 97.84652698 | S39: =U299 -> 0.6658330351 | T39: 1.48763998 | U39: 0 | V39: =Y299 -> 98.43477529 | W39: =Z299 -> 0.7362688436 | X39: 0.8289558704 | Y39: 0
E40: =C300 -> 2020 | F40: =E300 -> 98.61543179 | G40: 1.384568213 | H40: 0 | I40: 0 | J40: =J300 -> 98.53549598 | K40: 1.464504016 | L40: 0 | M40: 0 | N40: =O300 -> 99.12853694 | O40: 0.871463064 | P40: 0 | Q40: 0 | R40: =T300 -> 99.32411219 | S40: 0.6758878124 | T40: 0 | U40: 0 | V40: =Y300 -> 99.2575768 | W40: 0.7424232043 | X40: 0 | Y40: 0
A97: NATIONAL | D97: Poorest | I97: Poor | N97: Middle | S97: Rich | X97: Richest
D98: Improved | E98: Basic | F98: Limited | G98: Unimproved | H98: Surface water | I98: Improved | J98: Basic | K98: Limited | L98: Unimproved | M98: Surface water | N98: Improved | O98: Basic | P98: Limited | Q98: Unimproved | R98: Surface water | S98: Improved | T98: Basic | U98: Limited | V98: Unimproved | W98: Surface water | X98: Improved | Y98: Basic | Z98: Limited | AA98: Unimproved | AB98: Surface water
A99: Forecast period: | C99: 2000 | D99: =IF((D101+H101)>100,D101*100/(D101+H101),D101) -> 95.67853862 | E99: =D99*AVERAGEIF(E105:E116,">0")/100 -> 94.77751374 | F99: =D99*(100-AVERAGEIF(E105:E116,">0"))/100 -> 0.9010248789 | G99: =100-(E99+F99+H99) -> 4.001259898 | H99: =IF((D101+H101)>100,H101*100/(D101+H101),H101) -> 0.3202014796 | I99: =IF((I101+M101)>100,I101*100/(I101+M101),I101) -> 97.64480361 | J99: =I99*AVERAGEIF(J105:J116,">0")/100 -> 96.96704714 | K99: =I99*(100-AVERAGEIF(J105:J116,">0"))/100 -> 0.6777564676 | L99: =100-(J99+K99+M99) -> 2.238306639 | M99: =IF((I101+M101)>100,M101*100/(I101+M101),M101) -> 0.1168897522 | N99: =IF((N101+R101)>100,N101*100/(N101+R101),N101) -> 99.21798078 | O99: =N99*AVERAGEIF(O105:O116,">0")/100 -> 99.01442102 | P99: =N99*(100-AVERAGEIF(O105:O116,">0"))/100 -> 0.2035597589 | Q99: =100-(O99+P99+R99) -> 0.7706460688 | R99: =IF((N101+R101)>100,R101*100/(N101+R101),R101) -> 0.01137315603 | S99: =IF((S101+W101)>100,S101*100/(S101+W101),S101) -> 99.66009255 | T99: =S99*AVERAGEIF(T105:T116,">0")/100 -> 99.45713863 | U99: =S99*(100-AVERAGEIF(T105:T116,">0"))/100 -> 0.2029539233 | V99: =100-(T99+U99+W99) -> 0.2744286324 | W99: =IF((S101+W101)>100,W101*100/(S101+W101),W101) -> 0.06547881924 | X99: =IF((X101+AB101)>100,X101*100/(X101+AB101),X101) -> 99.82528927 | Y99: =X99*AVERAGEIF(Y105:Y116,">0")/100 -> 99.716526 | Z99: =X99*(100-AVERAGEIF(Y105:Y116,">0"))/100 -> 0.1087632668 | AA99: =100-(Y99+Z99+AB99) -> 0.1747107286 | AB99: =IF((X101+AB101)>100,AB101*100/(X101+AB101),AB101) -> 0
C100: 2020 | D100: =IF((D102+H102)>100,D102*100/(D102+H102),D102) -> 100 | E100: =D100*AVERAGEIF(E105:E116,">0")/100 -> 99.05827901 | F100: =D100*(100-AVERAGEIF(E105:E116,">0"))/100 -> 0.9417209876 | G100: =100-(E100+F100+H100) -> 0 | H100: =IF((D102+H102)>100,H102*100/(D102+H102),H102) -> 0 | I100: =IF((I102+M102)>100,I102*100/(I102+M102),I102) -> 100 | J100: =I100*AVERAGEIF(J105:J116,">0")/100 -> 99.30589602 | K100: =I100*(100-AVERAGEIF(J105:J116,">0"))/100 -> 0.6941039795 | L100: =100-(J100+K100+M100) -> 0 | M100: =IF((I102+M102)>100,M102*100/(I102+M102),M102) -> 0 | N100: =IF((N102+R102)>100,N102*100/(N102+R102),N102) -> 99.99859096 | O100: =N100*AVERAGEIF(O105:O116,">0")/100 -> 99.79342966 | P100: =N100*(100-AVERAGEIF(O105:O116,">0"))/100 -> 0.2051612914 | Q100: =100-(O100+P100+R100) -> 0 | R100: =IF((N102+R102)>100,R102*100/(N102+R102),R102) -> 0.001409043725 | S100: =IF((S102+W102)>100,S102*100/(S102+W102),S102) -> 99.96973824 | T100: =S100*AVERAGEIF(T105:T116,">0")/100 -> 99.76615374 | U100: =S100*(100-AVERAGEIF(T105:T116,">0"))/100 -> 0.2035845048 | V100: =100-(T100+U100+W100) -> 0 | W100: =IF((S102+W102)>100,W102*100/(S102+W102),W102) -> 0.03026175862 | X100: =IF((X102+AB102)>100,X102*100/(X102+AB102),X102) -> 100 | Y100: =X100*AVERAGEIF(Y105:Y116,">0")/100 -> 99.89104638 | Z100: =X100*(100-AVERAGEIF(Y105:Y116,">0"))/100 -> 0.1089536205 | AA100: =100-(Y100+Z100+AB100) -> 0 | AB100: =IF((X102+AB102)>100,AB102*100/(X102+AB102),AB102) -> 0
A101: Regression period: | C101: =MinRegYear(C99,C105:C116) -> 2000 | D101: =IF(MAX(C105:C116)-MIN(C105:C116)<5,AVERAGEIF(C105:C116,">0",D105:D116), IF(FORECAST($C101,D$105:D$116,$C$105:$C$116)<0,0, IF(FORECAST($C101,D$105:D$116,$C$105:$C$116)>100,100, FORECAST($C101,D$105:D$116,$C$105:$C$116)))) -> 95.67853862 | H101: =IF(MAX(C105:C116)-MIN(C105:C116)<5,AVERAGEIF(C105:C116,">0",H105:H116), IF(FORECAST($C101,H$105:H$116,$C$105:$C$116)<0,0, IF(FORECAST($C101,H$105:H$116,$C$105:$C$116)>100,100, FORECAST($C101,H$105:H$116,$C$105:$C$116)))) -> 0.3202014796 | I101: =IF(MAX(C105:C116)-MIN(C105:C116)<5,AVERAGEIF(C105:C116,">0",I105:I116), IF(FORECAST($C101,I$105:I$116,$C$105:$C$116)<0,0, IF(FORECAST($C101,I$105:I$116,$C$105:$C$116)>100,100, FORECAST($C101,I$105:I$116,$C$105:$C$116)))) -> 97.64480361 | M101: =IF(MAX(C105:C116)-MIN(C105:C116)<5,AVERAGEIF(C105:C116,">0",M105:M116), IF(FORECAST($C101,M$105:M$116,$C$105:$C$116)<0,0, IF(FORECAST($C101,M$105:M$116,$C$105:$C$116)>100,100, FORECAST($C101,M$105:M$116,$C$105:$C$116)))) -> 0.1168897522 | N101: =IF(MAX(C105:C116)-MIN(C105:C116)<5,AVERAGEIF(C105:C116,">0",N105:N116), IF(FORECAST($C101,N$105:N$116,$C$105:$C$116)<0,0, IF(FORECAST($C101,N$105:N$116,$C$105:$C$116)>100,100, FORECAST($C101,N$105:N$116,$C$105:$C$116)))) -> 99.21798078 | R101: =IF(MAX(C105:C116)-MIN(C105:C116)<5,AVERAGEIF(C105:C116,">0",R105:R116), IF(FORECAST($C101,R$105:R$116,$C$105:$C$116)<0,0, IF(FORECAST($C101,R$105:R$116,$C$105:$C$116)>100,100, FORECAST($C101,R$105:R$116,$C$105:$C$116)))) -> 0.01137315603 | S101: =IF(MAX(C105:C116)-MIN(C105:C116)<5,AVERAGEIF(C105:C116,">0",S105:S116), IF(FORECAST($C101,S$105:S$116,$C$105:$C$116)<0,0, IF(FORECAST($C101,S$105:S$116,$C$105:$C$116)>100,100, FORECAST($C101,S$105:S$116,$C$105:$C$116)))) -> 99.66009255 | W101: =IF(MAX(C105:C116)-MIN(C105:C116)<5,AVERAGEIF(C105:C116,">0",W105:W116), IF(FORECAST($C101,W$105:W$116,$C$105:$C$116)<0,0, IF(FORECAST($C101,W$105:W$116,$C$105:$C$116)>100,100, FORECAST($C101,W$105:W$116,$C$105:$C$116)))) -> 0.06547881924 | X101: =IF(MAX(C105:C116)-MIN(C105:C116)<5,AVERAGEIF(C105:C116,">0",X105:X116), IF(FORECAST($C101,X$105:X$116,$C$105:$C$116)<0,0, IF(FORECAST($C101,X$105:X$116,$C$105:$C$116)>100,100, FORECAST($C101,X$105:X$116,$C$105:$C$116)))) -> 99.82528927 | AB101: =IF(MAX(C105:C116)-MIN(C105:C116)<5,AVERAGEIF(C105:C116,">0",AB105:AB116), IF(FORECAST($C101,AB$105:AB$116,$C$105:$C$116)<0,0, IF(FORECAST($C101,AB$105:AB$116,$C$105:$C$116)>100,100, FORECAST($C101,AB$105:AB$116,$C$105:$C$116)))) -> 0
C102: =MaxRegYear(C100,C105:C116) -> 2018 | D102: =IF(MAX(C105:C116)-MIN(C105:C116)<5,AVERAGEIF(C105:C116,">0",D105:D116), IF(FORECAST($C102,D$105:D$116,$C$105:$C$116)<0,0, IF(FORECAST($C102,D$105:D$116,$C$105:$C$116)>100,100, FORECAST($C102,D$105:D$116,$C$105:$C$116)))) -> 100 | H102: =IF(MAX(C105:C116)-MIN(C105:C116)<5,AVERAGEIF(C105:C116,">0",H105:H116), IF(FORECAST($C102,H$105:H$116,$C$105:$C$116)<0,0, IF(FORECAST($C102,H$105:H$116,$C$105:$C$116)>100,100, FORECAST($C102,H$105:H$116,$C$105:$C$116)))) -> 0 | I102: =IF(MAX(C105:C116)-MIN(C105:C116)<5,AVERAGEIF(C105:C116,">0",I105:I116), IF(FORECAST($C102,I$105:I$116,$C$105:$C$116)<0,0, IF(FORECAST($C102,I$105:I$116,$C$105:$C$116)>100,100, FORECAST($C102,I$105:I$116,$C$105:$C$116)))) -> 100 | M102: =IF(MAX(C105:C116)-MIN(C105:C116)<5,AVERAGEIF(C105:C116,">0",M105:M116), IF(FORECAST($C102,M$105:M$116,$C$105:$C$116)<0,0, IF(FORECAST($C102,M$105:M$116,$C$105:$C$116)>100,100, FORECAST($C102,M$105:M$116,$C$105:$C$116)))) -> 0 | N102: =IF(MAX(C105:C116)-MIN(C105:C116)<5,AVERAGEIF(C105:C116,">0",N105:N116), IF(FORECAST($C102,N$105:N$116,$C$105:$C$116)<0,0, IF(FORECAST($C102,N$105:N$116,$C$105:$C$116)>100,100, FORECAST($C102,N$105:N$116,$C$105:$C$116)))) -> 100 | R102: =IF(MAX(C105:C116)-MIN(C105:C116)<5,AVERAGEIF(C105:C116,">0",R105:R116), IF(FORECAST($C102,R$105:R$116,$C$105:$C$116)<0,0, IF(FORECAST($C102,R$105:R$116,$C$105:$C$116)>100,100, FORECAST($C102,R$105:R$116,$C$105:$C$116)))) -> 0.001409063579 | S102: =IF(MAX(C105:C116)-MIN(C105:C116)<5,AVERAGEIF(C105:C116,">0",S105:S116), IF(FORECAST($C102,S$105:S$116,$C$105:$C$116)<0,0, IF(FORECAST($C102,S$105:S$116,$C$105:$C$116)>100,100, FORECAST($C102,S$105:S$116,$C$105:$C$116)))) -> 100 | W102: =IF(MAX(C105:C116)-MIN(C105:C116)<5,AVERAGEIF(C105:C116,">0",W105:W116), IF(FORECAST($C102,W$105:W$116,$C$105:$C$116)<0,0, IF(FORECAST($C102,W$105:W$116,$C$105:$C$116)>100,100, FORECAST($C102,W$105:W$116,$C$105:$C$116)))) -> 0.03027091913 | X102: =IF(MAX(C105:C116)-MIN(C105:C116)<5,AVERAGEIF(C105:C116,">0",X105:X116), IF(FORECAST($C102,X$105:X$116,$C$105:$C$116)<0,0, IF(FORECAST($C102,X$105:X$116,$C$105:$C$116)>100,100, FORECAST($C102,X$105:X$116,$C$105:$C$116)))) -> 100 | AB102: =IF(MAX(C105:C116)-MIN(C105:C116)<5,AVERAGEIF(C105:C116,">0",AB105:AB116), IF(FORECAST($C102,AB$105:AB$116,$C$105:$C$116)<0,0, IF(FORECAST($C102,AB$105:AB$116,$C$105:$C$116)>100,100, FORECAST($C102,AB$105:AB$116,$C$105:$C$116)))) -> 0
B104: Survey | C104: Year | D104: Improved | E104: % Improved < = 30min | H104: Surface water | I104: Improved | J104: % Improved < = 30min | M104: Surface water | N104: Improved | O104: % Improved < = 30min | R104: Surface water | S104: Improved | T104: % Improved < = 30min | W104: Surface water | X104: Improved | Y104: % Improved < = 30min | AB104: Surface water
B105: DHS00 | C105: 2000 | D105: =IF(ISERROR(INDIRECT(CONCATENATE($B105,"!C16"))),"",INDIRECT(CONCATENATE($B105,"!C16"))) -> 94.92509039 | E105: =IF(ISERROR(INDIRECT(CONCATENATE($B105,"!C23"))),"",INDIRECT(CONCATENATE($B105,"!C23"))) -> N/A | H105: =IF(ISERROR(INDIRECT(CONCATENATE($B105,"!C21"))),"",INDIRECT(CONCATENATE($B105,"!C21"))) -> 0.4731586169 | I105: =IF(ISERROR(INDIRECT(CONCATENATE($B105,"!D16"))),"",INDIRECT(CONCATENATE($B105,"!D16"))) -> 97.22330615 | J105: =IF(ISERROR(INDIRECT(CONCATENATE($B105,"!D23"))),"",INDIRECT(CONCATENATE($B105,"!D23"))) -> N/A | M105: =IF(ISERROR(INDIRECT(CONCATENATE($B105,"!D21"))),"",INDIRECT(CONCATENATE($B105,"!D21"))) -> 0.1727268517 | N105: =IF(ISERROR(INDIRECT(CONCATENATE($B105,"!E16"))),"",INDIRECT(CONCATENATE($B105,"!E16"))) -> 99.12775591 | O105: =IF(ISERROR(INDIRECT(CONCATENATE($B105,"!E23"))),"",INDIRECT(CONCATENATE($B105,"!E23"))) -> N/A | R105: =IF(ISERROR(INDIRECT(CONCATENATE($B105,"!E21"))),"",INDIRECT(CONCATENATE($B105,"!E21"))) -> 0 | S105: =IF(ISERROR(INDIRECT(CONCATENATE($B105,"!F16"))),"",INDIRECT(CONCATENATE($B105,"!F16"))) -> 99.66288954 | T105: =IF(ISERROR(INDIRECT(CONCATENATE($B105,"!F23"))),"",INDIRECT(CONCATENATE($B105,"!F23"))) -> N/A | W105: =IF(ISERROR(INDIRECT(CONCATENATE($B105,"!F21"))),"",INDIRECT(CONCATENATE($B105,"!F21"))) -> 0 | X105: =IF(ISERROR(INDIRECT(CONCATENATE($B105,"!G16"))),"",INDIRECT(CONCATENATE($B105,"!G16"))) -> 99.73757734 | Y105: =IF(ISERROR(INDIRECT(CONCATENATE($B105,"!G23"))),"",INDIRECT(CONCATENATE($B105,"!G23"))) -> N/A | AB105: =IF(ISERROR(INDIRECT(CONCATENATE($B105,"!G221"))),"",INDIRECT(CONCATENATE($B105,"!G21"))) -> 0
B106: DHS05 | C106: 2005 | D106: 98.19871703 | E106: 97.55386978 | H106: 0 | I106: 98.85231479 | J106: 98.36505553 | M106: 0 | N106: 99.55202438 | O106: 99.38450745 | R106: 0.02833224268 | S106: 99.7390187 | T106: 99.53478674 | W106: 0.1456369958 | X106: 100 | Y106: 99.94685861 | AB106: 0
B107: DHS10 | C107: 2010 | D107: 98.24161791 | E107: 99.84005229 | H107: 0 | I107: 99.4804688 | J107: 99.65036127 | M107: 0 | N107: 99.82269535 | O107: 100 | R107: 0 | S107: 99.94440792 | T107: 99.96375166 | W107: 0.05564245317 | X107: 100 | Y107: 100 | AB107: 0
B108: DHS16 | C108: 2016 | D108: 99.71745318 | E108: 99.78091497 | H108: 0 | I108: 99.7547099 | J108: 99.90227126 | M108: 0 | N108: 99.94887572 | O108: 100 | R108: 0 | S108: 100 | T108: 99.8905232 | W108: 0 | X108: 99.98590526 | Y108: 99.72628053 | AB108: 0
D111: =IF(ISERROR(INDIRECT(CONCATENATE($B111,"!C16"))),"",INDIRECT(CONCATENATE($B111,"!C16"))) ->  | E111: =IF(ISERROR(INDIRECT(CONCATENATE($B111,"!C23"))),"",INDIRECT(CONCATENATE($B111,"!C23"))) ->  | H111: =IF(ISERROR(INDIRECT(CONCATENATE($B111,"!C21"))),"",INDIRECT(CONCATENATE($B111,"!C21"))) ->  | I111: =IF(ISERROR(INDIRECT(CONCATENATE($B111,"!D16"))),"",INDIRECT(CONCATENATE($B111,"!D16"))) ->  | J111: =IF(ISERROR(INDIRECT(CONCATENATE($B111,"!D23"))),"",INDIRECT(CONCATENATE($B111,"!D23"))) ->  | M111: =IF(ISERROR(INDIRECT(CONCATENATE($B111,"!D21"))),"",INDIRECT(CONCATENATE($B111,"!D21"))) ->  | N111: =IF(ISERROR(INDIRECT(CONCATENATE($B111,"!E16"))),"",INDIRECT(CONCATENATE($B111,"!E16"))) ->  | O111: =IF(ISERROR(INDIRECT(CONCATENATE($B111,"!E23"))),"",INDIRECT(CONCATENATE($B111,"!E23"))) ->  | R111: =IF(ISERROR(INDIRECT(CONCATENATE($B111,"!E21"))),"",INDIRECT(CONCATENATE($B111,"!E21"))) ->  | S111: =IF(ISERROR(INDIRECT(CONCATENATE($B111,"!F16"))),"",INDIRECT(CONCATENATE($B111,"!F16"))) ->  | T111: =IF(ISERROR(INDIRECT(CONCATENATE($B111,"!F23"))),"",INDIRECT(CONCATENATE($B111,"!F23"))) ->  | W111: =IF(ISERROR(INDIRECT(CONCATENATE($B111,"!F21"))),"",INDIRECT(CONCATENATE($B111,"!F21"))) ->  | X111: =IF(ISERROR(INDIRECT(CONCATENATE($B111,"!G16"))),"",INDIRECT(CONCATENATE($B111,"!G16"))) ->  | Y111: =IF(ISERROR(INDIRECT(CONCATENATE($B111,"!G23"))),"",INDIRECT(CONCATENATE($B111,"!G23"))) ->  | AB111: =IF(ISERROR(INDIRECT(CONCATENATE($B111,"!G221"))),"",INDIRECT(CONCATENATE($B111,"!G21"))) -> 
D112: =IF(ISERROR(INDIRECT(CONCATENATE($B112,"!C16"))),"",INDIRECT(CONCATENATE($B112,"!C16"))) ->  | E112: =IF(ISERROR(INDIRECT(CONCATENATE($B112,"!C23"))),"",INDIRECT(CONCATENATE($B112,"!C23"))) ->  | H112: =IF(ISERROR(INDIRECT(CONCATENATE($B112,"!C21"))),"",INDIRECT(CONCATENATE($B112,"!C21"))) ->  | I112: =IF(ISERROR(INDIRECT(CONCATENATE($B112,"!D16"))),"",INDIRECT(CONCATENATE($B112,"!D16"))) ->  | J112: =IF(ISERROR(INDIRECT(CONCATENATE($B112,"!D23"))),"",INDIRECT(CONCATENATE($B112,"!D23"))) ->  | M112: =IF(ISERROR(INDIRECT(CONCATENATE($B112,"!D21"))),"",INDIRECT(CONCATENATE($B112,"!D21"))) ->  | N112: =IF(ISERROR(INDIRECT(CONCATENATE($B112,"!E16"))),"",INDIRECT(CONCATENATE($B112,"!E16"))) ->  | O112: =IF(ISERROR(INDIRECT(CONCATENATE($B112,"!E23"))),"",INDIRECT(CONCATENATE($B112,"!E23"))) ->  | R112: =IF(ISERROR(INDIRECT(CONCATENATE($B112,"!E21"))),"",INDIRECT(CONCATENATE($B112,"!E21"))) ->  | S112: =IF(ISERROR(INDIRECT(CONCATENATE($B112,"!F16"))),"",INDIRECT(CONCATENATE($B112,"!F16"))) ->  | T112: =IF(ISERROR(INDIRECT(CONCATENATE($B112,"!F23"))),"",INDIRECT(CONCATENATE($B112,"!F23"))) ->  | W112: =IF(ISERROR(INDIRECT(CONCATENATE($B112,"!F21"))),"",INDIRECT(CONCATENATE($B112,"!F21"))) ->  | X112: =IF(ISERROR(INDIRECT(CONCATENATE($B112,"!G16"))),"",INDIRECT(CONCATENATE($B112,"!G16"))) ->  | Y112: =IF(ISERROR(INDIRECT(CONCATENATE($B112,"!G23"))),"",INDIRECT(CONCATENATE($B112,"!G23"))) ->  | AB112: =IF(ISERROR(INDIRECT(CONCATENATE($B112,"!G221"))),"",INDIRECT(CONCATENATE($B112,"!G21"))) -> 
B118: =CONCATENATE("National use of drinking water sources, ",C99,"–",C100) -> National use of drinking water sources, 2000–2020 | S118: Data points used for regression
E153: =IF(ISERROR(INDIRECT(CONCATENATE($B153,"!M18"))),"",INDIRECT(CONCATENATE($B153,"!M18"))) ->  | F153: =IF(ISERROR(INDIRECT(CONCATENATE($B153,"!M19"))),"",INDIRECT(CONCATENATE($B153,"!M19"))) ->  | G153: =IF(ISERROR(INDIRECT(CONCATENATE($B153,"!M20"))),"",INDIRECT(CONCATENATE($B153,"!M20"))) ->  | H153: =IF(ISERROR(INDIRECT(CONCATENATE($B153,"!M21"))),"",INDIRECT(CONCATENATE($B153,"!M21"))) ->  | J153: =IF(ISERROR(INDIRECT(CONCATENATE($B153,"!N18"))),"",INDIRECT(CONCATENATE($B153,"!N18"))) ->  | K153: =IF(ISERROR(INDIRECT(CONCATENATE($B153,"!N19"))),"",INDIRECT(CONCATENATE($B153,"!N19"))) ->  | L153: =IF(ISERROR(INDIRECT(CONCATENATE($B153,"!N20"))),"",INDIRECT(CONCATENATE($B153,"!N20"))) ->  | M153: =IF(ISERROR(INDIRECT(CONCATENATE($B153,"!N21"))),"",INDIRECT(CONCATENATE($B153,"!N21"))) ->  | O153: =IF(ISERROR(INDIRECT(CONCATENATE($B153,"!O18"))),"",INDIRECT(CONCATENATE($B153,"!O18"))) ->  | P153: =IF(ISERROR(INDIRECT(CONCATENATE($B153,"!O19"))),"",INDIRECT(CONCATENATE($B153,"!O19"))) ->  | Q153: =IF(ISERROR(INDIRECT(CONCATENATE($B153,"!O20"))),"",INDIRECT(CONCATENATE($B153,"!O20"))) ->  | R153: =IF(ISERROR(INDIRECT(CONCATENATE($B153,"!O21"))),"",INDIRECT(CONCATENATE($B153,"!O21"))) ->  | T153: =IF(ISERROR(INDIRECT(CONCATENATE($B153,"!P18"))),"",INDIRECT(CONCATENATE($B153,"!P18"))) ->  | U153: =IF(ISERROR(INDIRECT(CONCATENATE($B153,"!P19"))),"",INDIRECT(CONCATENATE($B153,"!P19"))) ->  | V153: =IF(ISERROR(INDIRECT(CONCATENATE($B153,"!P20"))),"",INDIRECT(CONCATENATE($B153,"!P20"))) ->  | W153: =IF(ISERROR(INDIRECT(CONCATENATE($B153,"!P21"))),"",INDIRECT(CONCATENATE($B153,"!P21"))) ->  | Y153: =IF(ISERROR(INDIRECT(CONCATENATE($B153,"!Q18"))),"",INDIRECT(CONCATENATE($B153,"!Q18"))) ->  | Z153: =IF(ISERROR(INDIRECT(CONCATENATE($B153,"!Q19"))),"",INDIRECT(CONCATENATE($B153,"!Q19"))) ->  | AA153: =IF(ISERROR(INDIRECT(CONCATENATE($B153,"!Q20"))),"",INDIRECT(CONCATENATE($B153,"!Q20"))) ->  | AB153: =IF(ISERROR(INDIRECT(CONCATENATE($B153,"!Q21"))),"",INDIRECT(CONCATENATE($B153,"!Q1"))) -> 
A197: URBAN | D197: Poorest | I197: Poor | N197: Middle | S197: Rich | X197: Richest
D198: Improved | E198: Basic | F198: Limited | G198: Unimproved | H198: Surface water | I198: Improved | J198: Basic | K198: Limited | L198: Unimproved | M198: Surface water | N198: Improved | O198: Basic | P198: Limited | Q198: Unimproved | R198: Surface water | S198: Improved | T198: Basic | U198: Limited | V198: Unimproved | W198: Surface water | X198: Improved | Y198: Basic | Z198: Limited | AA198: Unimproved | AB198: Surface water
A199: Forecast period: | C199: 2000 | D199: =IF((D201+H201)>100,D201*100/(D201+H201),D201) -> 99.11795684 | E199: =D199*AVERAGEIF(E205:E216,">0")/100 -> 98.9282445 | F199: =D199*(100-AVERAGEIF(E205:E216,">0"))/100 -> 0.1897123428 | G199: =100-(E199+F199+H199) -> 0.8820431606 | H199: =IF((D201+H201)>100,H201*100/(D201+H201),H201) -> 0 | I199: =IF((I201+M201)>100,I201*100/(I201+M201),I201) -> 99.66155977 | J199: =I199*AVERAGEIF(J205:J216,">0")/100 -> 99.60559777 | K199: =I199*(100-AVERAGEIF(J205:J216,">0"))/100 -> 0.05596200378 | L199: =100-(J199+K199+M199) -> 0.3202809974 | M199: =IF((I201+M201)>100,M201*100/(I201+M201),M201) -> 0.01815922989 | N199: =IF((N201+R201)>100,N201*100/(N201+R201),N201) -> 99.8439693 | O199: =N199*AVERAGEIF(O205:O216,">0")/100 -> 99.77684972 | P199: =N199*(100-AVERAGEIF(O205:O216,">0"))/100 -> 0.06711958255 | Q199: =100-(O199+P199+R199) -> 0.05107235552 | R199: =IF((N201+R201)>100,R201*100/(N201+R201),R201) -> 0.1049583398 | S199: =IF((S201+W201)>100,S201*100/(S201+W201),S201) -> 99.33806773 | T199: =S199*AVERAGEIF(T205:T216,">0")/100 -> 99.31626043 | U199: =S199*(100-AVERAGEIF(T205:T216,">0"))/100 -> 0.0218073 | V199: =100-(T199+U199+W199) -> 0.6619322733 | W199: =IF((S201+W201)>100,W201*100/(S201+W201),W201) -> 0 | X199: =IF((X201+AB201)>100,X201*100/(X201+AB201),X201) -> 99.21679823 | Y199: =X199*AVERAGEIF(Y205:Y216,">0")/100 -> 99.21679823 | Z199: =X199*(100-AVERAGEIF(Y205:Y216,">0"))/100 -> 0 | AA199: =100-(Y199+Z199+AB199) -> 0.7832017748 | AB199: =IF((X201+AB201)>100,AB201*100/(X201+AB201),AB201) -> 0
C200: 2020 | D200: =IF((D202+H202)>100,D202*100/(D202+H202),D202) -> 99.99000784 | E200: =D200*AVERAGEIF(E205:E216,">0")/100 -> 99.79862639 | F200: =D200*(100-AVERAGEIF(E205:E216,">0"))/100 -> 0.1913814535 | G200: =100-(E200+F200+H200) -> 0.009992161445 | H200: =IF((D202+H202)>100,H202*100/(D202+H202),H202) -> 0 | I200: =IF((I202+M202)>100,I202*100/(I202+M202),I202) -> 99.86174898 | J200: =I200*AVERAGEIF(J205:J216,">0")/100 -> 99.80567456 | K200: =I200*(100-AVERAGEIF(J205:J216,">0"))/100 -> 0.05607441411 | L200: =100-(J200+K200+M200) -> 0.1360012087 | M200: =IF((I202+M202)>100,M202*100/(I202+M202),M202) -> 0.002249816093 | N200: =IF((N202+R202)>100,N202*100/(N202+R202),N202) -> 99.95136124 | O200: =N200*AVERAGEIF(O205:O216,">0")/100 -> 99.88416947 | P200: =N200*(100-AVERAGEIF(O205:O216,">0"))/100 -> 0.06719177621 | Q200: =100-(O200+P200+R200) -> 0 | R200: =IF((N202+R202)>100,R202*100/(N202+R202),R202) -> 0.04863875819 | S200: =IF((S202+W202)>100,S202*100/(S202+W202),S202) -> 100 | T200: =S200*AVERAGEIF(T205:T216,">0")/100 -> 99.97804739 | U200: =S200*(100-AVERAGEIF(T205:T216,">0"))/100 -> 0.02195261142 | V200: =100-(T200+U200+W200) -> 0 | W200: =IF((S202+W202)>100,W202*100/(S202+W202),W202) -> 0 | X200: =IF((X202+AB202)>100,X202*100/(X202+AB202),X202) -> 100 | Y200: =X200*AVERAGEIF(Y205:Y216,">0")/100 -> 100 | Z200: =X200*(100-AVERAGEIF(Y205:Y216,">0"))/100 -> 0 | AA200: =100-(Y200+Z200+AB200) -> 0 | AB200: =IF((X202+AB202)>100,AB202*100/(X202+AB202),AB202) -> 0
A201: Regression period: | C201: =MinRegYear(C199,C205:C216) -> 2000 | D201: =IF(MAX(C205:C216)-MIN(C205:C216)<5,AVERAGEIF(C205:C216,">0",D205:D216), IF(FORECAST($C201,D$205:D$216,$C$205:$C$216)<0,0, IF(FORECAST($C201,D$205:D$216,$C$205:$C$216)>100,100, FORECAST($C201,D$205:D$216,$C$205:$C$216)))) -> 99.11795684 | H201: =IF(MAX(C205:C216)-MIN(C205:C216)<5,AVERAGEIF(C205:C216,">0",H205:H216), IF(FORECAST($C201,H$205:H$216,$C$205:$C$216)<0,0, IF(FORECAST($C201,H$205:H$216,$C$205:$C$216)>100,100, FORECAST($C201,H$205:H$216,$C$205:$C$216)))) -> 0 | I201: =IF(MAX(C205:C216)-MIN(C205:C216)<5,AVERAGEIF(C205:C216,">0",I205:I216), IF(FORECAST($C201,I$205:I$216,$C$205:$C$216)<0,0, IF(FORECAST($C201,I$205:I$216,$C$205:$C$216)>100,100, FORECAST($C201,I$205:I$216,$C$205:$C$216)))) -> 99.66155977 | M201: =IF(MAX(C205:C216)-MIN(C205:C216)<5,AVERAGEIF(C205:C216,">0",M205:M216), IF(FORECAST($C201,M$205:M$216,$C$205:$C$216)<0,0, IF(FORECAST($C201,M$205:M$216,$C$205:$C$216)>100,100, FORECAST($C201,M$205:M$216,$C$205:$C$216)))) -> 0.01815922989 | N201: =IF(MAX(C205:C216)-MIN(C205:C216)<5,AVERAGEIF(C205:C216,">0",N205:N216), IF(FORECAST($C201,N$205:N$216,$C$205:$C$216)<0,0, IF(FORECAST($C201,N$205:N$216,$C$205:$C$216)>100,100, FORECAST($C201,N$205:N$216,$C$205:$C$216)))) -> 99.8439693 | R201: =IF(MAX(C205:C216)-MIN(C205:C216)<5,AVERAGEIF(C205:C216,">0",R205:R216), IF(FORECAST($C201,R$205:R$216,$C$205:$C$216)<0,0, IF(FORECAST($C201,R$205:R$216,$C$205:$C$216)>100,100, FORECAST($C201,R$205:R$216,$C$205:$C$216)))) -> 0.1049583398 | S201: =IF(MAX(C205:C216)-MIN(C205:C216)<5,AVERAGEIF(C205:C216,">0",S205:S216), IF(FORECAST($C201,S$205:S$216,$C$205:$C$216)<0,0, IF(FORECAST($C201,S$205:S$216,$C$205:$C$216)>100,100, FORECAST($C201,S$205:S$216,$C$205:$C$216)))) -> 99.33806773 | W201: =IF(MAX(C205:C216)-MIN(C205:C216)<5,AVERAGEIF(C205:C216,">0",W205:W216), IF(FORECAST($C201,W$205:W$216,$C$205:$C$216)<0,0, IF(FORECAST($C201,W$205:W$216,$C$205:$C$216)>100,100, FORECAST($C201,W$205:W$216,$C$205:$C$216)))) -> 0 | X201: =IF(MAX(C205:C216)-MIN(C205:C216)<5,AVERAGEIF(C205:C216,">0",X205:X216), IF(FORECAST($C201,X$205:X$216,$C$205:$C$216)<0,0, IF(FORECAST($C201,X$205:X$216,$C$205:$C$216)>100,100, FORECAST($C201,X$205:X$216,$C$205:$C$216)))) -> 99.21679823 | AB201: =IF(MAX(C205:C216)-MIN(C205:C216)<5,AVERAGEIF(C205:C216,">0",AB205:AB216), IF(FORECAST($C201,AB$205:AB$216,$C$205:$C$216)<0,0, IF(FORECAST($C201,AB$205:AB$216,$C$205:$C$216)>100,100, FORECAST($C201,AB$205:AB$216,$C$205:$C$216)))) -> 0
C202: =MaxRegYear(C200,C205:C216) -> 2018 | D202: =IF(MAX(C205:C216)-MIN(C205:C216)<5,AVERAGEIF(C205:C216,">0",D205:D216), IF(FORECAST($C202,D$205:D$216,$C$205:$C$216)<0,0, IF(FORECAST($C202,D$205:D$216,$C$205:$C$216)>100,100, FORECAST($C202,D$205:D$216,$C$205:$C$216)))) -> 99.99000784 | H202: =IF(MAX(C205:C216)-MIN(C205:C216)<5,AVERAGEIF(C205:C216,">0",H205:H216), IF(FORECAST($C202,H$205:H$216,$C$205:$C$216)<0,0, IF(FORECAST($C202,H$205:H$216,$C$205:$C$216)>100,100, FORECAST($C202,H$205:H$216,$C$205:$C$216)))) -> 0 | I202: =IF(MAX(C205:C216)-MIN(C205:C216)<5,AVERAGEIF(C205:C216,">0",I205:I216), IF(FORECAST($C202,I$205:I$216,$C$205:$C$216)<0,0, IF(FORECAST($C202,I$205:I$216,$C$205:$C$216)>100,100, FORECAST($C202,I$205:I$216,$C$205:$C$216)))) -> 99.86174898 | M202: =IF(MAX(C205:C216)-MIN(C205:C216)<5,AVERAGEIF(C205:C216,">0",M205:M216), IF(FORECAST($C202,M$205:M$216,$C$205:$C$216)<0,0, IF(FORECAST($C202,M$205:M$216,$C$205:$C$216)>100,100, FORECAST($C202,M$205:M$216,$C$205:$C$216)))) -> 0.002249816093 | N202: =IF(MAX(C205:C216)-MIN(C205:C216)<5,AVERAGEIF(C205:C216,">0",N205:N216), IF(FORECAST($C202,N$205:N$216,$C$205:$C$216)<0,0, IF(FORECAST($C202,N$205:N$216,$C$205:$C$216)>100,100, FORECAST($C202,N$205:N$216,$C$205:$C$216)))) -> 99.97535399 | R202: =IF(MAX(C205:C216)-MIN(C205:C216)<5,AVERAGEIF(C205:C216,">0",R205:R216), IF(FORECAST($C202,R$205:R$216,$C$205:$C$216)<0,0, IF(FORECAST($C202,R$205:R$216,$C$205:$C$216)>100,100, FORECAST($C202,R$205:R$216,$C$205:$C$216)))) -> 0.04865043365 | S202: =IF(MAX(C205:C216)-MIN(C205:C216)<5,AVERAGEIF(C205:C216,">0",S205:S216), IF(FORECAST($C202,S$205:S$216,$C$205:$C$216)<0,0, IF(FORECAST($C202,S$205:S$216,$C$205:$C$216)>100,100, FORECAST($C202,S$205:S$216,$C$205:$C$216)))) -> 100 | W202: =IF(MAX(C205:C216)-MIN(C205:C216)<5,AVERAGEIF(C205:C216,">0",W205:W216), IF(FORECAST($C202,W$205:W$216,$C$205:$C$216)<0,0, IF(FORECAST($C202,W$205:W$216,$C$205:$C$216)>100,100, FORECAST($C202,W$205:W$216,$C$205:$C$216)))) -> 0 | X202: =IF(MAX(C205:C216)-MIN(C205:C216)<5,AVERAGEIF(C205:C216,">0",X205:X216), IF(FORECAST($C202,X$205:X$216,$C$205:$C$216)<0,0, IF(FORECAST($C202,X$205:X$216,$C$205:$C$216)>100,100, FORECAST($C202,X$205:X$216,$C$205:$C$216)))) -> 100 | AB202: =IF(MAX(C205:C216)-MIN(C205:C216)<5,AVERAGEIF(C205:C216,">0",AB205:AB216), IF(FORECAST($C202,AB$205:AB$216,$C$205:$C$216)<0,0, IF(FORECAST($C202,AB$205:AB$216,$C$205:$C$216)>100,100, FORECAST($C202,AB$205:AB$216,$C$205:$C$216)))) -> 0
B204: Survey | C204: Year | D204: Improved | E204: % Improved < = 30min | H204: Surface water | I204: Improved | J204: % Improved < = 30min | M204: Surface water | N204: Improved | O204: % Improved < = 30min | R204: Surface water | S204: Improved | T204: % Improved < = 30min | W204: Surface water | X204: Improved | Y204: % Improved < = 30min | AB204: Surface water
B205: DHS00 | C205: 2000 | D205: =IF(ISERROR(INDIRECT(CONCATENATE($B205,"!H16"))),"",INDIRECT(CONCATENATE($B205,"!H16"))) -> 99.56001469 | E205: =IF(ISERROR(INDIRECT(CONCATENATE($B205,"!H23"))),"",INDIRECT(CONCATENATE($B205,"!H23"))) -> N/A | H205: =IF(ISERROR(INDIRECT(CONCATENATE($B205,"!H21"))),"",INDIRECT(CONCATENATE($B205,"!H21"))) -> 0 | I205: =IF(ISERROR(INDIRECT(CONCATENATE($B205,"!I16"))),"",INDIRECT(CONCATENATE($B205,"!I16"))) -> 100 | J205: =IF(ISERROR(INDIRECT(CONCATENATE($B205,"!I23"))),"",INDIRECT(CONCATENATE($B205,"!I23"))) -> N/A | M205: =IF(ISERROR(INDIRECT(CONCATENATE($B205,"!I21"))),"",INDIRECT(CONCATENATE($B205,"!I21"))) -> 0 | N205: =IF(ISERROR(INDIRECT(CONCATENATE($B205,"!J16"))),"",INDIRECT(CONCATENATE($B205,"!J16"))) -> 99.9239042 | O205: =IF(ISERROR(INDIRECT(CONCATENATE($B205,"!J23"))),"",INDIRECT(CONCATENATE($B205,"!J23"))) -> N/A | R205: =IF(ISERROR(INDIRECT(CONCATENATE($B205,"!J21"))),"",INDIRECT(CONCATENATE($B205,"!J21"))) -> 0 | S205: =IF(ISERROR(INDIRECT(CONCATENATE($B205,"!K16"))),"",INDIRECT(CONCATENATE($B205,"!K16"))) -> 99.01462039 | T205: =IF(ISERROR(INDIRECT(CONCATENATE($B205,"!K23"))),"",INDIRECT(CONCATENATE($B205,"!K23"))) -> N/A | W205: =IF(ISERROR(INDIRECT(CONCATENATE($B205,"!K21"))),"",INDIRECT(CONCATENATE($B205,"!K21"))) -> 0 | X205: =IF(ISERROR(INDIRECT(CONCATENATE($B205,"!L16"))),"",INDIRECT(CONCATENATE($B205,"!L16"))) -> 98.84267034 | Y205: =IF(ISERROR(INDIRECT(CONCATENATE($B205,"!L23"))),"",INDIRECT(CONCATENATE($B205,"!L23"))) -> N/A | AB205: =IF(ISERROR(INDIRECT(CONCATENATE($B205,"!L221"))),"",INDIRECT(CONCATENATE($B205,"!L21"))) -> 0
B206: DHS05 | C206: 2005 | D206: 98.57564028 | E206: 99.55190303 | H206: 0 | I206: 99.23288055 | J206: 99.91411452 | M206: 0.04523737358 | N206: 99.76768843 | O206: 99.79832658 | R206: 0.2333456932 | S206: 100 | T206: 99.93414217 | W206: 0 | X206: 100 | Y206: 100 | AB206: 0
B207: DHS10 | C207: 2010 | D207: 99.86195577 | E207: 99.87389523 | H207: 0 | I207: 99.75812883 | J207: 99.9414257 | M207: 0 | N207: 99.91055821 | O207: 100 | R207: 0.08951293877 | S207: 100 | T207: 100 | W207: 0 | X207: 100 | Y207: 100 | AB207: 0
B208: DHS16 | C208: 2016 | D208: 99.97608224 | E208: 100 | H208: 0 | I208: 100 | J208: 99.97600365 | M208: 0 | N208: 100 | O208: 100 | R208: 0 | S208: 99.9759847 | T208: 100 | W208: 0 | X208: 100 | Y208: 100 | AB208: 0
B218: =CONCATENATE("Urban use of drinking water sources, ",C199,"–",C200) -> Urban use of drinking water sources, 2000–2020 | S218: Data points used for regression
E253: =IF(ISERROR(INDIRECT(CONCATENATE($B253,"!M18"))),"",INDIRECT(CONCATENATE($B253,"!M18"))) ->  | F253: =IF(ISERROR(INDIRECT(CONCATENATE($B253,"!M19"))),"",INDIRECT(CONCATENATE($B253,"!M19"))) ->  | G253: =IF(ISERROR(INDIRECT(CONCATENATE($B253,"!M20"))),"",INDIRECT(CONCATENATE($B253,"!M20"))) ->  | H253: =IF(ISERROR(INDIRECT(CONCATENATE($B253,"!M21"))),"",INDIRECT(CONCATENATE($B253,"!M21"))) ->  | J253: =IF(ISERROR(INDIRECT(CONCATENATE($B253,"!N18"))),"",INDIRECT(CONCATENATE($B253,"!N18"))) ->  | K253: =IF(ISERROR(INDIRECT(CONCATENATE($B253,"!N19"))),"",INDIRECT(CONCATENATE($B253,"!N19"))) ->  | L253: =IF(ISERROR(INDIRECT(CONCATENATE($B253,"!N20"))),"",INDIRECT(CONCATENATE($B253,"!N20"))) ->  | M253: =IF(ISERROR(INDIRECT(CONCATENATE($B253,"!N21"))),"",INDIRECT(CONCATENATE($B253,"!N21"))) ->  | O253: =IF(ISERROR(INDIRECT(CONCATENATE($B253,"!O18"))),"",INDIRECT(CONCATENATE($B253,"!O18"))) ->  | P253: =IF(ISERROR(INDIRECT(CONCATENATE($B253,"!O19"))),"",INDIRECT(CONCATENATE($B253,"!O19"))) ->  | Q253: =IF(ISERROR(INDIRECT(CONCATENATE($B253,"!O20"))),"",INDIRECT(CONCATENATE($B253,"!O20"))) ->  | R253: =IF(ISERROR(INDIRECT(CONCATENATE($B253,"!O21"))),"",INDIRECT(CONCATENATE($B253,"!O21"))) ->  | T253: =IF(ISERROR(INDIRECT(CONCATENATE($B253,"!P18"))),"",INDIRECT(CONCATENATE($B253,"!P18"))) ->  | U253: =IF(ISERROR(INDIRECT(CONCATENATE($B253,"!P19"))),"",INDIRECT(CONCATENATE($B253,"!P19"))) ->  | V253: =IF(ISERROR(INDIRECT(CONCATENATE($B253,"!P20"))),"",INDIRECT(CONCATENATE($B253,"!P20"))) ->  | W253: =IF(ISERROR(INDIRECT(CONCATENATE($B253,"!P21"))),"",INDIRECT(CONCATENATE($B253,"!P21"))) ->  | Y253: =IF(ISERROR(INDIRECT(CONCATENATE($B253,"!Q18"))),"",INDIRECT(CONCATENATE($B253,"!Q18"))) ->  | Z253: =IF(ISERROR(INDIRECT(CONCATENATE($B253,"!Q19"))),"",INDIRECT(CONCATENATE($B253,"!Q19"))) ->  | AA253: =IF(ISERROR(INDIRECT(CONCATENATE($B253,"!Q20"))),"",INDIRECT(CONCATENATE($B253,"!Q20"))) ->  | AB253: =IF(ISERROR(INDIRECT(CONCATENATE($B253,"!Q21"))),"",INDIRECT(CONCATENATE($B253,"!Q1"))) -> 
E254: =IF(ISERROR(INDIRECT(CONCATENATE($B254,"!M18"))),"",INDIRECT(CONCATENATE($B254,"!M18"))) ->  | F254: =IF(ISERROR(INDIRECT(CONCATENATE($B254,"!M19"))),"",INDIRECT(CONCATENATE($B254,"!M19"))) ->  | G254: =IF(ISERROR(INDIRECT(CONCATENATE($B254,"!M20"))),"",INDIRECT(CONCATENATE($B254,"!M20"))) ->  | H254: =IF(ISERROR(INDIRECT(CONCATENATE($B254,"!M21"))),"",INDIRECT(CONCATENATE($B254,"!M21"))) ->  | J254: =IF(ISERROR(INDIRECT(CONCATENATE($B254,"!N18"))),"",INDIRECT(CONCATENATE($B254,"!N18"))) ->  | K254: =IF(ISERROR(INDIRECT(CONCATENATE($B254,"!N19"))),"",INDIRECT(CONCATENATE($B254,"!N19"))) ->  | L254: =IF(ISERROR(INDIRECT(CONCATENATE($B254,"!N20"))),"",INDIRECT(CONCATENATE($B254,"!N20"))) ->  | M254: =IF(ISERROR(INDIRECT(CONCATENATE($B254,"!N21"))),"",INDIRECT(CONCATENATE($B254,"!N21"))) ->  | O254: =IF(ISERROR(INDIRECT(CONCATENATE($B254,"!O18"))),"",INDIRECT(CONCATENATE($B254,"!O18"))) ->  | P254: =IF(ISERROR(INDIRECT(CONCATENATE($B254,"!O19"))),"",INDIRECT(CONCATENATE($B254,"!O19"))) ->  | Q254: =IF(ISERROR(INDIRECT(CONCATENATE($B254,"!O20"))),"",INDIRECT(CONCATENATE($B254,"!O20"))) ->  | R254: =IF(ISERROR(INDIRECT(CONCATENATE($B254,"!O21"))),"",INDIRECT(CONCATENATE($B254,"!O21"))) ->  | T254: =IF(ISERROR(INDIRECT(CONCATENATE($B254,"!P18"))),"",INDIRECT(CONCATENATE($B254,"!P18"))) ->  | U254: =IF(ISERROR(INDIRECT(CONCATENATE($B254,"!P19"))),"",INDIRECT(CONCATENATE($B254,"!P19"))) ->  | V254: =IF(ISERROR(INDIRECT(CONCATENATE($B254,"!P20"))),"",INDIRECT(CONCATENATE($B254,"!P20"))) ->  | W254: =IF(ISERROR(INDIRECT(CONCATENATE($B254,"!P21"))),"",INDIRECT(CONCATENATE($B254,"!P21"))) ->  | Y254: =IF(ISERROR(INDIRECT(CONCATENATE($B254,"!Q18"))),"",INDIRECT(CONCATENATE($B254,"!Q18"))) ->  | Z254: =IF(ISERROR(INDIRECT(CONCATENATE($B254,"!Q19"))),"",INDIRECT(CONCATENATE($B254,"!Q19"))) ->  | AA254: =IF(ISERROR(INDIRECT(CONCATENATE($B254,"!Q20"))),"",INDIRECT(CONCATENATE($B254,"!Q20"))) ->  | AB254: =IF(ISERROR(INDIRECT(CONCATENATE($B254,"!Q21"))),"",INDIRECT(CONCATENATE($B254,"!Q1"))) -> 
E255: =IF(ISERROR(INDIRECT(CONCATENATE($B255,"!M18"))),"",INDIRECT(CONCATENATE($B255,"!M18"))) ->  | F255: =IF(ISERROR(INDIRECT(CONCATENATE($B255,"!M19"))),"",INDIRECT(CONCATENATE($B255,"!M19"))) ->  | G255: =IF(ISERROR(INDIRECT(CONCATENATE($B255,"!M20"))),"",INDIRECT(CONCATENATE($B255,"!M20"))) ->  | H255: =IF(ISERROR(INDIRECT(CONCATENATE($B255,"!M21"))),"",INDIRECT(CONCATENATE($B255,"!M21"))) ->  | J255: =IF(ISERROR(INDIRECT(CONCATENATE($B255,"!N18"))),"",INDIRECT(CONCATENATE($B255,"!N18"))) ->  | K255: =IF(ISERROR(INDIRECT(CONCATENATE($B255,"!N19"))),"",INDIRECT(CONCATENATE($B255,"!N19"))) ->  | L255: =IF(ISERROR(INDIRECT(CONCATENATE($B255,"!N20"))),"",INDIRECT(CONCATENATE($B255,"!N20"))) ->  | M255: =IF(ISERROR(INDIRECT(CONCATENATE($B255,"!N21"))),"",INDIRECT(CONCATENATE($B255,"!N21"))) ->  | O255: =IF(ISERROR(INDIRECT(CONCATENATE($B255,"!O18"))),"",INDIRECT(CONCATENATE($B255,"!O18"))) ->  | P255: =IF(ISERROR(INDIRECT(CONCATENATE($B255,"!O19"))),"",INDIRECT(CONCATENATE($B255,"!O19"))) ->  | Q255: =IF(ISERROR(INDIRECT(CONCATENATE($B255,"!O20"))),"",INDIRECT(CONCATENATE($B255,"!O20"))) ->  | R255: =IF(ISERROR(INDIRECT(CONCATENATE($B255,"!O21"))),"",INDIRECT(CONCATENATE($B255,"!O21"))) ->  | T255: =IF(ISERROR(INDIRECT(CONCATENATE($B255,"!P18"))),"",INDIRECT(CONCATENATE($B255,"!P18"))) ->  | U255: =IF(ISERROR(INDIRECT(CONCATENATE($B255,"!P19"))),"",INDIRECT(CONCATENATE($B255,"!P19"))) ->  | V255: =IF(ISERROR(INDIRECT(CONCATENATE($B255,"!P20"))),"",INDIRECT(CONCATENATE($B255,"!P20"))) ->  | W255: =IF(ISERROR(INDIRECT(CONCATENATE($B255,"!P21"))),"",INDIRECT(CONCATENATE($B255,"!P21"))) ->  | Y255: =IF(ISERROR(INDIRECT(CONCATENATE($B255,"!Q18"))),"",INDIRECT(CONCATENATE($B255,"!Q18"))) ->  | Z255: =IF(ISERROR(INDIRECT(CONCATENATE($B255,"!Q19"))),"",INDIRECT(CONCATENATE($B255,"!Q19"))) ->  | AA255: =IF(ISERROR(INDIRECT(CONCATENATE($B255,"!Q20"))),"",INDIRECT(CONCATENATE($B255,"!Q20"))) ->  | AB255: =IF(ISERROR(INDIRECT(CONCATENATE($B255,"!Q21"))),"",INDIRECT(CONCATENATE($B255,"!Q1"))) -> 
E256: =IF(ISERROR(INDIRECT(CONCATENATE($B256,"!M18"))),"",INDIRECT(CONCATENATE($B256,"!M18"))) ->  | F256: =IF(ISERROR(INDIRECT(CONCATENATE($B256,"!M19"))),"",INDIRECT(CONCATENATE($B256,"!M19"))) ->  | G256: =IF(ISERROR(INDIRECT(CONCATENATE($B256,"!M20"))),"",INDIRECT(CONCATENATE($B256,"!M20"))) ->  | H256: =IF(ISERROR(INDIRECT(CONCATENATE($B256,"!M21"))),"",INDIRECT(CONCATENATE($B256,"!M21"))) ->  | J256: =IF(ISERROR(INDIRECT(CONCATENATE($B256,"!N18"))),"",INDIRECT(CONCATENATE($B256,"!N18"))) ->  | K256: =IF(ISERROR(INDIRECT(CONCATENATE($B256,"!N19"))),"",INDIRECT(CONCATENATE($B256,"!N19"))) ->  | L256: =IF(ISERROR(INDIRECT(CONCATENATE($B256,"!N20"))),"",INDIRECT(CONCATENATE($B256,"!N20"))) ->  | M256: =IF(ISERROR(INDIRECT(CONCATENATE($B256,"!N21"))),"",INDIRECT(CONCATENATE($B256,"!N21"))) ->  | O256: =IF(ISERROR(INDIRECT(CONCATENATE($B256,"!O18"))),"",INDIRECT(CONCATENATE($B256,"!O18"))) ->  | P256: =IF(ISERROR(INDIRECT(CONCATENATE($B256,"!O19"))),"",INDIRECT(CONCATENATE($B256,"!O19"))) ->  | Q256: =IF(ISERROR(INDIRECT(CONCATENATE($B256,"!O20"))),"",INDIRECT(CONCATENATE($B256,"!O20"))) ->  | R256: =IF(ISERROR(INDIRECT(CONCATENATE($B256,"!O21"))),"",INDIRECT(CONCATENATE($B256,"!O21"))) ->  | T256: =IF(ISERROR(INDIRECT(CONCATENATE($B256,"!P18"))),"",INDIRECT(CONCATENATE($B256,"!P18"))) ->  | U256: =IF(ISERROR(INDIRECT(CONCATENATE($B256,"!P19"))),"",INDIRECT(CONCATENATE($B256,"!P19"))) ->  | V256: =IF(ISERROR(INDIRECT(CONCATENATE($B256,"!P20"))),"",INDIRECT(CONCATENATE($B256,"!P20"))) ->  | W256: =IF(ISERROR(INDIRECT(CONCATENATE($B256,"!P21"))),"",INDIRECT(CONCATENATE($B256,"!P21"))) ->  | Y256: =IF(ISERROR(INDIRECT(CONCATENATE($B256,"!Q18"))),"",INDIRECT(CONCATENATE($B256,"!Q18"))) ->  | Z256: =IF(ISERROR(INDIRECT(CONCATENATE($B256,"!Q19"))),"",INDIRECT(CONCATENATE($B256,"!Q19"))) ->  | AA256: =IF(ISERROR(INDIRECT(CONCATENATE($B256,"!Q20"))),"",INDIRECT(CONCATENATE($B256,"!Q20"))) ->  | AB256: =IF(ISERROR(INDIRECT(CONCATENATE($B256,"!Q21"))),"",INDIRECT(CONCATENATE($B256,"!Q1"))) -> 
E257: =IF(ISERROR(INDIRECT(CONCATENATE($B257,"!M18"))),"",INDIRECT(CONCATENATE($B257,"!M18"))) ->  | F257: =IF(ISERROR(INDIRECT(CONCATENATE($B257,"!M19"))),"",INDIRECT(CONCATENATE($B257,"!M19"))) ->  | G257: =IF(ISERROR(INDIRECT(CONCATENATE($B257,"!M20"))),"",INDIRECT(CONCATENATE($B257,"!M20"))) ->  | H257: =IF(ISERROR(INDIRECT(CONCATENATE($B257,"!M21"))),"",INDIRECT(CONCATENATE($B257,"!M21"))) ->  | J257: =IF(ISERROR(INDIRECT(CONCATENATE($B257,"!N18"))),"",INDIRECT(CONCATENATE($B257,"!N18"))) ->  | K257: =IF(ISERROR(INDIRECT(CONCATENATE($B257,"!N19"))),"",INDIRECT(CONCATENATE($B257,"!N19"))) ->  | L257: =IF(ISERROR(INDIRECT(CONCATENATE($B257,"!N20"))),"",INDIRECT(CONCATENATE($B257,"!N20"))) ->  | M257: =IF(ISERROR(INDIRECT(CONCATENATE($B257,"!N21"))),"",INDIRECT(CONCATENATE($B257,"!N21"))) ->  | O257: =IF(ISERROR(INDIRECT(CONCATENATE($B257,"!O18"))),"",INDIRECT(CONCATENATE($B257,"!O18"))) ->  | P257: =IF(ISERROR(INDIRECT(CONCATENATE($B257,"!O19"))),"",INDIRECT(CONCATENATE($B257,"!O19"))) ->  | Q257: =IF(ISERROR(INDIRECT(CONCATENATE($B257,"!O20"))),"",INDIRECT(CONCATENATE($B257,"!O20"))) ->  | R257: =IF(ISERROR(INDIRECT(CONCATENATE($B257,"!O21"))),"",INDIRECT(CONCATENATE($B257,"!O21"))) ->  | T257: =IF(ISERROR(INDIRECT(CONCATENATE($B257,"!P18"))),"",INDIRECT(CONCATENATE($B257,"!P18"))) ->  | U257: =IF(ISERROR(INDIRECT(CONCATENATE($B257,"!P19"))),"",INDIRECT(CONCATENATE($B257,"!P19"))) ->  | V257: =IF(ISERROR(INDIRECT(CONCATENATE($B257,"!P20"))),"",INDIRECT(CONCATENATE($B257,"!P20"))) ->  | W257: =IF(ISERROR(INDIRECT(CONCATENATE($B257,"!P21"))),"",INDIRECT(CONCATENATE($B257,"!P21"))) ->  | Y257: =IF(ISERROR(INDIRECT(CONCATENATE($B257,"!Q18"))),"",INDIRECT(CONCATENATE($B257,"!Q18"))) ->  | Z257: =IF(ISERROR(INDIRECT(CONCATENATE($B257,"!Q19"))),"",INDIRECT(CONCATENATE($B257,"!Q19"))) ->  | AA257: =IF(ISERROR(INDIRECT(CONCATENATE($B257,"!Q20"))),"",INDIRECT(CONCATENATE($B257,"!Q20"))) ->  | AB257: =IF(ISERROR(INDIRECT(CONCATENATE($B257,"!Q21"))),"",INDIRECT(CONCATENATE($B257,"!Q1"))) -> 
A297: RURAL | D297: Poorest | I297: Poor | N297: Middle | S297: Rich | X297: Richest
D298: Improved | E298: Basic | F298: Limited | G298: Unimproved | H298: Surface water | I298: Improved | J298: Basic | K298: Limited | L298: Unimproved | M298: Surface water | N298: Improved | O298: Basic | P298: Limited | Q298: Unimproved | R298: Surface water | S298: Improved | T298: Basic | U298: Limited | V298: Unimproved | W298: Surface water | X298: Improved | Y298: Basic | Z298: Limited | AA298: Unimproved | AB298: Surface water
A299: Forecast period: | C299: 2000 | D299: =IF((D301+H301)>100,D301*100/(D301+H301),D301) -> 92.75972399 | E299: =D299*AVERAGEIF(E305:E316,">0")/100 -> 91.47540234 | F299: =D299*(100-AVERAGEIF(E305:E316,">0"))/100 -> 1.284321653 | G299: =100-(E299+F299+H299) -> 6.568468134 | H299: =IF((D301+H301)>100,H301*100/(D301+H301),H301) -> 0.671807873 | I299: =IF((I301+M301)>100,I301*100/(I301+M301),I301) -> 96.69808765 | J299: =I299*AVERAGEIF(J305:J316,">0")/100 -> 95.28194027 | K299: =I299*(100-AVERAGEIF(J305:J316,">0"))/100 -> 1.416147377 | L299: =100-(J299+K299+M299) -> 3.211310048 | M299: =IF((I301+M301)>100,M301*100/(I301+M301),M301) -> 0.09060230286 | N299: =IF((N301+R301)>100,N301*100/(N301+R301),N301) -> 96.46806533 | O299: =N299*AVERAGEIF(O305:O316,">0")/100 -> 95.62738177 | P299: =N299*(100-AVERAGEIF(O305:O316,">0"))/100 -> 0.8406835579 | Q299: =100-(O299+P299+R299) -> 3.24866972 | R299: =IF((N301+R301)>100,R301*100/(N301+R301),R301) -> 0.2832649538 | S299: =IF((S301+W301)>100,S301*100/(S301+W301),S301) -> 98.51236002 | T299: =S299*AVERAGEIF(T305:T316,">0")/100 -> 97.84652698 | U299: =S299*(100-AVERAGEIF(T305:T316,">0"))/100 -> 0.6658330351 | V299: =100-(T299+U299+W299) -> 1.48763998 | W299: =IF((S301+W301)>100,W301*100/(S301+W301),W301) -> 0 | X299: =IF((X301+AB301)>100,X301*100/(X301+AB301),X301) -> 99.17104413 | Y299: =X299*AVERAGEIF(Y305:Y316,">0")/100 -> 98.43477529 | Z299: =X299*(100-AVERAGEIF(Y305:Y316,">0"))/100 -> 0.7362688436 | AA299: =100-(Y299+Z299+AB299) -> 0.8289558704 | AB299: =IF((X301+AB301)>100,AB301*100/(X301+AB301),AB301) -> 0
C300: 2020 | D300: =IF((D302+H302)>100,D302*100/(D302+H302),D302) -> 100 | E300: =D300*AVERAGEIF(E305:E316,">0")/100 -> 98.61543179 | F300: =D300*(100-AVERAGEIF(E305:E316,">0"))/100 -> 1.384568213 | G300: =100-(E300+F300+H300) -> 0 | H300: =IF((D302+H302)>100,H302*100/(D302+H302),H302) -> 0 | I300: =IF((I302+M302)>100,I302*100/(I302+M302),I302) -> 100 | J300: =I300*AVERAGEIF(J305:J316,">0")/100 -> 98.53549598 | K300: =I300*(100-AVERAGEIF(J305:J316,">0"))/100 -> 1.464504016 | L300: =100-(J300+K300+M300) -> 0 | M300: =IF((I302+M302)>100,M302*100/(I302+M302),M302) -> 0 | N300: =IF((N302+R302)>100,N302*100/(N302+R302),N302) -> 100 | O300: =N300*AVERAGEIF(O305:O316,">0")/100 -> 99.12853694 | P300: =N300*(100-AVERAGEIF(O305:O316,">0"))/100 -> 0.871463064 | Q300: =100-(O300+P300+R300) -> 0 | R300: =IF((N302+R302)>100,R302*100/(N302+R302),R302) -> 0 | S300: =IF((S302+W302)>100,S302*100/(S302+W302),S302) -> 100 | T300: =S300*AVERAGEIF(T305:T316,">0")/100 -> 99.32411219 | U300: =S300*(100-AVERAGEIF(T305:T316,">0"))/100 -> 0.6758878124 | V300: =100-(T300+U300+W300) -> 0 | W300: =IF((S302+W302)>100,W302*100/(S302+W302),W302) -> 0 | X300: =IF((X302+AB302)>100,X302*100/(X302+AB302),X302) -> 100 | Y300: =X300*AVERAGEIF(Y305:Y316,">0")/100 -> 99.2575768 | Z300: =X300*(100-AVERAGEIF(Y305:Y316,">0"))/100 -> 0.7424232043 | AA300: =100-(Y300+Z300+AB300) -> 0 | AB300: =IF((X302+AB302)>100,AB302*100/(X302+AB302),AB302) -> 0
A301: Regression period: | C301: =MinRegYear(C299,C305:C316) -> 2000 | D301: =IF(MAX(C305:C316)-MIN(C305:C316)<5,AVERAGEIF(C305:C316,">0",D305:D316), IF(FORECAST($C301,D$305:D$316,$C$305:$C$316)<0,0, IF(FORECAST($C301,D$305:D$316,$C$305:$C$316)>100,100, FORECAST($C301,D$305:D$316,$C$305:$C$316)))) -> 92.75972399 | H301: =IF(MAX(C305:C316)-MIN(C305:C316)<5,AVERAGEIF(C305:C316,">0",H305:H316), IF(FORECAST($C301,H$305:H$316,$C$305:$C$316)<0,0, IF(FORECAST($C301,H$305:H$316,$C$305:$C$316)>100,100, FORECAST($C301,H$305:H$316,$C$305:$C$316)))) -> 0.671807873 | I301: =IF(MAX(C305:C316)-MIN(C305:C316)<5,AVERAGEIF(C305:C316,">0",I305:I316), IF(FORECAST($C301,I$305:I$316,$C$305:$C$316)<0,0, IF(FORECAST($C301,I$305:I$316,$C$305:$C$316)>100,100, FORECAST($C301,I$305:I$316,$C$305:$C$316)))) -> 96.69808765 | M301: =IF(MAX(C305:C316)-MIN(C305:C316)<5,AVERAGEIF(C305:C316,">0",M305:M316), IF(FORECAST($C301,M$305:M$316,$C$305:$C$316)<0,0, IF(FORECAST($C301,M$305:M$316,$C$305:$C$316)>100,100, FORECAST($C301,M$305:M$316,$C$305:$C$316)))) -> 0.09060230286 | N301: =IF(MAX(C305:C316)-MIN(C305:C316)<5,AVERAGEIF(C305:C316,">0",N305:N316), IF(FORECAST($C301,N$305:N$316,$C$305:$C$316)<0,0, IF(FORECAST($C301,N$305:N$316,$C$305:$C$316)>100,100, FORECAST($C301,N$305:N$316,$C$305:$C$316)))) -> 96.46806533 | R301: =IF(MAX(C305:C316)-MIN(C305:C316)<5,AVERAGEIF(C305:C316,">0",R305:R316), IF(FORECAST($C301,R$305:R$316,$C$305:$C$316)<0,0, IF(FORECAST($C301,R$305:R$316,$C$305:$C$316)>100,100, FORECAST($C301,R$305:R$316,$C$305:$C$316)))) -> 0.2832649538 | S301: =IF(MAX(C305:C316)-MIN(C305:C316)<5,AVERAGEIF(C305:C316,">0",S305:S316), IF(FORECAST($C301,S$305:S$316,$C$305:$C$316)<0,0, IF(FORECAST($C301,S$305:S$316,$C$305:$C$316)>100,100, FORECAST($C301,S$305:S$316,$C$305:$C$316)))) -> 98.51236002 | W301: =IF(MAX(C305:C316)-MIN(C305:C316)<5,AVERAGEIF(C305:C316,">0",W305:W316), IF(FORECAST($C301,W$305:W$316,$C$305:$C$316)<0,0, IF(FORECAST($C301,W$305:W$316,$C$305:$C$316)>100,100, FORECAST($C301,W$305:W$316,$C$305:$C$316)))) -> 0 | X301: =IF(MAX(C305:C316)-MIN(C305:C316)<5,AVERAGEIF(C305:C316,">0",X305:X316), IF(FORECAST($C301,X$305:X$316,$C$305:$C$316)<0,0, IF(FORECAST($C301,X$305:X$316,$C$305:$C$316)>100,100, FORECAST($C301,X$305:X$316,$C$305:$C$316)))) -> 99.17104413 | AB301: =IF(MAX(C305:C316)-MIN(C305:C316)<5,AVERAGEIF(C305:C316,">0",AB305:AB316), IF(FORECAST($C301,AB$305:AB$316,$C$305:$C$316)<0,0, IF(FORECAST($C301,AB$305:AB$316,$C$305:$C$316)>100,100, FORECAST($C301,AB$305:AB$316,$C$305:$C$316)))) -> 0
C302: =MaxRegYear(C300,C305:C316) -> 2018 | D302: =IF(MAX(C305:C316)-MIN(C305:C316)<5,AVERAGEIF(C305:C316,">0",D305:D316), IF(FORECAST($C302,D$305:D$316,$C$305:$C$316)<0,0, IF(FORECAST($C302,D$305:D$316,$C$305:$C$316)>100,100, FORECAST($C302,D$305:D$316,$C$305:$C$316)))) -> 100 | H302: =IF(MAX(C305:C316)-MIN(C305:C316)<5,AVERAGEIF(C305:C316,">0",H305:H316), IF(FORECAST($C302,H$305:H$316,$C$305:$C$316)<0,0, IF(FORECAST($C302,H$305:H$316,$C$305:$C$316)>100,100, FORECAST($C302,H$305:H$316,$C$305:$C$316)))) -> 0 | I302: =IF(MAX(C305:C316)-MIN(C305:C316)<5,AVERAGEIF(C305:C316,">0",I305:I316), IF(FORECAST($C302,I$305:I$316,$C$305:$C$316)<0,0, IF(FORECAST($C302,I$305:I$316,$C$305:$C$316)>100,100, FORECAST($C302,I$305:I$316,$C$305:$C$316)))) -> 100 | M302: =IF(MAX(C305:C316)-MIN(C305:C316)<5,AVERAGEIF(C305:C316,">0",M305:M316), IF(FORECAST($C302,M$305:M$316,$C$305:$C$316)<0,0, IF(FORECAST($C302,M$305:M$316,$C$305:$C$316)>100,100, FORECAST($C302,M$305:M$316,$C$305:$C$316)))) -> 0 | N302: =IF(MAX(C305:C316)-MIN(C305:C316)<5,AVERAGEIF(C305:C316,">0",N305:N316), IF(FORECAST($C302,N$305:N$316,$C$305:$C$316)<0,0, IF(FORECAST($C302,N$305:N$316,$C$305:$C$316)>100,100, FORECAST($C302,N$305:N$316,$C$305:$C$316)))) -> 100 | R302: =IF(MAX(C305:C316)-MIN(C305:C316)<5,AVERAGEIF(C305:C316,">0",R305:R316), IF(FORECAST($C302,R$305:R$316,$C$305:$C$316)<0,0, IF(FORECAST($C302,R$305:R$316,$C$305:$C$316)>100,100, FORECAST($C302,R$305:R$316,$C$305:$C$316)))) -> 0 | S302: =IF(MAX(C305:C316)-MIN(C305:C316)<5,AVERAGEIF(C305:C316,">0",S305:S316), IF(FORECAST($C302,S$305:S$316,$C$305:$C$316)<0,0, IF(FORECAST($C302,S$305:S$316,$C$305:$C$316)>100,100, FORECAST($C302,S$305:S$316,$C$305:$C$316)))) -> 100 | W302: =IF(MAX(C305:C316)-MIN(C305:C316)<5,AVERAGEIF(C305:C316,">0",W305:W316), IF(FORECAST($C302,W$305:W$316,$C$305:$C$316)<0,0, IF(FORECAST($C302,W$305:W$316,$C$305:$C$316)>100,100, FORECAST($C302,W$305:W$316,$C$305:$C$316)))) -> 0 | X302: =IF(MAX(C305:C316)-MIN(C305:C316)<5,AVERAGEIF(C305:C316,">0",X305:X316), IF(FORECAST($C302,X$305:X$316,$C$305:$C$316)<0,0, IF(FORECAST($C302,X$305:X$316,$C$305:$C$316)>100,100, FORECAST($C302,X$305:X$316,$C$305:$C$316)))) -> 100 | AB302: =IF(MAX(C305:C316)-MIN(C305:C316)<5,AVERAGEIF(C305:C316,">0",AB305:AB316), IF(FORECAST($C302,AB$305:AB$316,$C$305:$C$316)<0,0, IF(FORECAST($C302,AB$305:AB$316,$C$305:$C$316)>100,100, FORECAST($C302,AB$305:AB$316,$C$305:$C$316)))) -> 0
B304: Survey | C304: Year | D304: Improved | E304: % Improved < = 30min | H304: Surface water | I304: Improved | J304: % Improved < = 30min | M304: Surface water | N304: Improved | O304: % Improved < = 30min | R304: Surface water | S304: Improved | T304: % Improved < = 30min | W304: Surface water | X304: Improved | Y304: % Improved < = 30min | AB304: Surface water
B305: DHS00 | C305: 2000 | D305: =IF(ISERROR(INDIRECT(CONCATENATE($B305,"!M16"))),"",INDIRECT(CONCATENATE($B305,"!M16"))) -> 91.48991843 | E305: =IF(ISERROR(INDIRECT(CONCATENATE($B305,"!M23"))),"",INDIRECT(CONCATENATE($B305,"!M23"))) -> N/A | H305: =IF(ISERROR(INDIRECT(CONCATENATE($B305,"!M21"))),"",INDIRECT(CONCATENATE($B305,"!M21"))) -> 0.9927239698 | I305: =IF(ISERROR(INDIRECT(CONCATENATE($B305,"!N16"))),"",INDIRECT(CONCATENATE($B305,"!N16"))) -> 95.6368233 | J305: =IF(ISERROR(INDIRECT(CONCATENATE($B305,"!N23"))),"",INDIRECT(CONCATENATE($B305,"!N23"))) -> N/A | M305: =IF(ISERROR(INDIRECT(CONCATENATE($B305,"!N21"))),"",INDIRECT(CONCATENATE($B305,"!N21"))) -> 0.1338821431 | N305: =IF(ISERROR(INDIRECT(CONCATENATE($B305,"!O16"))),"",INDIRECT(CONCATENATE($B305,"!O16"))) -> 95.14578881 | O305: =IF(ISERROR(INDIRECT(CONCATENATE($B305,"!O23"))),"",INDIRECT(CONCATENATE($B305,"!O23"))) -> N/A | R305: =IF(ISERROR(INDIRECT(CONCATENATE($B305,"!O21"))),"",INDIRECT(CONCATENATE($B305,"!O21"))) -> 0.4185778713 | S305: =IF(ISERROR(INDIRECT(CONCATENATE($B305,"!P16"))),"",INDIRECT(CONCATENATE($B305,"!P16"))) -> 98.59880635 | T305: =IF(ISERROR(INDIRECT(CONCATENATE($B305,"!P23"))),"",INDIRECT(CONCATENATE($B305,"!P23"))) -> N/A | W305: =IF(ISERROR(INDIRECT(CONCATENATE($B305,"!P21"))),"",INDIRECT(CONCATENATE($B305,"!P21"))) -> 0 | X305: =IF(ISERROR(INDIRECT(CONCATENATE($B305,"!Q16"))),"",INDIRECT(CONCATENATE($B305,"!Q16"))) -> 98.95739528 | Y305: =IF(ISERROR(INDIRECT(CONCATENATE($B305,"!Q23"))),"",INDIRECT(CONCATENATE($B305,"!Q23"))) -> N/A | AB305: =IF(ISERROR(INDIRECT(CONCATENATE($B305,"!Q221"))),"",INDIRECT(CONCATENATE($B305,"!Q21"))) -> 0
B306: DHS05 | C306: 2005 | D306: 97.14517997 | E306: 96.61276117 | H306: 0 | I306: 99.22608085 | J306: 95.93697832 | M306: 0 | N306: 99.49634179 | O306: 97.38561081 | R306: 0 | S306: 98.74449295 | T306: 98.51368304 | W306: 0 | X306: 99.6926117 | Y306: 98.94557114 | AB306: 0
B307: DHS10 | C307: 2010 | D307: 96.38619728 | E307: 99.77250214 | H307: 0 | I307: 99.33883086 | J307: 99.87412841 | M307: 0 | N307: 98.92838581 | O307: 100 | R307: 0 | S307: 99.51715806 | T307: 99.45865352 | W307: 0 | X307: 100 | Y307: 99.76177606 | AB307: 0
B308: DHS16 | C308: 2016 | D308: 99.41013038 | E308: 99.46103206 | H308: 0 | I308: 99.7805008 | J308: 99.79538122 | M308: 0 | N308: 99.5575078 | O308: 100 | R308: 0 | S308: 99.87530573 | T308: 100 | W308: 0 | X308: 100 | Y308: 99.06538319 | AB308: 0
B318: =CONCATENATE("Rural use of drinking water sources, ",C299,"–",C300) -> Rural use of drinking water sources, 2000–2020 | S318: Data points used for regression

Sheet Sanitation
B4: Summary of trends in use of sanitation facilities by wealth quintile (%)
B5: =IF(ISERROR(INDIRECT(CONCATENATE($B105,"!A2"))),"",INDIRECT(CONCATENATE($B105,"!A2"))) -> Armenia
B7: =B118 -> National use of sanitation facilities, 2000–2020 | J7: =B218 -> Urban use of sanitation facilities, 2000–2020 | R7: =B318 -> Rural use of sanitation facilities, 2000–2020
B31: =IF(ISERROR(INDIRECT(CONCATENATE($B105,"!A2"))),"",INDIRECT(CONCATENATE($B105,"!A2"))) -> Armenia | F31: Poorest | J31: Poor | N31: Middle | R31: Rich | V31: Richest
F32: Basic | G32: Limited | H32: Unimproved | I32: Open defecation | J32: Basic | K32: Limited | L32: Unimproved | M32: Open defecation | N32: Basic | O32: Limited | P32: Unimproved | Q32: Open defecation | R32: Basic | S32: Limited | T32: Unimproved | U32: Open defecation | V32: Basic | W32: Limited | X32: Unimproved | Y32: Open defecation
B33: NATIONAL | D33: Estimate | E33: =C99 -> 2000 | F33: =E99 -> 78.46358308 | G33: =F99 -> 3.111159138 | H33: 18.12933968 | I33: 0.2959180991 | J33: =J99 -> 81.2001249 | K33: =K99 -> 0.8663468478 | L33: 17.93352825 | M33: 0 | N33: =O99 -> 87.15111867 | O33: =P99 -> 0.7222829304 | P33: 12.07618209 | Q33: 0.0504163113 | R33: =T99 -> 96.24829098 | S33: =U99 -> 0.5976451238 | T33: 3.154063898 | U33: 0 | V33: =Y99 -> 99.14374435 | W33: =Z99 -> 0.5570997473 | X33: 0.2991559054 | Y33: 0
E34: =C100 -> 2020 | F34: =E100 -> 84.24675895 | G34: 3.340467815 | H34: 12.40859658 | I34: 0.004176648775 | J34: =J100 -> 89.81450251 | K34: 0.9582560523 | L34: 9.227241435 | M34: 0 | N34: =O100 -> 93.52304494 | O34: 0.7750915879 | P34: 5.701863475 | Q34: 0 | R34: =T100 -> 95.12379038 | S34: 0.5906626383 | T34: 4.285546982 | U34: 0 | V34: =Y100 -> 96.77488894 | W34: 0.5437888848 | X34: 2.681322171 | Y34: 0
B36: URBAN | D36: Estimate | E36: =C199 -> 2000 | F36: =E199 -> 92.33795998 | G36: =F199 -> 2.301563142 | H36: 5.164346475 | I36: 0.1961303982 | J36: =J199 -> 97.96280436 | K36: =K199 -> 0.7757642991 | L36: 1.261431336 | M36: 0 | N36: =O199 -> 98.71344537 | O36: =P199 -> 0.4844597075 | P36: 0.8020949178 | Q36: 0 | R36: =T199 -> 98.29231162 | S36: =U199 -> 0.6705452528 | T36: 0.9495691614 | U36: 0.08757396955 | V36: =Y199 -> 99.43389923 | W36: =Z199 -> 0.5661007684 | X36: 0 | Y36: 0
E37: =C200 -> 2020 | F37: =E200 -> 96.21926909 | G37: 2.398306431 | H37: 1.283213252 | I37: 0.09921122631 | J37: =J200 -> 98.39126319 | K37: 0.7791572508 | L37: 0.8295795561 | M37: 0 | N37: =O200 -> 99.11342344 | O37: 0.486422695 | P37: 0.4001538652 | Q37: 0 | R37: =T200 -> 98.78488306 | S37: 0.6739055507 | T37: 0.5412113887 | U37: 0 | V37: =Y200 -> 98.85945911 | W37: 0.5628303446 | X37: 0.5777105503 | Y37: 0
B39: RURAL | D39: Estimate | E39: =C299 -> 2000 | F39: =E299 -> 71.0301354 | G39: =F299 -> 3.441340631 | H39: 25.11492363 | I39: 0.4136003359 | J39: =J299 -> 77.14039374 | K39: =K299 -> 1.988966887 | L39: 20.87063937 | M39: 0 | N39: =O299 -> 73.27860557 | O39: =P299 -> 0.7454258155 | P39: 25.97596861 | Q39: 0 | R39: =T299 -> 74.08326909 | S39: =U299 -> 1.005746391 | T39: 24.91098452 | U39: 0 | V39: =Y299 -> 82.24151317 | W39: =Z299 -> 0.3390597866 | X39: 17.41942704 | Y39: 0
E40: =C300 -> 2020 | F40: =E300 -> 75.18524077 | G40: 3.642651424 | H40: 21.17210781 | I40: 0 | J40: =J300 -> 83.928468 | K40: 2.163988744 | L40: 13.90754326 | M40: 0 | N40: =O300 -> 83.46299403 | O40: 0.849026396 | P40: 15.68797957 | Q40: 0 | R40: =T300 -> 80.84677605 | S40: 1.097567025 | T40: 18.05565692 | U40: 0 | V40: =Y300 -> 84.43454067 | W40: 0.348101053 | X40: 15.21735827 | Y40: 0
A97: NATIONAL | D97: Poorest | I97: Poor | N97: Middle | S97: Rich | X97: Richest
D98: Improved | E98: Basic | F98: Limited | G98: Unimproved | H98: Open defecation | I98: Improved | J98: Basic | K98: Limited | L98: Unimproved | M98: Open defecation | N98: Improved | O98: Basic | P98: Limited | Q98: Unimproved | R98: Open defecation | S98: Improved | T98: Basic | U98: Limited | V98: Unimproved | W98: Open defecation | X98: Improved | Y98: Basic | Z98: Limited | AA98: Unimproved | AB98: Open defecation
A99: Forecast period: | C99: 2000 | D99: =IF((D101+H101)>100,D101*100/(D101+H101),D101) -> 81.57474222 | E99: =D99*AVERAGEIF(E105:E116,">0")/100 -> 78.46358308 | F99: =D99*(100-AVERAGEIF(E105:E116,">0"))/100 -> 3.111159138 | G99: =100-(E99+F99+H99) -> 18.12933968 | H99: =IF((D101+H101)>100,H101*100/(D101+H101),H101) -> 0.2959180991 | I99: =IF((I101+M101)>100,I101*100/(I101+M101),I101) -> 82.06647175 | J99: =I99*AVERAGEIF(J105:J116,">0")/100 -> 81.2001249 | K99: =I99*(100-AVERAGEIF(J105:J116,">0"))/100 -> 0.8663468478 | L99: =100-(J99+K99+M99) -> 17.93352825 | M99: =IF((I101+M101)>100,M101*100/(I101+M101),M101) -> 0 | N99: =IF((N101+R101)>100,N101*100/(N101+R101),N101) -> 87.8734016 | O99: =N99*AVERAGEIF(O105:O116,">0")/100 -> 87.15111867 | P99: =N99*(100-AVERAGEIF(O105:O116,">0"))/100 -> 0.7222829304 | Q99: =100-(O99+P99+R99) -> 12.07618209 | R99: =IF((N101+R101)>100,R101*100/(N101+R101),R101) -> 0.0504163113 | S99: =IF((S101+W101)>100,S101*100/(S101+W101),S101) -> 96.8459361 | T99: =S99*AVERAGEIF(T105:T116,">0")/100 -> 96.24829098 | U99: =S99*(100-AVERAGEIF(T105:T116,">0"))/100 -> 0.5976451238 | V99: =100-(T99+U99+W99) -> 3.154063898 | W99: =IF((S101+W101)>100,W101*100/(S101+W101),W101) -> 0 | X99: =IF((X101+AB101)>100,X101*100/(X101+AB101),X101) -> 99.70084409 | Y99: =X99*AVERAGEIF(Y105:Y116,">0")/100 -> 99.14374435 | Z99: =X99*(100-AVERAGEIF(Y105:Y116,">0"))/100 -> 0.5570997473 | AA99: =100-(Y99+Z99+AB99) -> 0.2991559054 | AB99: =IF((X101+AB101)>100,AB101*100/(X101+AB101),AB101) -> 0
C100: 2020 | D100: =IF((D102+H102)>100,D102*100/(D102+H102),D102) -> 87.58722677 | E100: =D100*AVERAGEIF(E105:E116,">0")/100 -> 84.24675895 | F100: =D100*(100-AVERAGEIF(E105:E116,">0"))/100 -> 3.340467815 | G100: =100-(E100+F100+H100) -> 12.40859658 | H100: =IF((D102+H102)>100,H102*100/(D102+H102),H102) -> 0.004176648775 | I100: =IF((I102+M102)>100,I102*100/(I102+M102),I102) -> 90.77275857 | J100: =I100*AVERAGEIF(J105:J116,">0")/100 -> 89.81450251 | K100: =I100*(100-AVERAGEIF(J105:J116,">0"))/100 -> 0.9582560523 | L100: =100-(J100+K100+M100) -> 9.227241435 | M100: =IF((I102+M102)>100,M102*100/(I102+M102),M102) -> 0 | N100: =IF((N102+R102)>100,N102*100/(N102+R102),N102) -> 94.29813653 | O100: =N100*AVERAGEIF(O105:O116,">0")/100 -> 93.52304494 | P100: =N100*(100-AVERAGEIF(O105:O116,">0"))/100 -> 0.7750915879 | Q100: =100-(O100+P100+R100) -> 5.701863475 | R100: =IF((N102+R102)>100,R102*100/(N102+R102),R102) -> 0 | S100: =IF((S102+W102)>100,S102*100/(S102+W102),S102) -> 95.71445302 | T100: =S100*AVERAGEIF(T105:T116,">0")/100 -> 95.12379038 | U100: =S100*(100-AVERAGEIF(T105:T116,">0"))/100 -> 0.5906626383 | V100: =100-(T100+U100+W100) -> 4.285546982 | W100: =IF((S102+W102)>100,W102*100/(S102+W102),W102) -> 0 | X100: =IF((X102+AB102)>100,X102*100/(X102+AB102),X102) -> 97.31867783 | Y100: =X100*AVERAGEIF(Y105:Y116,">0")/100 -> 96.77488894 | Z100: =X100*(100-AVERAGEIF(Y105:Y116,">0"))/100 -> 0.5437888848 | AA100: =100-(Y100+Z100+AB100) -> 2.681322171 | AB100: =IF((X102+AB102)>100,AB102*100/(X102+AB102),AB102) -> 0
A101: Regression period: | C101: =MinRegYear(C99,C105:C116) -> 2000 | D101: =IF(MAX(C105:C116)-MIN(C105:C116)<5,AVERAGEIF(C105:C116,">0",D105:D116), IF(FORECAST($C101,D$105:D$116,$C$105:$C$116)<0,0, IF(FORECAST($C101,D$105:D$116,$C$105:$C$116)>100,100, FORECAST($C101,D$105:D$116,$C$105:$C$116)))) -> 81.57474222 | H101: =IF(MAX(C105:C116)-MIN(C105:C116)<5,AVERAGEIF(C105:C116,">0",H105:H116), IF(FORECAST($C101,H$105:H$116,$C$105:$C$116)<0,0, IF(FORECAST($C101,H$105:H$116,$C$105:$C$116)>100,100, FORECAST($C101,H$105:H$116,$C$105:$C$116)))) -> 0.2959180991 | I101: =IF(MAX(C105:C116)-MIN(C105:C116)<5,AVERAGEIF(C105:C116,">0",I105:I116), IF(FORECAST($C101,I$105:I$116,$C$105:$C$116)<0,0, IF(FORECAST($C101,I$105:I$116,$C$105:$C$116)>100,100, FORECAST($C101,I$105:I$116,$C$105:$C$116)))) -> 82.06647175 | M101: =IF(MAX(C105:C116)-MIN(C105:C116)<5,AVERAGEIF(C105:C116,">0",M105:M116), IF(FORECAST($C101,M$105:M$116,$C$105:$C$116)<0,0, IF(FORECAST($C101,M$105:M$116,$C$105:$C$116)>100,100, FORECAST($C101,M$105:M$116,$C$105:$C$116)))) -> 0 | N101: =IF(MAX(C105:C116)-MIN(C105:C116)<5,AVERAGEIF(C105:C116,">0",N105:N116), IF(FORECAST($C101,N$105:N$116,$C$105:$C$116)<0,0, IF(FORECAST($C101,N$105:N$116,$C$105:$C$116)>100,100, FORECAST($C101,N$105:N$116,$C$105:$C$116)))) -> 87.8734016 | R101: =IF(MAX(C105:C116)-MIN(C105:C116)<5,AVERAGEIF(C105:C116,">0",R105:R116), IF(FORECAST($C101,R$105:R$116,$C$105:$C$116)<0,0, IF(FORECAST($C101,R$105:R$116,$C$105:$C$116)>100,100, FORECAST($C101,R$105:R$116,$C$105:$C$116)))) -> 0.0504163113 | S101: =IF(MAX(C105:C116)-MIN(C105:C116)<5,AVERAGEIF(C105:C116,">0",S105:S116), IF(FORECAST($C101,S$105:S$116,$C$105:$C$116)<0,0, IF(FORECAST($C101,S$105:S$116,$C$105:$C$116)>100,100, FORECAST($C101,S$105:S$116,$C$105:$C$116)))) -> 96.8459361 | W101: =IF(MAX(C105:C116)-MIN(C105:C116)<5,AVERAGEIF(C105:C116,">0",W105:W116), IF(FORECAST($C101,W$105:W$116,$C$105:$C$116)<0,0, IF(FORECAST($C101,W$105:W$116,$C$105:$C$116)>100,100, FORECAST($C101,W$105:W$116,$C$105:$C$116)))) -> 0 | X101: =IF(MAX(C105:C116)-MIN(C105:C116)<5,AVERAGEIF(C105:C116,">0",X105:X116), IF(FORECAST($C101,X$105:X$116,$C$105:$C$116)<0,0, IF(FORECAST($C101,X$105:X$116,$C$105:$C$116)>100,100, FORECAST($C101,X$105:X$116,$C$105:$C$116)))) -> 99.70084409 | AB101: =IF(MAX(C105:C116)-MIN(C105:C116)<5,AVERAGEIF(C105:C116,">0",AB105:AB116), IF(FORECAST($C101,AB$105:AB$116,$C$105:$C$116)<0,0, IF(FORECAST($C101,AB$105:AB$116,$C$105:$C$116)>100,100, FORECAST($C101,AB$105:AB$116,$C$105:$C$116)))) -> 0
C102: =MaxRegYear(C100,C105:C116) -> 2018 | D102: =IF(MAX(C105:C116)-MIN(C105:C116)<5,AVERAGEIF(C105:C116,">0",D105:D116), IF(FORECAST($C102,D$105:D$116,$C$105:$C$116)<0,0, IF(FORECAST($C102,D$105:D$116,$C$105:$C$116)>100,100, FORECAST($C102,D$105:D$116,$C$105:$C$116)))) -> 87.58722677 | H102: =IF(MAX(C105:C116)-MIN(C105:C116)<5,AVERAGEIF(C105:C116,">0",H105:H116), IF(FORECAST($C102,H$105:H$116,$C$105:$C$116)<0,0, IF(FORECAST($C102,H$105:H$116,$C$105:$C$116)>100,100, FORECAST($C102,H$105:H$116,$C$105:$C$116)))) -> 0.004176648775 | I102: =IF(MAX(C105:C116)-MIN(C105:C116)<5,AVERAGEIF(C105:C116,">0",I105:I116), IF(FORECAST($C102,I$105:I$116,$C$105:$C$116)<0,0, IF(FORECAST($C102,I$105:I$116,$C$105:$C$116)>100,100, FORECAST($C102,I$105:I$116,$C$105:$C$116)))) -> 90.77275857 | M102: =IF(MAX(C105:C116)-MIN(C105:C116)<5,AVERAGEIF(C105:C116,">0",M105:M116), IF(FORECAST($C102,M$105:M$116,$C$105:$C$116)<0,0, IF(FORECAST($C102,M$105:M$116,$C$105:$C$116)>100,100, FORECAST($C102,M$105:M$116,$C$105:$C$116)))) -> 0 | N102: =IF(MAX(C105:C116)-MIN(C105:C116)<5,AVERAGEIF(C105:C116,">0",N105:N116), IF(FORECAST($C102,N$105:N$116,$C$105:$C$116)<0,0, IF(FORECAST($C102,N$105:N$116,$C$105:$C$116)>100,100, FORECAST($C102,N$105:N$116,$C$105:$C$116)))) -> 94.29813653 | R102: =IF(MAX(C105:C116)-MIN(C105:C116)<5,AVERAGEIF(C105:C116,">0",R105:R116), IF(FORECAST($C102,R$105:R$116,$C$105:$C$116)<0,0, IF(FORECAST($C102,R$105:R$116,$C$105:$C$116)>100,100, FORECAST($C102,R$105:R$116,$C$105:$C$116)))) -> 0 | S102: =IF(MAX(C105:C116)-MIN(C105:C116)<5,AVERAGEIF(C105:C116,">0",S105:S116), IF(FORECAST($C102,S$105:S$116,$C$105:$C$116)<0,0, IF(FORECAST($C102,S$105:S$116,$C$105:$C$116)>100,100, FORECAST($C102,S$105:S$116,$C$105:$C$116)))) -> 95.71445302 | W102: =IF(MAX(C105:C116)-MIN(C105:C116)<5,AVERAGEIF(C105:C116,">0",W105:W116), IF(FORECAST($C102,W$105:W$116,$C$105:$C$116)<0,0, IF(FORECAST($C102,W$105:W$116,$C$105:$C$116)>100,100, FORECAST($C102,W$105:W$116,$C$105:$C$116)))) -> 0 | X102: =IF(MAX(C105:C116)-MIN(C105:C116)<5,AVERAGEIF(C105:C116,">0",X105:X116), IF(FORECAST($C102,X$105:X$116,$C$105:$C$116)<0,0, IF(FORECAST($C102,X$105:X$116,$C$105:$C$116)>100,100, FORECAST($C102,X$105:X$116,$C$105:$C$116)))) -> 97.31867783 | AB102: =IF(MAX(C105:C116)-MIN(C105:C116)<5,AVERAGEIF(C105:C116,">0",AB105:AB116), IF(FORECAST($C102,AB$105:AB$116,$C$105:$C$116)<0,0, IF(FORECAST($C102,AB$105:AB$116,$C$105:$C$116)>100,100, FORECAST($C102,AB$105:AB$116,$C$105:$C$116)))) -> 0
B104: Survey | C104: Year | D104: Improved | E104: Not shared | H104: Open defecation | I104: Improved | J104: Not shared | M104: Open defecation | N104: Improved | O104: Not shared | R104: Open defecation | S104: Improved | T104: Not shared | W104: Open defecation | X104: Improved | Y104: Not shared | AB104: Open defecation
B105: DHS00 | C105: 2000 | D105: =IF(ISERROR(INDIRECT(CONCATENATE($B105,"!C122"))),"",INDIRECT(CONCATENATE($B105,"!C122"))) -> 79.88151624 | E105: =IF(ISERROR(INDIRECT(CONCATENATE($B105,"!C129"))),"",INDIRECT(CONCATENATE($B105,"!C129"))) -> N/A | H105: =IF(ISERROR(INDIRECT(CONCATENATE($B105,"!C127"))),"",INDIRECT(CONCATENATE($B105,"!C127"))) -> 0.2472928921 | I105: =IF(ISERROR(INDIRECT(CONCATENATE($B105,"!D122"))),"",INDIRECT(CONCATENATE($B105,"!D122"))) -> 79.49711617 | J105: =IF(ISERROR(INDIRECT(CONCATENATE($B105,"!D129"))),"",INDIRECT(CONCATENATE($B105,"!D129"))) -> N/A | M105: =IF(ISERROR(INDIRECT(CONCATENATE($B105,"!D127"))),"",INDIRECT(CONCATENATE($B105,"!D127"))) -> 0 | N105: =IF(ISERROR(INDIRECT(CONCATENATE($B105,"!E122"))),"",INDIRECT(CONCATENATE($B105,"!E122"))) -> 85.04337181 | O105: =IF(ISERROR(INDIRECT(CONCATENATE($B105,"!E129"))),"",INDIRECT(CONCATENATE($B105,"!E129"))) -> N/A | R105: =IF(ISERROR(INDIRECT(CONCATENATE($B105,"!E127"))),"",INDIRECT(CONCATENATE($B105,"!E127"))) -> 0.0744996936 | S105: =IF(ISERROR(INDIRECT(CONCATENATE($B105,"!F122"))),"",INDIRECT(CONCATENATE($B105,"!F122"))) -> 95.46831587 | T105: =IF(ISERROR(INDIRECT(CONCATENATE($B105,"!F129"))),"",INDIRECT(CONCATENATE($B105,"!F129"))) -> N/A | W105: =IF(ISERROR(INDIRECT(CONCATENATE($B105,"!F127"))),"",INDIRECT(CONCATENATE($B105,"!F127"))) -> 0 | X105: =IF(ISERROR(INDIRECT(CONCATENATE($B105,"!G122"))),"",INDIRECT(CONCATENATE($B105,"!G122"))) -> 98.79828433 | Y105: =IF(ISERROR(INDIRECT(CONCATENATE($B105,"!G129"))),"",INDIRECT(CONCATENATE($B105,"!G129"))) -> N/A | AB105: =IF(ISERROR(INDIRECT(CONCATENATE($B105,"!G2127"))),"",INDIRECT(CONCATENATE($B105,"!G127"))) -> 0
B106: DHS05 | C106: 2005 | D106: 86.30857785 | E106: 93.88800349 | H106: 0.2796515443 | I106: 88.63459417 | J106: 97.82839512 | M106: 0 | N106: 91.13700066 | O106: 98.80239003 | R106: 0 | S106: 96.57341444 | T106: 99.36767288 | W106: 0 | X106: 99.46690093 | Y106: 99.8341669 | AB106: 0
B107: DHS10 | C107: 2010 | D107: 83.81349545 | E107: 95.66407602 | H107: 0.1447567167 | I107: 86.14711206 | J107: 99.24174681 | M107: 0 | N107: 96.2780357 | O107: 99.43820731 | R107: 0 | S107: 99.81439315 | T107: 99.09445747 | W107: 0 | X107: 100 | Y107: 98.95441774 | AB107: 0
B108: DHS16 | C108: 2016 | D108: 86.65021383 | E108: 99.00629388 | H108: 0.009527634482 | I108: 88.98122523 | J108: 99.7628637 | M108: 0 | N108: 90.10001949 | O108: 99.29352703 | R108: 0 | S108: 93.57895564 | T108: 99.68654222 | W108: 0 | X108: 96.43557144 | Y108: 99.53510132 | AB108: 0
B118: =CONCATENATE("National use of sanitation facilities, ",C99,"–",C100) -> National use of sanitation facilities, 2000–2020 | S118: Data points used for regression
A197: URBAN | D197: Poorest | I197: Poor | N197: Middle | S197: Rich | X197: Richest
D198: Improved | E198: Basic | F198: Limited | G198: Unimproved | H198: Open defecation | I198: Improved | J198: Basic | K198: Limited | L198: Unimproved | M198: Open defecation | N198: Improved | O198: Basic | P198: Limited | Q198: Unimproved | R198: Open defecation | S198: Improved | T198: Basic | U198: Limited | V198: Unimproved | W198: Open defecation | X198: Improved | Y198: Basic | Z198: Limited | AA198: Unimproved | AB198: Open defecation
A199: Forecast period: | C199: 2000 | D199: =IF((D201+H201)>100,D201*100/(D201+H201),D201) -> 94.63952313 | E199: =D199*AVERAGEIF(E205:E216,">0")/100 -> 92.33795998 | F199: =D199*(100-AVERAGEIF(E205:E216,">0"))/100 -> 2.301563142 | G199: =100-(E199+F199+H199) -> 5.164346475 | H199: =IF((D201+H201)>100,H201*100/(D201+H201),H201) -> 0.1961303982 | I199: =IF((I201+M201)>100,I201*100/(I201+M201),I201) -> 98.73856866 | J199: =I199*AVERAGEIF(J205:J216,">0")/100 -> 97.96280436 | K199: =I199*(100-AVERAGEIF(J205:J216,">0"))/100 -> 0.7757642991 | L199: =100-(J199+K199+M199) -> 1.261431336 | M199: =IF((I201+M201)>100,M201*100/(I201+M201),M201) -> 0 | N199: =IF((N201+R201)>100,N201*100/(N201+R201),N201) -> 99.19790508 | O199: =N199*AVERAGEIF(O205:O216,">0")/100 -> 98.71344537 | P199: =N199*(100-AVERAGEIF(O205:O216,">0"))/100 -> 0.4844597075 | Q199: =100-(O199+P199+R199) -> 0.8020949178 | R199: =IF((N201+R201)>100,R201*100/(N201+R201),R201) -> 0 | S199: =IF((S201+W201)>100,S201*100/(S201+W201),S201) -> 98.96285687 | T199: =S199*AVERAGEIF(T205:T216,">0")/100 -> 98.29231162 | U199: =S199*(100-AVERAGEIF(T205:T216,">0"))/100 -> 0.6705452528 | V199: =100-(T199+U199+W199) -> 0.9495691614 | W199: =IF((S201+W201)>100,W201*100/(S201+W201),W201) -> 0.08757396955 | X199: =IF((X201+AB201)>100,X201*100/(X201+AB201),X201) -> 100 | Y199: =X199*AVERAGEIF(Y205:Y216,">0")/100 -> 99.43389923 | Z199: =X199*(100-AVERAGEIF(Y205:Y216,">0"))/100 -> 0.5661007684 | AA199: =100-(Y199+Z199+AB199) -> 0 | AB199: =IF((X201+AB201)>100,AB201*100/(X201+AB201),AB201) -> 0
C200: 2020 | D200: =IF((D202+H202)>100,D202*100/(D202+H202),D202) -> 98.61757552 | E200: =D200*AVERAGEIF(E205:E216,">0")/100 -> 96.21926909 | F200: =D200*(100-AVERAGEIF(E205:E216,">0"))/100 -> 2.398306431 | G200: =100-(E200+F200+H200) -> 1.283213252 | H200: =IF((D202+H202)>100,H202*100/(D202+H202),H202) -> 0.09921122631 | I200: =IF((I202+M202)>100,I202*100/(I202+M202),I202) -> 99.17042044 | J200: =I200*AVERAGEIF(J205:J216,">0")/100 -> 98.39126319 | K200: =I200*(100-AVERAGEIF(J205:J216,">0"))/100 -> 0.7791572508 | L200: =100-(J200+K200+M200) -> 0.8295795561 | M200: =IF((I202+M202)>100,M202*100/(I202+M202),M202) -> 0 | N200: =IF((N202+R202)>100,N202*100/(N202+R202),N202) -> 99.59984613 | O200: =N200*AVERAGEIF(O205:O216,">0")/100 -> 99.11342344 | P200: =N200*(100-AVERAGEIF(O205:O216,">0"))/100 -> 0.486422695 | Q200: =100-(O200+P200+R200) -> 0.4001538652 | R200: =IF((N202+R202)>100,R202*100/(N202+R202),R202) -> 0 | S200: =IF((S202+W202)>100,S202*100/(S202+W202),S202) -> 99.45878861 | T200: =S200*AVERAGEIF(T205:T216,">0")/100 -> 98.78488306 | U200: =S200*(100-AVERAGEIF(T205:T216,">0"))/100 -> 0.6739055507 | V200: =100-(T200+U200+W200) -> 0.5412113887 | W200: =IF((S202+W202)>100,W202*100/(S202+W202),W202) -> 0 | X200: =IF((X202+AB202)>100,X202*100/(X202+AB202),X202) -> 99.42228945 | Y200: =X200*AVERAGEIF(Y205:Y216,">0")/100 -> 98.85945911 | Z200: =X200*(100-AVERAGEIF(Y205:Y216,">0"))/100 -> 0.5628303446 | AA200: =100-(Y200+Z200+AB200) -> 0.5777105503 | AB200: =IF((X202+AB202)>100,AB202*100/(X202+AB202),AB202) -> 0
A201: Regression period: | C201: =MinRegYear(C199,C205:C216) -> 2000 | D201: =IF(MAX(C205:C216)-MIN(C205:C216)<5,AVERAGEIF(C205:C216,">0",D205:D216), IF(FORECAST($C201,D$205:D$216,$C$205:$C$216)<0,0, IF(FORECAST($C201,D$205:D$216,$C$205:$C$216)>100,100, FORECAST($C201,D$205:D$216,$C$205:$C$216)))) -> 94.63952313 | H201: =IF(MAX(C205:C216)-MIN(C205:C216)<5,AVERAGEIF(C205:C216,">0",H205:H216), IF(FORECAST($C201,H$205:H$216,$C$205:$C$216)<0,0, IF(FORECAST($C201,H$205:H$216,$C$205:$C$216)>100,100, FORECAST($C201,H$205:H$216,$C$205:$C$216)))) -> 0.1961303982 | I201: =IF(MAX(C205:C216)-MIN(C205:C216)<5,AVERAGEIF(C205:C216,">0",I205:I216), IF(FORECAST($C201,I$205:I$216,$C$205:$C$216)<0,0, IF(FORECAST($C201,I$205:I$216,$C$205:$C$216)>100,100, FORECAST($C201,I$205:I$216,$C$205:$C$216)))) -> 98.73856866 | M201: =IF(MAX(C205:C216)-MIN(C205:C216)<5,AVERAGEIF(C205:C216,">0",M205:M216), IF(FORECAST($C201,M$205:M$216,$C$205:$C$216)<0,0, IF(FORECAST($C201,M$205:M$216,$C$205:$C$216)>100,100, FORECAST($C201,M$205:M$216,$C$205:$C$216)))) -> 0 | N201: =IF(MAX(C205:C216)-MIN(C205:C216)<5,AVERAGEIF(C205:C216,">0",N205:N216), IF(FORECAST($C201,N$205:N$216,$C$205:$C$216)<0,0, IF(FORECAST($C201,N$205:N$216,$C$205:$C$216)>100,100, FORECAST($C201,N$205:N$216,$C$205:$C$216)))) -> 99.19790508 | R201: =IF(MAX(C205:C216)-MIN(C205:C216)<5,AVERAGEIF(C205:C216,">0",R205:R216), IF(FORECAST($C201,R$205:R$216,$C$205:$C$216)<0,0, IF(FORECAST($C201,R$205:R$216,$C$205:$C$216)>100,100, FORECAST($C201,R$205:R$216,$C$205:$C$216)))) -> 0 | S201: =IF(MAX(C205:C216)-MIN(C205:C216)<5,AVERAGEIF(C205:C216,">0",S205:S216), IF(FORECAST($C201,S$205:S$216,$C$205:$C$216)<0,0, IF(FORECAST($C201,S$205:S$216,$C$205:$C$216)>100,100, FORECAST($C201,S$205:S$216,$C$205:$C$216)))) -> 98.96285687 | W201: =IF(MAX(C205:C216)-MIN(C205:C216)<5,AVERAGEIF(C205:C216,">0",W205:W216), IF(FORECAST($C201,W$205:W$216,$C$205:$C$216)<0,0, IF(FORECAST($C201,W$205:W$216,$C$205:$C$216)>100,100, FORECAST($C201,W$205:W$216,$C$205:$C$216)))) -> 0.08757396955 | X201: =IF(MAX(C205:C216)-MIN(C205:C216)<5,AVERAGEIF(C205:C216,">0",X205:X216), IF(FORECAST($C201,X$205:X$216,$C$205:$C$216)<0,0, IF(FORECAST($C201,X$205:X$216,$C$205:$C$216)>100,100, FORECAST($C201,X$205:X$216,$C$205:$C$216)))) -> 100 | AB201: =IF(MAX(C205:C216)-MIN(C205:C216)<5,AVERAGEIF(C205:C216,">0",AB205:AB216), IF(FORECAST($C201,AB$205:AB$216,$C$205:$C$216)<0,0, IF(FORECAST($C201,AB$205:AB$216,$C$205:$C$216)>100,100, FORECAST($C201,AB$205:AB$216,$C$205:$C$216)))) -> 0
C202: =MaxRegYear(C200,C205:C216) -> 2018 | D202: =IF(MAX(C205:C216)-MIN(C205:C216)<5,AVERAGEIF(C205:C216,">0",D205:D216), IF(FORECAST($C202,D$205:D$216,$C$205:$C$216)<0,0, IF(FORECAST($C202,D$205:D$216,$C$205:$C$216)>100,100, FORECAST($C202,D$205:D$216,$C$205:$C$216)))) -> 98.61757552 | H202: =IF(MAX(C205:C216)-MIN(C205:C216)<5,AVERAGEIF(C205:C216,">0",H205:H216), IF(FORECAST($C202,H$205:H$216,$C$205:$C$216)<0,0, IF(FORECAST($C202,H$205:H$216,$C$205:$C$216)>100,100, FORECAST($C202,H$205:H$216,$C$205:$C$216)))) -> 0.09921122631 | I202: =IF(MAX(C205:C216)-MIN(C205:C216)<5,AVERAGEIF(C205:C216,">0",I205:I216), IF(FORECAST($C202,I$205:I$216,$C$205:$C$216)<0,0, IF(FORECAST($C202,I$205:I$216,$C$205:$C$216)>100,100, FORECAST($C202,I$205:I$216,$C$205:$C$216)))) -> 99.17042044 | M202: =IF(MAX(C205:C216)-MIN(C205:C216)<5,AVERAGEIF(C205:C216,">0",M205:M216), IF(FORECAST($C202,M$205:M$216,$C$205:$C$216)<0,0, IF(FORECAST($C202,M$205:M$216,$C$205:$C$216)>100,100, FORECAST($C202,M$205:M$216,$C$205:$C$216)))) -> 0 | N202: =IF(MAX(C205:C216)-MIN(C205:C216)<5,AVERAGEIF(C205:C216,">0",N205:N216), IF(FORECAST($C202,N$205:N$216,$C$205:$C$216)<0,0, IF(FORECAST($C202,N$205:N$216,$C$205:$C$216)>100,100, FORECAST($C202,N$205:N$216,$C$205:$C$216)))) -> 99.59984613 | R202: =IF(MAX(C205:C216)-MIN(C205:C216)<5,AVERAGEIF(C205:C216,">0",R205:R216), IF(FORECAST($C202,R$205:R$216,$C$205:$C$216)<0,0, IF(FORECAST($C202,R$205:R$216,$C$205:$C$216)>100,100, FORECAST($C202,R$205:R$216,$C$205:$C$216)))) -> 0 | S202: =IF(MAX(C205:C216)-MIN(C205:C216)<5,AVERAGEIF(C205:C216,">0",S205:S216), IF(FORECAST($C202,S$205:S$216,$C$205:$C$216)<0,0, IF(FORECAST($C202,S$205:S$216,$C$205:$C$216)>100,100, FORECAST($C202,S$205:S$216,$C$205:$C$216)))) -> 99.45878861 | W202: =IF(MAX(C205:C216)-MIN(C205:C216)<5,AVERAGEIF(C205:C216,">0",W205:W216), IF(FORECAST($C202,W$205:W$216,$C$205:$C$216)<0,0, IF(FORECAST($C202,W$205:W$216,$C$205:$C$216)>100,100, FORECAST($C202,W$205:W$216,$C$205:$C$216)))) -> 0 | X202: =IF(MAX(C205:C216)-MIN(C205:C216)<5,AVERAGEIF(C205:C216,">0",X205:X216), IF(FORECAST($C202,X$205:X$216,$C$205:$C$216)<0,0, IF(FORECAST($C202,X$205:X$216,$C$205:$C$216)>100,100, FORECAST($C202,X$205:X$216,$C$205:$C$216)))) -> 99.42228945 | AB202: =IF(MAX(C205:C216)-MIN(C205:C216)<5,AVERAGEIF(C205:C216,">0",AB205:AB216), IF(FORECAST($C202,AB$205:AB$216,$C$205:$C$216)<0,0, IF(FORECAST($C202,AB$205:AB$216,$C$205:$C$216)>100,100, FORECAST($C202,AB$205:AB$216,$C$205:$C$216)))) -> 0
B204: Survey | C204: Year | D204: Improved | E204: Not shared | H204: Open defecation | I204: Improved | J204: Not shared | M204: Open defecation | N204: Improved | O204: Not shared | R204: Open defecation | S204: Improved | T204: Not shared | W204: Open defecation | X204: Improved | Y204: Not shared | AB204: Open defecation
B205: DHS00 | C205: 2000 | D205: =IF(ISERROR(INDIRECT(CONCATENATE($B205,"!H122"))),"",INDIRECT(CONCATENATE($B205,"!H122"))) -> 94.72742441 | E205: =IF(ISERROR(INDIRECT(CONCATENATE($B205,"!H129"))),"",INDIRECT(CONCATENATE($B205,"!H129"))) -> N/A | H205: =IF(ISERROR(INDIRECT(CONCATENATE($B205,"!H127"))),"",INDIRECT(CONCATENATE($B205,"!H127"))) -> 0 | I205: =IF(ISERROR(INDIRECT(CONCATENATE($B205,"!I122"))),"",INDIRECT(CONCATENATE($B205,"!I122"))) -> 98.23926822 | J205: =IF(ISERROR(INDIRECT(CONCATENATE($B205,"!I129"))),"",INDIRECT(CONCATENATE($B205,"!I129"))) -> N/A | M205: =IF(ISERROR(INDIRECT(CONCATENATE($B205,"!I127"))),"",INDIRECT(CONCATENATE($B205,"!I127"))) -> 0 | N205: =IF(ISERROR(INDIRECT(CONCATENATE($B205,"!J122"))),"",INDIRECT(CONCATENATE($B205,"!J122"))) -> 98.67859991 | O205: =IF(ISERROR(INDIRECT(CONCATENATE($B205,"!J129"))),"",INDIRECT(CONCATENATE($B205,"!J129"))) -> N/A | R205: =IF(ISERROR(INDIRECT(CONCATENATE($B205,"!J127"))),"",INDIRECT(CONCATENATE($B205,"!J127"))) -> 0 | S205: =IF(ISERROR(INDIRECT(CONCATENATE($B205,"!K122"))),"",INDIRECT(CONCATENATE($B205,"!K122"))) -> 98.14386692 | T205: =IF(ISERROR(INDIRECT(CONCATENATE($B205,"!K129"))),"",INDIRECT(CONCATENATE($B205,"!K129"))) -> N/A | W205: =IF(ISERROR(INDIRECT(CONCATENATE($B205,"!K127"))),"",INDIRECT(CONCATENATE($B205,"!K127"))) -> 0.1294072043 | X205: =IF(ISERROR(INDIRECT(CONCATENATE($B205,"!L122"))),"",INDIRECT(CONCATENATE($B205,"!L122"))) -> 99.80208193 | Y205: =IF(ISERROR(INDIRECT(CONCATENATE($B205,"!L129"))),"",INDIRECT(CONCATENATE($B205,"!L129"))) -> N/A | AB205: =IF(ISERROR(INDIRECT(CONCATENATE($B205,"!L2127"))),"",INDIRECT(CONCATENATE($B205,"!L127"))) -> 0
B206: DHS05 | C206: 2005 | D206: 95.65426354 | E206: 95.47682578 | H206: 0.4489003235 | I206: 99.29031861 | J206: 98.90209004 | M206: 0 | N206: 99.7693151 | O206: 99.46957301 | R206: 0 | S206: 99.8764417 | T206: 99.35960546 | W206: 0 | X206: 100 | Y206: 100 | AB206: 0
B207: DHS10 | C207: 2010 | D207: 96.7806514 | E207: 98.24927231 | H207: 0.1525322937 | I207: 99.51833712 | J207: 99.63730168 | M207: 0 | N207: 99.96312664 | O207: 99.38775957 | R207: 0 | S207: 100 | T207: 98.65612998 | W207: 0 | X207: 100 | Y207: 98.8076459 | AB207: 0
B208: DHS16 | C208: 2016 | D208: 98.24684339 | E208: 98.978124 | H208: 0.01617262406 | I208: 98.65009544 | J208: 99.10358313 | M208: 0 | N208: 99.07281049 | O208: 99.67753655 | R208: 0 | S208: 98.68522352 | T208: 99.95154661 | W208: 0 | X208: 99.24784439 | Y208: 99.4940518 | AB208: 0
B218: =CONCATENATE("Urban use of sanitation facilities, ",C199,"–",C200) -> Urban use of sanitation facilities, 2000–2020 | S218: Data points used for regression
A297: RURAL | D297: Poorest | I297: Poor | N297: Middle | S297: Rich | X297: Richest
D298: Improved | E298: Basic | F298: Limited | G298: Unimproved | H298: Open defecation | I298: Improved | J298: Basic | K298: Limited | L298: Unimproved | M298: Open defecation | N298: Improved | O298: Basic | P298: Limited | Q298: Unimproved | R298: Open defecation | S298: Improved | T298: Basic | U298: Limited | V298: Unimproved | W298: Open defecation | X298: Improved | Y298: Basic | Z298: Limited | AA298: Unimproved | AB298: Open defecation
A299: Forecast period: | C299: 2000 | D299: =IF((D301+H301)>100,D301*100/(D301+H301),D301) -> 74.47147603 | E299: =D299*AVERAGEIF(E305:E316,">0")/100 -> 71.0301354 | F299: =D299*(100-AVERAGEIF(E305:E316,">0"))/100 -> 3.441340631 | G299: =100-(E299+F299+H299) -> 25.11492363 | H299: =IF((D301+H301)>100,H301*100/(D301+H301),H301) -> 0.4136003359 | I299: =IF((I301+M301)>100,I301*100/(I301+M301),I301) -> 79.12936063 | J299: =I299*AVERAGEIF(J305:J316,">0")/100 -> 77.14039374 | K299: =I299*(100-AVERAGEIF(J305:J316,">0"))/100 -> 1.988966887 | L299: =100-(J299+K299+M299) -> 20.87063937 | M299: =IF((I301+M301)>100,M301*100/(I301+M301),M301) -> 0 | N299: =IF((N301+R301)>100,N301*100/(N301+R301),N301) -> 74.02403139 | O299: =N299*AVERAGEIF(O305:O316,">0")/100 -> 73.27860557 | P299: =N299*(100-AVERAGEIF(O305:O316,">0"))/100 -> 0.7454258155 | Q299: =100-(O299+P299+R299) -> 25.97596861 | R299: =IF((N301+R301)>100,R301*100/(N301+R301),R301) -> 0 | S299: =IF((S301+W301)>100,S301*100/(S301+W301),S301) -> 75.08901548 | T299: =S299*AVERAGEIF(T305:T316,">0")/100 -> 74.08326909 | U299: =S299*(100-AVERAGEIF(T305:T316,">0"))/100 -> 1.005746391 | V299: =100-(T299+U299+W299) -> 24.91098452 | W299: =IF((S301+W301)>100,W301*100/(S301+W301),W301) -> 0 | X299: =IF((X301+AB301)>100,X301*100/(X301+AB301),X301) -> 82.58057296 | Y299: =X299*AVERAGEIF(Y305:Y316,">0")/100 -> 82.24151317 | Z299: =X299*(100-AVERAGEIF(Y305:Y316,">0"))/100 -> 0.3390597866 | AA299: =100-(Y299+Z299+AB299) -> 17.41942704 | AB299: =IF((X301+AB301)>100,AB301*100/(X301+AB301),AB301) -> 0
C300: 2020 | D300: =IF((D302+H302)>100,D302*100/(D302+H302),D302) -> 78.82789219 | E300: =D300*AVERAGEIF(E305:E316,">0")/100 -> 75.18524077 | F300: =D300*(100-AVERAGEIF(E305:E316,">0"))/100 -> 3.642651424 | G300: =100-(E300+F300+H300) -> 21.17210781 | H300: =IF((D302+H302)>100,H302*100/(D302+H302),H302) -> 0 | I300: =IF((I302+M302)>100,I302*100/(I302+M302),I302) -> 86.09245674 | J300: =I300*AVERAGEIF(J305:J316,">0")/100 -> 83.928468 | K300: =I300*(100-AVERAGEIF(J305:J316,">0"))/100 -> 2.163988744 | L300: =100-(J300+K300+M300) -> 13.90754326 | M300: =IF((I302+M302)>100,M302*100/(I302+M302),M302) -> 0 | N300: =IF((N302+R302)>100,N302*100/(N302+R302),N302) -> 84.31202043 | O300: =N300*AVERAGEIF(O305:O316,">0")/100 -> 83.46299403 | P300: =N300*(100-AVERAGEIF(O305:O316,">0"))/100 -> 0.849026396 | Q300: =100-(O300+P300+R300) -> 15.68797957 | R300: =IF((N302+R302)>100,R302*100/(N302+R302),R302) -> 0 | S300: =IF((S302+W302)>100,S302*100/(S302+W302),S302) -> 81.94434308 | T300: =S300*AVERAGEIF(T305:T316,">0")/100 -> 80.84677605 | U300: =S300*(100-AVERAGEIF(T305:T316,">0"))/100 -> 1.097567025 | V300: =100-(T300+U300+W300) -> 18.05565692 | W300: =IF((S302+W302)>100,W302*100/(S302+W302),W302) -> 0 | X300: =IF((X302+AB302)>100,X302*100/(X302+AB302),X302) -> 84.78264173 | Y300: =X300*AVERAGEIF(Y305:Y316,">0")/100 -> 84.43454067 | Z300: =X300*(100-AVERAGEIF(Y305:Y316,">0"))/100 -> 0.348101053 | AA300: =100-(Y300+Z300+AB300) -> 15.21735827 | AB300: =IF((X302+AB302)>100,AB302*100/(X302+AB302),AB302) -> 0
A301: Regression period: | C301: =MinRegYear(C299,C305:C316) -> 2000 | D301: =IF(MAX(C305:C316)-MIN(C305:C316)<5,AVERAGEIF(C305:C316,">0",D305:D316), IF(FORECAST($C301,D$305:D$316,$C$305:$C$316)<0,0, IF(FORECAST($C301,D$305:D$316,$C$305:$C$316)>100,100, FORECAST($C301,D$305:D$316,$C$305:$C$316)))) -> 74.47147603 | H301: =IF(MAX(C305:C316)-MIN(C305:C316)<5,AVERAGEIF(C305:C316,">0",H305:H316), IF(FORECAST($C301,H$305:H$316,$C$305:$C$316)<0,0, IF(FORECAST($C301,H$305:H$316,$C$305:$C$316)>100,100, FORECAST($C301,H$305:H$316,$C$305:$C$316)))) -> 0.4136003359 | I301: =IF(MAX(C305:C316)-MIN(C305:C316)<5,AVERAGEIF(C305:C316,">0",I305:I316), IF(FORECAST($C301,I$305:I$316,$C$305:$C$316)<0,0, IF(FORECAST($C301,I$305:I$316,$C$305:$C$316)>100,100, FORECAST($C301,I$305:I$316,$C$305:$C$316)))) -> 79.12936063 | M301: =IF(MAX(C305:C316)-MIN(C305:C316)<5,AVERAGEIF(C305:C316,">0",M305:M316), IF(FORECAST($C301,M$305:M$316,$C$305:$C$316)<0,0, IF(FORECAST($C301,M$305:M$316,$C$305:$C$316)>100,100, FORECAST($C301,M$305:M$316,$C$305:$C$316)))) -> 0 | N301: =IF(MAX(C305:C316)-MIN(C305:C316)<5,AVERAGEIF(C305:C316,">0",N305:N316), IF(FORECAST($C301,N$305:N$316,$C$305:$C$316)<0,0, IF(FORECAST($C301,N$305:N$316,$C$305:$C$316)>100,100, FORECAST($C301,N$305:N$316,$C$305:$C$316)))) -> 74.02403139 | R301: =IF(MAX(C305:C316)-MIN(C305:C316)<5,AVERAGEIF(C305:C316,">0",R305:R316), IF(FORECAST($C301,R$305:R$316,$C$305:$C$316)<0,0, IF(FORECAST($C301,R$305:R$316,$C$305:$C$316)>100,100, FORECAST($C301,R$305:R$316,$C$305:$C$316)))) -> 0 | S301: =IF(MAX(C305:C316)-MIN(C305:C316)<5,AVERAGEIF(C305:C316,">0",S305:S316), IF(FORECAST($C301,S$305:S$316,$C$305:$C$316)<0,0, IF(FORECAST($C301,S$305:S$316,$C$305:$C$316)>100,100, FORECAST($C301,S$305:S$316,$C$305:$C$316)))) -> 75.08901548 | W301: =IF(MAX(C305:C316)-MIN(C305:C316)<5,AVERAGEIF(C305:C316,">0",W305:W316), IF(FORECAST($C301,W$305:W$316,$C$305:$C$316)<0,0, IF(FORECAST($C301,W$305:W$316,$C$305:$C$316)>100,100, FORECAST($C301,W$305:W$316,$C$305:$C$316)))) -> 0 | X301: =IF(MAX(C305:C316)-MIN(C305:C316)<5,AVERAGEIF(C305:C316,">0",X305:X316), IF(FORECAST($C301,X$305:X$316,$C$305:$C$316)<0,0, IF(FORECAST($C301,X$305:X$316,$C$305:$C$316)>100,100, FORECAST($C301,X$305:X$316,$C$305:$C$316)))) -> 82.58057296 | AB301: =IF(MAX(C305:C316)-MIN(C305:C316)<5,AVERAGEIF(C305:C316,">0",AB305:AB316), IF(FORECAST($C301,AB$305:AB$316,$C$305:$C$316)<0,0, IF(FORECAST($C301,AB$305:AB$316,$C$305:$C$316)>100,100, FORECAST($C301,AB$305:AB$316,$C$305:$C$316)))) -> 0
C302: =MaxRegYear(C300,C305:C316) -> 2018 | D302: =IF(MAX(C305:C316)-MIN(C305:C316)<5,AVERAGEIF(C305:C316,">0",D305:D316), IF(FORECAST($C302,D$305:D$316,$C$305:$C$316)<0,0, IF(FORECAST($C302,D$305:D$316,$C$305:$C$316)>100,100, FORECAST($C302,D$305:D$316,$C$305:$C$316)))) -> 78.82789219 | H302: =IF(MAX(C305:C316)-MIN(C305:C316)<5,AVERAGEIF(C305:C316,">0",H305:H316), IF(FORECAST($C302,H$305:H$316,$C$305:$C$316)<0,0, IF(FORECAST($C302,H$305:H$316,$C$305:$C$316)>100,100, FORECAST($C302,H$305:H$316,$C$305:$C$316)))) -> 0 | I302: =IF(MAX(C305:C316)-MIN(C305:C316)<5,AVERAGEIF(C305:C316,">0",I305:I316), IF(FORECAST($C302,I$305:I$316,$C$305:$C$316)<0,0, IF(FORECAST($C302,I$305:I$316,$C$305:$C$316)>100,100, FORECAST($C302,I$305:I$316,$C$305:$C$316)))) -> 86.09245674 | M302: =IF(MAX(C305:C316)-MIN(C305:C316)<5,AVERAGEIF(C305:C316,">0",M305:M316), IF(FORECAST($C302,M$305:M$316,$C$305:$C$316)<0,0, IF(FORECAST($C302,M$305:M$316,$C$305:$C$316)>100,100, FORECAST($C302,M$305:M$316,$C$305:$C$316)))) -> 0 | N302: =IF(MAX(C305:C316)-MIN(C305:C316)<5,AVERAGEIF(C305:C316,">0",N305:N316), IF(FORECAST($C302,N$305:N$316,$C$305:$C$316)<0,0, IF(FORECAST($C302,N$305:N$316,$C$305:$C$316)>100,100, FORECAST($C302,N$305:N$316,$C$305:$C$316)))) -> 84.31202043 | R302: =IF(MAX(C305:C316)-MIN(C305:C316)<5,AVERAGEIF(C305:C316,">0",R305:R316), IF(FORECAST($C302,R$305:R$316,$C$305:$C$316)<0,0, IF(FORECAST($C302,R$305:R$316,$C$305:$C$316)>100,100, FORECAST($C302,R$305:R$316,$C$305:$C$316)))) -> 0 | S302: =IF(MAX(C305:C316)-MIN(C305:C316)<5,AVERAGEIF(C305:C316,">0",S305:S316), IF(FORECAST($C302,S$305:S$316,$C$305:$C$316)<0,0, IF(FORECAST($C302,S$305:S$316,$C$305:$C$316)>100,100, FORECAST($C302,S$305:S$316,$C$305:$C$316)))) -> 81.94434308 | W302: =IF(MAX(C305:C316)-MIN(C305:C316)<5,AVERAGEIF(C305:C316,">0",W305:W316), IF(FORECAST($C302,W$305:W$316,$C$305:$C$316)<0,0, IF(FORECAST($C302,W$305:W$316,$C$305:$C$316)>100,100, FORECAST($C302,W$305:W$316,$C$305:$C$316)))) -> 0 | X302: =IF(MAX(C305:C316)-MIN(C305:C316)<5,AVERAGEIF(C305:C316,">0",X305:X316), IF(FORECAST($C302,X$305:X$316,$C$305:$C$316)<0,0, IF(FORECAST($C302,X$305:X$316,$C$305:$C$316)>100,100, FORECAST($C302,X$305:X$316,$C$305:$C$316)))) -> 84.78264173 | AB302: =IF(MAX(C305:C316)-MIN(C305:C316)<5,AVERAGEIF(C305:C316,">0",AB305:AB316), IF(FORECAST($C302,AB$305:AB$316,$C$305:$C$316)<0,0, IF(FORECAST($C302,AB$305:AB$316,$C$305:$C$316)>100,100, FORECAST($C302,AB$305:AB$316,$C$305:$C$316)))) -> 0
B304: Survey | C304: Year | D304: Improved | E304: Not shared | H304: Open defecation | I304: Improved | J304: Not shared | M304: Open defecation | N304: Improved | O304: Not shared | R304: Open defecation | S304: Improved | T304: Not shared | W304: Open defecation | X304: Improved | Y304: Not shared | AB304: Open defecation
B305: DHS00 | C305: 2000 | D305: =IF(ISERROR(INDIRECT(CONCATENATE($B305,"!M122"))),"",INDIRECT(CONCATENATE($B305,"!M122"))) -> 71.81238758 | E305: =IF(ISERROR(INDIRECT(CONCATENATE($B305,"!M129"))),"",INDIRECT(CONCATENATE($B305,"!M129"))) -> N/A | H305: =IF(ISERROR(INDIRECT(CONCATENATE($B305,"!M127"))),"",INDIRECT(CONCATENATE($B305,"!M127"))) -> 0.5864827773 | I305: =IF(ISERROR(INDIRECT(CONCATENATE($B305,"!N122"))),"",INDIRECT(CONCATENATE($B305,"!N122"))) -> 76.25986539 | J305: =IF(ISERROR(INDIRECT(CONCATENATE($B305,"!N129"))),"",INDIRECT(CONCATENATE($B305,"!N129"))) -> N/A | M305: =IF(ISERROR(INDIRECT(CONCATENATE($B305,"!N127"))),"",INDIRECT(CONCATENATE($B305,"!N127"))) -> 0 | N305: =IF(ISERROR(INDIRECT(CONCATENATE($B305,"!O122"))),"",INDIRECT(CONCATENATE($B305,"!O122"))) -> 70.84677867 | O305: =IF(ISERROR(INDIRECT(CONCATENATE($B305,"!O129"))),"",INDIRECT(CONCATENATE($B305,"!O129"))) -> N/A | R305: =IF(ISERROR(INDIRECT(CONCATENATE($B305,"!O127"))),"",INDIRECT(CONCATENATE($B305,"!O127"))) -> 0 | S305: =IF(ISERROR(INDIRECT(CONCATENATE($B305,"!P122"))),"",INDIRECT(CONCATENATE($B305,"!P122"))) -> 72.97161202 | T305: =IF(ISERROR(INDIRECT(CONCATENATE($B305,"!P129"))),"",INDIRECT(CONCATENATE($B305,"!P129"))) -> N/A | W305: =IF(ISERROR(INDIRECT(CONCATENATE($B305,"!P127"))),"",INDIRECT(CONCATENATE($B305,"!P127"))) -> 0 | X305: =IF(ISERROR(INDIRECT(CONCATENATE($B305,"!Q122"))),"",INDIRECT(CONCATENATE($B305,"!Q122"))) -> 78.39326734 | Y305: =IF(ISERROR(INDIRECT(CONCATENATE($B305,"!Q129"))),"",INDIRECT(CONCATENATE($B305,"!Q129"))) -> N/A | AB305: =IF(ISERROR(INDIRECT(CONCATENATE($B305,"!Q2127"))),"",INDIRECT(CONCATENATE($B305,"!Q127"))) -> 0
B306: DHS05 | C306: 2005 | D306: 79.15226921 | E306: 93.2591667 | H306: 0 | I306: 84.46617692 | J306: 95.8095099 | M306: 0 | N306: 79.4068657 | O306: 97.89694236 | R306: 0 | S306: 78.36421913 | T306: 96.8266089 | W306: 0 | X306: 87.16734283 | Y306: 99.85160211 | AB306: 0
B307: DHS10 | C307: 2010 | D307: 77.61970087 | E307: 93.57842468 | H307: 0.1324936756 | I307: 84.41159261 | J307: 96.64979899 | M307: 0 | N307: 83.58297887 | O307: 99.08204216 | R307: 0 | S307: 82.03053907 | T307: 99.47575467 | W307: 0 | X307: 87.68243864 | Y307: 99.7997879 | AB307: 0
B308: DHS16 | C308: 2016 | D308: 76.80426318 | E308: 99.29935333 | H308: 0 | I308: 83.37180644 | J308: 100 | M308: 0 | N308: 79.97770566 | O308: 100 | R308: 0 | S308: 78.79608923 | T308: 99.67941998 | W308: 0 | X308: 80.8716948 | Y308: 99.11686829 | AB308: 0
B318: =CONCATENATE("Rural use of sanitation facilities, ",C299,"–",C300) -> Rural use of sanitation facilities, 2000–2020 | S318: Data points used for regression

Sheet Hygiene
B4: Access to hygiene facilities by wealth quintile (%)
B5: =IF(ISERROR(INDIRECT(CONCATENATE($E$32,"!A2"))),"",INDIRECT(CONCATENATE($E$32,"!A2"))) -> Armenia
B7: =CONCATENATE("National ",IF(ISERROR(INDIRECT(CONCATENATE($E$32,"!A2"))),"",INDIRECT(CONCATENATE($E$32,"!A210")))) -> National Access to hygiene facilities | K7: =CONCATENATE("Urban ",IF(ISERROR(INDIRECT(CONCATENATE($E$32,"!A2"))),"",INDIRECT(CONCATENATE($E$32,"!A210")))) -> Urban Access to hygiene facilities | S7: =CONCATENATE("Rural ",IF(ISERROR(INDIRECT(CONCATENATE($E$32,"!A2"))),"",INDIRECT(CONCATENATE($E$32,"!A210")))) -> Rural Access to hygiene facilities
E32: =INDEX(B88:B100,A88) -> DHS16 | G32: =IF(ISERROR(INDIRECT(CONCATENATE($E$32,"!A2"))),"",INDIRECT(CONCATENATE($E$32,"!A2"))) -> Armenia | K32: Poorest | N32: Poor | Q32: Middle | T32: Rich | W32: Richest
K33: Basic | L33: Limited | M33: No facility | N33: Basic | O33: Limited | P33: No facility | Q33: Basic | R33: Limited | S33: No facility | T33: Basic | U33: Limited | V33: No facility | W33: Basic | X33: Limited | Y33: No facility
B34: >>> Select Survey : | G34: NATIONAL | J34: =IF(ISERROR(INDIRECT(CONCATENATE(#REF!,"!A2"))),"",INDIRECT(CONCATENATE(#REF!,"!A210"))) ->  | K34: =IF(ISERROR(INDIRECT(CONCATENATE($E$32,"!C222"))),"",INDIRECT(CONCATENATE($E$32,"!C222"))) -> 85.40919837 | L34: =IF(ISERROR(INDIRECT(CONCATENATE($E$32,"!C223"))),"",INDIRECT(CONCATENATE($E$32,"!C223"))) -> 8.656257057 | M34: =IF(ISERROR(INDIRECT(CONCATENATE($E$32,"!C224"))),"",INDIRECT(CONCATENATE($E$32,"!C224"))) -> 5.93454457 | N34: =IF(ISERROR(INDIRECT(CONCATENATE($E$32,"!D222"))),"",INDIRECT(CONCATENATE($E$32,"!D222"))) -> 94.11501908 | O34: =IF(ISERROR(INDIRECT(CONCATENATE($E$32,"!D223"))),"",INDIRECT(CONCATENATE($E$32,"!D223"))) -> 4.133969789 | P34: =IF(ISERROR(INDIRECT(CONCATENATE($E$32,"!D224"))),"",INDIRECT(CONCATENATE($E$32,"!D224"))) -> 1.751011128 | Q34: =IF(ISERROR(INDIRECT(CONCATENATE($E$32,"!E222"))),"",INDIRECT(CONCATENATE($E$32,"!E222"))) -> 96.91463271 | R34: =IF(ISERROR(INDIRECT(CONCATENATE($E$32,"!E223"))),"",INDIRECT(CONCATENATE($E$32,"!E223"))) -> 2.353636319 | S34: =IF(ISERROR(INDIRECT(CONCATENATE($E$32,"!E224"))),"",INDIRECT(CONCATENATE($E$32,"!E224"))) -> 0.7317309703 | T34: =IF(ISERROR(INDIRECT(CONCATENATE($E$32,"!F222"))),"",INDIRECT(CONCATENATE($E$32,"!F222"))) -> 98.4678548 | U34: =IF(ISERROR(INDIRECT(CONCATENATE($E$32,"!F223"))),"",INDIRECT(CONCATENATE($E$32,"!F223"))) -> 0.8144359769 | V34: =IF(ISERROR(INDIRECT(CONCATENATE($E$32,"!F224"))),"",INDIRECT(CONCATENATE($E$32,"!F224"))) -> 0.7177092225 | W34: =IF(ISERROR(INDIRECT(CONCATENATE($E$32,"!G222"))),"",INDIRECT(CONCATENATE($E$32,"!G222"))) -> 99.08750704 | X34: =IF(ISERROR(INDIRECT(CONCATENATE($E$32,"!G223"))),"",INDIRECT(CONCATENATE($E$32,"!G223"))) -> 0.613241797 | Y34: =IF(ISERROR(INDIRECT(CONCATENATE($E$32,"!G224"))),"",INDIRECT(CONCATENATE($E$32,"!G224"))) -> 0.2992511655
G37: URBAN | J37: =IF(ISERROR(INDIRECT(CONCATENATE(#REF!,"!A2"))),"",INDIRECT(CONCATENATE(#REF!,"!A210"))) ->  | K37: =IF(ISERROR(INDIRECT(CONCATENATE($E$32,"!H222"))),"",INDIRECT(CONCATENATE($E$32,"!H222"))) -> 93.82026125 | L37: =IF(ISERROR(INDIRECT(CONCATENATE($E$32,"!H223"))),"",INDIRECT(CONCATENATE($E$32,"!H223"))) -> 3.936981167 | M37: =IF(ISERROR(INDIRECT(CONCATENATE($E$32,"!H224"))),"",INDIRECT(CONCATENATE($E$32,"!H224"))) -> 2.242757585 | N37: =IF(ISERROR(INDIRECT(CONCATENATE($E$32,"!I222"))),"",INDIRECT(CONCATENATE($E$32,"!I222"))) -> 97.25850111 | O37: =IF(ISERROR(INDIRECT(CONCATENATE($E$32,"!I223"))),"",INDIRECT(CONCATENATE($E$32,"!I223"))) -> 1.97019775 | P37: =IF(ISERROR(INDIRECT(CONCATENATE($E$32,"!I224"))),"",INDIRECT(CONCATENATE($E$32,"!I224"))) -> 0.7713011421 | Q37: =IF(ISERROR(INDIRECT(CONCATENATE($E$32,"!J222"))),"",INDIRECT(CONCATENATE($E$32,"!J222"))) -> 97.85602075 | R37: =IF(ISERROR(INDIRECT(CONCATENATE($E$32,"!J223"))),"",INDIRECT(CONCATENATE($E$32,"!J223"))) -> 0.7849724081 | S37: =IF(ISERROR(INDIRECT(CONCATENATE($E$32,"!J224"))),"",INDIRECT(CONCATENATE($E$32,"!J224"))) -> 1.359006837 | T37: =IF(ISERROR(INDIRECT(CONCATENATE($E$32,"!K222"))),"",INDIRECT(CONCATENATE($E$32,"!K222"))) -> 99.48081319 | U37: =IF(ISERROR(INDIRECT(CONCATENATE($E$32,"!K223"))),"",INDIRECT(CONCATENATE($E$32,"!K223"))) -> 0.2144651419 | V37: =IF(ISERROR(INDIRECT(CONCATENATE($E$32,"!K224"))),"",INDIRECT(CONCATENATE($E$32,"!K224"))) -> 0.3047216633 | W37: =IF(ISERROR(INDIRECT(CONCATENATE($E$32,"!L222"))),"",INDIRECT(CONCATENATE($E$32,"!L222"))) -> 98.63648735 | X37: =IF(ISERROR(INDIRECT(CONCATENATE($E$32,"!L223"))),"",INDIRECT(CONCATENATE($E$32,"!L223"))) -> 1.012175661 | Y37: =IF(ISERROR(INDIRECT(CONCATENATE($E$32,"!L224"))),"",INDIRECT(CONCATENATE($E$32,"!L224"))) -> 0.3513369905
G40: RURAL | J40: =IF(ISERROR(INDIRECT(CONCATENATE(#REF!,"!A2"))),"",INDIRECT(CONCATENATE(#REF!,"!A210"))) ->  | K40: =IF(ISERROR(INDIRECT(CONCATENATE($E$32,"!M222"))),"",INDIRECT(CONCATENATE($E$32,"!M222"))) -> 77.72358416 | L40: =IF(ISERROR(INDIRECT(CONCATENATE($E$32,"!M223"))),"",INDIRECT(CONCATENATE($E$32,"!M223"))) -> 12.75370023 | M40: =IF(ISERROR(INDIRECT(CONCATENATE($E$32,"!M224"))),"",INDIRECT(CONCATENATE($E$32,"!M224"))) -> 9.522715604 | N40: =IF(ISERROR(INDIRECT(CONCATENATE($E$32,"!N222"))),"",INDIRECT(CONCATENATE($E$32,"!N222"))) -> 88.18038486 | O40: =IF(ISERROR(INDIRECT(CONCATENATE($E$32,"!N223"))),"",INDIRECT(CONCATENATE($E$32,"!N223"))) -> 7.804981873 | P40: =IF(ISERROR(INDIRECT(CONCATENATE($E$32,"!N224"))),"",INDIRECT(CONCATENATE($E$32,"!N224"))) -> 4.014633267 | Q40: =IF(ISERROR(INDIRECT(CONCATENATE($E$32,"!O222"))),"",INDIRECT(CONCATENATE($E$32,"!O222"))) -> 94.34434803 | R40: =IF(ISERROR(INDIRECT(CONCATENATE($E$32,"!O223"))),"",INDIRECT(CONCATENATE($E$32,"!O223"))) -> 4.351820503 | S40: =IF(ISERROR(INDIRECT(CONCATENATE($E$32,"!O224"))),"",INDIRECT(CONCATENATE($E$32,"!O224"))) -> 1.303831471 | T40: =IF(ISERROR(INDIRECT(CONCATENATE($E$32,"!P222"))),"",INDIRECT(CONCATENATE($E$32,"!P222"))) -> 95.6901159 | U40: =IF(ISERROR(INDIRECT(CONCATENATE($E$32,"!P223"))),"",INDIRECT(CONCATENATE($E$32,"!P223"))) -> 3.721783484 | V40: =IF(ISERROR(INDIRECT(CONCATENATE($E$32,"!P224"))),"",INDIRECT(CONCATENATE($E$32,"!P224"))) -> 0.5881006123 | W40: =IF(ISERROR(INDIRECT(CONCATENATE($E$32,"!Q222"))),"",INDIRECT(CONCATENATE($E$32,"!Q222"))) -> 99.13964867 | X40: =IF(ISERROR(INDIRECT(CONCATENATE($E$32,"!Q223"))),"",INDIRECT(CONCATENATE($E$32,"!Q223"))) -> 0.4534266001 | Y40: =IF(ISERROR(INDIRECT(CONCATENATE($E$32,"!Q224"))),"",INDIRECT(CONCATENATE($E$32,"!Q224"))) -> 0.4069247267
A88: 4 | B88: DHS00
B89: DHS05
B90: DHS10
B91: DHS16
B92: Template

Sheet DHS00
A2: =A1026 -> Armenia
A3: =A1034 -> 2000
A4: Use of drinking water sources
A5: by wealth quintile and sub-national region
A6: Notes:
A7: WHO/UNICEF JMP customised wealth index excludes water,
A8: sanitation and hygiene assets.
A9: Survey used for analysis: | B9: =A1025 -> DHS00
A10: Ratio of improved springs based on: | B10: DHS10
A11: Time to improved water based on: | B11: DHS05
A14: Use of drinking water sources | C14: NATIONAL wealth index quintile | H14: URBAN wealth index quintile | M14: RURAL wealth index quintile | R14: SUB-REGIONS: | BA14: Raw numbers of respondents: | BB14: Use of drinking water sources | BC14: NATIONAL wealth index quintile | BH14: URBAN wealth index quintile | BM14: RURAL wealth index quintile | BR14: SUB-REGIONS:
A15: Weighted percentage (used in graphs) | C15: Poorest | D15: Poor | E15: Middle | F15: Rich | G15: Richest | H15: Poorest | I15: Poor | J15: Middle | K15: Rich | L15: Richest | M15: Poorest | N15: Poor | O15: Middle | P15: Rich | Q15: Richest | R15: Aragatsotn | S15: Ararat | T15: Armavir | U15: Gegharkunik | V15: Kotayk | W15: Lori | X15: Shirak | Y15: Syunik | Z15: Tavush | AA15: Vayots Dzor | AB15: Yerevan | BA15: Water data, raw numbers (weighted) | BC15: Poorest | BD15: Poor | BE15: Middle | BF15: Rich | BG15: Richest | BH15: Poorest | BI15: Poor | BJ15: Middle | BK15: Rich | BL15: Richest | BM15: Poorest | BN15: Poor | BO15: Middle | BP15: Rich | BQ15: Richest | BR15: Aragatsotn | BS15: Ararat | BT15: Armavir | BU15: Gegharkunik | BV15: Kotayk | BW15: Lori | BX15: Shirak | BY15: Syunik | BZ15: Tavush | CA15: Vayots Dzor | CB15: Yerevan
A16: Water | B16: Improved | C16: =C58+C59+C60+C64+C65+C66+C69+C70+C67*'DHS10'!C25/100 -> 94.92509039 | D16: =D58+D59+D60+D64+D65+D66+D69+D70+D67*'DHS10'!D25/100 -> 97.22330615 | E16: =E58+E59+E60+E64+E65+E66+E69+E70+E67*'DHS10'!E25/100 -> 99.12775591 | F16: =F58+F59+F60+F64+F65+F66+F69+F70+F67*'DHS10'!F25/100 -> 99.66288954 | G16: =G58+G59+G60+G64+G65+G66+G69+G70+G67*'DHS10'!G25/100 -> 99.73757734 | H16: =H58+H59+H60+H64+H65+H66+H69+H70+H67*'DHS10'!H25/100 -> 99.56001469 | I16: =I58+I59+I60+I64+I65+I66+I69+I70+I67*'DHS10'!I25/100 -> 100 | J16: =J58+J59+J60+J64+J65+J66+J69+J70+J67*'DHS10'!J25/100 -> 99.9239042 | K16: =K58+K59+K60+K64+K65+K66+K69+K70+K67*'DHS10'!K25/100 -> 99.01462039 | L16: =L58+L59+L60+L64+L65+L66+L69+L70+L67*'DHS10'!L25/100 -> 98.84267034 | M16: =M58+M59+M60+M64+M65+M66+M69+M70+M67*'DHS10'!M25/100 -> 91.48991843 | N16: =N58+N59+N60+N64+N65+N66+N69+N70+N67*'DHS10'!N25/100 -> 95.6368233 | O16: =O58+O59+O60+O64+O65+O66+O69+O70+O67*'DHS10'!O25/100 -> 95.14578881 | P16: =P58+P59+P60+P64+P65+P66+P69+P70+P67*'DHS10'!P25/100 -> 98.59880635 | Q16: =Q58+Q59+Q60+Q64+Q65+Q66+Q69+Q70+Q67*'DHS10'!Q25/100 -> 98.95739528 | R16: =R58+R59+R60+R64+R65+R66+R69+R70+R67*'DHS10'!R25/100 -> 98.17865498 | S16: =S58+S59+S60+S64+S65+S66+S69+S70+S67*'DHS10'!S25/100 -> 100 | T16: =T58+T59+T60+T64+T65+T66+T69+T70+T67*'DHS10'!T25/100 -> 98.35164835 | U16: =U58+U59+U60+U64+U65+U66+U69+U70+U67*'DHS10'!U25/100 -> 94.43462898 | V16: =V58+V59+V60+V64+V65+V66+V69+V70+V67*'DHS10'!V25/100 -> 99.50556242 | W16: =W58+W59+W60+W64+W65+W66+W69+W70+W67*'DHS10'!W25/100 -> 97.03748489 | X16: =X58+X59+X60+X64+X65+X66+X69+X70+X67*'DHS10'!X25/100 -> 97.62947212 | Y16: =Y58+Y59+Y60+Y64+Y65+Y66+Y69+Y70+Y67*'DHS10'!Y25/100 -> 98.40143348 | Z16: =Z58+Z59+Z60+Z64+Z65+Z66+Z69+Z70+Z67*'DHS10'!Z25/100 -> 97.24431632 | AA16: =AA58+AA59+AA60+AA64+AA65+AA66+AA69+AA70+AA67*'DHS10'!AA25/100 -> 99.79777553 | AB16: =AB58+AB59+AB60+AB64+AB65+AB66+AB69+AB70+AB67*'DHS10'!AB25/100 -> 99.61692205 | BA16: Water | BB16: Improved | BC16: N/A | BD16: N/A | BE16: N/A | BF16: N/A | BG16: N/A | BH16: N/A | BI16: N/A | BJ16: N/A | BK16: N/A | BL16: N/A | BM16: N/A | BN16: N/A | BO16: N/A | BP16: N/A | BQ16: N/A | BR16: N/A | BS16: N/A | BT16: N/A | BU16: N/A | BV16: N/A | BW16: N/A | BX16: N/A | BY16: N/A | BZ16: N/A | CA16: N/A | CB16: N/A
B17: Not Improved | C17: =100-C16 -> 5.07490961 | D17: =100-D16 -> 2.776693849 | E17: 0.8722440852 | F17: 0.3371104551 | G17: 0.2624226644 | H17: 0.4399853135 | I17: 0 | J17: 0.07609579962 | K17: 0.9853796061 | L17: 1.157329657 | M17: 8.510081571 | N17: 4.363176703 | O17: 4.854211187 | P17: 1.401193647 | Q17: 1.042604722 | R17: 1.821345024 | S17: 0 | T17: 1.648351648 | U17: 5.565371025 | V17: 0.4944375773 | W17: 2.962515115 | X17: 2.370527883 | Y17: 1.598566523 | Z17: 2.755683677 | AA17: 0.2022244692 | AB17: 0.383077948 | BB17: Not Improved | BC17: N/A | BD17: N/A | BE17: N/A | BF17: N/A | BG17: N/A | BH17: N/A | BI17: N/A | BJ17: N/A | BK17: N/A | BL17: N/A | BM17: N/A | BN17: N/A | BO17: N/A | BP17: N/A | BQ17: N/A | BR17: N/A | BS17: N/A | BT17: N/A | BU17: N/A | BV17: N/A | BW17: N/A | BX17: N/A | BY17: N/A | BZ17: N/A | CA17: N/A | CB17: N/A
A18: Water ladder | B18: Basic | C18: =C16*'DHS05'!C23/100 -> 92.60309906 | D18: =D16*'DHS05'!D23/100 -> 95.63375908 | E18: =E16*'DHS05'!E23/100 -> 98.51763197 | F18: =F16*'DHS05'!F23/100 -> 99.19924457 | G18: =G16*'DHS05'!G23/100 -> 99.6845754 | H18: =H16*'DHS05'!H23/100 -> 99.11388928 | I18: =I16*'DHS05'!I23/100 -> 99.91411452 | J18: =J16*'DHS05'!J23/100 -> 99.72238425 | K18: =K16*'DHS05'!K23/100 -> 98.94941151 | L18: =L16*'DHS05'!L23/100 -> 98.84267034 | M18: =M16*'DHS05'!M23/100 -> 88.39093639 | N18: =N16*'DHS05'!N23/100 -> 91.75107843 | O18: =O16*'DHS05'!O23/100 -> 92.65830759 | P18: =P16*'DHS05'!P23/100 -> 97.13331557 | Q18: =Q16*'DHS05'!Q23/100 -> 97.91395994 | R18: =R16*'DHS05'!R23/100 -> 93.60920034 | S18: =S16*'DHS05'!S23/100 -> 96.53330977 | T18: =T16*'DHS05'!T23/100 -> 98.35164835 | U18: =U16*'DHS05'!U23/100 -> 93.35283318 | V18: =V16*'DHS05'!V23/100 -> 99.02206852 | W18: =W16*'DHS05'!W23/100 -> 96.87702215 | X18: =X16*'DHS05'!X23/100 -> 95.02639183 | Y18: =Y16*'DHS05'!Y23/100 -> 95.8738021 | Z18: =Z16*'DHS05'!Z23/100 -> 95.92037409 | AA18: =AA16*'DHS05'!AA23/100 -> 98.29195273 | AB18: =AB16*'DHS05'!AB23/100 -> 99.61692205 | BA18: Water ladder | BB18: Basic | BC18: N/A | BD18: N/A | BE18: N/A | BF18: N/A | BG18: N/A | BH18: N/A | BI18: N/A | BJ18: N/A | BK18: N/A | BL18: N/A | BM18: N/A | BN18: N/A | BO18: N/A | BP18: N/A | BQ18: N/A | BR18: N/A | BS18: N/A | BT18: N/A | BU18: N/A | BV18: N/A | BW18: N/A | BX18: N/A | BY18: N/A | BZ18: N/A | CA18: N/A | CB18: N/A
B19: Limited | C19: =C16*'DHS05'!C22/100 -> 2.321991326 | D19: =D16*'DHS05'!D22/100 -> 1.589547068 | E19: =E16*'DHS05'!E22/100 -> 0.6101239494 | F19: =F16*'DHS05'!F22/100 -> 0.4636449734 | G19: =G16*'DHS05'!G22/100 -> 0.05300193709 | H19: =H16*'DHS05'!H22/100 -> 0.4461254058 | I19: =I16*'DHS05'!I22/100 -> 0.08588548037 | J19: =J16*'DHS05'!J22/100 -> 0.2015199551 | K19: =K16*'DHS05'!K22/100 -> 0.06520888459 | L19: =L16*'DHS05'!L22/100 -> 0 | M19: =M16*'DHS05'!M22/100 -> 3.098982043 | N19: =N16*'DHS05'!N22/100 -> 3.885744862 | O19: =O16*'DHS05'!O22/100 -> 2.487481219 | P19: =P16*'DHS05'!P22/100 -> 1.465490778 | Q19: =Q16*'DHS05'!Q22/100 -> 1.043435337 | R19: =R16*'DHS05'!R22/100 -> 4.569454639 | S19: =S16*'DHS05'!S22/100 -> 3.466690229 | T19: =T16*'DHS05'!T22/100 -> 0 | U19: =U16*'DHS05'!U22/100 -> 1.081795793 | V19: =V16*'DHS05'!V22/100 -> 0.4834938982 | W19: =W16*'DHS05'!W22/100 -> 0.1604627305 | X19: =X16*'DHS05'!X22/100 -> 2.603080286 | Y19: =Y16*'DHS05'!Y22/100 -> 2.527631374 | Z19: =Z16*'DHS05'!Z22/100 -> 1.323942229 | AA19: =AA16*'DHS05'!AA22/100 -> 1.505822803 | AB19: =AB16*'DHS05'!AB22/100 -> 0 | BB19: Limited | BC19: N/A | BD19: N/A | BE19: N/A | BF19: N/A | BG19: N/A | BH19: N/A | BI19: N/A | BJ19: N/A | BK19: N/A | BL19: N/A | BM19: N/A | BN19: N/A | BO19: N/A | BP19: N/A | BQ19: N/A | BR19: N/A | BS19: N/A | BT19: N/A | BU19: N/A | BV19: N/A | BW19: N/A | BX19: N/A | BY19: N/A | BZ19: N/A | CA19: N/A | CB19: N/A
B20: Unimproved | C20: =100-(C21+C19+C18) -> 4.601750993 | D20: =100-(D21+D19+D18) -> 2.603966997 | E20: 0.8722440852 | F20: 0.3371104551 | G20: 0.2624226644 | H20: 0.4399853135 | I20: 0 | J20: 0.07609579962 | K20: 0.9853796061 | L20: 1.157329657 | M20: 7.517357601 | N20: 4.22929456 | O20: 4.435633316 | P20: 1.401193647 | Q20: 1.042604722 | R20: 1.821345024 | S20: 0 | T20: 1.648351648 | U20: 4.240282686 | V20: 0.4944375773 | W20: 2.720677146 | X20: 2.370527883 | Y20: 1.598566523 | Z20: 2.755683677 | AA20: 0.2022244692 | AB20: 0.383077948 | BB20: Unimproved | BC20: N/A | BD20: N/A | BE20: N/A | BF20: N/A | BG20: N/A | BH20: N/A | BI20: N/A | BJ20: N/A | BK20: N/A | BL20: N/A | BM20: N/A | BN20: N/A | BO20: N/A | BP20: N/A | BQ20: N/A | BR20: N/A | BS20: N/A | BT20: N/A | BU20: N/A | BV20: N/A | BW20: N/A | BX20: N/A | BY20: N/A | BZ20: N/A | CA20: N/A | CB20: N/A
B21: Surface water | C21: =C68 -> 0.4731586169 | D21: 0.1727268517 | E21: 0 | F21: 0 | G21: 0 | H21: 0 | I21: 0 | J21: 0 | K21: 0 | L21: 0 | M21: 0.9927239698 | N21: 0.1338821431 | O21: 0.4185778713 | P21: 0 | Q21: 0 | R21: 0 | S21: 0 | T21: 0 | U21: 1.325088339 | V21: 0 | W21: 0.2418379686 | X21: 0 | Y21: 0 | Z21: 0 | AA21: 0 | AB21: 0 | BB21: Surface water | BC21: N/A | BD21: N/A | BE21: N/A | BF21: N/A | BG21: N/A | BH21: N/A | BI21: N/A | BJ21: N/A | BK21: N/A | BL21: N/A | BM21: N/A | BN21: N/A | BO21: N/A | BP21: N/A | BQ21: N/A | BR21: N/A | BS21: N/A | BT21: N/A | BU21: N/A | BV21: N/A | BW21: N/A | BX21: N/A | BY21: N/A | BZ21: N/A | CA21: N/A | CB21: N/A
A22: Improved water point at more than 30 minutes | B22: Yes | C22: N/A | D22: N/A | E22: N/A | F22: N/A | G22: N/A | H22: N/A | I22: N/A | J22: N/A | K22: N/A | L22: N/A | M22: N/A | N22: N/A | O22: N/A | P22: N/A | Q22: N/A | R22: N/A | S22: N/A | T22: N/A | U22: N/A | V22: N/A | W22: N/A | X22: N/A | Y22: N/A | Z22: N/A | AA22: N/A | AB22: N/A | BA22: Improved water point at more than 30 minutes | BB22: Yes | BC22: N/A | BD22: N/A | BE22: N/A | BF22: N/A | BG22: N/A | BH22: N/A | BI22: N/A | BJ22: N/A | BK22: N/A | BL22: N/A | BM22: N/A | BN22: N/A | BO22: N/A | BP22: N/A | BQ22: N/A | BR22: N/A | BS22: N/A | BT22: N/A | BU22: N/A | BV22: N/A | BW22: N/A | BX22: N/A | BY22: N/A | BZ22: N/A | CA22: N/A | CB22: N/A
B23: No | C23: N/A | D23: N/A | E23: N/A | F23: N/A | G23: N/A | H23: N/A | I23: N/A | J23: N/A | K23: N/A | L23: N/A | M23: N/A | N23: N/A | O23: N/A | P23: N/A | Q23: N/A | R23: N/A | S23: N/A | T23: N/A | U23: N/A | V23: N/A | W23: N/A | X23: N/A | Y23: N/A | Z23: N/A | AA23: N/A | AB23: N/A | BB23: No | BC23: N/A | BD23: N/A | BE23: N/A | BF23: N/A | BG23: N/A | BH23: N/A | BI23: N/A | BJ23: N/A | BK23: N/A | BL23: N/A | BM23: N/A | BN23: N/A | BO23: N/A | BP23: N/A | BQ23: N/A | BR23: N/A | BS23: N/A | BT23: N/A | BU23: N/A | BV23: N/A | BW23: N/A | BX23: N/A | BY23: N/A | BZ23: N/A | CA23: N/A | CB23: N/A
A24: Manually calculated ratios | B24: Improved wells
B25: Improved sources
B26: Other
C27: NATIONAL wealth index quintile | H27: URBAN wealth index quintile | M27: RURAL wealth index quintile | R27: SUB-REGIONS: | BA27: Raw numbers of respondents: | BB27: Use of drinking water sources | BC27: NATIONAL wealth index quintile | BH27: URBAN wealth index quintile | BM27: RURAL wealth index quintile | BR27: SUB-REGIONS:
A28: Percentage based on weighted population | C28: Poorest | D28: Poor | E28: Middle | F28: Rich | G28: Richest | H28: Poorest | I28: Poor | J28: Middle | K28: Rich | L28: Richest | M28: Poorest | N28: Poor | O28: Middle | P28: Rich | Q28: Richest | R28: Aragatsotn | S28: Ararat | T28: Armavir | U28: Gegharkunik | V28: Kotayk | W28: Lori | X28: Shirak | Y28: Syunik | Z28: Tavush | AA28: Vayots Dzor | AB28: Yerevan | BA28: Water data, raw numbers (weighted) | BC28: Poorest | BD28: Poor | BE28: Middle | BF28: Rich | BG28: Richest | BH28: Poorest | BI28: Poor | BJ28: Middle | BK28: Rich | BL28: Richest | BM28: Poorest | BN28: Poor | BO28: Middle | BP28: Rich | BQ28: Richest | BR28: Aragatsotn | BS28: Ararat | BT28: Armavir | BU28: Gegharkunik | BV28: Kotayk | BW28: Lori | BX28: Shirak | BY28: Syunik | BZ28: Tavush | CA28: Vayots Dzor | CB28: Yerevan
A29: Piped water | B29: Yes | C29: 78.42627857 | D29: 88.78738699 | E29: 93.20306594 | F29: 98.20264011 | G29: 99.29040463 | H29: 99.28368415 | I29: 99.04745352 | J29: 98.31920738 | K29: 98.0000673 | L29: 95.95425893 | M29: 73.69944396 | N29: 76.78344926 | O29: 82.60755314 | P29: 88.31545253 | Q29: 90.98722096 | R29: 72.34936945 | S29: 98.73320537 | T29: 77.32267732 | U29: 87.45583039 | V29: 95.6118665 | W29: 83.55501814 | X29: 89.47911294 | Y29: 96.96969697 | Z29: 79.55169259 | AA29: 98.8372093 | AB29: 99.36708861 | BA29: Piped water | BB29: Yes | BC29: N/A | BD29: N/A | BE29: N/A | BF29: N/A | BG29: N/A | BH29: N/A | BI29: N/A | BJ29: N/A | BK29: N/A | BL29: N/A | BM29: N/A | BN29: N/A | BO29: N/A | BP29: N/A | BQ29: N/A | BR29: N/A | BS29: N/A | BT29: N/A | BU29: N/A | BV29: N/A | BW29: N/A | BX29: N/A | BY29: N/A | BZ29: N/A | CA29: N/A | CB29: N/A
B30: No | C30: 21.57372143 | D30: 11.21261301 | E30: 6.796934063 | F30: 1.797359887 | G30: 0.7095953729 | H30: 0.7163158483 | I30: 0.9525464818 | J30: 1.680792619 | K30: 1.999932703 | L30: 4.045741072 | M30: 26.30055604 | N30: 23.21655074 | O30: 17.39244686 | P30: 11.68454747 | Q30: 9.012779039 | R30: 27.65063055 | S30: 1.266794626 | T30: 22.67732268 | U30: 12.54416961 | V30: 4.388133498 | W30: 16.44498186 | X30: 10.52088706 | Y30: 3.03030303 | Z30: 20.44830741 | AA30: 1.162790698 | AB30: 0.6329113924 | BB30: No | BC30: N/A | BD30: N/A | BE30: N/A | BF30: N/A | BG30: N/A | BH30: N/A | BI30: N/A | BJ30: N/A | BK30: N/A | BL30: N/A | BM30: N/A | BN30: N/A | BO30: N/A | BP30: N/A | BQ30: N/A | BR30: N/A | BS30: N/A | BT30: N/A | BU30: N/A | BV30: N/A | BW30: N/A | BX30: N/A | BY30: N/A | BZ30: N/A | CA30: N/A | CB30: N/A
A31: Piped water on premises | B31: Yes | C31: 66.66699841 | D31: 80.79663212 | E31: 88.07142936 | F31: 97.12086277 | G31: 98.86302148 | H31: 99.28368415 | I31: 97.86256756 | J31: 97.02536112 | K31: 96.54757867 | L31: 91.78787577 | M31: 59.78670508 | N31: 64.64449617 | O31: 72.98454216 | P31: 79.01672301 | Q31: 84.19587384 | R31: 58.75758991 | S31: 85.75815739 | T31: 76.02397602 | U31: 72.21731449 | V31: 91.223733 | W31: 79.38331318 | X31: 86.3847344 | Y31: 96.86868687 | Z31: 64.91308326 | AA31: 94.48938322 | AB31: 99.08394404 | BA31: Piped water on premises | BB31: Yes | BC31: N/A | BD31: N/A | BE31: N/A | BF31: N/A | BG31: N/A | BH31: N/A | BI31: N/A | BJ31: N/A | BK31: N/A | BL31: N/A | BM31: N/A | BN31: N/A | BO31: N/A | BP31: N/A | BQ31: N/A | BR31: N/A | BS31: N/A | BT31: N/A | BU31: N/A | BV31: N/A | BW31: N/A | BX31: N/A | BY31: N/A | BZ31: N/A | CA31: N/A | CB31: N/A
B32: No | C32: 33.33300159 | D32: 19.20336788 | E32: 11.92857064 | F32: 2.879137232 | G32: 1.136978518 | H32: 0.7163158483 | I32: 2.137432436 | J32: 2.974638881 | K32: 3.452421328 | L32: 8.212124231 | M32: 40.21329492 | N32: 35.35550383 | O32: 27.01545784 | P32: 20.98327699 | Q32: 15.80412616 | R32: 41.24241009 | S32: 14.24184261 | T32: 23.97602398 | U32: 27.78268551 | V32: 8.776266996 | W32: 20.61668682 | X32: 13.6152656 | Y32: 3.131313131 | Z32: 35.08691674 | AA32: 5.510616785 | AB32: 0.9160559627 | BB32: No | BC32: N/A | BD32: N/A | BE32: N/A | BF32: N/A | BG32: N/A | BH32: N/A | BI32: N/A | BJ32: N/A | BK32: N/A | BL32: N/A | BM32: N/A | BN32: N/A | BO32: N/A | BP32: N/A | BQ32: N/A | BR32: N/A | BS32: N/A | BT32: N/A | BU32: N/A | BV32: N/A | BW32: N/A | BX32: N/A | BY32: N/A | BZ32: N/A | CA32: N/A | CB32: N/A
A33: Piped water into dwelling | B33: Yes | C33: N/A | D33: N/A | E33: N/A | F33: N/A | G33: N/A | H33: N/A | I33: N/A | J33: N/A | K33: N/A | L33: N/A | M33: N/A | N33: N/A | O33: N/A | P33: N/A | Q33: N/A | R33: N/A | S33: N/A | T33: N/A | U33: N/A | V33: N/A | W33: N/A | X33: N/A | Y33: N/A | Z33: N/A | AA33: N/A | AB33: N/A | BA33: Piped water into dwelling | BB33: Yes | BC33: N/A | BD33: N/A | BE33: N/A | BF33: N/A | BG33: N/A | BH33: N/A | BI33: N/A | BJ33: N/A | BK33: N/A | BL33: N/A | BM33: N/A | BN33: N/A | BO33: N/A | BP33: N/A | BQ33: N/A | BR33: N/A | BS33: N/A | BT33: N/A | BU33: N/A | BV33: N/A | BW33: N/A | BX33: N/A | BY33: N/A | BZ33: N/A | CA33: N/A | CB33: N/A
B34: No | C34: N/A | D34: N/A | E34: N/A | F34: N/A | G34: N/A | H34: N/A | I34: N/A | J34: N/A | K34: N/A | L34: N/A | M34: N/A | N34: N/A | O34: N/A | P34: N/A | Q34: N/A | R34: N/A | S34: N/A | T34: N/A | U34: N/A | V34: N/A | W34: N/A | X34: N/A | Y34: N/A | Z34: N/A | AA34: N/A | AB34: N/A | BB34: No | BC34: N/A | BD34: N/A | BE34: N/A | BF34: N/A | BG34: N/A | BH34: N/A | BI34: N/A | BJ34: N/A | BK34: N/A | BL34: N/A | BM34: N/A | BN34: N/A | BO34: N/A | BP34: N/A | BQ34: N/A | BR34: N/A | BS34: N/A | BT34: N/A | BU34: N/A | BV34: N/A | BW34: N/A | BX34: N/A | BY34: N/A | BZ34: N/A | CA34: N/A | CB34: N/A
A35: Water source on premises | B35: Yes | C35: 68.56194333 | D35: 82.8102495 | E35: 89.60023441 | F35: 97.37592091 | G35: 98.86302148 | H35: 99.28368415 | I35: 97.86256756 | J35: 97.2060777 | K35: 97.13938217 | L35: 92.52664575 | M35: 61.29314263 | N35: 67.209063 | O35: 76.2538591 | P35: 81.50545343 | Q35: 85.78201032 | R35: 58.81252922 | S35: 85.85703305 | T35: 83.37544214 | U35: 74.2506812 | V35: 91.223733 | W35: 81.77309361 | X35: 87.3761085 | Y35: 96.96663296 | Z35: 65.24137931 | AA35: 94.68085106 | AB35: 99.08394404 | BA35: Water source on premises | BB35: Yes | BC35: N/A | BD35: N/A | BE35: N/A | BF35: N/A | BG35: N/A | BH35: N/A | BI35: N/A | BJ35: N/A | BK35: N/A | BL35: N/A | BM35: N/A | BN35: N/A | BO35: N/A | BP35: N/A | BQ35: N/A | BR35: N/A | BS35: N/A | BT35: N/A | BU35: N/A | BV35: N/A | BW35: N/A | BX35: N/A | BY35: N/A | BZ35: N/A | CA35: N/A | CB35: N/A
B36: No | C36: 31.43805667 | D36: 17.1897505 | E36: 10.39976559 | F36: 2.624079094 | G36: 1.136978518 | H36: 0.7163158483 | I36: 2.137432436 | J36: 2.7939223 | K36: 2.860617825 | L36: 7.473354245 | M36: 38.70685737 | N36: 32.790937 | O36: 23.7461409 | P36: 18.49454657 | Q36: 14.21798968 | R36: 41.18747078 | S36: 14.14296695 | T36: 16.62455786 | U36: 25.7493188 | V36: 8.776266996 | W36: 18.22690639 | X36: 12.6238915 | Y36: 3.033367037 | Z36: 34.75862069 | AA36: 5.319148936 | AB36: 0.9160559627 | BB36: No | BC36: N/A | BD36: N/A | BE36: N/A | BF36: N/A | BG36: N/A | BH36: N/A | BI36: N/A | BJ36: N/A | BK36: N/A | BL36: N/A | BM36: N/A | BN36: N/A | BO36: N/A | BP36: N/A | BQ36: N/A | BR36: N/A | BS36: N/A | BT36: N/A | BU36: N/A | BV36: N/A | BW36: N/A | BX36: N/A | BY36: N/A | BZ36: N/A | CA36: N/A | CB36: N/A
A37: Improved Water source on premises | B37: Yes | C37: N/A | D37: N/A | E37: N/A | F37: N/A | G37: N/A | H37: N/A | I37: N/A | J37: N/A | K37: N/A | L37: N/A | M37: N/A | N37: N/A | O37: N/A | P37: N/A | Q37: N/A | R37: N/A | S37: N/A | T37: N/A | U37: N/A | V37: N/A | W37: N/A | X37: N/A | Y37: N/A | Z37: N/A | AA37: N/A | AB37: N/A | BA37: Improved water source on premises | BB37: Yes | BC37: N/A | BD37: N/A | BE37: N/A | BF37: N/A | BG37: N/A | BH37: N/A | BI37: N/A | BJ37: N/A | BK37: N/A | BL37: N/A | BM37: N/A | BN37: N/A | BO37: N/A | BP37: N/A | BQ37: N/A | BR37: N/A | BS37: N/A | BT37: N/A | BU37: N/A | BV37: N/A | BW37: N/A | BX37: N/A | BY37: N/A | BZ37: N/A | CA37: N/A | CB37: N/A
B38: No | C38: N/A | D38: N/A | E38: N/A | F38: N/A | G38: N/A | H38: N/A | I38: N/A | J38: N/A | K38: N/A | L38: N/A | M38: N/A | N38: N/A | O38: N/A | P38: N/A | Q38: N/A | R38: N/A | S38: N/A | T38: N/A | U38: N/A | V38: N/A | W38: N/A | X38: N/A | Y38: N/A | Z38: N/A | AA38: N/A | AB38: N/A | BB38: No | BC38: N/A | BD38: N/A | BE38: N/A | BF38: N/A | BG38: N/A | BH38: N/A | BI38: N/A | BJ38: N/A | BK38: N/A | BL38: N/A | BM38: N/A | BN38: N/A | BO38: N/A | BP38: N/A | BQ38: N/A | BR38: N/A | BS38: N/A | BT38: N/A | BU38: N/A | BV38: N/A | BW38: N/A | BX38: N/A | BY38: N/A | BZ38: N/A | CA38: N/A | CB38: N/A
A39: Piped water on premises available when needed | B39: Yes | C39: N/A | D39: N/A | E39: N/A | F39: N/A | G39: N/A | H39: N/A | I39: N/A | J39: N/A | K39: N/A | L39: N/A | M39: N/A | N39: N/A | O39: N/A | P39: N/A | Q39: N/A | R39: N/A | S39: N/A | T39: N/A | U39: N/A | V39: N/A | W39: N/A | X39: N/A | Y39: N/A | Z39: N/A | AA39: N/A | AB39: N/A | BA39: Piped water on premises available when needed | BB39: Yes | BC39: N/A | BD39: N/A | BE39: N/A | BF39: N/A | BG39: N/A | BH39: N/A | BI39: N/A | BJ39: N/A | BK39: N/A | BL39: N/A | BM39: N/A | BN39: N/A | BO39: N/A | BP39: N/A | BQ39: N/A | BR39: N/A | BS39: N/A | BT39: N/A | BU39: N/A | BV39: N/A | BW39: N/A | BX39: N/A | BY39: N/A | BZ39: N/A | CA39: N/A | CB39: N/A
B40: No | C40: N/A | D40: N/A | E40: N/A | F40: N/A | G40: N/A | H40: N/A | I40: N/A | J40: N/A | K40: N/A | L40: N/A | M40: N/A | N40: N/A | O40: N/A | P40: N/A | Q40: N/A | R40: N/A | S40: N/A | T40: N/A | U40: N/A | V40: N/A | W40: N/A | X40: N/A | Y40: N/A | Z40: N/A | AA40: N/A | AB40: N/A | BB40: No | BC40: N/A | BD40: N/A | BE40: N/A | BF40: N/A | BG40: N/A | BH40: N/A | BI40: N/A | BJ40: N/A | BK40: N/A | BL40: N/A | BM40: N/A | BN40: N/A | BO40: N/A | BP40: N/A | BQ40: N/A | BR40: N/A | BS40: N/A | BT40: N/A | BU40: N/A | BV40: N/A | BW40: N/A | BX40: N/A | BY40: N/A | BZ40: N/A | CA40: N/A | CB40: N/A
A41: Water point at more than 30 minutes | B41: Yes | C41: 7.506334537 | D41: 3.147313728 | E41: 2.162258381 | F41: 0.4274123111 | G41: 0.3684459092 | H41: 0.3783645129 | I41: 0.2879408195 | J41: 0.6260433671 | K41: 0.7661590466 | L41: 2.20992494 | M41: 7.797381607 | N41: 8.475303379 | O41: 4.67972513 | P41: 3.181764202 | Q41: 2.572238388 | R41: 3.366058906 | S41: 3.112990008 | T41: 1.667508843 | U41: 10.35422343 | V41: 2.966625464 | W41: 4.463732176 | X41: 2.086593636 | Y41: 0.05055611729 | Z41: 8.597701149 | AA41: 0.3546099291 | AB41: 0.1499000666 | BA41: Water point at more than 30 minutes | BB41: Yes | BC41: N/A | BD41: N/A | BE41: N/A | BF41: N/A | BG41: N/A | BH41: N/A | BI41: N/A | BJ41: N/A | BK41: N/A | BL41: N/A | BM41: N/A | BN41: N/A | BO41: N/A | BP41: N/A | BQ41: N/A | BR41: N/A | BS41: N/A | BT41: N/A | BU41: N/A | BV41: N/A | BW41: N/A | BX41: N/A | BY41: N/A | BZ41: N/A | CA41: N/A | CB41: N/A
B42: No | C42: 92.49366546 | D42: 96.85268627 | E42: 97.83774162 | F42: 99.57258769 | G42: 99.63155409 | H42: 99.62163549 | I42: 99.71205918 | J42: 99.37395663 | K42: 99.23384095 | L42: 97.79007506 | M42: 92.20261839 | N42: 91.52469662 | O42: 95.32027487 | P42: 96.8182358 | Q42: 97.42776161 | R42: 96.63394109 | S42: 96.88700999 | T42: 98.33249116 | U42: 89.64577657 | V42: 97.03337454 | W42: 95.53626782 | X42: 97.91340636 | Y42: 99.94944388 | Z42: 91.40229885 | AA42: 99.64539007 | AB42: 99.85009993 | BB42: No | BC42: N/A | BD42: N/A | BE42: N/A | BF42: N/A | BG42: N/A | BH42: N/A | BI42: N/A | BJ42: N/A | BK42: N/A | BL42: N/A | BM42: N/A | BN42: N/A | BO42: N/A | BP42: N/A | BQ42: N/A | BR42: N/A | BS42: N/A | BT42: N/A | BU42: N/A | BV42: N/A | BW42: N/A | BX42: N/A | BY42: N/A | BZ42: N/A | CA42: N/A | CB42: N/A
A43: Water source available when needed | B43: Yes | C43: N/A | D43: N/A | E43: N/A | F43: N/A | G43: N/A | H43: N/A | I43: N/A | J43: N/A | K43: N/A | L43: N/A | M43: N/A | N43: N/A | O43: N/A | P43: N/A | Q43: N/A | R43: N/A | S43: N/A | T43: N/A | U43: N/A | V43: N/A | W43: N/A | X43: N/A | Y43: N/A | Z43: N/A | AA43: N/A | AB43: N/A | BA43: Water source available when needed | BB43: Yes | BC43: N/A | BD43: N/A | BE43: N/A | BF43: N/A | BG43: N/A | BH43: N/A | BI43: N/A | BJ43: N/A | BK43: N/A | BL43: N/A | BM43: N/A | BN43: N/A | BO43: N/A | BP43: N/A | BQ43: N/A | BR43: N/A | BS43: N/A | BT43: N/A | BU43: N/A | BV43: N/A | BW43: N/A | BX43: N/A | BY43: N/A | BZ43: N/A | CA43: N/A | CB43: N/A
B44: No | C44: N/A | D44: N/A | E44: N/A | F44: N/A | G44: N/A | H44: N/A | I44: N/A | J44: N/A | K44: N/A | L44: N/A | M44: N/A | N44: N/A | O44: N/A | P44: N/A | Q44: N/A | R44: N/A | S44: N/A | T44: N/A | U44: N/A | V44: N/A | W44: N/A | X44: N/A | Y44: N/A | Z44: N/A | AA44: N/A | AB44: N/A | BB44: No | BC44: N/A | BD44: N/A | BE44: N/A | BF44: N/A | BG44: N/A | BH44: N/A | BI44: N/A | BJ44: N/A | BK44: N/A | BL44: N/A | BM44: N/A | BN44: N/A | BO44: N/A | BP44: N/A | BQ44: N/A | BR44: N/A | BS44: N/A | BT44: N/A | BU44: N/A | BV44: N/A | BW44: N/A | BX44: N/A | BY44: N/A | BZ44: N/A | CA44: N/A | CB44: N/A
A45: Improved water source available when needed | B45: Yes | C45: N/A | D45: N/A | E45: N/A | F45: N/A | G45: N/A | H45: N/A | I45: N/A | J45: N/A | K45: N/A | L45: N/A | M45: N/A | N45: N/A | O45: N/A | P45: N/A | Q45: N/A | R45: N/A | S45: N/A | T45: N/A | U45: N/A | V45: N/A | W45: N/A | X45: N/A | Y45: N/A | Z45: N/A | AA45: N/A | AB45: N/A | BA45: Improved water source available when needed | BB45: Yes | BC45: N/A | BD45: N/A | BE45: N/A | BF45: N/A | BG45: N/A | BH45: N/A | BI45: N/A | BJ45: N/A | BK45: N/A | BL45: N/A | BM45: N/A | BN45: N/A | BO45: N/A | BP45: N/A | BQ45: N/A | BR45: N/A | BS45: N/A | BT45: N/A | BU45: N/A | BV45: N/A | BW45: N/A | BX45: N/A | BY45: N/A | BZ45: N/A | CA45: N/A | CB45: N/A
B46: No | C46: N/A | D46: N/A | E46: N/A | F46: N/A | G46: N/A | H46: N/A | I46: N/A | J46: N/A | K46: N/A | L46: N/A | M46: N/A | N46: N/A | O46: N/A | P46: N/A | Q46: N/A | R46: N/A | S46: N/A | T46: N/A | U46: N/A | V46: N/A | W46: N/A | X46: N/A | Y46: N/A | Z46: N/A | AA46: N/A | AB46: N/A | BB46: No | BC46: N/A | BD46: N/A | BE46: N/A | BF46: N/A | BG46: N/A | BH46: N/A | BI46: N/A | BJ46: N/A | BK46: N/A | BL46: N/A | BM46: N/A | BN46: N/A | BO46: N/A | BP46: N/A | BQ46: N/A | BR46: N/A | BS46: N/A | BT46: N/A | BU46: N/A | BV46: N/A | BW46: N/A | BX46: N/A | BY46: N/A | BZ46: N/A | CA46: N/A | CB46: N/A
A47: Microbiological quality at point of collection | B47: Not contaminated (No E. coli in 100 mL) | C47: N/A | D47: N/A | E47: N/A | F47: N/A | G47: N/A | H47: N/A | I47: N/A | J47: N/A | K47: N/A | L47: N/A | M47: N/A | N47: N/A | O47: N/A | P47: N/A | Q47: N/A | R47: N/A | S47: N/A | T47: N/A | U47: N/A | V47: N/A | W47: N/A | X47: N/A | Y47: N/A | Z47: N/A | AA47: N/A | AB47: N/A | BA47: Microbiological quality at point of collection | BB47: Not contaminated (No E. coli in 100 mL) | BC47: N/A | BD47: N/A | BE47: N/A | BF47: N/A | BG47: N/A | BH47: N/A | BI47: N/A | BJ47: N/A | BK47: N/A | BL47: N/A | BM47: N/A | BN47: N/A | BO47: N/A | BP47: N/A | BQ47: N/A | BR47: N/A | BS47: N/A | BT47: N/A | BU47: N/A | BV47: N/A | BW47: N/A | BX47: N/A | BY47: N/A | BZ47: N/A | CA47: N/A | CB47: N/A
B48: Contaminated (E. coli detected in 100 mL) | C48: N/A | D48: N/A | E48: N/A | F48: N/A | G48: N/A | H48: N/A | I48: N/A | J48: N/A | K48: N/A | L48: N/A | M48: N/A | N48: N/A | O48: N/A | P48: N/A | Q48: N/A | R48: N/A | S48: N/A | T48: N/A | U48: N/A | V48: N/A | W48: N/A | X48: N/A | Y48: N/A | Z48: N/A | AA48: N/A | AB48: N/A | BB48: Contaminated (E. coli detected in 100 mL) | BC48: N/A | BD48: N/A | BE48: N/A | BF48: N/A | BG48: N/A | BH48: N/A | BI48: N/A | BJ48: N/A | BK48: N/A | BL48: N/A | BM48: N/A | BN48: N/A | BO48: N/A | BP48: N/A | BQ48: N/A | BR48: N/A | BS48: N/A | BT48: N/A | BU48: N/A | BV48: N/A | BW48: N/A | BX48: N/A | BY48: N/A | BZ48: N/A | CA48: N/A | CB48: N/A
B49: Highly contaminated (>100 CFU/100 mL) | C49: N/A | D49: N/A | E49: N/A | F49: N/A | G49: N/A | H49: N/A | I49: N/A | J49: N/A | K49: N/A | L49: N/A | M49: N/A | N49: N/A | O49: N/A | P49: N/A | Q49: N/A | R49: N/A | S49: N/A | T49: N/A | U49: N/A | V49: N/A | W49: N/A | X49: N/A | Y49: N/A | Z49: N/A | AA49: N/A | AB49: N/A | BB49: Highly contaminated (>100 CFU/100 mL) | BC49: N/A | BD49: N/A | BE49: N/A | BF49: N/A | BG49: N/A | BH49: N/A | BI49: N/A | BJ49: N/A | BK49: N/A | BL49: N/A | BM49: N/A | BN49: N/A | BO49: N/A | BP49: N/A | BQ49: N/A | BR49: N/A | BS49: N/A | BT49: N/A | BU49: N/A | BV49: N/A | BW49: N/A | BX49: N/A | BY49: N/A | BZ49: N/A | CA49: N/A | CB49: N/A
A50: Microbiological quality of improved water sources at point of collection | B50: Not contaminated (No E. coli in 100 mL) | C50: N/A | D50: N/A | E50: N/A | F50: N/A | G50: N/A | H50: N/A | I50: N/A | J50: N/A | K50: N/A | L50: N/A | M50: N/A | N50: N/A | O50: N/A | P50: N/A | Q50: N/A | R50: N/A | S50: N/A | T50: N/A | U50: N/A | V50: N/A | W50: N/A | X50: N/A | Y50: N/A | Z50: N/A | AA50: N/A | AB50: N/A | BA50: Microbiological quality of improved water sources at point of collection | BB50: Not contaminated (No E. coli in 100 mL) | BC50: N/A | BD50: N/A | BE50: N/A | BF50: N/A | BG50: N/A | BH50: N/A | BI50: N/A | BJ50: N/A | BK50: N/A | BL50: N/A | BM50: N/A | BN50: N/A | BO50: N/A | BP50: N/A | BQ50: N/A | BR50: N/A | BS50: N/A | BT50: N/A | BU50: N/A | BV50: N/A | BW50: N/A | BX50: N/A | BY50: N/A | BZ50: N/A | CA50: N/A | CB50: N/A
B51: Contaminated (E. coli detected in 100 mL) | C51: N/A | D51: N/A | E51: N/A | F51: N/A | G51: N/A | H51: N/A | I51: N/A | J51: N/A | K51: N/A | L51: N/A | M51: N/A | N51: N/A | O51: N/A | P51: N/A | Q51: N/A | R51: N/A | S51: N/A | T51: N/A | U51: N/A | V51: N/A | W51: N/A | X51: N/A | Y51: N/A | Z51: N/A | AA51: N/A | AB51: N/A | BB51: Contaminated (E. coli detected in 100 mL) | BC51: N/A | BD51: N/A | BE51: N/A | BF51: N/A | BG51: N/A | BH51: N/A | BI51: N/A | BJ51: N/A | BK51: N/A | BL51: N/A | BM51: N/A | BN51: N/A | BO51: N/A | BP51: N/A | BQ51: N/A | BR51: N/A | BS51: N/A | BT51: N/A | BU51: N/A | BV51: N/A | BW51: N/A | BX51: N/A | BY51: N/A | BZ51: N/A | CA51: N/A | CB51: N/A
B52: Highly contaminated (>100 CFU/100 mL) | C52: N/A | D52: N/A | E52: N/A | F52: N/A | G52: N/A | H52: N/A | I52: N/A | J52: N/A | K52: N/A | L52: N/A | M52: N/A | N52: N/A | O52: N/A | P52: N/A | Q52: N/A | R52: N/A | S52: N/A | T52: N/A | U52: N/A | V52: N/A | W52: N/A | X52: N/A | Y52: N/A | Z52: N/A | AA52: N/A | AB52: N/A | BB52: Highly contaminated (>100 CFU/100 mL) | BC52: N/A | BD52: N/A | BE52: N/A | BF52: N/A | BG52: N/A | BH52: N/A | BI52: N/A | BJ52: N/A | BK52: N/A | BL52: N/A | BM52: N/A | BN52: N/A | BO52: N/A | BP52: N/A | BQ52: N/A | BR52: N/A | BS52: N/A | BT52: N/A | BU52: N/A | BV52: N/A | BW52: N/A | BX52: N/A | BY52: N/A | BZ52: N/A | CA52: N/A | CB52: N/A
A53: Microbiological quality of piped on premises at point of collection | B53: Not contaminated (No E. coli in 100 mL) | C53: N/A | D53: N/A | E53: N/A | F53: N/A | G53: N/A | H53: N/A | I53: N/A | J53: N/A | K53: N/A | L53: N/A | M53: N/A | N53: N/A | O53: N/A | P53: N/A | Q53: N/A | R53: N/A | S53: N/A | T53: N/A | U53: N/A | V53: N/A | W53: N/A | X53: N/A | Y53: N/A | Z53: N/A | AA53: N/A | AB53: N/A | BA53: Microbiological quality of piped on premises at point of collection | BB53: Not contaminated (No E. coli in 100 mL) | BC53: N/A | BD53: N/A | BE53: N/A | BF53: N/A | BG53: N/A | BH53: N/A | BI53: N/A | BJ53: N/A | BK53: N/A | BL53: N/A | BM53: N/A | BN53: N/A | BO53: N/A | BP53: N/A | BQ53: N/A | BR53: N/A | BS53: N/A | BT53: N/A | BU53: N/A | BV53: N/A | BW53: N/A | BX53: N/A | BY53: N/A | BZ53: N/A | CA53: N/A | CB53: N/A
B54: Contaminated (E. coli detected in 100 mL) | C54: N/A | D54: N/A | E54: N/A | F54: N/A | G54: N/A | H54: N/A | I54: N/A | J54: N/A | K54: N/A | L54: N/A | M54: N/A | N54: N/A | O54: N/A | P54: N/A | Q54: N/A | R54: N/A | S54: N/A | T54: N/A | U54: N/A | V54: N/A | W54: N/A | X54: N/A | Y54: N/A | Z54: N/A | AA54: N/A | AB54: N/A | BB54: Contaminated (E. coli detected in 100 mL) | BC54: N/A | BD54: N/A | BE54: N/A | BF54: N/A | BG54: N/A | BH54: N/A | BI54: N/A | BJ54: N/A | BK54: N/A | BL54: N/A | BM54: N/A | BN54: N/A | BO54: N/A | BP54: N/A | BQ54: N/A | BR54: N/A | BS54: N/A | BT54: N/A | BU54: N/A | BV54: N/A | BW54: N/A | BX54: N/A | BY54: N/A | BZ54: N/A | CA54: N/A | CB54: N/A
B55: Highly contaminated (>100 CFU/100 mL) | C55: N/A | D55: N/A | E55: N/A | F55: N/A | G55: N/A | H55: N/A | I55: N/A | J55: N/A | K55: N/A | L55: N/A | M55: N/A | N55: N/A | O55: N/A | P55: N/A | Q55: N/A | R55: N/A | S55: N/A | T55: N/A | U55: N/A | V55: N/A | W55: N/A | X55: N/A | Y55: N/A | Z55: N/A | AA55: N/A | AB55: N/A | BB55: Highly contaminated (>100 CFU/100 mL) | BC55: N/A | BD55: N/A | BE55: N/A | BF55: N/A | BG55: N/A | BH55: N/A | BI55: N/A | BJ55: N/A | BK55: N/A | BL55: N/A | BM55: N/A | BN55: N/A | BO55: N/A | BP55: N/A | BQ55: N/A | BR55: N/A | BS55: N/A | BT55: N/A | BU55: N/A | BV55: N/A | BW55: N/A | BX55: N/A | BY55: N/A | BZ55: N/A | CA55: N/A | CB55: N/A
C56: NATIONAL wealth index quintile | H56: URBAN wealth index quintile | M56: RURAL wealth index quintile | R56: SUB-REGIONS: | BA56: Raw numbers of respondents: | BB56: Use of drinking water sources | BC56: NATIONAL wealth index quintile | BH56: URBAN wealth index quintile | BM56: RURAL wealth index quintile | BR56: SUB-REGIONS:
A57: Percentage based on weighted population | C57: Poorest | D57: Poor | E57: Middle | F57: Rich | G57: Richest | H57: Poorest | I57: Poor | J57: Middle | K57: Rich | L57: Richest | M57: Poorest | N57: Poor | O57: Middle | P57: Rich | Q57: Richest | R57: Aragatsotn | S57: Ararat | T57: Armavir | U57: Gegharkunik | V57: Kotayk | W57: Lori | X57: Shirak | Y57: Syunik | Z57: Tavush | AA57: Vayots Dzor | AB57: Yerevan | BA57: Water data, raw numbers (weighted) | BC57: Poorest | BD57: Poor | BE57: Middle | BF57: Rich | BG57: Richest | BH57: Poorest | BI57: Poor | BJ57: Middle | BK57: Rich | BL57: Richest | BM57: Poorest | BN57: Poor | BO57: Middle | BP57: Rich | BQ57: Richest | BR57: Aragatsotn | BS57: Ararat | BT57: Armavir | BU57: Gegharkunik | BV57: Kotayk | BW57: Lori | BX57: Shirak | BY57: Syunik | BZ57: Tavush | CA57: Vayots Dzor | CB57: Yerevan
A58: Source of drinking water | B58: Piped into residence | C58: 26.03235487 | D58: 37.26634709 | E58: 55.24354502 | F58: 88.84209116 | G58: 97.35506039 | H58: 97.95954168 | I58: 95.72551087 | J58: 90.88677161 | K58: 80.28779626 | L58: 64.74075435 | M58: 19.60353043 | N58: 22.30366611 | O58: 25.85419276 | P58: 31.02208834 | Q58: 33.68059854 | R58: 31.62073797 | S58: 30.86372361 | T58: 27.47252747 | U58: 33.78975265 | V58: 76.94684796 | W58: 49.75816203 | X58: 69.1593605 | Y58: 85.45454545 | Z58: 35.7273559 | AA58: 57.38119312 | AB58: 89.92338441
B59: Piped into yard/plot | C59: 40.63464354 | D59: 43.53028503 | E59: 32.82788434 | F59: 8.278771611 | G59: 1.507961093 | H59: 1.32414247 | I59: 2.137056695 | J59: 6.138589509 | K59: 16.25978241 | L59: 27.04712142 | M59: 40.18317465 | N59: 42.34083006 | O59: 47.13034939 | P59: 47.99463467 | Q59: 50.51527531 | R59: 27.13685194 | S59: 54.89443378 | T59: 48.55144855 | U59: 38.42756184 | V59: 14.27688504 | W59: 29.62515115 | X59: 17.2253739 | Y59: 11.41414141 | Z59: 29.18572736 | AA59: 37.10819009 | AB59: 9.160559627
B60: Public tap | C60: 11.75928016 | D60: 7.99075487 | E60: 5.131636579 | F60: 1.081777345 | G60: 0.4273831452 | H60: 0 | I60: 1.184885954 | J60: 1.293846262 | K60: 1.452488624 | L60: 4.166383159 | M60: 13.91273888 | N60: 12.13895308 | O60: 9.623010985 | P60: 9.298729519 | Q60: 6.791347116 | R60: 13.59177954 | S60: 12.97504798 | T60: 1.298701299 | U60: 15.2385159 | V60: 4.388133498 | W60: 4.171704958 | X60: 3.094378546 | Y60: 0.101010101 | Z60: 14.63860933 | AA60: 4.347826087 | AB60: 0.2831445703
B61: Open well in residence | C61: 0.0545724435 | D61: 0.3392567313 | E61: 0 | F61: 0 | G61: 0 | H61: 0 | I61: 0 | J61: 0 | K61: 0 | L61: 0 | M61: 0.129424659 | N61: 0 | O61: 0.8221383011 | P61: 0 | Q61: 0 | R61: 0 | S61: 0 | T61: 0 | U61: 0.6183745583 | V61: 0 | W61: 0 | X61: 0.2578648788 | Y61: 0 | Z61: 0 | AA61: 0 | AB61: 0
B62: Open well in yard/plot | C62: 0.7894381279 | D62: 0.634145827 | E62: 0.3725164272 | F62: 0 | G62: 0 | H62: 0 | I62: 0 | J62: 0 | K62: 0.3019501435 | L62: 0.6369215246 | M62: 0.6376255966 | N62: 0.8754899634 | O62: 1.209224962 | P62: 0.04457583323 | Q62: 0.2607152704 | R62: 0 | S62: 0 | T62: 0.4495504496 | U62: 1.634275618 | V62: 0 | W62: 1.209189843 | X62: 0.8767405879 | Y62: 0 | Z62: 0 | AA62: 0.2022244692 | AB62: 0
B63: Open public well | C63: 0.6630244212 | D63: 0.3682893251 | E63: 0.02236981931 | F63: 0.0438945502 | G63: 0 | H63: 0 | I63: 0 | J63: 0.07609579962 | K63: 0.03885674743 | L63: 0 | M63: 0.4909565551 | N63: 1.118727083 | O63: 0.8376605394 | P63: 0.0509471475 | Q63: 0 | R63: 0.7940214853 | S63: 0 | T63: 0.3496503497 | U63: 1.148409894 | V63: 0 | W63: 0.423216445 | X63: 0 | Y63: 0 | Z63: 0.4574565416 | AA63: 0 | AB63: 0
B64: Protected well in dwelling | C64: 0.09115151241 | D64: 0 | E64: 0 | F64: 0 | G64: 0 | H64: 0 | I64: 0 | J64: 0 | K64: 0 | L64: 0.1615187305 | M64: 0 | N64: 0 | O64: 0 | P64: 0 | Q64: 0 | R64: 0 | S64: 0 | T64: 0 | U64: 0 | V64: 0 | W64: 0.2418379686 | X64: 0 | Y64: 0 | Z64: 0 | AA64: 0 | AB64: 0
B65: Protected well in yard/plot | C65: 0.1867026485 | D65: 0.2305107742 | E65: 0.05481138601 | F65: 0.1546919946 | G65: 0 | H65: 0 | I65: 0 | J65: 0 | K65: 0.2684243906 | L65: 0 | M65: 0.2702200198 | N65: 0.1785095241 | O65: 0.2330480586 | P65: 0.3024838629 | Q65: 0.1294634814 | R65: 0 | S65: 0 | T65: 0.3496503497 | U65: 0.4858657244 | V65: 0 | W65: 0.5441354293 | X65: 0 | Y65: 0 | Z65: 0.2287282708 | AA65: 0 | AB65: 0
B66: Protect public well | C66: 0.04319038102 | D66: 0 | E66: 0 | F66: 0 | G66: 0 | H66: 0 | I66: 0 | J66: 0 | K66: 0 | L66: 0.07653252623 | M66: 0 | N66: 0 | O66: 0 | P66: 0 | Q66: 0 | R66: 0 | S66: 0 | T66: 0.0999000999 | U66: 0 | V66: 0 | W66: 0 | X66: 0 | Y66: 0 | Z66: 0 | AA66: 0 | AB66: 0
B67: Spring | C67: 15.83844664 | D67: 6.967533715 | E67: 5.022675706 | F67: 0.7922934168 | G67: 0.4471727085 | H67: 0.293876679 | I67: 0.6867463874 | J67: 1.114402837 | K67: 0.5937954472 | L67: 2.479343123 | M67: 19.38474652 | N67: 17.719937 | O67: 11.05509557 | P67: 7.914509095 | Q67: 6.308920753 | R67: 26.85660906 | S67: 0.3838771593 | T67: 9.69030969 | U67: 6.492932862 | V67: 3.893695921 | W67: 12.21281741 | X67: 9.179989685 | Y67: 2.171717172 | Z67: 17.10887466 | AA67: 0.9605662285 | AB67: 0.2498334444
B68: River/stream | C68: 0.4731586169 | D68: 0.1727268517 | E68: 0 | F68: 0 | G68: 0 | H68: 0 | I68: 0 | J68: 0 | K68: 0 | L68: 0 | M68: 0.9927239698 | N68: 0.1338821431 | O68: 0.4185778713 | P68: 0 | Q68: 0 | R68: 0 | S68: 0 | T68: 0 | U68: 1.325088339 | V68: 0 | W68: 0.2418379686 | X68: 0 | Y68: 0 | Z68: 0 | AA68: 0 | AB68: 0
B69: Rainwater | C69: 0 | D69: 0.1923353345 | E69: 0 | F69: 0 | G69: 0 | H69: 0 | I69: 0 | J69: 0 | K69: 0 | L69: 0 | M69: 0 | N69: 0 | O69: 0.4660961172 | P69: 0 | Q69: 0 | R69: 0 | S69: 0 | T69: 0 | U69: 0 | V69: 0 | W69: 0.4836759371 | X69: 0 | Y69: 0 | Z69: 0 | AA69: 0 | AB69: 0
B70: Tanker truck | C70: 2.55821538 | D70: 2.021184781 | E70: 0.847202886 | F70: 0.5132640204 | G70: 0 | H70: 0 | I70: 0.2658000944 | J70: 0.4902939828 | K70: 0.1523332596 | L70: 0.171017036 | M70: 3.738725063 | N70: 2.277020125 | O70: 1.876851634 | P70: 3.166835454 | Q70: 1.531790083 | R70: 0 | S70: 0.8829174664 | T70: 10.88911089 | U70: 0 | V70: 0 | W70: 0 | X70: 0 | Y70: 0 | Z70: 2.653247941 | AA70: 0 | AB70: 0
B71: Other | C71: 0.8758212559 | D71: 0.28662967 | E71: 0.4773578387 | F71: 0.2932159049 | G71: 0.2624226644 | H71: 0.4224391693 | I71: 0 | J71: 0 | K71: 0.6445727152 | L71: 0.5204081321 | M71: 0.6561336555 | N71: 0.912984907 | O71: 0.4737538049 | P71: 0.2051960783 | Q71: 0.7818894518 | R71: 0 | S71: 0 | T71: 0.8491508492 | U71: 0.8392226148 | V71: 0.4944375773 | W71: 1.088270859 | X71: 0.206291903 | Y71: 0.8585858586 | Z71: 0 | AA71: 0 | AB71: 0.383077948
A108: =A1026 -> Armenia
A109: =A1034 -> 2000
A110: Use of sanitation facilities
A111: by wealth quintile and sub-national region
A112: Notes:
A113: WHO/UNICEF JMP customised wealth index excludes water,
A114: sanitation and hygiene assets.
A115: Survey used for analysis: | B115: =A1025 -> DHS00
A116: =B1030 -> Ratio of Improved latrines based on: | B116: DHS05
A117: =B1029 -> Ratio of Shared improved based on: | B117: DHS05
A118: Ratio os sever and septic based on: | B118: DHS05
A120: Use of sanitation facilities | C120: NATIONAL wealth index quintile | H120: URBAN wealth index quintile | M120: RURAL wealth index quintile | R120: SUB-REGIONS: | BA120: Raw numbers of respondents: | BB120: Use of sanitation facilities | BC120: NATIONAL wealth index quintile | BH120: URBAN wealth index quintile | BM120: RURAL wealth index quintile | BR120: SUB-REGIONS:
A121: Weighted percentage (used in graphs) | C121: Poorest | D121: Poor | E121: Middle | F121: Rich | G121: Richest | H121: Poorest | I121: Poor | J121: Middle | K121: Rich | L121: Richest | M121: Poorest | N121: Poor | O121: Middle | P121: Rich | Q121: Richest | R121: Aragatsotn | S121: Ararat | T121: Armavir | U121: Gegharkunik | V121: Kotayk | W121: Lori | X121: Shirak | Y121: Syunik | Z121: Tavush | AA121: Vayots Dzor | AB121: Yerevan | BA121: Sanitation data, raw numbers (weighted) | BC121: Poorest | BD121: Poor | BE121: Middle | BF121: Rich | BG121: Richest | BH121: Poorest | BI121: Poor | BJ121: Middle | BK121: Rich | BL121: Richest | BM121: Poorest | BN121: Poor | BO121: Middle | BP121: Rich | BQ121: Richest | BR121: Aragatsotn | BS121: Ararat | BT121: Armavir | BU121: Gegharkunik | BV121: Kotayk | BW121: Lori | BX121: Shirak | BY121: Syunik | BZ121: Tavush | CA121: Vayots Dzor | CB121: Yerevan
A122: Sanitation | B122: Improved | C122: =C135+C136+C137 -> 79.88151624 | D122: =D135+D136+D137 -> 79.49711617 | E122: 85.04337181 | F122: 95.46831587 | G122: 98.79828433 | H122: 94.72742441 | I122: 98.23926822 | J122: 98.67859991 | K122: 98.14386692 | L122: 99.80208193 | M122: 71.81238758 | N122: 76.25986539 | O122: 70.84677867 | P122: 72.97161202 | Q122: 78.39326734 | R122: 92.72065698 | S122: 51.55474765 | T122: 79.95729725 | U122: 88.42669853 | V122: 91.62060327 | W122: 93.13292121 | X122: 79.90173152 | Y122: 97.88092835 | Z122: 95.90986223 | AA122: 89.58185396 | AB122: 99.39554994 | BA122: Sanitation | BB122: Improved | BC122: N/A | BD122: N/A | BE122: N/A | BF122: N/A | BG122: N/A | BH122: N/A | BI122: N/A | BJ122: N/A | BK122: N/A | BL122: N/A | BM122: N/A | BN122: N/A | BO122: N/A | BP122: N/A | BQ122: N/A | BR122: N/A | BS122: N/A | BT122: N/A | BU122: N/A | BV122: N/A | BW122: N/A | BX122: N/A | BY122: N/A | BZ122: N/A | CA122: N/A | CB122: N/A
B123: Not Improved | C123: =100-C122 -> 20.11848376 | D123: =100-D122 -> 20.50288383 | E123: 14.95662819 | F123: 4.531684127 | G123: 1.201715672 | H123: 5.272575586 | I123: 1.760731775 | J123: 1.321400094 | K123: 1.856133076 | L123: 0.1979180712 | M123: 28.18761242 | N123: 23.74013461 | O123: 29.15322133 | P123: 27.02838798 | Q123: 21.60673266 | R123: 7.279343022 | S123: 48.44525235 | T123: 20.04270275 | U123: 11.57330147 | V123: 8.379396733 | W123: 6.867078786 | X123: 20.09826848 | Y123: 2.119071652 | Z123: 4.090137769 | AA123: 10.41814604 | AB123: 0.6044500649 | BB123: Not Improved | BC123: N/A | BD123: N/A | BE123: N/A | BF123: N/A | BG123: N/A | BH123: N/A | BI123: N/A | BJ123: N/A | BK123: N/A | BL123: N/A | BM123: N/A | BN123: N/A | BO123: N/A | BP123: N/A | BQ123: N/A | BR123: N/A | BS123: N/A | BT123: N/A | BU123: N/A | BV123: N/A | BW123: N/A | BX123: N/A | BY123: N/A | BZ123: N/A | CA123: N/A | CB123: N/A
A124: Sanitation ladder | B124: Basic | C124: =C122*'DHS05'!C129/100 -> 74.99916076 | D124: =D122*'DHS05'!D129/100 -> 77.77075291 | E124: =E122*'DHS05'!E129/100 -> 84.02488391 | F124: =F122*'DHS05'!F129/100 -> 94.86464382 | G124: =G122*'DHS05'!G129/100 -> 98.63444407 | H124: =H122*'DHS05'!H129/100 -> 90.44273797 | I124: =I122*'DHS05'!I129/100 -> 97.16068952 | J124: =J122*'DHS05'!J129/100 -> 98.15518198 | K124: =K122*'DHS05'!K129/100 -> 97.51535896 | L124: =L122*'DHS05'!L129/100 -> 99.80208193 | M124: =M122*'DHS05'!M129/100 -> 66.97163425 | N124: =N122*'DHS05'!N129/100 -> 73.06420328 | O124: =O122*'DHS05'!O129/100 -> 69.35683008 | P124: =P122*'DHS05'!P129/100 -> 70.65593738 | Q124: =Q122*'DHS05'!Q129/100 -> 78.27693338 | R124: =R122*'DHS05'!R129/100 -> 89.85918623 | S124: =S122*'DHS05'!S129/100 -> 47.81388729 | T124: =T122*'DHS05'!T129/100 -> 79.50488255 | U124: =U122*'DHS05'!U129/100 -> 86.59459956 | V124: =V122*'DHS05'!V129/100 -> 89.92692107 | W124: =W122*'DHS05'!W129/100 -> 90.84965139 | X124: =X122*'DHS05'!X129/100 -> 78.89576713 | Y124: =Y122*'DHS05'!Y129/100 -> 97.32279166 | Z124: =Z122*'DHS05'!Z129/100 -> 94.41507923 | AA124: =AA122*'DHS05'!AA129/100 -> 89.32435671 | AB124: =AB122*'DHS05'!AB129/100 -> 97.66903837 | BA124: Sanitation ladder | BB124: Basic | BC124: N/A | BD124: N/A | BE124: N/A | BF124: N/A | BG124: N/A | BH124: N/A | BI124: N/A | BJ124: N/A | BK124: N/A | BL124: N/A | BM124: N/A | BN124: N/A | BO124: N/A | BP124: N/A | BQ124: N/A | BR124: N/A | BS124: N/A | BT124: N/A | BU124: N/A | BV124: N/A | BW124: N/A | BX124: N/A | BY124: N/A | BZ124: N/A | CA124: N/A | CB124: N/A
B125: Limited | C125: =C122*'DHS05'!C128/100 -> 4.882355482 | D125: =D122*'DHS05'!D128/100 -> 1.726363257 | E125: =E122*'DHS05'!E128/100 -> 1.018487899 | F125: =F122*'DHS05'!F128/100 -> 0.603672051 | G125: =G122*'DHS05'!G128/100 -> 0.1638402595 | H125: =H122*'DHS05'!H128/100 -> 4.284686445 | I125: =I122*'DHS05'!I128/100 -> 1.078578709 | J125: =J122*'DHS05'!J128/100 -> 0.5234179236 | K125: =K122*'DHS05'!K128/100 -> 0.6285079674 | L125: =L122*'DHS05'!L128/100 -> 0 | M125: =M122*'DHS05'!M128/100 -> 4.840753334 | N125: =N122*'DHS05'!N128/100 -> 3.195662111 | O125: =O122*'DHS05'!O128/100 -> 1.48994859 | P125: =P122*'DHS05'!P128/100 -> 2.315674642 | Q125: =Q122*'DHS05'!Q128/100 -> 0.1163339583 | R125: =R122*'DHS05'!R128/100 -> 2.861470753 | S125: =S122*'DHS05'!S128/100 -> 3.740860354 | T125: =T122*'DHS05'!T128/100 -> 0.4524147012 | U125: =U122*'DHS05'!U128/100 -> 1.832098972 | V125: =V122*'DHS05'!V128/100 -> 1.693682197 | W125: =W122*'DHS05'!W128/100 -> 2.283269828 | X125: =X122*'DHS05'!X128/100 -> 1.005964387 | Y125: =Y122*'DHS05'!Y128/100 -> 0.5581366897 | Z125: =Z122*'DHS05'!Z128/100 -> 1.494783003 | AA125: =AA122*'DHS05'!AA128/100 -> 0.257497251 | AB125: =AB122*'DHS05'!AB128/100 -> 1.726511568 | BB125: Limited | BC125: N/A | BD125: N/A | BE125: N/A | BF125: N/A | BG125: N/A | BH125: N/A | BI125: N/A | BJ125: N/A | BK125: N/A | BL125: N/A | BM125: N/A | BN125: N/A | BO125: N/A | BP125: N/A | BQ125: N/A | BR125: N/A | BS125: N/A | BT125: N/A | BU125: N/A | BV125: N/A | BW125: N/A | BX125: N/A | BY125: N/A | BZ125: N/A | CA125: N/A | CB125: N/A
B126: Unimproved | C126: =100-(C127+C125+C124) -> 19.87119086 | D126: =100-(D127+D125+D124) -> 20.50288383 | E126: 14.8821285 | F126: 4.531684127 | G126: 1.201715672 | H126: 5.272575586 | I126: 1.760731775 | J126: 1.321400094 | K126: 1.726725871 | L126: 0.1979180712 | M126: 27.60112964 | N126: 23.74013461 | O126: 29.15322133 | P126: 27.02838798 | Q126: 21.60673266 | R126: 7.232635876 | S126: 48.21492606 | T126: 19.9927527 | U126: 11.35245341 | V126: 8.379396733 | W126: 6.867078786 | X126: 19.94354956 | Y126: 2.119071652 | Z126: 4.090137769 | AA126: 10.41814604 | AB126: 0.6044500649 | BB126: Unimproved | BC126: N/A | BD126: N/A | BE126: N/A | BF126: N/A | BG126: N/A | BH126: N/A | BI126: N/A | BJ126: N/A | BK126: N/A | BL126: N/A | BM126: N/A | BN126: N/A | BO126: N/A | BP126: N/A | BQ126: N/A | BR126: N/A | BS126: N/A | BT126: N/A | BU126: N/A | BV126: N/A | BW126: N/A | BX126: N/A | BY126: N/A | BZ126: N/A | CA126: N/A | CB126: N/A
B127: Open defecation | C127: =C156 -> 0.2472928921 | D127: =D156 -> 0 | E127: 0.0744996936 | F127: 0 | G127: 0 | H127: 0 | I127: 0 | J127: 0 | K127: 0.1294072043 | L127: 0 | M127: 0.5864827773 | N127: 0 | O127: 0 | P127: 0 | Q127: 0 | R127: 0.04670714619 | S127: 0.2303262956 | T127: 0.04995004995 | U127: 0.2208480565 | V127: 0 | W127: 0 | X127: 0.1547189273 | Y127: 0 | Z127: 0 | AA127: 0 | AB127: 0 | BB127: Open defecation | BC127: N/A | BD127: N/A | BE127: N/A | BF127: N/A | BG127: N/A | BH127: N/A | BI127: N/A | BJ127: N/A | BK127: N/A | BL127: N/A | BM127: N/A | BN127: N/A | BO127: N/A | BP127: N/A | BQ127: N/A | BR127: N/A | BS127: N/A | BT127: N/A | BU127: N/A | BV127: N/A | BW127: N/A | BX127: N/A | BY127: N/A | BZ127: N/A | CA127: N/A | CB127: N/A
A128: Shared among Improved Sanitation | B128: Yes | C128: N/a | D128: N/a | E128: N/a | F128: N/a | G128: N/a | H128: N/a | I128: N/a | J128: N/a | K128: N/a | L128: N/a | M128: N/a | N128: N/a | O128: N/a | P128: N/a | Q128: N/a | R128: N/a | S128: N/a | T128: N/a | U128: N/a | V128: N/a | W128: N/a | X128: N/a | Y128: N/a | Z128: N/a | AA128: N/a | AB128: N/a | BA128: Shared among improved sanitation facilities | BB128: Yes | BC128: N/A | BD128: N/A | BE128: N/A | BF128: N/A | BG128: N/A | BH128: N/A | BI128: N/A | BJ128: N/A | BK128: N/A | BL128: N/A | BM128: N/A | BN128: N/A | BO128: N/A | BP128: N/A | BQ128: N/A | BR128: N/A | BS128: N/A | BT128: N/A | BU128: N/A | BV128: N/A | BW128: N/A | BX128: N/A | BY128: N/A | BZ128: N/A | CA128: N/A | CB128: N/A
B129: No | C129: N/A | D129: N/A | E129: N/A | F129: N/A | G129: N/A | H129: N/A | I129: N/A | J129: N/A | K129: N/A | L129: N/A | M129: N/A | N129: N/A | O129: N/A | P129: N/A | Q129: N/A | R129: N/A | S129: N/A | T129: N/A | U129: N/A | V129: N/A | W129: N/A | X129: N/A | Y129: N/A | Z129: N/A | AA129: N/A | AB129: N/A | BB129: No | BC129: N/A | BD129: N/A | BE129: N/A | BF129: N/A | BG129: N/A | BH129: N/A | BI129: N/A | BJ129: N/A | BK129: N/A | BL129: N/A | BM129: N/A | BN129: N/A | BO129: N/A | BP129: N/A | BQ129: N/A | BR129: N/A | BS129: N/A | BT129: N/A | BU129: N/A | BV129: N/A | BW129: N/A | BX129: N/A | BY129: N/A | BZ129: N/A | CA129: N/A | CB129: N/A
A130: Manually calculated ratios | B130: Improved latrines
B131: Other
B132: Other
C133: NATIONAL wealth index quintile | H133: URBAN wealth index quintile | M133: RURAL wealth index quintile | R133: SUB-REGIONS: | BA133: Raw numbers of respondents: | BB133: Use of sanitation facilities | BC133: NATIONAL wealth index quintile | BH133: URBAN wealth index quintile | BM133: RURAL wealth index quintile | BR133: SUB-REGIONS:
A134: Percentage based on weighted population | C134: Poorest | D134: Poor | E134: Middle | F134: Rich | G134: Richest | H134: Poorest | I134: Poor | J134: Middle | K134: Rich | L134: Richest | M134: Poorest | N134: Poor | O134: Middle | P134: Rich | Q134: Richest | R134: Aragatsotn | S134: Ararat | T134: Armavir | U134: Gegharkunik | V134: Kotayk | W134: Lori | X134: Shirak | Y134: Syunik | Z134: Tavush | AA134: Vayots Dzor | AB134: Yerevan | BA134: Sanitation data, raw numbers (weighted) | BC134: Poorest | BD134: Poor | BE134: Middle | BF134: Rich | BG134: Richest | BH134: Poorest | BI134: Poor | BJ134: Middle | BK134: Rich | BL134: Richest | BM134: Poorest | BN134: Poor | BO134: Middle | BP134: Rich | BQ134: Richest | BR134: Aragatsotn | BS134: Ararat | BT134: Armavir | BU134: Gegharkunik | BV134: Kotayk | BW134: Lori | BX134: Shirak | BY134: Syunik | BZ134: Tavush | CA134: Vayots Dzor | CB134: Yerevan
A135: Sanitation type | B135: Sewer connection | C135: =C153*'DHS05'!C131/100 -> 20.14030636 | D135: =D153*'DHS05'!D131/100 -> 28.97819006 | E135: =E153*'DHS05'!E131/100 -> 51.77988051 | F135: =F153*'DHS05'!F131/100 -> 90.32600575 | G135: =G153*'DHS05'!G131/100 -> 96.88702527 | H135: =H153*'DHS05'!H131/100 -> 92.00946555 | I135: =I153*'DHS05'!I131/100 -> 96.26956488 | J135: =J153*'DHS05'!J131/100 -> 93.66121464 | K135: =K153*'DHS05'!K131/100 -> 86.25355633 | L135: =L153*'DHS05'!L131/100 -> 70.68414382 | M135: =M153*'DHS05'!M131/100 -> 7.746147947 | N135: =N153*'DHS05'!N131/100 -> 11.81387197 | O135: =O153*'DHS05'!O131/100 -> 11.54033655 | P135: =P153*'DHS05'!P131/100 -> 19.44606322 | Q135: =Q153*'DHS05'!Q131/100 -> 19.45455471 | R135: =R153*'DHS05'!R131/100 -> 17.54296705 | S135: =S153*'DHS05'!S131/100 -> 25.49301783 | T135: =T153*'DHS05'!T131/100 -> 31.15865295 | U135: =U153*'DHS05'!U131/100 -> 12.11462141 | V135: =V153*'DHS05'!V131/100 -> 69.27740762 | W135: =W153*'DHS05'!W131/100 -> 49.28680861 | X135: =X153*'DHS05'!X131/100 -> 62.27960714 | Y135: =Y153*'DHS05'!Y131/100 -> 78.69499332 | Z135: =Z153*'DHS05'!Z131/100 -> 40.60336635 | AA135: =AA153*'DHS05'!AA131/100 -> 39.79826391 | AB135: =AB153*'DHS05'!AB131/100 -> 91.26937151 | BA135: Sanitation type | BB135: Sewer connection | BC135: N/A | BD135: N/A | BE135: N/A | BF135: N/A | BG135: N/A | BH135: N/A | BI135: N/A | BJ135: N/A | BK135: N/A | BL135: N/A | BM135: N/A | BN135: N/A | BO135: N/A | BP135: N/A | BQ135: N/A | BR135: N/A | BS135: N/A | BT135: N/A | BU135: N/A | BV135: N/A | BW135: N/A | BX135: N/A | BY135: N/A | BZ135: N/A | CA135: N/A | CB135: N/A
B136: Septic tank connection | C136: =C153*'DHS05'!C132/100 -> 0.3117118782 | D136: =D153*'DHS05'!D132/100 -> 0.09774199464 | E136: =E153*'DHS05'!E132/100 -> 0.3974134214 | F136: =F153*'DHS05'!F132/100 -> 0.03560784706 | G136: =G153*'DHS05'!G132/100 -> 0.5005945403 | H136: =H153*'DHS05'!H132/100 -> 1.173032424 | I136: =I153*'DHS05'!I132/100 -> 0.3002960724 | J136: =J153*'DHS05'!J132/100 -> 0 | K136: =K153*'DHS05'!K132/100 -> 0 | L136: =L153*'DHS05'!L132/100 -> 0.2228348045 | M136: =M153*'DHS05'!M132/100 -> 0 | N136: =N153*'DHS05'!N132/100 -> 0 | O136: =O153*'DHS05'!O132/100 -> 0 | P136: =P153*'DHS05'!P132/100 -> 0.8898862988 | Q136: =Q153*'DHS05'!Q132/100 -> 0.4892395364 | R136: =R153*'DHS05'!R132/100 -> 0.03664812828 | S136: =S153*'DHS05'!S132/100 -> 0.4926535711 | T136: =T153*'DHS05'!T132/100 -> 0.2516001392 | U136: =U153*'DHS05'!U132/100 -> 0.8517903289 | V136: =V153*'DHS05'!V132/100 -> 0 | W136: =W153*'DHS05'!W132/100 -> 0.4197661964 | X136: =X153*'DHS05'!X132/100 -> 0 | Y136: =Y153*'DHS05'!Y132/100 -> 0.04452089037 | Z136: =Z153*'DHS05'!Z132/100 -> 0 | AA136: =AA153*'DHS05'!AA132/100 -> 0 | AB136: =AB153*'DHS05'!AB132/100 -> 0.2480971432 | BB136: Septic tank connection | BC136: N/A | BD136: N/A | BE136: N/A | BF136: N/A | BG136: N/A | BH136: N/A | BI136: N/A | BJ136: N/A | BK136: N/A | BL136: N/A | BM136: N/A | BN136: N/A | BO136: N/A | BP136: N/A | BQ136: N/A | BR136: N/A | BS136: N/A | BT136: N/A | BU136: N/A | BV136: N/A | BW136: N/A | BX136: N/A | BY136: N/A | BZ136: N/A | CA136: N/A | CB136: N/A
B137: Improved latrines | C137: =(C154+C155)*'DHS05'!C130/100 -> 59.42949801 | D137: =(D154+D155)*'DHS05'!D130/100 -> 50.42118411 | E137: =(E154+E155)*'DHS05'!E130/100 -> 32.86607788 | F137: =(F154+F155)*'DHS05'!F130/100 -> 5.106702272 | G137: =(G154+G155)*'DHS05'!G130/100 -> 1.410664522 | H137: =(H154+H155)*'DHS05'!H130/100 -> 1.544926442 | I137: =(I154+I155)*'DHS05'!I130/100 -> 1.66940727 | J137: =(J154+J155)*'DHS05'!J130/100 -> 5.017385263 | K137: =(K154+K155)*'DHS05'!K130/100 -> 11.89031059 | L137: =(L154+L155)*'DHS05'!L130/100 -> 28.89510331 | M137: =(M154+M155)*'DHS05'!M130/100 -> 64.06623963 | N137: =(N154+N155)*'DHS05'!N130/100 -> 64.44599342 | O137: =(O154+O155)*'DHS05'!O130/100 -> 59.30644212 | P137: =(P154+P155)*'DHS05'!P130/100 -> 52.6356625 | Q137: =(Q154+Q155)*'DHS05'!Q130/100 -> 58.4494731 | R137: =(R154+R155)*'DHS05'!R130/100 -> 75.1410418 | S137: =(S154+S155)*'DHS05'!S130/100 -> 25.56907625 | T137: =(T154+T155)*'DHS05'!T130/100 -> 48.54704416 | U137: =(U154+U155)*'DHS05'!U130/100 -> 75.46028679 | V137: =(V154+V155)*'DHS05'!V130/100 -> 22.34319565 | W137: =(W154+W155)*'DHS05'!W130/100 -> 43.42634641 | X137: =(X154+X155)*'DHS05'!X130/100 -> 17.62212437 | Y137: =(Y154+Y155)*'DHS05'!Y130/100 -> 19.14141414 | Z137: =(Z154+Z155)*'DHS05'!Z130/100 -> 55.30649588 | AA137: =(AA154+AA155)*'DHS05'!AA130/100 -> 49.78359005 | AB137: =(AB154+AB155)*'DHS05'!AB130/100 -> 7.878081279 | BB137: Improved latrines | BC137: N/A | BD137: N/A | BE137: N/A | BF137: N/A | BG137: N/A | BH137: N/A | BI137: N/A | BJ137: N/A | BK137: N/A | BL137: N/A | BM137: N/A | BN137: N/A | BO137: N/A | BP137: N/A | BQ137: N/A | BR137: N/A | BS137: N/A | BT137: N/A | BU137: N/A | BV137: N/A | BW137: N/A | BX137: N/A | BY137: N/A | BZ137: N/A | CA137: N/A | CB137: N/A
B138: Unimproved facilities | C138: =100-(C135+C136+C137) -> 20.11848376 | D138: =100-(D135+D136+D137) -> 20.50288383 | E138: 14.95662819 | F138: 4.531684127 | G138: 1.201715672 | H138: 5.272575586 | I138: 1.760731775 | J138: 1.321400094 | K138: 1.856133076 | L138: 0.1979180712 | M138: 28.18761242 | N138: 23.74013461 | O138: 29.15322133 | P138: 27.02838798 | Q138: 21.60673266 | R138: 7.279343022 | S138: 48.44525235 | T138: 20.04270275 | U138: 11.57330147 | V138: 8.379396733 | W138: 6.867078786 | X138: 20.09826848 | Y138: 2.119071652 | Z138: 4.090137769 | AA138: 10.41814604 | AB138: 0.6044500649 | BB138: Unimproved facilities | BC138: N/A | BD138: N/A | BE138: N/A | BF138: N/A | BG138: N/A | BH138: N/A | BI138: N/A | BJ138: N/A | BK138: N/A | BL138: N/A | BM138: N/A | BN138: N/A | BO138: N/A | BP138: N/A | BQ138: N/A | BR138: N/A | BS138: N/A | BT138: N/A | BU138: N/A | BV138: N/A | BW138: N/A | BX138: N/A | BY138: N/A | BZ138: N/A | CA138: N/A | CB138: N/A
B139: Open defecation | C139: 0.2472928921 | D139: 1.247292892 | E139: 2.247292892 | F139: 3.247292892 | G139: 4.247292892 | H139: 5.247292892 | I139: 6.247292892 | J139: 7.247292892 | K139: 8.247292892 | L139: 9.247292892 | M139: 10.24729289 | N139: 11.24729289 | O139: 12.24729289 | P139: 13.24729289 | Q139: 14.24729289 | R139: 15.24729289 | S139: 16.24729289 | T139: 17.24729289 | U139: 18.24729289 | V139: 19.24729289 | W139: 20.24729289 | X139: 21.24729289 | Y139: 22.24729289 | Z139: 23.24729289 | AA139: 24.24729289 | AB139: 25.24729289 | BB139: Open defecation | BC139: N/A | BD139: N/A | BE139: N/A | BF139: N/A | BG139: N/A | BH139: N/A | BI139: N/A | BJ139: N/A | BK139: N/A | BL139: N/A | BM139: N/A | BN139: N/A | BO139: N/A | BP139: N/A | BQ139: N/A | BR139: N/A | BS139: N/A | BT139: N/A | BU139: N/A | BV139: N/A | BW139: N/A | BX139: N/A | BY139: N/A | BZ139: N/A | CA139: N/A | CB139: N/A
A140: Septic tank emptying practices | B140: Not emptied/treated and disposed in situ | C140: N/A | D140: N/A | E140: N/A | F140: N/A | G140: N/A | H140: N/A | I140: N/A | J140: N/A | K140: N/A | L140: N/A | M140: N/A | N140: N/A | O140: N/A | P140: N/A | Q140: N/A | R140: N/A | S140: N/A | T140: N/A | U140: N/A | V140: N/A | W140: N/A | X140: N/A | Y140: N/A | Z140: N/A | AA140: N/A | AB140: N/A | BA140: Septic tank emptying practices | BB140: Not emptied/treated and disposed in situ | BC140: N/A | BD140: N/A | BE140: N/A | BF140: N/A | BG140: N/A | BH140: N/A | BI140: N/A | BJ140: N/A | BK140: N/A | BL140: N/A | BM140: N/A | BN140: N/A | BO140: N/A | BP140: N/A | BQ140: N/A | BR140: N/A | BS140: N/A | BT140: N/A | BU140: N/A | BV140: N/A | BW140: N/A | BX140: N/A | BY140: N/A | BZ140: N/A | CA140: N/A | CB140: N/A
B141: Emptied and buried on site | C141: N/A | D141: N/A | E141: N/A | F141: N/A | G141: N/A | H141: N/A | I141: N/A | J141: N/A | K141: N/A | L141: N/A | M141: N/A | N141: N/A | O141: N/A | P141: N/A | Q141: N/A | R141: N/A | S141: N/A | T141: N/A | U141: N/A | V141: N/A | W141: N/A | X141: N/A | Y141: N/A | Z141: N/A | AA141: N/A | AB141: N/A | BB141: Emptied and buried on site | BC141: N/A | BD141: N/A | BE141: N/A | BF141: N/A | BG141: N/A | BH141: N/A | BI141: N/A | BJ141: N/A | BK141: N/A | BL141: N/A | BM141: N/A | BN141: N/A | BO141: N/A | BP141: N/A | BQ141: N/A | BR141: N/A | BS141: N/A | BT141: N/A | BU141: N/A | BV141: N/A | BW141: N/A | BX141: N/A | BY141: N/A | BZ141: N/A | CA141: N/A | CB141: N/A
B142: Emptied and discharged locally | C142: N/A | D142: N/A | E142: N/A | F142: N/A | G142: N/A | H142: N/A | I142: N/A | J142: N/A | K142: N/A | L142: N/A | M142: N/A | N142: N/A | O142: N/A | P142: N/A | Q142: N/A | R142: N/A | S142: N/A | T142: N/A | U142: N/A | V142: N/A | W142: N/A | X142: N/A | Y142: N/A | Z142: N/A | AA142: N/A | AB142: N/A | BB142: Emptied and discharged locally | BC142: N/A | BD142: N/A | BE142: N/A | BF142: N/A | BG142: N/A | BH142: N/A | BI142: N/A | BJ142: N/A | BK142: N/A | BL142: N/A | BM142: N/A | BN142: N/A | BO142: N/A | BP142: N/A | BQ142: N/A | BR142: N/A | BS142: N/A | BT142: N/A | BU142: N/A | BV142: N/A | BW142: N/A | BX142: N/A | BY142: N/A | BZ142: N/A | CA142: N/A | CB142: N/A
B143: Emptied and removed offsite | C143: N/A | D143: N/A | E143: N/A | F143: N/A | G143: N/A | H143: N/A | I143: N/A | J143: N/A | K143: N/A | L143: N/A | M143: N/A | N143: N/A | O143: N/A | P143: N/A | Q143: N/A | R143: N/A | S143: N/A | T143: N/A | U143: N/A | V143: N/A | W143: N/A | X143: N/A | Y143: N/A | Z143: N/A | AA143: N/A | AB143: N/A | BB143: Emptied and removed offsite | BC143: N/A | BD143: N/A | BE143: N/A | BF143: N/A | BG143: N/A | BH143: N/A | BI143: N/A | BJ143: N/A | BK143: N/A | BL143: N/A | BM143: N/A | BN143: N/A | BO143: N/A | BP143: N/A | BQ143: N/A | BR143: N/A | BS143: N/A | BT143: N/A | BU143: N/A | BV143: N/A | BW143: N/A | BX143: N/A | BY143: N/A | BZ143: N/A | CA143: N/A | CB143: N/A
A144: Latrine emptying practices | B144: Not emptied/treated and disposed in situ | C144: N/A | D144: N/A | E144: N/A | F144: N/A | G144: N/A | H144: N/A | I144: N/A | J144: N/A | K144: N/A | L144: N/A | M144: N/A | N144: N/A | O144: N/A | P144: N/A | Q144: N/A | R144: N/A | S144: N/A | T144: N/A | U144: N/A | V144: N/A | W144: N/A | X144: N/A | Y144: N/A | Z144: N/A | AA144: N/A | AB144: N/A | BA144: Latrine emptying practices | BB144: Not emptied/treated and disposed in situ | BC144: N/A | BD144: N/A | BE144: N/A | BF144: N/A | BG144: N/A | BH144: N/A | BI144: N/A | BJ144: N/A | BK144: N/A | BL144: N/A | BM144: N/A | BN144: N/A | BO144: N/A | BP144: N/A | BQ144: N/A | BR144: N/A | BS144: N/A | BT144: N/A | BU144: N/A | BV144: N/A | BW144: N/A | BX144: N/A | BY144: N/A | BZ144: N/A | CA144: N/A | CB144: N/A
B145: Emptied and buried on site | C145: N/A | D145: N/A | E145: N/A | F145: N/A | G145: N/A | H145: N/A | I145: N/A | J145: N/A | K145: N/A | L145: N/A | M145: N/A | N145: N/A | O145: N/A | P145: N/A | Q145: N/A | R145: N/A | S145: N/A | T145: N/A | U145: N/A | V145: N/A | W145: N/A | X145: N/A | Y145: N/A | Z145: N/A | AA145: N/A | AB145: N/A | BB145: Emptied and buried on site | BC145: N/A | BD145: N/A | BE145: N/A | BF145: N/A | BG145: N/A | BH145: N/A | BI145: N/A | BJ145: N/A | BK145: N/A | BL145: N/A | BM145: N/A | BN145: N/A | BO145: N/A | BP145: N/A | BQ145: N/A | BR145: N/A | BS145: N/A | BT145: N/A | BU145: N/A | BV145: N/A | BW145: N/A | BX145: N/A | BY145: N/A | BZ145: N/A | CA145: N/A | CB145: N/A
B146: Emptied and discharged locally | C146: N/A | D146: N/A | E146: N/A | F146: N/A | G146: N/A | H146: N/A | I146: N/A | J146: N/A | K146: N/A | L146: N/A | M146: N/A | N146: N/A | O146: N/A | P146: N/A | Q146: N/A | R146: N/A | S146: N/A | T146: N/A | U146: N/A | V146: N/A | W146: N/A | X146: N/A | Y146: N/A | Z146: N/A | AA146: N/A | AB146: N/A | BB146: Emptied and discharged locally | BC146: N/A | BD146: N/A | BE146: N/A | BF146: N/A | BG146: N/A | BH146: N/A | BI146: N/A | BJ146: N/A | BK146: N/A | BL146: N/A | BM146: N/A | BN146: N/A | BO146: N/A | BP146: N/A | BQ146: N/A | BR146: N/A | BS146: N/A | BT146: N/A | BU146: N/A | BV146: N/A | BW146: N/A | BX146: N/A | BY146: N/A | BZ146: N/A | CA146: N/A | CB146: N/A
B147: Emptied and removed offsite | C147: N/A | D147: N/A | E147: N/A | F147: N/A | G147: N/A | H147: N/A | I147: N/A | J147: N/A | K147: N/A | L147: N/A | M147: N/A | N147: N/A | O147: N/A | P147: N/A | Q147: N/A | R147: N/A | S147: N/A | T147: N/A | U147: N/A | V147: N/A | W147: N/A | X147: N/A | Y147: N/A | Z147: N/A | AA147: N/A | AB147: N/A | BB147: Emptied and removed offsite | BC147: N/A | BD147: N/A | BE147: N/A | BF147: N/A | BG147: N/A | BH147: N/A | BI147: N/A | BJ147: N/A | BK147: N/A | BL147: N/A | BM147: N/A | BN147: N/A | BO147: N/A | BP147: N/A | BQ147: N/A | BR147: N/A | BS147: N/A | BT147: N/A | BU147: N/A | BV147: N/A | BW147: N/A | BX147: N/A | BY147: N/A | BZ147: N/A | CA147: N/A | CB147: N/A
A148: Shared among improved sanitation facilities | B148: Yes | C148: N/A | D148: N/A | E148: N/A | F148: N/A | G148: N/A | H148: N/A | I148: N/A | J148: N/A | K148: N/A | L148: N/A | M148: N/A | N148: N/A | O148: N/A | P148: N/A | Q148: N/A | R148: N/A | S148: N/A | T148: N/A | U148: N/A | V148: N/A | W148: N/A | X148: N/A | Y148: N/A | Z148: N/A | AA148: N/A | AB148: N/A | BA148: Shared among improved sanitation facilities | BB148: Yes | BC148: N/A | BD148: N/A | BE148: N/A | BF148: N/A | BG148: N/A | BH148: N/A | BI148: N/A | BJ148: N/A | BK148: N/A | BL148: N/A | BM148: N/A | BN148: N/A | BO148: N/A | BP148: N/A | BQ148: N/A | BR148: N/A | BS148: N/A | BT148: N/A | BU148: N/A | BV148: N/A | BW148: N/A | BX148: N/A | BY148: N/A | BZ148: N/A | CA148: N/A | CB148: N/A
B149: No | C149: N/A | D149: N/A | E149: N/A | F149: N/A | G149: N/A | H149: N/A | I149: N/A | J149: N/A | K149: N/A | L149: N/A | M149: N/A | N149: N/A | O149: N/A | P149: N/A | Q149: N/A | R149: N/A | S149: N/A | T149: N/A | U149: N/A | V149: N/A | W149: N/A | X149: N/A | Y149: N/A | Z149: N/A | AA149: N/A | AB149: N/A | BB149: No | BC149: N/A | BD149: N/A | BE149: N/A | BF149: N/A | BG149: N/A | BH149: N/A | BI149: N/A | BJ149: N/A | BK149: N/A | BL149: N/A | BM149: N/A | BN149: N/A | BO149: N/A | BP149: N/A | BQ149: N/A | BR149: N/A | BS149: N/A | BT149: N/A | BU149: N/A | BV149: N/A | BW149: N/A | BX149: N/A | BY149: N/A | BZ149: N/A | CA149: N/A | CB149: N/A
B150: DK/missing | C150: N/A | D150: N/A | E150: N/A | F150: N/A | G150: N/A | H150: N/A | I150: N/A | J150: N/A | K150: N/A | L150: N/A | M150: N/A | N150: N/A | O150: N/A | P150: N/A | Q150: N/A | R150: N/A | S150: N/A | T150: N/A | U150: N/A | V150: N/A | W150: N/A | X150: N/A | Y150: N/A | Z150: N/A | AA150: N/A | AB150: N/A | BB150: DK/missing | BC150: N/A | BD150: N/A | BE150: N/A | BF150: N/A | BG150: N/A | BH150: N/A | BI150: N/A | BJ150: N/A | BK150: N/A | BL150: N/A | BM150: N/A | BN150: N/A | BO150: N/A | BP150: N/A | BQ150: N/A | BR150: N/A | BS150: N/A | BT150: N/A | BU150: N/A | BV150: N/A | BW150: N/A | BX150: N/A | BY150: N/A | BZ150: N/A | CA150: N/A | CB150: N/A
A151: Shared among all sanitation facilities | B151: Yes | C151: 7.312311655 | D151: 6.953845735 | E151: 5.839283655 | F151: 5.983077839 | G151: 5.519096631 | H151: 6.711004779 | I151: 4.314270356 | J151: 6.049770017 | K151: 6.5909621 | L151: 11.12500671 | M151: 8.389986469 | N151: 5.703086008 | O151: 5.171884222 | P151: 5.002394199 | Q151: 2.703435399 | R151: 3.92340028 | S151: 4.836852207 | T151: 3.546453546 | U151: 10.60070671 | V151: 1.73053152 | W151: 1.571946796 | X151: 5.827746261 | Y151: 4.090909091 | Z151: 4.986276304 | AA151: 6.066734075 | AB151: 9.726848767 | BA151: Shared among all sanitation facilities | BB151: Yes | BC151: N/A | BD151: N/A | BE151: N/A | BF151: N/A | BG151: N/A | BH151: N/A | BI151: N/A | BJ151: N/A | BK151: N/A | BL151: N/A | BM151: N/A | BN151: N/A | BO151: N/A | BP151: N/A | BQ151: N/A | BR151: N/A | BS151: N/A | BT151: N/A | BU151: N/A | BV151: N/A | BW151: N/A | BX151: N/A | BY151: N/A | BZ151: N/A | CA151: N/A | CB151: N/A
B152: No | C152: 92.68768835 | D152: 93.04615427 | E152: 94.16071634 | F152: 94.01692216 | G152: 94.48090337 | H152: 93.28899522 | I152: 95.68572964 | J152: 93.95022998 | K152: 93.4090379 | L152: 88.87499329 | M152: 91.61001353 | N152: 94.29691399 | O152: 94.82811578 | P152: 94.9976058 | Q152: 97.2965646 | R152: 96.07659972 | S152: 95.16314779 | T152: 96.45354645 | U152: 89.39929329 | V152: 98.26946848 | W152: 98.4280532 | X152: 94.17225374 | Y152: 95.90909091 | Z152: 95.0137237 | AA152: 93.93326593 | AB152: 90.27315123 | BB152: No | BC152: N/A | BD152: N/A | BE152: N/A | BF152: N/A | BG152: N/A | BH152: N/A | BI152: N/A | BJ152: N/A | BK152: N/A | BL152: N/A | BM152: N/A | BN152: N/A | BO152: N/A | BP152: N/A | BQ152: N/A | BR152: N/A | BS152: N/A | BT152: N/A | BU152: N/A | BV152: N/A | BW152: N/A | BX152: N/A | BY152: N/A | BZ152: N/A | CA152: N/A | CB152: N/A
A153: Type of toilet facility | B153: Own flush toilet | C153: 24.78411694 | D153: 32.48673087 | E153: 54.73948702 | F153: 93.13941569 | G153: 98.42546401 | H153: 98.22575549 | I153: 98.08748272 | J153: 94.65359301 | K153: 86.77552507 | L153: 70.93665879 | M153: 14.00934856 | N153: 19.87620478 | O153: 19.9007898 | P153: 25.56773093 | Q153: 24.66791837 | R153: 22.18589444 | S153: 27.83109405 | T153: 32.21778222 | U153: 23.40989399 | V153: 71.26081582 | W153: 53.20435308 | X153: 73.33677153 | Y153: 80.4040404 | Z153: 44.69350412 | AA153: 49.94944388 | AB153: 92.12191872 | BA153: Type of toilet facility | BB153: Own flush toilet | BC153: 1330.339293 | BD153: 1652.836052 | BE153: 2874.264723 | BF153: 4885.507886 | BG153: 5131.446969 | BH153: 3181.228852 | BI153: 2761.395621 | BJ153: 2863.935494 | BK153: 2623.127034 | BL153: 2148.8232 | BM153: 317.075934 | BN153: 434.883746 | BO153: 417.808885 | BP153: 577.735602 | BQ153: 548.380555 | BR153: 278.96655 | BS153: 802.97955 | BT153: 747.662715 | BU153: 517.5079 | BV153: 1316.790568 | BW153: 1076.40456 | BX153: 1854.20979 | BY153: 901.476368 | BZ153: 562.369016 | CA153: 248.790256 | CB153: 7567.23765
B154: Trad. pit toilet | C154: 74.73442431 | D154: 67.43259557 | E154: 44.88050813 | F154: 6.241936556 | G154: 1.469566921 | H154: 1.605268843 | I154: 1.912517275 | J154: 4.273916313 | K154: 13.09506773 | L154: 28.30795595 | M154: 85.25052243 | N154: 79.83331751 | O154: 80.0992102 | P154: 74.43226907 | Q154: 75.33208163 | R154: 77.76739841 | S154: 71.93857965 | T154: 67.43256743 | U154: 76.36925795 | V154: 28.73918418 | W154: 46.79564692 | X154: 26.19907169 | Y154: 19.14141414 | Z154: 55.07776761 | AA154: 50.05055612 | AB154: 7.295136576 | BB154: Trad. pit toilet | BC154: 4011.526473 | BD154: 3430.78611 | BE154: 2356.588786 | BF154: 327.412729 | BG154: 76.6164 | BH154: 51.9897 | BI154: 53.841904 | BJ154: 129.315964 | BK154: 395.849246 | BL154: 857.508565 | BM154: 1929.489363 | BN154: 1746.722403 | BO154: 1681.649926 | BP154: 1681.892378 | BQ154: 1674.671049 | BR154: 977.85117 | BS154: 2075.563692 | BT154: 1564.87545 | BU154: 1688.24747 | BV154: 531.05604 | BW154: 946.746738 | BX154: 662.40406 | BY154: 214.610266 | BZ154: 693.032032 | CA154: 249.29388 | CB154: 599.2497
B155: Latrine | C155: 0.234165858 | D155: 0.08067355644 | E155: 0.2084479653 | F155: 0.618647758 | G155: 0.1049690658 | H155: 0.1689756677 | I155: 0 | J155: 1.072490676 | K155: 0 | L155: 0.5871473588 | M155: 0.1536462355 | N155: 0.2904777094 | O155: 0 | P155: 0 | Q155: 0 | R155: 0 | S155: 0 | T155: 0.2997002997 | U155: 0 | V155: 0 | W155: 0 | X155: 0.3094378546 | Y155: 0 | Z155: 0.2287282708 | AA155: 0 | AB155: 0.5829447035 | BB155: Latrine | BC155: 12.569342 | BD155: 4.10445 | BE155: 10.9452 | BF155: 32.45037 | BG155: 5.4726 | BH155: 5.4726 | BI155: 0 | BJ155: 32.45037 | BK155: 0 | BL155: 17.78595 | BM155: 3.477501 | BN155: 6.355541 | BO155: 0 | BP155: 0 | BQ155: 0 | BR155: 0 | BS155: 0 | BT155: 6.955002 | BU155: 0 | BV155: 0 | BW155: 0 | BX155: 7.82367 | BY155: 0 | BZ155: 2.87804 | CA155: 0 | CB155: 47.88525
B156: No facility, bush, field | C156: 0.2472928921 | D156: 0 | E156: 0.0744996936 | F156: 0 | G156: 0 | H156: 0 | I156: 0 | J156: 0 | K156: 0.1294072043 | L156: 0 | M156: 0.5864827773 | N156: 0 | O156: 0 | P156: 0 | Q156: 0 | R156: 0.04670714619 | S156: 0.2303262956 | T156: 0.04995004995 | U156: 0.2208480565 | V156: 0 | W156: 0 | X156: 0.1547189273 | Y156: 0 | Z156: 0 | AA156: 0 | AB156: 0 | BB156: No facility, bush, field | BC156: 13.273963 | BD156: 0 | BE156: 3.911835 | BF156: 0 | BG156: 0 | BH156: 0 | BI156: 0 | BJ156: 0 | BK156: 3.911835 | BL156: 0 | BM156: 13.273963 | BN156: 0 | BO156: 0 | BP156: 0 | BQ156: 0 | BR156: 0.587298 | BS156: 6.645348 | BT156: 1.159167 | BU156: 4.88215 | BV156: 0 | BW156: 0 | BX156: 3.911835 | BY156: 0 | BZ156: 0 | CA156: 0 | CB156: 0
B157: OTHER | C157: 0 | D157: 0 | E157: 0.09705719835 | F157: 0 | G157: 0 | H157: 0 | I157: 0 | J157: 0 | K157: 0 | L157: 0.1682378993 | M157: 0 | N157: 0 | O157: 0 | P157: 0 | Q157: 0 | R157: 0 | S157: 0 | T157: 0 | U157: 0 | V157: 0 | W157: 0 | X157: 0 | Y157: 0.4545454545 | Z157: 0 | AA157: 0 | AB157: 0 | BB157: OTHER | BC157: 0 | BD157: 0 | BE157: 5.096286 | BF157: 0 | BG157: 0 | BH157: 0 | BI157: 0 | BJ157: 0 | BK157: 0 | BL157: 5.096286 | BM157: 0 | BN157: 0 | BO157: 0 | BP157: 0 | BQ157: 0 | BR157: 0 | BS157: 0 | BT157: 0 | BU157: 0 | BV157: 0 | BW157: 0 | BX157: 0 | BY157: 5.096286 | BZ157: 0 | CA157: 0 | CB157: 0
BB158: Total | BC158: 5367.709071 | BD158: 5087.726612 | BE158: 5250.80683 | BF158: 5245.370985 | BG158: 5213.535969 | BH158: 3238.691152 | BI158: 2815.237525 | BJ158: 3025.701828 | BK158: 3022.888115 | BL158: 3029.214001 | BM158: 2263.316761 | BN158: 2187.96169 | BO158: 2099.458811 | BP158: 2259.62798 | BQ158: 2223.051604 | BR158: 1257.405018 | BS158: 2885.18859 | BT158: 2320.652334 | BU158: 2210.63752 | BV158: 1847.846608 | BW158: 2023.151298 | BX158: 2528.349355 | BY158: 1121.18292 | BZ158: 1258.279088 | CA158: 498.084136 | CB158: 8214.3726
A208: =A1026 -> Armenia
A209: =A1034 -> 2000
A210: Access to hygiene facilities
A211: by wealth quintile and sub-national region
A212: Notes:
A213: WHO/UNICEF JMP customised wealth index excludes water,
A214: sanitation and hygiene assets.
A215: Survey used for analysis: | B215: =A1025 -> DHS00
A220: Access to handwashing | C220: NATIONAL wealth index quintile | H220: URBAN wealth index quintile | M220: RURAL wealth index quintile | R220: SUB-REGIONS: | BA220: Raw numbers of respondents: | BB220: Access to handwashing | BC220: NATIONAL wealth index quintile | BH220: URBAN wealth index quintile | BM220: RURAL wealth index quintile | BR220: SUB-REGIONS:
A221: Weighted percentage (used in graphs) | C221: Poorest | D221: Poor | E221: Middle | F221: Rich | G221: Richest | H221: Poorest | I221: Poor | J221: Middle | K221: Rich | L221: Richest | M221: Poorest | N221: Poor | O221: Middle | P221: Rich | Q221: Richest | R221: Aragatsotn | S221: Ararat | T221: Armavir | U221: Gegharkunik | V221: Kotayk | W221: Lori | X221: Shirak | Y221: Syunik | Z221: Tavush | AA221: Vayots Dzor | AB221: Yerevan | BA221: Hygiene data, raw numbers (weighted) | BC221: Poorest | BD221: Poor | BE221: Middle | BF221: Rich | BG221: Richest | BH221: Poorest | BI221: Poor | BJ221: Middle | BK221: Rich | BL221: Richest | BM221: Poorest | BN221: Poor | BO221: Middle | BP221: Rich | BQ221: Richest | BR221: Aragatsotn | BS221: Ararat | BT221: Armavir | BU221: Gegharkunik | BV221: Kotayk | BW221: Lori | BX221: Shirak | BY221: Syunik | BZ221: Tavush | CA221: Vayots Dzor | CB221: Yerevan
A222: Hygiene ladder | B222: Basic | C222: N/A | D222: N/A | E222: N/A | F222: N/A | G222: N/A | H222: N/A | I222: N/A | J222: N/A | K222: N/A | L222: N/A | M222: N/A | N222: N/A | O222: N/A | P222: N/A | Q222: N/A | R222: N/A | S222: N/A | T222: N/A | U222: N/A | V222: N/A | W222: N/A | X222: N/A | Y222: N/A | Z222: N/A | AA222: N/A | AB222: N/A | BA222: Hygiene ladder | BB222: Basic | BC222: N/A | BD222: N/A | BE222: N/A | BF222: N/A | BG222: N/A | BH222: N/A | BI222: N/A | BJ222: N/A | BK222: N/A | BL222: N/A | BM222: N/A | BN222: N/A | BO222: N/A | BP222: N/A | BQ222: N/A | BR222: N/A | BS222: N/A | BT222: N/A | BU222: N/A | BV222: N/A | BW222: N/A | BX222: N/A | BY222: N/A | BZ222: N/A | CA222: N/A | CB222: N/A
B223: Limited | C223: N/A | D223: N/A | E223: N/A | F223: N/A | G223: N/A | H223: N/A | I223: N/A | J223: N/A | K223: N/A | L223: N/A | M223: N/A | N223: N/A | O223: N/A | P223: N/A | Q223: N/A | R223: N/A | S223: N/A | T223: N/A | U223: N/A | V223: N/A | W223: N/A | X223: N/A | Y223: N/A | Z223: N/A | AA223: N/A | AB223: N/A | BB223: Limited | BC223: N/A | BD223: N/A | BE223: N/A | BF223: N/A | BG223: N/A | BH223: N/A | BI223: N/A | BJ223: N/A | BK223: N/A | BL223: N/A | BM223: N/A | BN223: N/A | BO223: N/A | BP223: N/A | BQ223: N/A | BR223: N/A | BS223: N/A | BT223: N/A | BU223: N/A | BV223: N/A | BW223: N/A | BX223: N/A | BY223: N/A | BZ223: N/A | CA223: N/A | CB223: N/A
B224: No facility | C224: N/A | D224: N/A | E224: N/A | F224: N/A | G224: N/A | H224: N/A | I224: N/A | J224: N/A | K224: N/A | L224: N/A | M224: N/A | N224: N/A | O224: N/A | P224: N/A | Q224: N/A | R224: N/A | S224: N/A | T224: N/A | U224: N/A | V224: N/A | W224: N/A | X224: N/A | Y224: N/A | Z224: N/A | AA224: N/A | AB224: N/A | BB224: No facility | BC224: N/A | BD224: N/A | BE224: N/A | BF224: N/A | BG224: N/A | BH224: N/A | BI224: N/A | BJ224: N/A | BK224: N/A | BL224: N/A | BM224: N/A | BN224: N/A | BO224: N/A | BP224: N/A | BQ224: N/A | BR224: N/A | BS224: N/A | BT224: N/A | BU224: N/A | BV224: N/A | BW224: N/A | BX224: N/A | BY224: N/A | BZ224: N/A | CA224: N/A | CB224: N/A
BA225: Observed handwashing place | BB225: Fixed | BC225: N/A | BD225: N/A | BE225: N/A | BF225: N/A | BG225: N/A | BH225: N/A | BI225: N/A | BJ225: N/A | BK225: N/A | BL225: N/A | BM225: N/A | BN225: N/A | BO225: N/A | BP225: N/A | BQ225: N/A | BR225: N/A | BS225: N/A | BT225: N/A | BU225: N/A | BV225: N/A | BW225: N/A | BX225: N/A | BY225: N/A | BZ225: N/A | CA225: N/A | CB225: N/A
BB226: Mobile | BC226: N/A | BD226: N/A | BE226: N/A | BF226: N/A | BG226: N/A | BH226: N/A | BI226: N/A | BJ226: N/A | BK226: N/A | BL226: N/A | BM226: N/A | BN226: N/A | BO226: N/A | BP226: N/A | BQ226: N/A | BR226: N/A | BS226: N/A | BT226: N/A | BU226: N/A | BV226: N/A | BW226: N/A | BX226: N/A | BY226: N/A | BZ226: N/A | CA226: N/A | CB226: N/A
BA227: Water / Soap | BB227: Water and soap | BC227: N/A | BD227: N/A | BE227: N/A | BF227: N/A | BG227: N/A | BH227: N/A | BI227: N/A | BJ227: N/A | BK227: N/A | BL227: N/A | BM227: N/A | BN227: N/A | BO227: N/A | BP227: N/A | BQ227: N/A | BR227: N/A | BS227: N/A | BT227: N/A | BU227: N/A | BV227: N/A | BW227: N/A | BX227: N/A | BY227: N/A | BZ227: N/A | CA227: N/A | CB227: N/A
BB228: Water only | BC228: N/A | BD228: N/A | BE228: N/A | BF228: N/A | BG228: N/A | BH228: N/A | BI228: N/A | BJ228: N/A | BK228: N/A | BL228: N/A | BM228: N/A | BN228: N/A | BO228: N/A | BP228: N/A | BQ228: N/A | BR228: N/A | BS228: N/A | BT228: N/A | BU228: N/A | BV228: N/A | BW228: N/A | BX228: N/A | BY228: N/A | BZ228: N/A | CA228: N/A | CB228: N/A
BB229: Soap only | BC229: N/A | BD229: N/A | BE229: N/A | BF229: N/A | BG229: N/A | BH229: N/A | BI229: N/A | BJ229: N/A | BK229: N/A | BL229: N/A | BM229: N/A | BN229: N/A | BO229: N/A | BP229: N/A | BQ229: N/A | BR229: N/A | BS229: N/A | BT229: N/A | BU229: N/A | BV229: N/A | BW229: N/A | BX229: N/A | BY229: N/A | BZ229: N/A | CA229: N/A | CB229: N/A
BB230: Neither | BC230: N/A | BD230: N/A | BE230: N/A | BF230: N/A | BG230: N/A | BH230: N/A | BI230: N/A | BJ230: N/A | BK230: N/A | BL230: N/A | BM230: N/A | BN230: N/A | BO230: N/A | BP230: N/A | BQ230: N/A | BR230: N/A | BS230: N/A | BT230: N/A | BU230: N/A | BV230: N/A | BW230: N/A | BX230: N/A | BY230: N/A | BZ230: N/A | CA230: N/A | CB230: N/A
BA259: Raw numbers of respondents: | BB259: Menstrual health and hygiene | BC259: NATIONAL wealth index quintile | BH259: URBAN wealth index quintile | BM259: RURAL wealth index quintile | BR259: SUB-REGIONS:
BA260: MHH data, raw numbers (weighted) | BC260: Poorest | BD260: Poor | BE260: Middle | BF260: Rich | BG260: Richest | BH260: Poorest | BI260: Poor | BJ260: Middle | BK260: Rich | BL260: Richest | BM260: Poorest | BN260: Poor | BO260: Middle | BP260: Rich | BQ260: Richest | BR260: Aragatsotn | BS260: Ararat | BT260: Armavir | BU260: Gegharkunik | BV260: Kotayk | BW260: Lori | BX260: Shirak | BY260: Syunik | BZ260: Tavush | CA260: Vayots Dzor | CB260: Yerevan
BA261: Private place to wash and change | BB261: Yes | BC261: N/A | BD261: N/A | BE261: N/A | BF261: N/A | BG261: N/A | BH261: N/A | BI261: N/A | BJ261: N/A | BK261: N/A | BL261: N/A | BM261: N/A | BN261: N/A | BO261: N/A | BP261: N/A | BQ261: N/A | BR261: N/A | BS261: N/A | BT261: N/A | BU261: N/A | BV261: N/A | BW261: N/A | BX261: N/A | BY261: N/A | BZ261: N/A | CA261: N/A | CB261: N/A
BB262: No | BC262: N/A | BD262: N/A | BE262: N/A | BF262: N/A | BG262: N/A | BH262: N/A | BI262: N/A | BJ262: N/A | BK262: N/A | BL262: N/A | BM262: N/A | BN262: N/A | BO262: N/A | BP262: N/A | BQ262: N/A | BR262: N/A | BS262: N/A | BT262: N/A | BU262: N/A | BV262: N/A | BW262: N/A | BX262: N/A | BY262: N/A | BZ262: N/A | CA262: N/A | CB262: N/A
BB263: DK/not sure/missing | BC263: N/A | BD263: N/A | BE263: N/A | BF263: N/A | BG263: N/A | BH263: N/A | BI263: N/A | BJ263: N/A | BK263: N/A | BL263: N/A | BM263: N/A | BN263: N/A | BO263: N/A | BP263: N/A | BQ263: N/A | BR263: N/A | BS263: N/A | BT263: N/A | BU263: N/A | BV263: N/A | BW263: N/A | BX263: N/A | BY263: N/A | BZ263: N/A | CA263: N/A | CB263: N/A
BA264: Use of menstrual materials | BB264: Materials reusable | BC264: N/A | BD264: N/A | BE264: N/A | BF264: N/A | BG264: N/A | BH264: N/A | BI264: N/A | BJ264: N/A | BK264: N/A | BL264: N/A | BM264: N/A | BN264: N/A | BO264: N/A | BP264: N/A | BQ264: N/A | BR264: N/A | BS264: N/A | BT264: N/A | BU264: N/A | BV264: N/A | BW264: N/A | BX264: N/A | BY264: N/A | BZ264: N/A | CA264: N/A | CB264: N/A
BB265: Materials not reusable | BC265: N/A | BD265: N/A | BE265: N/A | BF265: N/A | BG265: N/A | BH265: N/A | BI265: N/A | BJ265: N/A | BK265: N/A | BL265: N/A | BM265: N/A | BN265: N/A | BO265: N/A | BP265: N/A | BQ265: N/A | BR265: N/A | BS265: N/A | BT265: N/A | BU265: N/A | BV265: N/A | BW265: N/A | BX265: N/A | BY265: N/A | BZ265: N/A | CA265: N/A | CB265: N/A
BB266: No materials used | BC266: N/A | BD266: N/A | BE266: N/A | BF266: N/A | BG266: N/A | BH266: N/A | BI266: N/A | BJ266: N/A | BK266: N/A | BL266: N/A | BM266: N/A | BN266: N/A | BO266: N/A | BP266: N/A | BQ266: N/A | BR266: N/A | BS266: N/A | BT266: N/A | BU266: N/A | BV266: N/A | BW266: N/A | BX266: N/A | BY266: N/A | BZ266: N/A | CA266: N/A | CB266: N/A
BB267: DK/not sure/missing | BC267: N/A | BD267: N/A | BE267: N/A | BF267: N/A | BG267: N/A | BH267: N/A | BI267: N/A | BJ267: N/A | BK267: N/A | BL267: N/A | BM267: N/A | BN267: N/A | BO267: N/A | BP267: N/A | BQ267: N/A | BR267: N/A | BS267: N/A | BT267: N/A | BU267: N/A | BV267: N/A | BW267: N/A | BX267: N/A | BY267: N/A | BZ267: N/A | CA267: N/A | CB267: N/A
BA268: Use of menstrual materials with private place to wash and change | BB268: Materials reusable | BC268: N/A | BD268: N/A | BE268: N/A | BF268: N/A | BG268: N/A | BH268: N/A | BI268: N/A | BJ268: N/A | BK268: N/A | BL268: N/A | BM268: N/A | BN268: N/A | BO268: N/A | BP268: N/A | BQ268: N/A | BR268: N/A | BS268: N/A | BT268: N/A | BU268: N/A | BV268: N/A | BW268: N/A | BX268: N/A | BY268: N/A | BZ268: N/A | CA268: N/A | CB268: N/A
BB269: Materials not reusable | BC269: N/A | BD269: N/A | BE269: N/A | BF269: N/A | BG269: N/A | BH269: N/A | BI269: N/A | BJ269: N/A | BK269: N/A | BL269: N/A | BM269: N/A | BN269: N/A | BO269: N/A | BP269: N/A | BQ269: N/A | BR269: N/A | BS269: N/A | BT269: N/A | BU269: N/A | BV269: N/A | BW269: N/A | BX269: N/A | BY269: N/A | BZ269: N/A | CA269: N/A | CB269: N/A
BB270: No materials used | BC270: N/A | BD270: N/A | BE270: N/A | BF270: N/A | BG270: N/A | BH270: N/A | BI270: N/A | BJ270: N/A | BK270: N/A | BL270: N/A | BM270: N/A | BN270: N/A | BO270: N/A | BP270: N/A | BQ270: N/A | BR270: N/A | BS270: N/A | BT270: N/A | BU270: N/A | BV270: N/A | BW270: N/A | BX270: N/A | BY270: N/A | BZ270: N/A | CA270: N/A | CB270: N/A
BA271: Awareness of menstruation before menarche | BB271: Yes | BC271: N/A | BD271: N/A | BE271: N/A | BF271: N/A | BG271: N/A | BH271: N/A | BI271: N/A | BJ271: N/A | BK271: N/A | BL271: N/A | BM271: N/A | BN271: N/A | BO271: N/A | BP271: N/A | BQ271: N/A | BR271: N/A | BS271: N/A | BT271: N/A | BU271: N/A | BV271: N/A | BW271: N/A | BX271: N/A | BY271: N/A | BZ271: N/A | CA271: N/A | CB271: N/A
BB272: No | BC272: N/A | BD272: N/A | BE272: N/A | BF272: N/A | BG272: N/A | BH272: N/A | BI272: N/A | BJ272: N/A | BK272: N/A | BL272: N/A | BM272: N/A | BN272: N/A | BO272: N/A | BP272: N/A | BQ272: N/A | BR272: N/A | BS272: N/A | BT272: N/A | BU272: N/A | BV272: N/A | BW272: N/A | BX272: N/A | BY272: N/A | BZ272: N/A | CA272: N/A | CB272: N/A
BB273: DK/not sure/missing | BC273: N/A | BD273: N/A | BE273: N/A | BF273: N/A | BG273: N/A | BH273: N/A | BI273: N/A | BJ273: N/A | BK273: N/A | BL273: N/A | BM273: N/A | BN273: N/A | BO273: N/A | BP273: N/A | BQ273: N/A | BR273: N/A | BS273: N/A | BT273: N/A | BU273: N/A | BV273: N/A | BW273: N/A | BX273: N/A | BY273: N/A | BZ273: N/A | CA273: N/A | CB273: N/A
BA274: Participation in (all) activities during menstruation | BB274: Yes | BC274: N/A | BD274: N/A | BE274: N/A | BF274: N/A | BG274: N/A | BH274: N/A | BI274: N/A | BJ274: N/A | BK274: N/A | BL274: N/A | BM274: N/A | BN274: N/A | BO274: N/A | BP274: N/A | BQ274: N/A | BR274: N/A | BS274: N/A | BT274: N/A | BU274: N/A | BV274: N/A | BW274: N/A | BX274: N/A | BY274: N/A | BZ274: N/A | CA274: N/A | CB274: N/A
BB275: No | BC275: N/A | BD275: N/A | BE275: N/A | BF275: N/A | BG275: N/A | BH275: N/A | BI275: N/A | BJ275: N/A | BK275: N/A | BL275: N/A | BM275: N/A | BN275: N/A | BO275: N/A | BP275: N/A | BQ275: N/A | BR275: N/A | BS275: N/A | BT275: N/A | BU275: N/A | BV275: N/A | BW275: N/A | BX275: N/A | BY275: N/A | BZ275: N/A | CA275: N/A | CB275: N/A
BB276: DK/not sure/missing/no such activity | BC276: N/A | BD276: N/A | BE276: N/A | BF276: N/A | BG276: N/A | BH276: N/A | BI276: N/A | BJ276: N/A | BK276: N/A | BL276: N/A | BM276: N/A | BN276: N/A | BO276: N/A | BP276: N/A | BQ276: N/A | BR276: N/A | BS276: N/A | BT276: N/A | BU276: N/A | BV276: N/A | BW276: N/A | BX276: N/A | BY276: N/A | BZ276: N/A | CA276: N/A | CB276: N/A
BA277: Participation in specific activities during menstruation | BB277: Did not go to school (amongst those usually attending school) | BC277: N/A | BD277: N/A | BE277: N/A | BF277: N/A | BG277: N/A | BH277: N/A | BI277: N/A | BJ277: N/A | BK277: N/A | BL277: N/A | BM277: N/A | BN277: N/A | BO277: N/A | BP277: N/A | BQ277: N/A | BR277: N/A | BS277: N/A | BT277: N/A | BU277: N/A | BV277: N/A | BW277: N/A | BX277: N/A | BY277: N/A | BZ277: N/A | CA277: N/A | CB277: N/A
BB278: Did not go to work (amongst those who usually work) | BC278: N/A | BD278: N/A | BE278: N/A | BF278: N/A | BG278: N/A | BH278: N/A | BI278: N/A | BJ278: N/A | BK278: N/A | BL278: N/A | BM278: N/A | BN278: N/A | BO278: N/A | BP278: N/A | BQ278: N/A | BR278: N/A | BS278: N/A | BT278: N/A | BU278: N/A | BV278: N/A | BW278: N/A | BX278: N/A | BY278: N/A | BZ278: N/A | CA278: N/A | CB278: N/A
BB279: Did not participate in social activities | BC279: N/A | BD279: N/A | BE279: N/A | BF279: N/A | BG279: N/A | BH279: N/A | BI279: N/A | BJ279: N/A | BK279: N/A | BL279: N/A | BM279: N/A | BN279: N/A | BO279: N/A | BP279: N/A | BQ279: N/A | BR279: N/A | BS279: N/A | BT279: N/A | BU279: N/A | BV279: N/A | BW279: N/A | BX279: N/A | BY279: N/A | BZ279: N/A | CA279: N/A | CB279: N/A
BB280: Did not cook food | BC280: N/A | BD280: N/A | BE280: N/A | BF280: N/A | BG280: N/A | BH280: N/A | BI280: N/A | BJ280: N/A | BK280: N/A | BL280: N/A | BM280: N/A | BN280: N/A | BO280: N/A | BP280: N/A | BQ280: N/A | BR280: N/A | BS280: N/A | BT280: N/A | BU280: N/A | BV280: N/A | BW280: N/A | BX280: N/A | BY280: N/A | BZ280: N/A | CA280: N/A | CB280: N/A
BB281: Did not eat with others | BC281: N/A | BD281: N/A | BE281: N/A | BF281: N/A | BG281: N/A | BH281: N/A | BI281: N/A | BJ281: N/A | BK281: N/A | BL281: N/A | BM281: N/A | BN281: N/A | BO281: N/A | BP281: N/A | BQ281: N/A | BR281: N/A | BS281: N/A | BT281: N/A | BU281: N/A | BV281: N/A | BW281: N/A | BX281: N/A | BY281: N/A | BZ281: N/A | CA281: N/A | CB281: N/A
BB282: Did not bathe in regular place | BC282: N/A | BD282: N/A | BE282: N/A | BF282: N/A | BG282: N/A | BH282: N/A | BI282: N/A | BJ282: N/A | BK282: N/A | BL282: N/A | BM282: N/A | BN282: N/A | BO282: N/A | BP282: N/A | BQ282: N/A | BR282: N/A | BS282: N/A | BT282: N/A | BU282: N/A | BV282: N/A | BW282: N/A | BX282: N/A | BY282: N/A | BZ282: N/A | CA282: N/A | CB282: N/A
BB283: Did not participate in other activities | BC283: N/A | BD283: N/A | BE283: N/A | BF283: N/A | BG283: N/A | BH283: N/A | BI283: N/A | BJ283: N/A | BK283: N/A | BL283: N/A | BM283: N/A | BN283: N/A | BO283: N/A | BP283: N/A | BQ283: N/A | BR283: N/A | BS283: N/A | BT283: N/A | BU283: N/A | BV283: N/A | BW283: N/A | BX283: N/A | BY283: N/A | BZ283: N/A | CA283: N/A | CB283: N/A
BB284: DK/not sure/missing/no such activity | BC284: N/A | BD284: N/A | BE284: N/A | BF284: N/A | BG284: N/A | BH284: N/A | BI284: N/A | BJ284: N/A | BK284: N/A | BL284: N/A | BM284: N/A | BN284: N/A | BO284: N/A | BP284: N/A | BQ284: N/A | BR284: N/A | BS284: N/A | BT284: N/A | BU284: N/A | BV284: N/A | BW284: N/A | BX284: N/A | BY284: N/A | BZ284: N/A | CA284: N/A | CB284: N/A
BA339: Raw numbers of respondents: | BB339: Basic water, sanitation and hygiene | BC339: NATIONAL wealth index quintile | BH339: URBAN wealth index quintile | BM339: RURAL wealth index quintile | BR339: SUB-REGIONS:
BA340: WatSan data, raw numbers (weighted) | BC340: Poorest | BD340: Poor | BE340: Middle | BF340: Rich | BG340: Richest | BH340: Poorest | BI340: Poor | BJ340: Middle | BK340: Rich | BL340: Richest | BM340: Poorest | BN340: Poor | BO340: Middle | BP340: Rich | BQ340: Richest | BR340: Aragatsotn | BS340: Ararat | BT340: Armavir | BU340: Gegharkunik | BV340: Kotayk | BW340: Lori | BX340: Shirak | BY340: Syunik | BZ340: Tavush | CA340: Vayots Dzor | CB340: Yerevan
BA341: Use of Basic Water Sanitation and Hygiene | BB341: Yes | BC341: N/A | BD341: N/A | BE341: N/A | BF341: N/A | BG341: N/A | BH341: N/A | BI341: N/A | BJ341: N/A | BK341: N/A | BL341: N/A | BM341: N/A | BN341: N/A | BO341: N/A | BP341: N/A | BQ341: N/A | BR341: N/A | BS341: N/A | BT341: N/A | BU341: N/A | BV341: N/A | BW341: N/A | BX341: N/A | BY341: N/A | BZ341: N/A | CA341: N/A | CB341: N/A
BB342: No | BC342: N/A | BD342: N/A | BE342: N/A | BF342: N/A | BG342: N/A | BH342: N/A | BI342: N/A | BJ342: N/A | BK342: N/A | BL342: N/A | BM342: N/A | BN342: N/A | BO342: N/A | BP342: N/A | BQ342: N/A | BR342: N/A | BS342: N/A | BT342: N/A | BU342: N/A | BV342: N/A | BW342: N/A | BX342: N/A | BY342: N/A | BZ342: N/A | CA342: N/A | CB342: N/A
BA343: Use of Basic Water and Sanitation | BB343: Yes | BC343: N/A | BD343: N/A | BE343: N/A | BF343: N/A | BG343: N/A | BH343: N/A | BI343: N/A | BJ343: N/A | BK343: N/A | BL343: N/A | BM343: N/A | BN343: N/A | BO343: N/A | BP343: N/A | BQ343: N/A | BR343: N/A | BS343: N/A | BT343: N/A | BU343: N/A | BV343: N/A | BW343: N/A | BX343: N/A | BY343: N/A | BZ343: N/A | CA343: N/A | CB343: N/A
BB344: No | BC344: N/A | BD344: N/A | BE344: N/A | BF344: N/A | BG344: N/A | BH344: N/A | BI344: N/A | BJ344: N/A | BK344: N/A | BL344: N/A | BM344: N/A | BN344: N/A | BO344: N/A | BP344: N/A | BQ344: N/A | BR344: N/A | BS344: N/A | BT344: N/A | BU344: N/A | BV344: N/A | BW344: N/A | BX344: N/A | BY344: N/A | BZ344: N/A | CA344: N/A | CB344: N/A
BA345: Use of Basic Water and Hygiene | BB345: Yes | BC345: N/A | BD345: N/A | BE345: N/A | BF345: N/A | BG345: N/A | BH345: N/A | BI345: N/A | BJ345: N/A | BK345: N/A | BL345: N/A | BM345: N/A | BN345: N/A | BO345: N/A | BP345: N/A | BQ345: N/A | BR345: N/A | BS345: N/A | BT345: N/A | BU345: N/A | BV345: N/A | BW345: N/A | BX345: N/A | BY345: N/A | BZ345: N/A | CA345: N/A | CB345: N/A
BB346: No | BC346: N/A | BD346: N/A | BE346: N/A | BF346: N/A | BG346: N/A | BH346: N/A | BI346: N/A | BJ346: N/A | BK346: N/A | BL346: N/A | BM346: N/A | BN346: N/A | BO346: N/A | BP346: N/A | BQ346: N/A | BR346: N/A | BS346: N/A | BT346: N/A | BU346: N/A | BV346: N/A | BW346: N/A | BX346: N/A | BY346: N/A | BZ346: N/A | CA346: N/A | CB346: N/A
BA347: Use of Basic Sanitation and Hygiene | BB347: Yes | BC347: N/A | BD347: N/A | BE347: N/A | BF347: N/A | BG347: N/A | BH347: N/A | BI347: N/A | BJ347: N/A | BK347: N/A | BL347: N/A | BM347: N/A | BN347: N/A | BO347: N/A | BP347: N/A | BQ347: N/A | BR347: N/A | BS347: N/A | BT347: N/A | BU347: N/A | BV347: N/A | BW347: N/A | BX347: N/A | BY347: N/A | BZ347: N/A | CA347: N/A | CB347: N/A
BB348: No | BC348: N/A | BD348: N/A | BE348: N/A | BF348: N/A | BG348: N/A | BH348: N/A | BI348: N/A | BJ348: N/A | BK348: N/A | BL348: N/A | BM348: N/A | BN348: N/A | BO348: N/A | BP348: N/A | BQ348: N/A | BR348: N/A | BS348: N/A | BT348: N/A | BU348: N/A | BV348: N/A | BW348: N/A | BX348: N/A | BY348: N/A | BZ348: N/A | CA348: N/A | CB348: N/A
BA349: Use of Basic Water | BB349: Yes | BC349: N/A | BD349: N/A | BE349: N/A | BF349: N/A | BG349: N/A | BH349: N/A | BI349: N/A | BJ349: N/A | BK349: N/A | BL349: N/A | BM349: N/A | BN349: N/A | BO349: N/A | BP349: N/A | BQ349: N/A | BR349: N/A | BS349: N/A | BT349: N/A | BU349: N/A | BV349: N/A | BW349: N/A | BX349: N/A | BY349: N/A | BZ349: N/A | CA349: N/A | CB349: N/A
BB350: No | BC350: N/A | BD350: N/A | BE350: N/A | BF350: N/A | BG350: N/A | BH350: N/A | BI350: N/A | BJ350: N/A | BK350: N/A | BL350: N/A | BM350: N/A | BN350: N/A | BO350: N/A | BP350: N/A | BQ350: N/A | BR350: N/A | BS350: N/A | BT350: N/A | BU350: N/A | BV350: N/A | BW350: N/A | BX350: N/A | BY350: N/A | BZ350: N/A | CA350: N/A | CB350: N/A
BA351: Use of Basic Sanitation | BB351: Yes | BC351: N/A | BD351: N/A | BE351: N/A | BF351: N/A | BG351: N/A | BH351: N/A | BI351: N/A | BJ351: N/A | BK351: N/A | BL351: N/A | BM351: N/A | BN351: N/A | BO351: N/A | BP351: N/A | BQ351: N/A | BR351: N/A | BS351: N/A | BT351: N/A | BU351: N/A | BV351: N/A | BW351: N/A | BX351: N/A | BY351: N/A | BZ351: N/A | CA351: N/A | CB351: N/A
BB352: No | BC352: N/A | BD352: N/A | BE352: N/A | BF352: N/A | BG352: N/A | BH352: N/A | BI352: N/A | BJ352: N/A | BK352: N/A | BL352: N/A | BM352: N/A | BN352: N/A | BO352: N/A | BP352: N/A | BQ352: N/A | BR352: N/A | BS352: N/A | BT352: N/A | BU352: N/A | BV352: N/A | BW352: N/A | BX352: N/A | BY352: N/A | BZ352: N/A | CA352: N/A | CB352: N/A
BA353: Access to Basic Hygiene | BB353: Yes | BC353: N/A | BD353: N/A | BE353: N/A | BF353: N/A | BG353: N/A | BH353: N/A | BI353: N/A | BJ353: N/A | BK353: N/A | BL353: N/A | BM353: N/A | BN353: N/A | BO353: N/A | BP353: N/A | BQ353: N/A | BR353: N/A | BS353: N/A | BT353: N/A | BU353: N/A | BV353: N/A | BW353: N/A | BX353: N/A | BY353: N/A | BZ353: N/A | CA353: N/A | CB353: N/A
BB354: No | BC354: N/A | BD354: N/A | BE354: N/A | BF354: N/A | BG354: N/A | BH354: N/A | BI354: N/A | BJ354: N/A | BK354: N/A | BL354: N/A | BM354: N/A | BN354: N/A | BO354: N/A | BP354: N/A | BQ354: N/A | BR354: N/A | BS354: N/A | BT354: N/A | BU354: N/A | BV354: N/A | BW354: N/A | BX354: N/A | BY354: N/A | BZ354: N/A | CA354: N/A | CB354: N/A
C399: INITIAL (national) Wealth Index | H399: URBAN Wealth Index | M399: RURAL Wealth Index
C400: Component Matrix | H400: Component Matrix | M400: Component Matrix
E401: Component | J401: Component | O401: Component
B402: Note: The INITIAL (national) Wealth Index is based on the first component of the Principal Component Analysis (PCA) which has been obtained at national level. The final national-level (NATIONAL) Wealth Index is based on the URBAN and RURAL specific wealth indexes. Regression procedures are used to establish the relationships between the two sets of scores (urban and rural) and the initial (national) wealth factors. This allows best use of the available information for each area and a better precision of the FINAL (NATIONAL) Wealth Index. For dependency reasons, all WASH variables (contained in the generic MICS and DHS scripts) have been excluded from the sets of asset variables used in the PCAs. The PCA can extracts as many components as there are asset variables in the input. Only the first of the components is used to represent the Wealth Index. The scores represent the weights of the asset variables on the Wealth Index (correlations between the variables and the component). The communalities are the proportion of each variable's variance that can be explained by the component. Proportion of explained variance is the part of the model's total variance that is explained by the component. For more information on the procedure used: The DHS Wealth Index, DHS Comparative Reports No. 6, Shea Oscar Rutstein, Kiersten Johnson, ORC Macro International Inc., 2004. The DHS Wealth Index: Approaches for Rural and Urban Areas, Shea O. Rutstein, ORC Macro International Inc., 2008. MICS Methodological Paper No. 4, Review of options for reporting water, sanitation and hygiene coverage by wealth quintile, UNICEF, 2016. | E402: 1 | J402: 1 | O402: 1
C403: if has parquet or polished wood floors | E403: 0.7829827743 | H403: if has parquet or polished wood floors | J403: -0.8098468679 | M403: Has refrigerator | O403: 0.6045844887
C404: if has wood, plank principal floor in dwelling | E404: -0.6512418997 | H404: if has wood, plank principal floor in dwelling | J404: 0.7686409863 | M404: Has television | O404: 0.538956425
C405: Dacha | E405: -0.5951160946 | H405: Animals | J405: 0.4391027287 | M405: Has car/truck | O405: 0.4587816715
C406: Has telephone | E406: 0.5494858567 | H406: Has telephone | J406: -0.4291270272 | M406: Has telephone | O406: 0.4489872488
C407: if uses dung, manure as cooking fuel | E407: -0.4240155579 | H407: if uses liquid gas as cooking fuel | J407: -0.3963356064 | M407: if has wood, plank principal floor in dwelling | O407: 0.4019429265
C408: Has refrigerator | E408: 0.4219388912 | H408: Dacha | J408: 0.3950282503 | M408: if uses gas as cooking fuel | O408: 0.3778320746
C409: Has radio | E409: 0.417249059 | H409: if uses gas as cooking fuel | J409: 0.3842817037 | M409: if has cement principal floor | O409: -0.3462218522
C410: if uses liquid gas as cooking fuel | E410: 0.4017736113 | H410: Has refrigerator | J410: -0.3630941574 | M410: Has bicycle | O410: 0.3384954762
C411: if uses wood as cooking fuel | E411: -0.3906864915 | H411: Has radio | J411: -0.3156864856 | M411: Has electricity | O411: 0.3272542739
C412: if uses electricity as cooking fuel | E412: 0.3844009046 | H412: if uses dung, manure as cooking fuel | J412: 0.3024902259 | M412: Animals | O412: 0.3050096739
C413: Has television | E413: 0.3244065592 | H413: Has television | J413: -0.2424261192 | M413: if uses dung, manure as cooking fuel | O413: -0.286429164
C414: if has cement principal floor | E414: -0.1965470955 | H414: if uses wood as cooking fuel | J414: 0.219830426 | M414: Has radio | O414: 0.2839201425
C415: Has electricity | E415: 0.1682299071 | H415: Has electricity | J415: -0.1654168549 | M415: Dacha | O415: 0.2650630796
C416: if has carpet for principal floor | E416: 0.1218620038 | H416: if uses electricity as cooking fuel | J416: -0.1539765835 | M416: if uses liquid gas as cooking fuel | O416: 0.2499022029
C417: if uses gas as cooking fuel | E417: -0.09857768416 | H417: if has cement principal floor | J417: 0.1296029538 | M417: if has linoleum as flooring material | O417: -0.1840136168
C418: if has dirt, sand, dung as principal floor in dwelling | E418: -0.07894958999 | H418: if uses other cooking fuel | J418: 0.1018667424 | M418: if has dirt, sand, dung as principal floor in dwelling | O418: -0.1781230706
C419: Has car/truck | E419: 0.05733342238 | H419: if has linoleum as flooring material | J419: 0.09946497037 | M419: if uses wood as cooking fuel | O419: -0.1698310801
... 123 more rows

Sheet DHS05
A2: =A1026 -> Armenia
A3: =A1034 -> 2005
A4: Use of drinking water sources
A5: by wealth quintile and sub-national region
A6: Notes:
A7: WHO/UNICEF JMP customised wealth index excludes water,
A8: sanitation and hygiene assets.
A9: Survey used for analysis: | B9: =A1025 -> DHS05
A10: =B1028 -> 
A11: =B1027 -> 
A14: Use of drinking water sources | C14: NATIONAL wealth index quintile | H14: URBAN wealth index quintile | M14: RURAL wealth index quintile | R14: SUB-REGIONS: | BA14: Raw numbers of respondents: | BB14: Use of drinking water sources | BC14: NATIONAL wealth index quintile | BH14: URBAN wealth index quintile | BM14: RURAL wealth index quintile | BR14: SUB-REGIONS:
A15: Weighted percentage (used in graphs) | C15: Poorest | D15: Poor | E15: Middle | F15: Rich | G15: Richest | H15: Poorest | I15: Poor | J15: Middle | K15: Rich | L15: Richest | M15: Poorest | N15: Poor | O15: Middle | P15: Rich | Q15: Richest | R15: Aragatsotn | S15: Ararat | T15: Armavir | U15: Gegharkunik | V15: Kotayk | W15: Lori | X15: Shirak | Y15: Syunik | Z15: Tavush | AA15: Vayots Dzor | AB15: Yerevan | BA15: Water data, raw numbers (weighted) | BC15: Poorest | BD15: Poor | BE15: Middle | BF15: Rich | BG15: Richest | BH15: Poorest | BI15: Poor | BJ15: Middle | BK15: Rich | BL15: Richest | BM15: Poorest | BN15: Poor | BO15: Middle | BP15: Rich | BQ15: Richest | BR15: Aragatsotn | BS15: Ararat | BT15: Armavir | BU15: Gegharkunik | BV15: Kotayk | BW15: Lori | BX15: Shirak | BY15: Syunik | BZ15: Tavush | CA15: Vayots Dzor | CB15: Yerevan
A16: Water | B16: Improved | C16: 98.19871703 | D16: 98.85231479 | E16: 99.55202438 | F16: 99.7390187 | G16: 100 | H16: 98.57564028 | I16: 99.23288055 | J16: 99.76768843 | K16: 100 | L16: 100 | M16: 97.14517997 | N16: 99.22608085 | O16: 99.49634179 | P16: 98.74449295 | Q16: 99.6926117 | R16: 97.81422933 | S16: 100 | T16: 99.64938495 | U16: 99.78050492 | V16: 99.27361027 | W16: 98.8206143 | X16: 97.8473051 | Y16: 100 | Z16: 98.72199567 | AA16: 99.97523824 | AB16: 99.47938466 | BA16: Water | BB16: Improved | BC16: N/A | BD16: N/A | BE16: N/A | BF16: N/A | BG16: N/A | BH16: N/A | BI16: N/A | BJ16: N/A | BK16: N/A | BL16: N/A | BM16: N/A | BN16: N/A | BO16: N/A | BP16: N/A | BQ16: N/A | BR16: N/A | BS16: N/A | BT16: N/A | BU16: N/A | BV16: N/A | BW16: N/A | BX16: N/A | BY16: N/A | BZ16: N/A | CA16: N/A | CB16: N/A
B17: Not Improved | C17: 1.801282965 | D17: 1.147685214 | E17: 0.4479756175 | F17: 0.2609813013 | G17: 0 | H17: 1.424359723 | I17: 0.7671194466 | J17: 0.2323115693 | K17: 0 | L17: 0 | M17: 2.85482003 | N17: 0.7739191537 | O17: 0.5036582054 | P17: 1.255507049 | Q17: 0.3073883005 | R17: 2.185770671 | S17: 0 | T17: 0.3506150455 | U17: 0.2194950839 | V17: 0.72638973 | W17: 1.179385703 | X17: 2.152694899 | Y17: 0 | Z17: 1.278004329 | AA17: 0.02476175522 | AB17: 0.5206153371 | BB17: Not Improved | BC17: N/A | BD17: N/A | BE17: N/A | BF17: N/A | BG17: N/A | BH17: N/A | BI17: N/A | BJ17: N/A | BK17: N/A | BL17: N/A | BM17: N/A | BN17: N/A | BO17: N/A | BP17: N/A | BQ17: N/A | BR17: N/A | BS17: N/A | BT17: N/A | BU17: N/A | BV17: N/A | BW17: N/A | BX17: N/A | BY17: N/A | BZ17: N/A | CA17: N/A | CB17: N/A
A18: Water ladder | B18: Basic | C18: =C16*C23/100 -> 95.79664854 | D18: =D16*D23/100 -> 97.23613433 | E18: =E16*E23/100 -> 98.93928909 | F18: 99.27501956 | G18: 99.94685861 | H18: 98.13392582 | I18: 99.14765392 | J18: 99.56648352 | K18: 99.93414217 | L18: 100 | M18: 93.85464071 | N18: 95.19450367 | O18: 96.89512019 | P18: 97.27683681 | Q18: 98.64142403 | R18: 93.26173588 | S18: 96.53330977 | T18: 99.64938495 | U18: 98.63746945 | V18: 98.79124342 | W18: 98.65720296 | X18: 95.23841677 | Y18: 97.43130635 | Z18: 97.37793543 | AA18: 98.46673775 | AB18: 99.47938466 | BA18: Water ladder | BB18: Basic | BC18: N/A | BD18: N/A | BE18: N/A | BF18: N/A | BG18: N/A | BH18: N/A | BI18: N/A | BJ18: N/A | BK18: N/A | BL18: N/A | BM18: N/A | BN18: N/A | BO18: N/A | BP18: N/A | BQ18: N/A | BR18: N/A | BS18: N/A | BT18: N/A | BU18: N/A | BV18: N/A | BW18: N/A | BX18: N/A | BY18: N/A | BZ18: N/A | CA18: N/A | CB18: N/A
B19: Limited | C19: =C16*C22/100 -> 2.402068497 | D19: =D16*D22/100 -> 1.616180455 | E19: =E16*E22/100 -> 0.6127352902 | F19: 0.4639991363 | G19: 0.05314139215 | H19: 0.4417144539 | I19: 0.08522663615 | J19: 0.2012049094 | K19: 0.06585783426 | L19: 0 | M19: 3.290539258 | N19: 4.031577175 | O19: 2.601221606 | P19: 1.467656143 | Q19: 1.051187671 | R19: 4.552493452 | S19: 3.466690229 | T19: 0 | U19: 1.143035469 | V19: 0.4823668512 | W19: 0.1634113417 | X19: 2.608888335 | Y19: 2.568693651 | Z19: 1.344060238 | AA19: 1.508500492 | AB19: 0 | BB19: Limited | BC19: N/A | BD19: N/A | BE19: N/A | BF19: N/A | BG19: N/A | BH19: N/A | BI19: N/A | BJ19: N/A | BK19: N/A | BL19: N/A | BM19: N/A | BN19: N/A | BO19: N/A | BP19: N/A | BQ19: N/A | BR19: N/A | BS19: N/A | BT19: N/A | BU19: N/A | BV19: N/A | BW19: N/A | BX19: N/A | BY19: N/A | BZ19: N/A | CA19: N/A | CB19: N/A
B20: Unimproved | C20: =100-C18-C19-C21 -> 1.801282965 | D20: =100-D18-D19-D21 -> 1.147685214 | E20: =100-E18-E19-E21 -> 0.4196433749 | F20: 0.1153443055 | G20: 5.433153927e-15 | H20: 1.424359723 | I20: 0.721882073 | J20: -0.001034123941 | K20: -1.612598943e-14 | L20: 0 | M20: 2.85482003 | N20: 0.7739191537 | O20: 0.5036582054 | P20: 1.255507049 | Q20: 0.3073883005 | R20: 2.185770671 | S20: 1.465494393e-14 | T20: 0.3506150455 | U20: 0.2194950839 | V20: 0.72638973 | W20: 0.845211337 | X20: 2.152694899 | Y20: 5.86197757e-14 | Z20: 1.153117487 | AA20: 0.02476175522 | AB20: 0.5206153371 | BB20: Unimproved | BC20: N/A | BD20: N/A | BE20: N/A | BF20: N/A | BG20: N/A | BH20: N/A | BI20: N/A | BJ20: N/A | BK20: N/A | BL20: N/A | BM20: N/A | BN20: N/A | BO20: N/A | BP20: N/A | BQ20: N/A | BR20: N/A | BS20: N/A | BT20: N/A | BU20: N/A | BV20: N/A | BW20: N/A | BX20: N/A | BY20: N/A | BZ20: N/A | CA20: N/A | CB20: N/A
B21: Surface water | C21: 0 | D21: 0 | E21: 0.02833224268 | F21: 0.1456369958 | G21: 0 | H21: 0 | I21: 0.04523737358 | J21: 0.2333456932 | K21: 0 | L21: 0 | M21: 0 | N21: 0 | O21: 0 | P21: 0 | Q21: 0 | R21: 0 | S21: 0 | T21: 0 | U21: 0 | V21: 0 | W21: 0.334174366 | X21: 0 | Y21: 0 | Z21: 0.124886842 | AA21: 0 | AB21: 0 | BB21: Surface water | BC21: N/A | BD21: N/A | BE21: N/A | BF21: N/A | BG21: N/A | BH21: N/A | BI21: N/A | BJ21: N/A | BK21: N/A | BL21: N/A | BM21: N/A | BN21: N/A | BO21: N/A | BP21: N/A | BQ21: N/A | BR21: N/A | BS21: N/A | BT21: N/A | BU21: N/A | BV21: N/A | BW21: N/A | BX21: N/A | BY21: N/A | BZ21: N/A | CA21: N/A | CB21: N/A
A22: Improved water point at more than 30 minutes | B22: Yes | C22: 2.446130224 | D22: 1.634944471 | E22: 0.6154925467 | F22: 0.4652132559 | G22: 0.05314139215 | H22: 0.4480969666 | I22: 0.08588548037 | J22: 0.2016734201 | K22: 0.06585783426 | L22: 0 | M22: 3.387238831 | N22: 4.063021678 | O22: 2.614389192 | P22: 1.486316957 | Q22: 1.054428862 | R22: 4.654224118 | S22: 3.466690229 | T22: 0 | U22: 1.145549895 | V22: 0.4858963524 | W22: 0.1653615927 | X22: 2.666285323 | Y22: 2.568693651 | Z22: 1.361459753 | AA22: 1.508874115 | AB22: 0 | BA22: Improved water point at more than 30 minutes | BB22: Yes | BC22: N/A | BD22: N/A | BE22: N/A | BF22: N/A | BG22: N/A | BH22: N/A | BI22: N/A | BJ22: N/A | BK22: N/A | BL22: N/A | BM22: N/A | BN22: N/A | BO22: N/A | BP22: N/A | BQ22: N/A | BR22: N/A | BS22: N/A | BT22: N/A | BU22: N/A | BV22: N/A | BW22: N/A | BX22: N/A | BY22: N/A | BZ22: N/A | CA22: N/A | CB22: N/A
B23: No | C23: 97.55386978 | D23: 98.36505553 | E23: 99.38450745 | F23: 99.53478674 | G23: 99.94685861 | H23: 99.55190303 | I23: 99.91411452 | J23: 99.79832658 | K23: 99.93414217 | L23: 100 | M23: 96.61276117 | N23: 95.93697832 | O23: 97.38561081 | P23: 98.51368304 | Q23: 98.94557114 | R23: 95.34577588 | S23: 96.53330977 | T23: 100 | U23: 98.85445011 | V23: 99.51410365 | W23: 99.83463841 | X23: 97.33371468 | Y23: 97.43130635 | Z23: 98.63854025 | AA23: 98.49112588 | AB23: 100 | BB23: No | BC23: N/A | BD23: N/A | BE23: N/A | BF23: N/A | BG23: N/A | BH23: N/A | BI23: N/A | BJ23: N/A | BK23: N/A | BL23: N/A | BM23: N/A | BN23: N/A | BO23: N/A | BP23: N/A | BQ23: N/A | BR23: N/A | BS23: N/A | BT23: N/A | BU23: N/A | BV23: N/A | BW23: N/A | BX23: N/A | BY23: N/A | BZ23: N/A | CA23: N/A | CB23: N/A
A24: Manually calculated ratios | B24: Improved wells
B25: Improved springs
B26: Other
C27: NATIONAL wealth index quintile | H27: URBAN wealth index quintile | M27: RURAL wealth index quintile | R27: SUB-REGIONS: | BA27: Raw numbers of respondents: | BB27: Use of drinking water sources | BC27: NATIONAL wealth index quintile | BH27: URBAN wealth index quintile | BM27: RURAL wealth index quintile | BR27: SUB-REGIONS:
A28: Percentage based on weighted population | C28: Poorest | D28: Poor | E28: Middle | F28: Rich | G28: Richest | H28: Poorest | I28: Poor | J28: Middle | K28: Rich | L28: Richest | M28: Poorest | N28: Poor | O28: Middle | P28: Rich | Q28: Richest | R28: Aragatsotn | S28: Ararat | T28: Armavir | U28: Gegharkunik | V28: Kotayk | W28: Lori | X28: Shirak | Y28: Syunik | Z28: Tavush | AA28: Vayots Dzor | AB28: Yerevan | BA28: Water data, raw numbers (weighted) | BC28: Poorest | BD28: Poor | BE28: Middle | BF28: Rich | BG28: Richest | BH28: Poorest | BI28: Poor | BJ28: Middle | BK28: Rich | BL28: Richest | BM28: Poorest | BN28: Poor | BO28: Middle | BP28: Rich | BQ28: Richest | BR28: Aragatsotn | BS28: Ararat | BT28: Armavir | BU28: Gegharkunik | BV28: Kotayk | BW28: Lori | BX28: Shirak | BY28: Syunik | BZ28: Tavush | CA28: Vayots Dzor | CB28: Yerevan
A29: Piped water | B29: Yes | C29: 89.6 | D29: 93.6 | E29: 95.2 | F29: 97.7 | G29: 98.5 | H29: 97.8 | I29: 98.5 | J29: 99.3 | K29: 100 | L29: 99.9 | M29: 85.4 | N29: 86.4 | O29: 90.2 | P29: 89.3 | Q29: 89.2 | R29: 82.3 | S29: 98.8 | T29: 77.5 | U29: 95.5 | V29: 98.7 | W29: 97.4 | X29: 91.1 | Y29: 89.8 | Z29: 95.3 | AA29: 99.6 | AB29: 99.5 | BA29: Piped water | BB29: Yes | BC29: N/A | BD29: N/A | BE29: N/A | BF29: N/A | BG29: N/A | BH29: N/A | BI29: N/A | BJ29: N/A | BK29: N/A | BL29: N/A | BM29: N/A | BN29: N/A | BO29: N/A | BP29: N/A | BQ29: N/A | BR29: N/A | BS29: N/A | BT29: N/A | BU29: N/A | BV29: N/A | BW29: N/A | BX29: N/A | BY29: N/A | BZ29: N/A | CA29: N/A | CB29: N/A
B30: No | C30: 10.4 | D30: 6.4 | E30: 4.8 | F30: 2.3 | G30: 1.5 | H30: 2.2 | I30: 1.5 | J30: 0.7 | K30: 0 | L30: 0.1 | M30: 14.6 | N30: 13.6 | O30: 9.8 | P30: 10.7 | Q30: 10.8 | R30: 17.7 | S30: 1.2 | T30: 22.5 | U30: 4.5 | V30: 1.3 | W30: 2.6 | X30: 8.9 | Y30: 10.2 | Z30: 4.7 | AA30: 0.4 | AB30: 0.5 | BB30: No | BC30: N/A | BD30: N/A | BE30: N/A | BF30: N/A | BG30: N/A | BH30: N/A | BI30: N/A | BJ30: N/A | BK30: N/A | BL30: N/A | BM30: N/A | BN30: N/A | BO30: N/A | BP30: N/A | BQ30: N/A | BR30: N/A | BS30: N/A | BT30: N/A | BU30: N/A | BV30: N/A | BW30: N/A | BX30: N/A | BY30: N/A | BZ30: N/A | CA30: N/A | CB30: N/A
A31: Piped water on premises | B31: Yes | C31: 75.2 | D31: 85 | E31: 91.7 | F31: 96.1 | G31: 97.9 | H31: 93 | I31: 97.5 | J31: 98.3 | K31: 99.5 | L31: 99.6 | M31: 66.9 | N31: 66 | O31: 78.1 | P31: 81.1 | Q31: 84.4 | R31: 60.6 | S31: 84.3 | T31: 75.9 | U31: 74.9 | V31: 94.8 | W31: 92.6 | X31: 79.2 | Y31: 89 | Z31: 90.7 | AA31: 91.5 | AB31: 99.4 | BA31: Piped water on premises | BB31: Yes | BC31: N/A | BD31: N/A | BE31: N/A | BF31: N/A | BG31: N/A | BH31: N/A | BI31: N/A | BJ31: N/A | BK31: N/A | BL31: N/A | BM31: N/A | BN31: N/A | BO31: N/A | BP31: N/A | BQ31: N/A | BR31: N/A | BS31: N/A | BT31: N/A | BU31: N/A | BV31: N/A | BW31: N/A | BX31: N/A | BY31: N/A | BZ31: N/A | CA31: N/A | CB31: N/A
B32: No | C32: 24.8 | D32: 15 | E32: 8.3 | F32: 3.9 | G32: 2.1 | H32: 7 | I32: 2.5 | J32: 1.7 | K32: 0.5 | L32: 0.4 | M32: 33.1 | N32: 34 | O32: 21.9 | P32: 18.9 | Q32: 15.6 | R32: 39.4 | S32: 15.7 | T32: 24.1 | U32: 25.1 | V32: 5.2 | W32: 7.4 | X32: 20.8 | Y32: 11 | Z32: 9.3 | AA32: 8.5 | AB32: 0.6 | BB32: No | BC32: N/A | BD32: N/A | BE32: N/A | BF32: N/A | BG32: N/A | BH32: N/A | BI32: N/A | BJ32: N/A | BK32: N/A | BL32: N/A | BM32: N/A | BN32: N/A | BO32: N/A | BP32: N/A | BQ32: N/A | BR32: N/A | BS32: N/A | BT32: N/A | BU32: N/A | BV32: N/A | BW32: N/A | BX32: N/A | BY32: N/A | BZ32: N/A | CA32: N/A | CB32: N/A
A33: Piped water into dwelling | B33: Yes | C33: N/A | D33: N/A | E33: N/A | F33: N/A | G33: N/A | H33: N/A | I33: N/A | J33: N/A | K33: N/A | L33: N/A | M33: N/A | N33: N/A | O33: N/A | P33: N/A | Q33: N/A | R33: N/A | S33: N/A | T33: N/A | U33: N/A | V33: N/A | W33: N/A | X33: N/A | Y33: N/A | Z33: N/A | AA33: N/A | AB33: N/A | BA33: Piped water into dwelling | BB33: Yes | BC33: N/A | BD33: N/A | BE33: N/A | BF33: N/A | BG33: N/A | BH33: N/A | BI33: N/A | BJ33: N/A | BK33: N/A | BL33: N/A | BM33: N/A | BN33: N/A | BO33: N/A | BP33: N/A | BQ33: N/A | BR33: N/A | BS33: N/A | BT33: N/A | BU33: N/A | BV33: N/A | BW33: N/A | BX33: N/A | BY33: N/A | BZ33: N/A | CA33: N/A | CB33: N/A
B34: No | C34: N/A | D34: N/A | E34: N/A | F34: N/A | G34: N/A | H34: N/A | I34: N/A | J34: N/A | K34: N/A | L34: N/A | M34: N/A | N34: N/A | O34: N/A | P34: N/A | Q34: N/A | R34: N/A | S34: N/A | T34: N/A | U34: N/A | V34: N/A | W34: N/A | X34: N/A | Y34: N/A | Z34: N/A | AA34: N/A | AB34: N/A | BB34: No | BC34: N/A | BD34: N/A | BE34: N/A | BF34: N/A | BG34: N/A | BH34: N/A | BI34: N/A | BJ34: N/A | BK34: N/A | BL34: N/A | BM34: N/A | BN34: N/A | BO34: N/A | BP34: N/A | BQ34: N/A | BR34: N/A | BS34: N/A | BT34: N/A | BU34: N/A | BV34: N/A | BW34: N/A | BX34: N/A | BY34: N/A | BZ34: N/A | CA34: N/A | CB34: N/A
A35: Water source on premises | B35: Yes | C35: 75.4 | D35: 85.1 | E35: 91.7 | F35: 96.1 | G35: 97.9 | H35: 93.1 | I35: 97.6 | J35: 98.3 | K35: 99.5 | L35: 99.6 | M35: 67.2 | N35: 66.2 | O35: 78.1 | P35: 81.1 | Q35: 84.4 | R35: 61.1 | S35: 84.6 | T35: 75.9 | U35: 74.9 | V35: 94.8 | W35: 92.6 | X35: 79.3 | Y35: 89 | Z35: 90.7 | AA35: 91.5 | AB35: 99.4 | BA35: Water source on premises | BB35: Yes | BC35: N/A | BD35: N/A | BE35: N/A | BF35: N/A | BG35: N/A | BH35: N/A | BI35: N/A | BJ35: N/A | BK35: N/A | BL35: N/A | BM35: N/A | BN35: N/A | BO35: N/A | BP35: N/A | BQ35: N/A | BR35: N/A | BS35: N/A | BT35: N/A | BU35: N/A | BV35: N/A | BW35: N/A | BX35: N/A | BY35: N/A | BZ35: N/A | CA35: N/A | CB35: N/A
B36: No | C36: 24.6 | D36: 14.9 | E36: 8.3 | F36: 3.9 | G36: 2.1 | H36: 6.9 | I36: 2.4 | J36: 1.7 | K36: 0.5 | L36: 0.4 | M36: 32.8 | N36: 33.8 | O36: 21.9 | P36: 18.9 | Q36: 15.6 | R36: 38.9 | S36: 15.4 | T36: 24.1 | U36: 25.1 | V36: 5.2 | W36: 7.4 | X36: 20.7 | Y36: 11 | Z36: 9.3 | AA36: 8.5 | AB36: 0.6 | BB36: No | BC36: N/A | BD36: N/A | BE36: N/A | BF36: N/A | BG36: N/A | BH36: N/A | BI36: N/A | BJ36: N/A | BK36: N/A | BL36: N/A | BM36: N/A | BN36: N/A | BO36: N/A | BP36: N/A | BQ36: N/A | BR36: N/A | BS36: N/A | BT36: N/A | BU36: N/A | BV36: N/A | BW36: N/A | BX36: N/A | BY36: N/A | BZ36: N/A | CA36: N/A | CB36: N/A
A37: Improved Water source on premises | B37: Yes | C37: 76.8 | D37: 86.1 | E37: 92.1 | F37: 96.3 | G37: 97.9 | H37: 94.4 | I37: 98.3 | J37: 98.5 | K37: 99.5 | L37: 99.6 | M37: 69.2 | N37: 66.7 | O37: 78.5 | P37: 82.2 | Q37: 84.7 | R37: 62.5 | S37: 84.6 | T37: 76.1 | U37: 75 | V37: 95.5 | W37: 93.7 | X37: 81.1 | Y37: 89 | Z37: 91.9 | AA37: 91.5 | AB37: 99.9 | BA37: Improved water source on premises | BB37: Yes | BC37: N/A | BD37: N/A | BE37: N/A | BF37: N/A | BG37: N/A | BH37: N/A | BI37: N/A | BJ37: N/A | BK37: N/A | BL37: N/A | BM37: N/A | BN37: N/A | BO37: N/A | BP37: N/A | BQ37: N/A | BR37: N/A | BS37: N/A | BT37: N/A | BU37: N/A | BV37: N/A | BW37: N/A | BX37: N/A | BY37: N/A | BZ37: N/A | CA37: N/A | CB37: N/A
B38: No | C38: 23.2 | D38: 13.9 | E38: 7.9 | F38: 3.7 | G38: 2.1 | H38: 5.6 | I38: 1.7 | J38: 1.5 | K38: 0.5 | L38: 0.4 | M38: 30.8 | N38: 33.3 | O38: 21.5 | P38: 17.8 | Q38: 15.3 | R38: 37.5 | S38: 15.4 | T38: 23.9 | U38: 25 | V38: 4.5 | W38: 6.3 | X38: 18.9 | Y38: 11 | Z38: 8.1 | AA38: 8.5 | AB38: 0.1 | BB38: No | BC38: N/A | BD38: N/A | BE38: N/A | BF38: N/A | BG38: N/A | BH38: N/A | BI38: N/A | BJ38: N/A | BK38: N/A | BL38: N/A | BM38: N/A | BN38: N/A | BO38: N/A | BP38: N/A | BQ38: N/A | BR38: N/A | BS38: N/A | BT38: N/A | BU38: N/A | BV38: N/A | BW38: N/A | BX38: N/A | BY38: N/A | BZ38: N/A | CA38: N/A | CB38: N/A
A39: Piped water on premises available when needed | B39: Yes | C39: N/A | D39: N/A | E39: N/A | F39: N/A | G39: N/A | H39: N/A | I39: N/A | J39: N/A | K39: N/A | L39: N/A | M39: N/A | N39: N/A | O39: N/A | P39: N/A | Q39: N/A | R39: N/A | S39: N/A | T39: N/A | U39: N/A | V39: N/A | W39: N/A | X39: N/A | Y39: N/A | Z39: N/A | AA39: N/A | AB39: N/A | BA39: Piped water on premises available when needed | BB39: Yes | BC39: N/A | BD39: N/A | BE39: N/A | BF39: N/A | BG39: N/A | BH39: N/A | BI39: N/A | BJ39: N/A | BK39: N/A | BL39: N/A | BM39: N/A | BN39: N/A | BO39: N/A | BP39: N/A | BQ39: N/A | BR39: N/A | BS39: N/A | BT39: N/A | BU39: N/A | BV39: N/A | BW39: N/A | BX39: N/A | BY39: N/A | BZ39: N/A | CA39: N/A | CB39: N/A
B40: No | C40: N/A | D40: N/A | E40: N/A | F40: N/A | G40: N/A | H40: N/A | I40: N/A | J40: N/A | K40: N/A | L40: N/A | M40: N/A | N40: N/A | O40: N/A | P40: N/A | Q40: N/A | R40: N/A | S40: N/A | T40: N/A | U40: N/A | V40: N/A | W40: N/A | X40: N/A | Y40: N/A | Z40: N/A | AA40: N/A | AB40: N/A | BB40: No | BC40: N/A | BD40: N/A | BE40: N/A | BF40: N/A | BG40: N/A | BH40: N/A | BI40: N/A | BJ40: N/A | BK40: N/A | BL40: N/A | BM40: N/A | BN40: N/A | BO40: N/A | BP40: N/A | BQ40: N/A | BR40: N/A | BS40: N/A | BT40: N/A | BU40: N/A | BV40: N/A | BW40: N/A | BX40: N/A | BY40: N/A | BZ40: N/A | CA40: N/A | CB40: N/A
A41: Water point at more than 30 minutes | B41: Yes | C41: 2.5 | D41: 1.7 | E41: 0.6 | F41: 0.5 | G41: 0.1 | H41: 0.4 | I41: 0.1 | J41: 0.2 | K41: 0.1 | L41: 0 | M41: 3.4 | N41: 4.3 | O41: 2.6 | P41: 1.8 | Q41: 1.1 | R41: 4.6 | S41: 3.5 | T41: 0 | U41: 1.1 | V41: 1 | W41: 0.2 | X41: 2.7 | Y41: 2.6 | Z41: 1.5 | AA41: 1.5 | AB41: 0 | BA41: Water point at more than 30 minutes | BB41: Yes | BC41: N/A | BD41: N/A | BE41: N/A | BF41: N/A | BG41: N/A | BH41: N/A | BI41: N/A | BJ41: N/A | BK41: N/A | BL41: N/A | BM41: N/A | BN41: N/A | BO41: N/A | BP41: N/A | BQ41: N/A | BR41: N/A | BS41: N/A | BT41: N/A | BU41: N/A | BV41: N/A | BW41: N/A | BX41: N/A | BY41: N/A | BZ41: N/A | CA41: N/A | CB41: N/A
B42: No | C42: 97.5 | D42: 98.3 | E42: 99.4 | F42: 99.5 | G42: 99.9 | H42: 99.6 | I42: 99.9 | J42: 99.8 | K42: 99.9 | L42: 100 | M42: 96.6 | N42: 95.7 | O42: 97.4 | P42: 98.2 | Q42: 98.9 | R42: 95.4 | S42: 96.5 | T42: 100 | U42: 98.9 | V42: 99 | W42: 99.8 | X42: 97.3 | Y42: 97.4 | Z42: 98.5 | AA42: 98.5 | AB42: 100 | BB42: No | BC42: N/A | BD42: N/A | BE42: N/A | BF42: N/A | BG42: N/A | BH42: N/A | BI42: N/A | BJ42: N/A | BK42: N/A | BL42: N/A | BM42: N/A | BN42: N/A | BO42: N/A | BP42: N/A | BQ42: N/A | BR42: N/A | BS42: N/A | BT42: N/A | BU42: N/A | BV42: N/A | BW42: N/A | BX42: N/A | BY42: N/A | BZ42: N/A | CA42: N/A | CB42: N/A
A43: Water source available when needed | B43: Yes | C43: N/A | D43: N/A | E43: N/A | F43: N/A | G43: N/A | H43: N/A | I43: N/A | J43: N/A | K43: N/A | L43: N/A | M43: N/A | N43: N/A | O43: N/A | P43: N/A | Q43: N/A | R43: N/A | S43: N/A | T43: N/A | U43: N/A | V43: N/A | W43: N/A | X43: N/A | Y43: N/A | Z43: N/A | AA43: N/A | AB43: N/A | BA43: Water source available when needed | BB43: Yes | BC43: N/A | BD43: N/A | BE43: N/A | BF43: N/A | BG43: N/A | BH43: N/A | BI43: N/A | BJ43: N/A | BK43: N/A | BL43: N/A | BM43: N/A | BN43: N/A | BO43: N/A | BP43: N/A | BQ43: N/A | BR43: N/A | BS43: N/A | BT43: N/A | BU43: N/A | BV43: N/A | BW43: N/A | BX43: N/A | BY43: N/A | BZ43: N/A | CA43: N/A | CB43: N/A
B44: No | C44: N/A | D44: N/A | E44: N/A | F44: N/A | G44: N/A | H44: N/A | I44: N/A | J44: N/A | K44: N/A | L44: N/A | M44: N/A | N44: N/A | O44: N/A | P44: N/A | Q44: N/A | R44: N/A | S44: N/A | T44: N/A | U44: N/A | V44: N/A | W44: N/A | X44: N/A | Y44: N/A | Z44: N/A | AA44: N/A | AB44: N/A | BB44: No | BC44: N/A | BD44: N/A | BE44: N/A | BF44: N/A | BG44: N/A | BH44: N/A | BI44: N/A | BJ44: N/A | BK44: N/A | BL44: N/A | BM44: N/A | BN44: N/A | BO44: N/A | BP44: N/A | BQ44: N/A | BR44: N/A | BS44: N/A | BT44: N/A | BU44: N/A | BV44: N/A | BW44: N/A | BX44: N/A | BY44: N/A | BZ44: N/A | CA44: N/A | CB44: N/A
A45: Improved water source available when needed | B45: Yes | C45: N/A | D45: N/A | E45: N/A | F45: N/A | G45: N/A | H45: N/A | I45: N/A | J45: N/A | K45: N/A | L45: N/A | M45: N/A | N45: N/A | O45: N/A | P45: N/A | Q45: N/A | R45: N/A | S45: N/A | T45: N/A | U45: N/A | V45: N/A | W45: N/A | X45: N/A | Y45: N/A | Z45: N/A | AA45: N/A | AB45: N/A | BA45: Improved water source available when needed | BB45: Yes | BC45: N/A | BD45: N/A | BE45: N/A | BF45: N/A | BG45: N/A | BH45: N/A | BI45: N/A | BJ45: N/A | BK45: N/A | BL45: N/A | BM45: N/A | BN45: N/A | BO45: N/A | BP45: N/A | BQ45: N/A | BR45: N/A | BS45: N/A | BT45: N/A | BU45: N/A | BV45: N/A | BW45: N/A | BX45: N/A | BY45: N/A | BZ45: N/A | CA45: N/A | CB45: N/A
B46: No | C46: N/A | D46: N/A | E46: N/A | F46: N/A | G46: N/A | H46: N/A | I46: N/A | J46: N/A | K46: N/A | L46: N/A | M46: N/A | N46: N/A | O46: N/A | P46: N/A | Q46: N/A | R46: N/A | S46: N/A | T46: N/A | U46: N/A | V46: N/A | W46: N/A | X46: N/A | Y46: N/A | Z46: N/A | AA46: N/A | AB46: N/A | BB46: No | BC46: N/A | BD46: N/A | BE46: N/A | BF46: N/A | BG46: N/A | BH46: N/A | BI46: N/A | BJ46: N/A | BK46: N/A | BL46: N/A | BM46: N/A | BN46: N/A | BO46: N/A | BP46: N/A | BQ46: N/A | BR46: N/A | BS46: N/A | BT46: N/A | BU46: N/A | BV46: N/A | BW46: N/A | BX46: N/A | BY46: N/A | BZ46: N/A | CA46: N/A | CB46: N/A
A47: Microbiological quality at point of collection | B47: Not contaminated (No E. coli in 100 mL) | C47: N/A | D47: N/A | E47: N/A | F47: N/A | G47: N/A | H47: N/A | I47: N/A | J47: N/A | K47: N/A | L47: N/A | M47: N/A | N47: N/A | O47: N/A | P47: N/A | Q47: N/A | R47: N/A | S47: N/A | T47: N/A | U47: N/A | V47: N/A | W47: N/A | X47: N/A | Y47: N/A | Z47: N/A | AA47: N/A | AB47: N/A | BA47: Microbiological quality at point of collection | BB47: Not contaminated (No E. coli in 100 mL) | BC47: N/A | BD47: N/A | BE47: N/A | BF47: N/A | BG47: N/A | BH47: N/A | BI47: N/A | BJ47: N/A | BK47: N/A | BL47: N/A | BM47: N/A | BN47: N/A | BO47: N/A | BP47: N/A | BQ47: N/A | BR47: N/A | BS47: N/A | BT47: N/A | BU47: N/A | BV47: N/A | BW47: N/A | BX47: N/A | BY47: N/A | BZ47: N/A | CA47: N/A | CB47: N/A
B48: Contaminated (E. coli detected in 100 mL) | C48: N/A | D48: N/A | E48: N/A | F48: N/A | G48: N/A | H48: N/A | I48: N/A | J48: N/A | K48: N/A | L48: N/A | M48: N/A | N48: N/A | O48: N/A | P48: N/A | Q48: N/A | R48: N/A | S48: N/A | T48: N/A | U48: N/A | V48: N/A | W48: N/A | X48: N/A | Y48: N/A | Z48: N/A | AA48: N/A | AB48: N/A | BB48: Contaminated (E. coli detected in 100 mL) | BC48: N/A | BD48: N/A | BE48: N/A | BF48: N/A | BG48: N/A | BH48: N/A | BI48: N/A | BJ48: N/A | BK48: N/A | BL48: N/A | BM48: N/A | BN48: N/A | BO48: N/A | BP48: N/A | BQ48: N/A | BR48: N/A | BS48: N/A | BT48: N/A | BU48: N/A | BV48: N/A | BW48: N/A | BX48: N/A | BY48: N/A | BZ48: N/A | CA48: N/A | CB48: N/A
B49: Highly contaminated (>100 CFU/100 mL) | C49: N/A | D49: N/A | E49: N/A | F49: N/A | G49: N/A | H49: N/A | I49: N/A | J49: N/A | K49: N/A | L49: N/A | M49: N/A | N49: N/A | O49: N/A | P49: N/A | Q49: N/A | R49: N/A | S49: N/A | T49: N/A | U49: N/A | V49: N/A | W49: N/A | X49: N/A | Y49: N/A | Z49: N/A | AA49: N/A | AB49: N/A | BB49: Highly contaminated (>100 CFU/100 mL) | BC49: N/A | BD49: N/A | BE49: N/A | BF49: N/A | BG49: N/A | BH49: N/A | BI49: N/A | BJ49: N/A | BK49: N/A | BL49: N/A | BM49: N/A | BN49: N/A | BO49: N/A | BP49: N/A | BQ49: N/A | BR49: N/A | BS49: N/A | BT49: N/A | BU49: N/A | BV49: N/A | BW49: N/A | BX49: N/A | BY49: N/A | BZ49: N/A | CA49: N/A | CB49: N/A
A50: Microbiological quality of improved water sources at point of collection | B50: Not contaminated (No E. coli in 100 mL) | C50: N/A | D50: N/A | E50: N/A | F50: N/A | G50: N/A | H50: N/A | I50: N/A | J50: N/A | K50: N/A | L50: N/A | M50: N/A | N50: N/A | O50: N/A | P50: N/A | Q50: N/A | R50: N/A | S50: N/A | T50: N/A | U50: N/A | V50: N/A | W50: N/A | X50: N/A | Y50: N/A | Z50: N/A | AA50: N/A | AB50: N/A | BA50: Microbiological quality of improved water sources at point of collection | BB50: Not contaminated (No E. coli in 100 mL) | BC50: N/A | BD50: N/A | BE50: N/A | BF50: N/A | BG50: N/A | BH50: N/A | BI50: N/A | BJ50: N/A | BK50: N/A | BL50: N/A | BM50: N/A | BN50: N/A | BO50: N/A | BP50: N/A | BQ50: N/A | BR50: N/A | BS50: N/A | BT50: N/A | BU50: N/A | BV50: N/A | BW50: N/A | BX50: N/A | BY50: N/A | BZ50: N/A | CA50: N/A | CB50: N/A
B51: Contaminated (E. coli detected in 100 mL) | C51: N/A | D51: N/A | E51: N/A | F51: N/A | G51: N/A | H51: N/A | I51: N/A | J51: N/A | K51: N/A | L51: N/A | M51: N/A | N51: N/A | O51: N/A | P51: N/A | Q51: N/A | R51: N/A | S51: N/A | T51: N/A | U51: N/A | V51: N/A | W51: N/A | X51: N/A | Y51: N/A | Z51: N/A | AA51: N/A | AB51: N/A | BB51: Contaminated (E. coli detected in 100 mL) | BC51: N/A | BD51: N/A | BE51: N/A | BF51: N/A | BG51: N/A | BH51: N/A | BI51: N/A | BJ51: N/A | BK51: N/A | BL51: N/A | BM51: N/A | BN51: N/A | BO51: N/A | BP51: N/A | BQ51: N/A | BR51: N/A | BS51: N/A | BT51: N/A | BU51: N/A | BV51: N/A | BW51: N/A | BX51: N/A | BY51: N/A | BZ51: N/A | CA51: N/A | CB51: N/A
B52: Highly contaminated (>100 CFU/100 mL) | C52: N/A | D52: N/A | E52: N/A | F52: N/A | G52: N/A | H52: N/A | I52: N/A | J52: N/A | K52: N/A | L52: N/A | M52: N/A | N52: N/A | O52: N/A | P52: N/A | Q52: N/A | R52: N/A | S52: N/A | T52: N/A | U52: N/A | V52: N/A | W52: N/A | X52: N/A | Y52: N/A | Z52: N/A | AA52: N/A | AB52: N/A | BB52: Highly contaminated (>100 CFU/100 mL) | BC52: N/A | BD52: N/A | BE52: N/A | BF52: N/A | BG52: N/A | BH52: N/A | BI52: N/A | BJ52: N/A | BK52: N/A | BL52: N/A | BM52: N/A | BN52: N/A | BO52: N/A | BP52: N/A | BQ52: N/A | BR52: N/A | BS52: N/A | BT52: N/A | BU52: N/A | BV52: N/A | BW52: N/A | BX52: N/A | BY52: N/A | BZ52: N/A | CA52: N/A | CB52: N/A
A53: Microbiological quality of piped on premises at point of collection | B53: Not contaminated (No E. coli in 100 mL) | C53: N/A | D53: N/A | E53: N/A | F53: N/A | G53: N/A | H53: N/A | I53: N/A | J53: N/A | K53: N/A | L53: N/A | M53: N/A | N53: N/A | O53: N/A | P53: N/A | Q53: N/A | R53: N/A | S53: N/A | T53: N/A | U53: N/A | V53: N/A | W53: N/A | X53: N/A | Y53: N/A | Z53: N/A | AA53: N/A | AB53: N/A | BA53: Microbiological quality of piped on premises at point of collection | BB53: Not contaminated (No E. coli in 100 mL) | BC53: N/A | BD53: N/A | BE53: N/A | BF53: N/A | BG53: N/A | BH53: N/A | BI53: N/A | BJ53: N/A | BK53: N/A | BL53: N/A | BM53: N/A | BN53: N/A | BO53: N/A | BP53: N/A | BQ53: N/A | BR53: N/A | BS53: N/A | BT53: N/A | BU53: N/A | BV53: N/A | BW53: N/A | BX53: N/A | BY53: N/A | BZ53: N/A | CA53: N/A | CB53: N/A
B54: Contaminated (E. coli detected in 100 mL) | C54: N/A | D54: N/A | E54: N/A | F54: N/A | G54: N/A | H54: N/A | I54: N/A | J54: N/A | K54: N/A | L54: N/A | M54: N/A | N54: N/A | O54: N/A | P54: N/A | Q54: N/A | R54: N/A | S54: N/A | T54: N/A | U54: N/A | V54: N/A | W54: N/A | X54: N/A | Y54: N/A | Z54: N/A | AA54: N/A | AB54: N/A | BB54: Contaminated (E. coli detected in 100 mL) | BC54: N/A | BD54: N/A | BE54: N/A | BF54: N/A | BG54: N/A | BH54: N/A | BI54: N/A | BJ54: N/A | BK54: N/A | BL54: N/A | BM54: N/A | BN54: N/A | BO54: N/A | BP54: N/A | BQ54: N/A | BR54: N/A | BS54: N/A | BT54: N/A | BU54: N/A | BV54: N/A | BW54: N/A | BX54: N/A | BY54: N/A | BZ54: N/A | CA54: N/A | CB54: N/A
B55: Highly contaminated (>100 CFU/100 mL) | C55: N/A | D55: N/A | E55: N/A | F55: N/A | G55: N/A | H55: N/A | I55: N/A | J55: N/A | K55: N/A | L55: N/A | M55: N/A | N55: N/A | O55: N/A | P55: N/A | Q55: N/A | R55: N/A | S55: N/A | T55: N/A | U55: N/A | V55: N/A | W55: N/A | X55: N/A | Y55: N/A | Z55: N/A | AA55: N/A | AB55: N/A | BB55: Highly contaminated (>100 CFU/100 mL) | BC55: N/A | BD55: N/A | BE55: N/A | BF55: N/A | BG55: N/A | BH55: N/A | BI55: N/A | BJ55: N/A | BK55: N/A | BL55: N/A | BM55: N/A | BN55: N/A | BO55: N/A | BP55: N/A | BQ55: N/A | BR55: N/A | BS55: N/A | BT55: N/A | BU55: N/A | BV55: N/A | BW55: N/A | BX55: N/A | BY55: N/A | BZ55: N/A | CA55: N/A | CB55: N/A
C56: NATIONAL wealth index quintile | H56: URBAN wealth index quintile | M56: RURAL wealth index quintile | R56: SUB-REGIONS: | BA56: Raw numbers of respondents: | BB56: Use of drinking water sources | BC56: NATIONAL wealth index quintile | BH56: URBAN wealth index quintile | BM56: RURAL wealth index quintile | BR56: SUB-REGIONS:
A57: Percentage based on weighted population | C57: Poorest | D57: Poor | E57: Middle | F57: Rich | G57: Richest | H57: Poorest | I57: Poor | J57: Middle | K57: Rich | L57: Richest | M57: Poorest | N57: Poor | O57: Middle | P57: Rich | Q57: Richest | R57: Aragatsotn | S57: Ararat | T57: Armavir | U57: Gegharkunik | V57: Kotayk | W57: Lori | X57: Shirak | Y57: Syunik | Z57: Tavush | AA57: Vayots Dzor | AB57: Yerevan | BA57: Water data, raw numbers (weighted) | BC57: Poorest | BD57: Poor | BE57: Middle | BF57: Rich | BG57: Richest | BH57: Poorest | BI57: Poor | BJ57: Middle | BK57: Rich | BL57: Richest | BM57: Poorest | BN57: Poor | BO57: Middle | BP57: Rich | BQ57: Richest | BR57: Aragatsotn | BS57: Ararat | BT57: Armavir | BU57: Gegharkunik | BV57: Kotayk | BW57: Lori | BX57: Shirak | BY57: Syunik | BZ57: Tavush | CA57: Vayots Dzor | CB57: Yerevan
A58: Source of drinking water | B58: Piped - into dwelling | C58: 43.91859693 | D58: 62.30307919 | E58: 76.08654238 | F58: 88.4374457 | G58: 94.8175517 | H58: 83.47926669 | I58: 92.70582567 | J58: 95.89877225 | K58: 98.27137841 | L58: 98.93033378 | M58: 22.50925448 | N58: 29.98031543 | O58: 37.86618865 | P58: 47.79739888 | Q58: 56.42406 | R58: 32.1722825 | S58: 55.97671793 | T58: 37.19881683 | U58: 52.46815882 | V58: 76.32573317 | W58: 70.36284045 | X58: 63.58363727 | Y58: 79.3655152 | Z58: 53.30622363 | AA58: 59.82041295 | AB58: 98.73478269
B59: Piped - into yard/plot | C59: 31.51948572 | D59: 22.7199322 | E59: 15.60405853 | F59: 7.632946784 | G59: 3.060479101 | H59: 9.703812904 | I59: 4.825454257 | J59: 2.373884807 | K59: 1.263871036 | L59: 0.7091121232 | M59: 44.64342805 | N59: 35.99361057 | O59: 40.23974031 | P59: 33.32955875 | Q59: 27.99070791 | R59: 28.43509538 | S59: 28.3280251 | T59: 38.67847424 | U59: 22.40364407 | V59: 18.48874626 | W59: 22.78009673 | X59: 15.59505429 | Y59: 9.635616485 | Z59: 37.42186842 | AA59: 31.71684612 | AB59: 0.6561501446
B60: Piped - public tap / standpipe | C60: 14.40835507 | D60: 8.581543735 | E60: 3.505159859 | F60: 1.649251462 | G60: 0.6670460654 | H60: 4.78989108 | I60: 0.9746101619 | J60: 0.9876519879 | K60: 0.429031615 | L60: 0.2372039907 | M60: 18.58305587 | N60: 20.41905044 | O60: 12.10734141 | P60: 8.137884625 | Q60: 4.819932784 | R60: 21.65702868 | S60: 14.5115752 | T60: 1.573793649 | U60: 20.59204497 | V60: 3.919033644 | W60: 4.908043067 | X60: 11.89552369 | Y60: 0.8169354221 | Z60: 4.621409448 | AA60: 8.080832201 | AB60: 0.06903729414
B61: Dug well - unprotected | C61: 0.6507438836 | D61: 0.1707633357 | E61: 0.3300790548 | F61: 0 | G61: 0 | H61: 0.1372323502 | I61: 0.2174360345 | J61: 0 | K61: 0 | L61: 0 | M61: 1.679080689 | N61: 0 | O61: 0.2713575664 | P61: 0.5176628121 | Q61: 0 | R61: 0 | S61: 0 | T61: 0.3506150455 | U61: 0.2194950839 | V61: 0 | W61: 0 | X61: 2.152694899 | Y61: 0 | Z61: 0 | AA61: 0 | AB61: 0
B62: Dug well - protected | C62: 1.104349236 | D62: 1.665141982 | E62: 1.129452847 | F62: 0.3949654077 | G62: 0 | H62: 0.4071666354 | I62: 0.5660267109 | J62: 0.4431724994 | K62: 0 | L62: 0 | M62: 1.153364889 | N62: 2.728615299 | O62: 2.391937749 | P62: 1.500485835 | Q62: 1.26404726 | R62: 0.8935208366 | S62: 0.5463146624 | T62: 0.6142849024 | U62: 4.316657052 | V62: 0 | W62: 0.05641297465 | X62: 5.177668 | Y62: 0 | Z62: 0 | AA62: 0 | AB62: 0
B63: Spring - protected | C63: 2.784110546 | D63: 1.562560898 | E63: 0.8530293289 | F63: 0.1720620736 | G63: 0.03104893115 | H63: 0.263046068 | I63: 0.1609637583 | J63: 0.06420688316 | K63: 0.03571894342 | L63: 0.0329974193 | M63: 3.335152256 | N63: 4.388172007 | O63: 3.125075281 | P63: 1.761699835 | Q63: 0.776305267 | R63: 2.883165886 | S63: 0.6373671061 | T63: 0 | U63: 0 | V63: 0.4064517606 | W63: 1.337984854 | X63: 1.59542185 | Y63: 10.18193289 | Z63: 3.372494179 | AA63: 0.3819087285 | AB63: 0
B64: Surface water (river/dam/lake/pond/stream/canal/irrigation c | C64: 0 | D64: 0 | E64: 0.02796374352 | F64: 0.1447837995 | G64: 0 | H64: 0 | I64: 0.04497251129 | J64: 0.2323115693 | K64: 0 | L64: 0 | M64: 0 | N64: 0 | O64: 0 | P64: 0 | Q64: 0 | R64: 0 | S64: 0 | T64: 0 | U64: 0 | V64: 0 | W64: 0.3358777311 | X64: 0 | Y64: 0 | Z64: 0.124886842 | AA64: 0 | AB64: 0
B65: Tanker truck | C65: 4.644739155 | D65: 2.020056783 | E65: 2.373781433 | F65: 1.452347268 | G65: 1.367458211 | H65: 0 | I65: 0 | J65: 0 | K65: 0 | L65: 0 | M65: 7.286100511 | N65: 5.716317099 | O65: 3.766058391 | P65: 6.217465024 | Q65: 8.417558487 | R65: 11.77313604 | S65: 0 | T65: 21.45397769 | U65: 0 | V65: 0 | W65: 0 | X65: 0 | Y65: 0 | Z65: 0 | AA65: 0 | AB65: 0
B66: Bottled water | C66: 0.08977433387 | D66: 0 | E66: 0 | F66: 0 | G66: 0.05641599043 | H66: 0.144068797 | I66: 0 | J66: 0 | K66: 0 | L66: 0.09035269078 | M66: 0 | N66: 0 | O66: 0 | P66: 0 | Q66: 0 | R66: 0 | S66: 0 | T66: 0.1300376421 | U66: 0 | V66: 0.1336454411 | W66: 0 | X66: 0 | Y66: 0 | Z66: 0 | AA66: 0 | AB66: 0.01941453376
B67: Other | C67: 0.8798451302 | D67: 0.9769218783 | E67: 0.08993281921 | F67: 0.1161975017 | G67: 0 | H67: 1.075515478 | I67: 0.5047109008 | J67: 0 | K67: 0 | L67: 0 | M67: 0.8105632536 | N67: 0.7739191537 | O67: 0.232300639 | P67: 0.7378442369 | Q67: 0.3073883005 | R67: 2.185770671 | S67: 0 | T67: 0 | U67: 0 | V67: 0.72638973 | W67: 0.2187441855 | X67: 0 | Y67: 0 | Z67: 1.153117487 | AA67: 0 | AB67: 0.5206153371
A108: =A1026 -> Armenia
A109: =A1034 -> 2005
A110: Use of sanitation facilities
A111: by wealth quintile and sub-national region
A112: Notes:
A113: WHO/UNICEF JMP customised wealth index excludes water,
A114: sanitation and hygiene assets.
A115: Survey used for analysis: | B115: =A1025 -> DHS05
A116: =B1030 -> 
A117: =B1029 -> 
A120: Use of sanitation facilities | C120: NATIONAL wealth index quintile | H120: URBAN wealth index quintile | M120: RURAL wealth index quintile | R120: SUB-REGIONS: | BA120: Raw numbers of respondents: | BB120: Use of sanitation facilities | BC120: NATIONAL wealth index quintile | BH120: URBAN wealth index quintile | BM120: RURAL wealth index quintile | BR120: SUB-REGIONS:
A121: Weighted percentage (used in graphs) | C121: Poorest | D121: Poor | E121: Middle | F121: Rich | G121: Richest | H121: Poorest | I121: Poor | J121: Middle | K121: Rich | L121: Richest | M121: Poorest | N121: Poor | O121: Middle | P121: Rich | Q121: Richest | R121: Aragatsotn | S121: Ararat | T121: Armavir | U121: Gegharkunik | V121: Kotayk | W121: Lori | X121: Shirak | Y121: Syunik | Z121: Tavush | AA121: Vayots Dzor | AB121: Yerevan | BA121: Sanitation data, raw numbers (weighted) | BC121: Poorest | BD121: Poor | BE121: Middle | BF121: Rich | BG121: Richest | BH121: Poorest | BI121: Poor | BJ121: Middle | BK121: Rich | BL121: Richest | BM121: Poorest | BN121: Poor | BO121: Middle | BP121: Rich | BQ121: Richest | BR121: Aragatsotn | BS121: Ararat | BT121: Armavir | BU121: Gegharkunik | BV121: Kotayk | BW121: Lori | BX121: Shirak | BY121: Syunik | BZ121: Tavush | CA121: Vayots Dzor | CB121: Yerevan
A122: Sanitation | B122: Improved | C122: 86.30857785 | D122: 88.63459417 | E122: 91.13700066 | F122: 96.57341444 | G122: 99.46690093 | H122: 95.65426354 | I122: 99.29031861 | J122: 99.7693151 | K122: 99.8764417 | L122: 100 | M122: 79.15226921 | N122: 84.46617692 | O122: 79.4068657 | P122: 78.36421913 | Q122: 87.16734283 | R122: 97.60635894 | S122: 57.1735483 | T122: 81.25728761 | U122: 99.01545365 | V122: 94.54368146 | W122: 96.32449747 | X122: 85.08996548 | Y122: 99.58280632 | Z122: 99.61979333 | AA122: 99.68935099 | AB122: 99.71560995 | BA122: Sanitation | BB122: Improved | BC122: 4383.670608 | BD122: 4506.523789 | BE122: 4630.639037 | BF122: 4907.213452 | BG122: 5053.512178 | BH122: 3025.563828 | BI122: 3136.904317 | BJ122: 3159.537284 | BK122: 3150.49031 | BL122: 3172.311721 | BM122: 1518.992672 | BN122: 1620.039405 | BO122: 1524.465427 | BP122: 1498.925765 | BQ122: 1674.328335 | BR122: 1069.220338 | BS122: 1218.017574 | BT122: 1791.060194 | BU122: 1566.554293 | BV122: 1954.799207 | BW122: 2123.195218 | BX122: 1866.213656 | BY122: 1135.785364 | BZ122: 1133.36673 | CA122: 461.04667 | CB122: 9162.29982
B123: Not Improved | C123: 13.69142215 | D123: 11.36540583 | E123: 8.862999345 | F123: 3.426585563 | G123: 0.5330990651 | H123: 4.345736463 | I123: 0.7096813946 | J123: 0.2306849018 | K123: 0.1235583012 | L123: 0 | M123: 20.84773079 | N123: 15.53382308 | O123: 20.5931343 | P123: 21.63578087 | Q123: 12.83265717 | R123: 2.393641058 | S123: 42.8264517 | T123: 18.74271239 | U123: 0.9845463458 | V123: 5.456318543 | W123: 3.675502532 | X123: 14.91003452 | Y123: 0.4171936814 | Z123: 0.3802066652 | AA123: 0.3106490078 | AB123: 0.2843900505 | BB123: Not Improved | BC123: 695.396522 | BD123: 577.860961 | BE123: 450.325888 | BF123: 174.116105 | BG123: 27.084614 | BH123: 137.456529 | BI123: 22.421145 | BJ123: 7.305428 | BK123: 3.897508 | BL123: 0 | BM123: 400.083922 | BN123: 297.934705 | BO123: 395.350213 | BP123: 413.842309 | BQ123: 246.492331 | BR123: 26.220932 | BS123: 912.36896 | BT123: 413.123882 | BU123: 15.576814 | BV123: 112.815653 | BW123: 81.015833 | BX123: 327.010475 | BY123: 4.758276 | BZ123: 4.325582 | CA123: 1.4367 | CB123: 26.130983
A124: Sanitation ladder | B124: Basic | C124: =C122*C129/100 -> 81.03340059 | D124: =D122*D129/100 -> 86.70980099 | E124: =E122*E129/100 -> 90.04553485 | F124: 95.96275455 | G124: 99.30195189 | H124: 91.32765454 | I124: 98.20020031 | J124: 99.24011173 | K124: 99.23683842 | L124: 100 | M124: 73.81674669 | N124: 80.92663014 | O124: 77.73689355 | P124: 75.87741598 | Q124: 87.03798832 | R124: 94.59410956 | S124: 53.02498255 | T124: 80.79751729 | U124: 96.96396792 | V124: 92.79596376 | W124: 93.96298216 | X124: 84.01868113 | Y124: 99.01496518 | Z124: 98.06718998 | AA124: 99.40280039 | AB124: 97.9835389 | BA124: Sanitation ladder | BB124: Basic | BC124: 4106.087957 | BD124: 4403.472714 | BE124: 4561.036263 | BF124: 4876.070127 | BG124: 5045.131782 | BH124: 2883.635252 | BI124: 3095.540588 | BJ124: 3140.910399 | BK124: 3130.314742 | BL124: 3172.311721 | BM124: 1415.243628 | BN124: 1548.168733 | BO124: 1487.84853 | BP124: 1445.981583 | BQ124: 1671.843667 | BR124: 1030.729787 | BS124: 1129.637088 | BT124: 1780.92601 | BU124: 1534.097099 | BV124: 1916.932334 | BW124: 2066.60215 | BX124: 1842.717989 | BY124: 1129.308888 | BZ124: 1115.702881 | CA124: 452.255954 | CB124: 8992.888663
B125: Limited | C125: =C122*C128/100 -> 5.275177263 | D125: =D122*D128/100 -> 1.924793175 | E125: =E122*E128/100 -> 1.091465805 | F125: 0.6106598889 | G125: 0.1649490472 | H125: 4.326608993 | I125: 1.090118296 | J125: 0.5292033713 | K125: 0.6396032817 | L125: 0 | M125: 5.335522518 | N125: 3.539546783 | O125: 1.669972155 | P125: 2.486803157 | Q125: 0.1293545016 | R125: 3.012249379 | S125: 4.148565746 | T125: 0.4597703119 | U125: 2.051485737 | V125: 1.747717701 | W125: 2.361515304 | X125: 1.071284356 | Y125: 0.5678411393 | Z125: 1.552603354 | AA125: 0.2865505982 | AB125: 1.732071046 | BB125: Limited | BC125: 267.301405 | BD125: 97.748745 | BE125: 55.28553 | BF125: 31.028918 | BG125: 8.380396 | BH125: 136.611 | BI125: 34.363529 | BJ125: 16.749078 | BK125: 20.175568 | BL125: 0 | BM125: 102.294731 | BN125: 67.71338 | BO125: 31.962502 | BP125: 47.390538 | BQ125: 2.484668 | BR125: 32.8225 | BS125: 88.380486 | BT125: 10.134184 | BU125: 32.457194 | BV125: 36.103473 | BW125: 51.938673 | BX125: 23.495667 | BY125: 6.476476 | BZ125: 17.663849 | CA125: 1.303728 | CB125: 158.968764
B126: Unimproved | C126: =100-C124-C125-C127 -> 13.4117706 | D126: =100-D124-D125-D127 -> 11.36540583 | E126: =100-E124-E125-E127 -> 8.862999345 | F126: 3.426585563 | G126: 0.5330990651 | H126: 3.89683614 | I126: 0.7096813946 | J126: 0.2306849018 | K126: 0.1235583012 | L126: 0 | M126: 20.84773079 | N126: 15.53382308 | O126: 20.5931343 | P126: 21.63578087 | Q126: 12.83265717 | R126: 2.393641058 | S126: 42.8264517 | T126: 18.74271239 | U126: 0.9845463458 | V126: 5.456318543 | W126: 3.471697371 | X126: 14.46812218 | Y126: 0.4171936814 | Z126: 0.3802066652 | AA126: 0.3106490078 | AB126: 0.2843900505 | BB126: Unimproved | BC126: 681.221584 | BD126: 577.860961 | BE126: 450.325888 | BF126: 174.116105 | BG126: 27.084614 | BH126: 123.281591 | BI126: 22.421145 | BJ126: 7.305428 | BK126: 3.897508 | BL126: 0 | BM126: 400.083922 | BN126: 297.934705 | BO126: 395.350213 | BP126: 413.842309 | BQ126: 246.492331 | BR126: 26.220932 | BS126: 912.36896 | BT126: 413.123882 | BU126: 15.576814 | BV126: 112.815653 | BW126: 76.533023 | BX126: 317.318347 | BY126: 4.758276 | BZ126: 4.325582 | CA126: 1.4367 | CB126: 26.130983
B127: Open defecation | C127: 0.2796515443 | D127: 0 | E127: 0 | F127: 0 | G127: 0 | H127: 0.4489003235 | I127: 0 | J127: 0 | K127: 0 | L127: 0 | M127: 0 | N127: 0 | O127: 0 | P127: 0 | Q127: 0 | R127: 0 | S127: 0 | T127: 0 | U127: 0 | V127: 0 | W127: 0.2038051617 | X127: 0.4419123364 | Y127: 0 | Z127: 0 | AA127: 0 | AB127: 0 | BB127: Open defecation | BC127: 14.174938 | BD127: 0 | BE127: 0 | BF127: 0 | BG127: 0 | BH127: 14.174938 | BI127: 0 | BJ127: 0 | BK127: 0 | BL127: 0 | BM127: 0 | BN127: 0 | BO127: 0 | BP127: 0 | BQ127: 0 | BR127: 0 | BS127: 0 | BT127: 0 | BU127: 0 | BV127: 0 | BW127: 4.48281 | BX127: 9.692128 | BY127: 0 | BZ127: 0 | CA127: 0 | CB127: 0
A128: Shared among Improved Sanitation | B128: Yes | C128: 6.111996506 | D128: 2.171604883 | E128: 1.197609969 | F128: 0.6323271186 | G128: 0.1658331019 | H128: 4.523174225 | I128: 1.097909959 | J128: 0.5304269863 | K128: 0.6403945423 | L128: 0 | M128: 6.740833297 | N128: 4.190490102 | O128: 2.103057639 | P128: 3.173391101 | Q128: 0.1483978947 | R128: 3.086120015 | S128: 7.256092842 | T128: 0.5658204026 | U128: 2.071884399 | V128: 1.848582236 | W128: 2.451624837 | X128: 1.259001986 | Y128: 0.5702200614 | Z128: 1.558528986 | AA128: 0.2874435387 | AB128: 1.737010932 | BA128: Shared among improved sanitation facilities | BB128: Yes | BC128: N/A | BD128: N/A | BE128: N/A | BF128: N/A | BG128: N/A | BH128: N/A | BI128: N/A | BJ128: N/A | BK128: N/A | BL128: N/A | BM128: N/A | BN128: N/A | BO128: N/A | BP128: N/A | BQ128: N/A | BR128: N/A | BS128: N/A | BT128: N/A | BU128: N/A | BV128: N/A | BW128: N/A | BX128: N/A | BY128: N/A | BZ128: N/A | CA128: N/A | CB128: N/A
B129: No | C129: 93.88800349 | D129: 97.82839512 | E129: 98.80239003 | F129: 99.36767288 | G129: 99.8341669 | H129: 95.47682578 | I129: 98.90209004 | J129: 99.46957301 | K129: 99.35960546 | L129: 100 | M129: 93.2591667 | N129: 95.8095099 | O129: 97.89694236 | P129: 96.8266089 | Q129: 99.85160211 | R129: 96.91387998 | S129: 92.74390716 | T129: 99.4341796 | U129: 97.9281156 | V129: 98.15141776 | W129: 97.54837516 | X129: 98.74099801 | Y129: 99.42977994 | Z129: 98.44147101 | AA129: 99.71255646 | AB129: 98.26298907 | BB129: No | BC129: N/A | BD129: N/A | BE129: N/A | BF129: N/A | BG129: N/A | BH129: N/A | BI129: N/A | BJ129: N/A | BK129: N/A | BL129: N/A | BM129: N/A | BN129: N/A | BO129: N/A | BP129: N/A | BQ129: N/A | BR129: N/A | BS129: N/A | BT129: N/A | BU129: N/A | BV129: N/A | BW129: N/A | BX129: N/A | BY129: N/A | BZ129: N/A | CA129: N/A | CB129: N/A
A130: Manually calculated ratios | B130: Improved latrines | C130: =(C158+C159)/(C158+C159+C160)*100 -> 79.27252983 | D130: =(D158+D159)/(D158+D159+D160)*100 -> 74.6833693 | E130: 72.89163629 | F130: 74.43538391 | G130: 89.59239635 | H130: 87.07517099 | I130: 87.28848058 | J130: 93.84592818 | K130: 90.79991672 | L130: 100 | M130: 75.01535421 | N130: 80.43302647 | O130: 74.04123208 | P130: 70.71618689 | Q130: 77.58908533 | R130: 96.6228051 | S130: 35.54292616 | T130: 71.67491329 | U130: 98.80976825 | V130: 77.74471088 | W130: 92.79997024 | X130: 66.47723571 | Y130: 100 | Z130: 100 | AA130: 99.4666072 | AB130: 100
B131: Flush to sewer/Flush | C131: =C153/(C153+C154+C155+C156+C157)*100 -> 81.26295727 | D131: =D153/(D153+D154+D155+D156+D157)*100 -> 89.20008042 | E131: 94.59328783 | F131: 96.97935626 | G131: 98.43695048 | H131: 93.67142568 | I131: 98.14663626 | J131: 98.9515682 | K131: 99.39848392 | L131: 99.64402753 | M131: 55.29270626 | N131: 59.43726232 | O131: 57.98933944 | P131: 76.05705518 | Q131: 78.86581435 | R131: 79.07261571 | S131: 91.59905026 | T131: 96.71259412 | U131: 51.75000542 | V131: 97.2166917 | W131: 92.63679708 | X131: 84.92275545 | Y131: 97.87442636 | Z131: 90.84847373 | AA131: 79.6770911 | AB131: 99.07454467
B132: Flush to septic/Flush | C132: =C154/(C153+C154+C155+C156+C157)*100 -> 1.257708229 | D132: =D154/(D153+D154+D155+D156+D157)*100 -> 0.3008674373 | E132: 0.7260086696 | F132: 0.03823069621 | G132: 0.5086026724 | H132: 1.194220822 | I132: 0.3061512683 | J132: 0 | K132: 0 | L132: 0.3141320839 | M132: 0 | N132: 0 | O132: 0 | P132: 3.480505568 | Q132: 1.983302884 | R132: 0.1651866161 | S132: 1.770155245 | T132: 0.7809356258 | U132: 3.638591141 | V132: 0 | W132: 0.7889696464 | X132: 0 | Y132: 0.05537145913 | Z132: 0 | AA132: 0 | AB132: 0.269313912
C133: NATIONAL wealth index quintile | H133: URBAN wealth index quintile | M133: RURAL wealth index quintile | R133: SUB-REGIONS: | BA133: Raw numbers of respondents: | BB133: Use of sanitation facilities | BC133: NATIONAL wealth index quintile | BH133: URBAN wealth index quintile | BM133: RURAL wealth index quintile | BR133: SUB-REGIONS:
A134: Percentage based on weighted population | C134: Poorest | D134: Poor | E134: Middle | F134: Rich | G134: Richest | H134: Poorest | I134: Poor | J134: Middle | K134: Rich | L134: Richest | M134: Poorest | N134: Poor | O134: Middle | P134: Rich | Q134: Richest | R134: Aragatsotn | S134: Ararat | T134: Armavir | U134: Gegharkunik | V134: Kotayk | W134: Lori | X134: Shirak | Y134: Syunik | Z134: Tavush | AA134: Vayots Dzor | AB134: Yerevan | BA134: Sanitation data, raw numbers (weighted) | BC134: Poorest | BD134: Poor | BE134: Middle | BF134: Rich | BG134: Richest | BH134: Poorest | BI134: Poor | BJ134: Middle | BK134: Rich | BL134: Richest | BM134: Poorest | BN134: Poor | BO134: Middle | BP134: Rich | BQ134: Richest | BR134: Aragatsotn | BS134: Ararat | BT134: Armavir | BU134: Gegharkunik | BV134: Kotayk | BW134: Lori | BX134: Shirak | BY134: Syunik | BZ134: Tavush | CA134: Vayots Dzor | CB134: Yerevan
A135: Sanitation type | B135: Sewer connection | C135: 33.36097615 | D135: 51.45592745 | E135: 64.06449273 | F135: 84.35096948 | G135: 93.39480552 | H135: 81.75490728 | I135: 93.03981895 | J135: 97.04039381 | K135: 98.65670553 | L135: 99.23477312 | M135: 9.893048907 | N135: 12.55399761 | O135: 14.02482714 | P135: 20.44399932 | Q135: 33.70665984 | R135: 24.41148388 | S135: 30.73897598 | T135: 34.46302309 | U135: 27.51660966 | V135: 73.38212209 | W135: 59.25002823 | X135: 51.97082395 | Y135: 72.67916579 | Z135: 38.16880482 | AA135: 36.95212717 | AB135: 98.8469323 | BA135: Sanitation type | BB135: Sewer connection | BC135: N/A | BD135: N/A | BE135: N/A | BF135: N/A | BG135: N/A | BH135: N/A | BI135: N/A | BJ135: N/A | BK135: N/A | BL135: N/A | BM135: N/A | BN135: N/A | BO135: N/A | BP135: N/A | BQ135: N/A | BR135: N/A | BS135: N/A | BT135: N/A | BU135: N/A | BV135: N/A | BW135: N/A | BX135: N/A | BY135: N/A | BZ135: N/A | CA135: N/A | CB135: N/A
B136: Septic tank connection | C136: 0.5163284188 | D136: 0.1735582855 | E136: 0.4916984937 | F136: 0.03325239942 | G136: 0.4825509877 | H136: 1.042296643 | I136: 0.2902214447 | J136: 0 | K136: 0 | L136: 0.3128418917 | M136: 0 | N136: 0 | O136: 0 | P136: 0.9355536222 | Q136: 0.8476488351 | R136: 0.05099680059 | S136: 0.5940319185 | T136: 0.2782822935 | U136: 1.934718486 | V136: 0 | W136: 0.5046210069 | X136: 0 | Y136: 0.04111749727 | Z136: 0 | AA136: 0 | AB136: 0.2686951943 | BB136: Septic tank connection | BC136: N/A | BD136: N/A | BE136: N/A | BF136: N/A | BG136: N/A | BH136: N/A | BI136: N/A | BJ136: N/A | BK136: N/A | BL136: N/A | BM136: N/A | BN136: N/A | BO136: N/A | BP136: N/A | BQ136: N/A | BR136: N/A | BS136: N/A | BT136: N/A | BU136: N/A | BV136: N/A | BW136: N/A | BX136: N/A | BY136: N/A | BZ136: N/A | CA136: N/A | CB136: N/A
B137: Improved latrines | C137: 52.43127328 | D137: 37.00510844 | E137: 26.58080943 | F137: 12.18919255 | G137: 5.58954443 | H137: 12.85705962 | I137: 5.960278207 | J137: 2.72892129 | K137: 1.219736165 | L137: 0.4523849881 | M137: 69.2592203 | N137: 71.9121793 | O137: 65.38203856 | P137: 56.98466619 | Q137: 52.61303415 | R137: 73.14387827 | S137: 25.8405404 | T137: 46.51598223 | U137: 69.56412551 | V137: 21.16155936 | W137: 36.56984823 | X137: 33.11914153 | Y137: 26.86252303 | Z137: 61.45098852 | AA137: 62.73722383 | AB137: 0.5999824582 | BB137: Improved latrines | BC137: N/A | BD137: N/A | BE137: N/A | BF137: N/A | BG137: N/A | BH137: N/A | BI137: N/A | BJ137: N/A | BK137: N/A | BL137: N/A | BM137: N/A | BN137: N/A | BO137: N/A | BP137: N/A | BQ137: N/A | BR137: N/A | BS137: N/A | BT137: N/A | BU137: N/A | BV137: N/A | BW137: N/A | BX137: N/A | BY137: N/A | BZ137: N/A | CA137: N/A | CB137: N/A
B138: Unimproved facilities | C138: 13.41233669 | D138: 11.36540583 | E138: 8.862999345 | F138: 3.426585563 | G138: 0.5330990651 | H138: 3.897590818 | I138: 0.7096813946 | J138: 0.2306849018 | K138: 0.1235583012 | L138: 0 | M138: 20.84773079 | N138: 15.53382308 | O138: 20.5931343 | P138: 21.63578087 | Q138: 12.83265717 | R138: 2.393641058 | S138: 42.8264517 | T138: 18.74271239 | U138: 0.9845463458 | V138: 5.456318543 | W138: 3.472127724 | X138: 14.46812218 | Y138: 0.4171936814 | Z138: 0.3802066652 | AA138: 0.3106490078 | AB138: 0.2843900505 | BB138: Unimproved facilities | BC138: N/A | BD138: N/A | BE138: N/A | BF138: N/A | BG138: N/A | BH138: N/A | BI138: N/A | BJ138: N/A | BK138: N/A | BL138: N/A | BM138: N/A | BN138: N/A | BO138: N/A | BP138: N/A | BQ138: N/A | BR138: N/A | BS138: N/A | BT138: N/A | BU138: N/A | BV138: N/A | BW138: N/A | BX138: N/A | BY138: N/A | BZ138: N/A | CA138: N/A | CB138: N/A
B139: Open defecation | C139: 0.2790854627 | D139: 0 | E139: 0 | F139: 0 | G139: 0 | H139: 0.4481456456 | I139: 0 | J139: 0 | K139: 0 | L139: 0 | M139: 0 | N139: 0 | O139: 0 | P139: 0 | Q139: 0 | R139: 0 | S139: 0 | T139: 0 | U139: 0 | V139: 0 | W139: 0.2033748083 | X139: 0.4419123364 | Y139: 0 | Z139: 0 | AA139: 0 | AB139: 0 | BB139: Open defecation | BC139: N/A | BD139: N/A | BE139: N/A | BF139: N/A | BG139: N/A | BH139: N/A | BI139: N/A | BJ139: N/A | BK139: N/A | BL139: N/A | BM139: N/A | BN139: N/A | BO139: N/A | BP139: N/A | BQ139: N/A | BR139: N/A | BS139: N/A | BT139: N/A | BU139: N/A | BV139: N/A | BW139: N/A | BX139: N/A | BY139: N/A | BZ139: N/A | CA139: N/A | CB139: N/A
A140: Septic tank emptying practices | B140: Not emptied/treated and disposed in situ | C140: N/A | D140: N/A | E140: N/A | F140: N/A | G140: N/A | H140: N/A | I140: N/A | J140: N/A | K140: N/A | L140: N/A | M140: N/A | N140: N/A | O140: N/A | P140: N/A | Q140: N/A | R140: N/A | S140: N/A | T140: N/A | U140: N/A | V140: N/A | W140: N/A | X140: N/A | Y140: N/A | Z140: N/A | AA140: N/A | AB140: N/A | BA140: Septic tank emptying practices | BB140: Not emptied/treated and disposed in situ | BC140: N/A | BD140: N/A | BE140: N/A | BF140: N/A | BG140: N/A | BH140: N/A | BI140: N/A | BJ140: N/A | BK140: N/A | BL140: N/A | BM140: N/A | BN140: N/A | BO140: N/A | BP140: N/A | BQ140: N/A | BR140: N/A | BS140: N/A | BT140: N/A | BU140: N/A | BV140: N/A | BW140: N/A | BX140: N/A | BY140: N/A | BZ140: N/A | CA140: N/A | CB140: N/A
B141: Emptied and buried on site | C141: N/A | D141: N/A | E141: N/A | F141: N/A | G141: N/A | H141: N/A | I141: N/A | J141: N/A | K141: N/A | L141: N/A | M141: N/A | N141: N/A | O141: N/A | P141: N/A | Q141: N/A | R141: N/A | S141: N/A | T141: N/A | U141: N/A | V141: N/A | W141: N/A | X141: N/A | Y141: N/A | Z141: N/A | AA141: N/A | AB141: N/A | BB141: Emptied and buried on site | BC141: N/A | BD141: N/A | BE141: N/A | BF141: N/A | BG141: N/A | BH141: N/A | BI141: N/A | BJ141: N/A | BK141: N/A | BL141: N/A | BM141: N/A | BN141: N/A | BO141: N/A | BP141: N/A | BQ141: N/A | BR141: N/A | BS141: N/A | BT141: N/A | BU141: N/A | BV141: N/A | BW141: N/A | BX141: N/A | BY141: N/A | BZ141: N/A | CA141: N/A | CB141: N/A
B142: Emptied and discharged locally | C142: N/A | D142: N/A | E142: N/A | F142: N/A | G142: N/A | H142: N/A | I142: N/A | J142: N/A | K142: N/A | L142: N/A | M142: N/A | N142: N/A | O142: N/A | P142: N/A | Q142: N/A | R142: N/A | S142: N/A | T142: N/A | U142: N/A | V142: N/A | W142: N/A | X142: N/A | Y142: N/A | Z142: N/A | AA142: N/A | AB142: N/A | BB142: Emptied and discharged locally | BC142: N/A | BD142: N/A | BE142: N/A | BF142: N/A | BG142: N/A | BH142: N/A | BI142: N/A | BJ142: N/A | BK142: N/A | BL142: N/A | BM142: N/A | BN142: N/A | BO142: N/A | BP142: N/A | BQ142: N/A | BR142: N/A | BS142: N/A | BT142: N/A | BU142: N/A | BV142: N/A | BW142: N/A | BX142: N/A | BY142: N/A | BZ142: N/A | CA142: N/A | CB142: N/A
B143: Emptied and removed offsite | C143: N/A | D143: N/A | E143: N/A | F143: N/A | G143: N/A | H143: N/A | I143: N/A | J143: N/A | K143: N/A | L143: N/A | M143: N/A | N143: N/A | O143: N/A | P143: N/A | Q143: N/A | R143: N/A | S143: N/A | T143: N/A | U143: N/A | V143: N/A | W143: N/A | X143: N/A | Y143: N/A | Z143: N/A | AA143: N/A | AB143: N/A | BB143: Emptied and removed offsite | BC143: N/A | BD143: N/A | BE143: N/A | BF143: N/A | BG143: N/A | BH143: N/A | BI143: N/A | BJ143: N/A | BK143: N/A | BL143: N/A | BM143: N/A | BN143: N/A | BO143: N/A | BP143: N/A | BQ143: N/A | BR143: N/A | BS143: N/A | BT143: N/A | BU143: N/A | BV143: N/A | BW143: N/A | BX143: N/A | BY143: N/A | BZ143: N/A | CA143: N/A | CB143: N/A
A144: Latrine emptying practices | B144: Not emptied/treated and disposed in situ | C144: N/A | D144: N/A | E144: N/A | F144: N/A | G144: N/A | H144: N/A | I144: N/A | J144: N/A | K144: N/A | L144: N/A | M144: N/A | N144: N/A | O144: N/A | P144: N/A | Q144: N/A | R144: N/A | S144: N/A | T144: N/A | U144: N/A | V144: N/A | W144: N/A | X144: N/A | Y144: N/A | Z144: N/A | AA144: N/A | AB144: N/A | BA144: Latrine emptying practices | BB144: Not emptied/treated and disposed in situ | BC144: N/A | BD144: N/A | BE144: N/A | BF144: N/A | BG144: N/A | BH144: N/A | BI144: N/A | BJ144: N/A | BK144: N/A | BL144: N/A | BM144: N/A | BN144: N/A | BO144: N/A | BP144: N/A | BQ144: N/A | BR144: N/A | BS144: N/A | BT144: N/A | BU144: N/A | BV144: N/A | BW144: N/A | BX144: N/A | BY144: N/A | BZ144: N/A | CA144: N/A | CB144: N/A
B145: Emptied and buried on site | C145: N/A | D145: N/A | E145: N/A | F145: N/A | G145: N/A | H145: N/A | I145: N/A | J145: N/A | K145: N/A | L145: N/A | M145: N/A | N145: N/A | O145: N/A | P145: N/A | Q145: N/A | R145: N/A | S145: N/A | T145: N/A | U145: N/A | V145: N/A | W145: N/A | X145: N/A | Y145: N/A | Z145: N/A | AA145: N/A | AB145: N/A | BB145: Emptied and buried on site | BC145: N/A | BD145: N/A | BE145: N/A | BF145: N/A | BG145: N/A | BH145: N/A | BI145: N/A | BJ145: N/A | BK145: N/A | BL145: N/A | BM145: N/A | BN145: N/A | BO145: N/A | BP145: N/A | BQ145: N/A | BR145: N/A | BS145: N/A | BT145: N/A | BU145: N/A | BV145: N/A | BW145: N/A | BX145: N/A | BY145: N/A | BZ145: N/A | CA145: N/A | CB145: N/A
B146: Emptied and discharged locally | C146: N/A | D146: N/A | E146: N/A | F146: N/A | G146: N/A | H146: N/A | I146: N/A | J146: N/A | K146: N/A | L146: N/A | M146: N/A | N146: N/A | O146: N/A | P146: N/A | Q146: N/A | R146: N/A | S146: N/A | T146: N/A | U146: N/A | V146: N/A | W146: N/A | X146: N/A | Y146: N/A | Z146: N/A | AA146: N/A | AB146: N/A | BB146: Emptied and discharged locally | BC146: N/A | BD146: N/A | BE146: N/A | BF146: N/A | BG146: N/A | BH146: N/A | BI146: N/A | BJ146: N/A | BK146: N/A | BL146: N/A | BM146: N/A | BN146: N/A | BO146: N/A | BP146: N/A | BQ146: N/A | BR146: N/A | BS146: N/A | BT146: N/A | BU146: N/A | BV146: N/A | BW146: N/A | BX146: N/A | BY146: N/A | BZ146: N/A | CA146: N/A | CB146: N/A
B147: Emptied and removed offsite | C147: N/A | D147: N/A | E147: N/A | F147: N/A | G147: N/A | H147: N/A | I147: N/A | J147: N/A | K147: N/A | L147: N/A | M147: N/A | N147: N/A | O147: N/A | P147: N/A | Q147: N/A | R147: N/A | S147: N/A | T147: N/A | U147: N/A | V147: N/A | W147: N/A | X147: N/A | Y147: N/A | Z147: N/A | AA147: N/A | AB147: N/A | BB147: Emptied and removed offsite | BC147: N/A | BD147: N/A | BE147: N/A | BF147: N/A | BG147: N/A | BH147: N/A | BI147: N/A | BJ147: N/A | BK147: N/A | BL147: N/A | BM147: N/A | BN147: N/A | BO147: N/A | BP147: N/A | BQ147: N/A | BR147: N/A | BS147: N/A | BT147: N/A | BU147: N/A | BV147: N/A | BW147: N/A | BX147: N/A | BY147: N/A | BZ147: N/A | CA147: N/A | CB147: N/A
A148: Shared among improved sanitation facilities | B148: Yes | C148: 5.262805121 | D148: 1.922528483 | E148: 1.088091156 | F148: 0.6106456519 | G148: 0.1649490472 | H148: 4.319004767 | I148: 1.087685628 | J148: 0.52888885 | K148: 0.6396032817 | L148: 0 | M148: 5.330414186 | N148: 3.530463714 | O148: 1.664873508 | P148: 2.477589345 | Q148: 0.1293545016 | R148: 2.996281124 | S148: 4.148565746 | T148: 0.4597703119 | U148: 2.051485737 | V148: 1.746141107 | W148: 2.356338472 | X148: 1.071284356 | Y148: 0.5678411393 | Z148: 1.552603354 | AA148: 0.2818972712 | AB148: 1.730096982 | BA148: Shared among improved sanitation facilities | BB148: Yes | BC148: N/A | BD148: N/A | BE148: N/A | BF148: N/A | BG148: N/A | BH148: N/A | BI148: N/A | BJ148: N/A | BK148: N/A | BL148: N/A | BM148: N/A | BN148: N/A | BO148: N/A | BP148: N/A | BQ148: N/A | BR148: N/A | BS148: N/A | BT148: N/A | BU148: N/A | BV148: N/A | BW148: N/A | BX148: N/A | BY148: N/A | BZ148: N/A | CA148: N/A | CB148: N/A
B149: No | C149: 80.84334883 | D149: 86.60777912 | E149: 89.76712751 | F149: 95.96051727 | G149: 99.30195189 | H149: 91.16714174 | I149: 97.98106036 | J149: 99.18113038 | K149: 99.23683842 | L149: 100 | M149: 73.74607311 | N149: 80.71895887 | O149: 77.49955251 | P149: 75.59628387 | Q149: 87.03798832 | R149: 94.0926561 | S149: 53.02498255 | T149: 80.79751729 | U149: 96.96396792 | V149: 92.71225367 | W149: 93.75699977 | X149: 84.01868113 | Y149: 99.01496518 | Z149: 98.06718998 | AA149: 97.7885873 | AB149: 97.87186578 | BB149: No | BC149: N/A | BD149: N/A | BE149: N/A | BF149: N/A | BG149: N/A | BH149: N/A | BI149: N/A | BJ149: N/A | BK149: N/A | BL149: N/A | BM149: N/A | BN149: N/A | BO149: N/A | BP149: N/A | BQ149: N/A | BR149: N/A | BS149: N/A | BT149: N/A | BU149: N/A | BV149: N/A | BW149: N/A | BX149: N/A | BY149: N/A | BZ149: N/A | CA149: N/A | CB149: N/A
B150: DK/missing | C150: 13.89384605 | D150: 11.46969239 | E150: 9.144781333 | F150: 3.42883708 | G150: 0.5330990651 | H150: 4.513853497 | I150: 0.9312540083 | J150: 0.2899807738 | K150: 0.1235583012 | L150: 0 | M150: 20.92351271 | N150: 15.75057742 | O150: 20.83557398 | P150: 21.92612678 | Q150: 12.83265717 | R150: 2.911062772 | S150: 42.8264517 | T150: 18.74271239 | U150: 0.9845463458 | V150: 5.541605219 | W150: 3.886661759 | X150: 14.91003452 | Y150: 0.4171936814 | Z150: 0.3802066652 | AA150: 1.929515433 | AB150: 0.398037236 | BB150: DK/missing | BC150: N/A | BD150: N/A | BE150: N/A | BF150: N/A | BG150: N/A | BH150: N/A | BI150: N/A | BJ150: N/A | BK150: N/A | BL150: N/A | BM150: N/A | BN150: N/A | BO150: N/A | BP150: N/A | BQ150: N/A | BR150: N/A | BS150: N/A | BT150: N/A | BU150: N/A | BV150: N/A | BW150: N/A | BX150: N/A | BY150: N/A | BZ150: N/A | CA150: N/A | CB150: N/A
A151: Shared among all sanitation facilities | B151: Yes | C151: 5.913243592 | D151: 2.126037826 | E151: 1.088091156 | F151: 0.6106456519 | G151: 0.1649490472 | H151: 5.099728873 | I151: 1.087685628 | J151: 0.52888885 | K151: 0.6396032817 | L151: 0 | M151: 5.811846611 | N151: 4.017152765 | O151: 1.664873508 | P151: 2.477589345 | Q151: 0.1293545016 | R151: 2.996281124 | S151: 4.48195102 | T151: 0.7944601447 | U151: 2.051485737 | V151: 1.746141107 | W151: 2.570240812 | X151: 1.171206054 | Y151: 0.5678411393 | Z151: 1.621156336 | AA151: 0.4071374502 | AB151: 1.948076117 | BA151: Shared among all sanitation facilities | BB151: Yes | BC151: N/A | BD151: N/A | BE151: N/A | BF151: N/A | BG151: N/A | BH151: N/A | BI151: N/A | BJ151: N/A | BK151: N/A | BL151: N/A | BM151: N/A | BN151: N/A | BO151: N/A | BP151: N/A | BQ151: N/A | BR151: N/A | BS151: N/A | BT151: N/A | BU151: N/A | BV151: N/A | BW151: N/A | BX151: N/A | BY151: N/A | BZ151: N/A | CA151: N/A | CB151: N/A
B152: No | C152: 93.55945367 | D152: 97.54076662 | E152: 98.63012686 | F152: 99.38710283 | G152: 99.83505095 | H152: 94.437984 | I152: 98.69074176 | J152: 99.41181528 | K152: 99.36039672 | L152: 100 | M152: 93.73787167 | N152: 95.7660929 | O152: 97.48645078 | P152: 97.23206474 | Q152: 99.8706455 | R152: 96.48629716 | S152: 94.97173432 | T152: 99.20553986 | U152: 97.94851426 | V152: 98.16857222 | W152: 96.58864115 | X152: 98.71596601 | Y152: 99.43215886 | Z152: 98.37884366 | AA152: 97.94923437 | AB152: 97.9382767 | BB152: No | BC152: N/A | BD152: N/A | BE152: N/A | BF152: N/A | BG152: N/A | BH152: N/A | BI152: N/A | BJ152: N/A | BK152: N/A | BL152: N/A | BM152: N/A | BN152: N/A | BO152: N/A | BP152: N/A | BQ152: N/A | BR152: N/A | BS152: N/A | BT152: N/A | BU152: N/A | BV152: N/A | BW152: N/A | BX152: N/A | BY152: N/A | BZ152: N/A | CA152: N/A | CB152: N/A
A153: Type of toilet facility | B153: Flush - to piped sewer system | C153: 33.4529388 | D153: 51.45592745 | E153: 64.06449273 | F153: 84.38264228 | G153: 93.39480552 | H153: 81.93041018 | I153: 93.03981895 | J153: 97.04039381 | K153: 98.71639322 | L153: 99.23477312 | M153: 9.930237627 | N153: 12.55399761 | O153: 14.02482714 | P153: 20.44399932 | Q153: 33.70665984 | R153: 24.41148388 | S153: 30.73897598 | T153: 34.46302309 | U153: 27.51660966 | V153: 73.38212209 | W153: 59.62461882 | X153: 51.97082395 | Y153: 72.67916579 | Z153: 38.16880482 | AA153: 36.96127943 | AB153: 98.86745443 | BA153: Type of toilet facility | BB153: Flush - to piped sewer system | BC153: 1694.426374 | BD153: 2616.217328 | BE153: 3255.094405 | BF153: 4286.150744 | BG153: 4745.013493 | BH153: 2585.92436 | BI153: 2939.43069 | BJ153: 3073.116639 | BK153: 3112.015101 | BL153: 3148.036339 | BM153: 189.855186 | BN153: 240.782424 | BO153: 269.250825 | BP153: 391.046292 | BQ153: 647.444488 | BR153: 267.413469 | BS153: 654.859005 | BT153: 759.628467 | BU153: 435.348841 | BV153: 1517.259661 | BW153: 1305.99567 | BX153: 1139.836652 | BY153: 828.937603 | BZ153: 434.243558 | CA153: 170.897443 | CB153: 9082.481975
B154: Flush - to septic tank | C154: 0.5177517264 | D154: 0.1735582855 | E154: 0.4916984937 | F154: 0.0332648853 | G154: 0.4825509877 | H154: 1.044534137 | I154: 0.2902214447 | J154: 0 | K154: 0 | L154: 0.3128418917 | M154: 0 | N154: 0 | O154: 0 | P154: 0.9355536222 | Q154: 0.8476488351 | R154: 0.05099680059 | S154: 0.5940319185 | T154: 0.2782822935 | U154: 1.934718486 | V154: 0 | W154: 0.5078113223 | X154: 0 | Y154: 0.04111749727 | Z154: 0 | AA154: 0 | AB154: 0.2687509795 | BB154: Flush - to septic tank | BC154: 26.224667 | BD154: 8.824371 | BE154: 24.983028 | BF154: 1.689664 | BG154: 24.51647 | BH154: 32.968055 | BI154: 9.16904 | BJ154: 0 | BK154: 0 | BL154: 9.92432 | BM154: 0 | BN154: 0 | BO154: 0 | BP154: 17.894971 | BQ154: 16.281814 | BR154: 0.55864 | BS154: 12.655176 | BT154: 6.133854 | BU154: 30.609783 | BV154: 0 | BW154: 11.122912 | BX154: 0 | BY154: 0.468963 | BZ154: 0 | CA154: 0 | CB154: 24.688872
B155: Flush - to pit latrine | C155: 6.588717926 | D155: 5.40356164 | E155: 3.055949692 | F155: 2.525307241 | G155: 1.000435895 | H155: 3.020174297 | I155: 1.418438162 | J155: 0.9163584566 | K155: 0.5973883636 | L155: 0.04166854068 | M155: 8.029161177 | N155: 8.567428786 | O155: 9.247813035 | P155: 5.276862855 | Q155: 8.184944216 | R155: 6.409754491 | S155: 2.225174082 | T155: 0.3820464494 | U155: 23.29367202 | V155: 2.100925943 | W155: 3.977486683 | X155: 8.236142921 | Y155: 1.120088049 | Z155: 3.374291414 | AA155: 9.427561979 | AB155: 0.4605121493 | BB155: Flush - to pit latrine | BC155: 333.725461 | BD155: 274.737864 | BE155: 155.271732 | BF155: 128.271019 | BG155: 50.828114 | BH155: 95.324096 | BI155: 44.813078 | BJ155: 29.019631 | BK155: 18.832552 | BL155: 1.321856 | BM155: 153.508702 | BN155: 164.321066 | BO155: 177.540961 | BP155: 100.934148 | BQ155: 157.2181 | BR155: 70.215096 | BS155: 47.404809 | BT155: 8.421007 | BU155: 368.536431 | BV155: 43.439057 | BW155: 87.121402 | BX155: 180.637074 | BY155: 12.775093 | BZ155: 38.389054 | CA155: 43.59011 | CB155: 42.305057
B156: Flush - to somewhere else | C156: 0.5865700077 | D156: 0.6529179366 | E156: 0.1141155683 | F156: 0.06971816469 | G156: 0 | H156: 1.438042073 | I156: 0.0482689428 | J156: 0.1118236781 | K156: 0 | L156: 0 | M156: 0 | N156: 0 | O156: 0.9125415813 | P156: 0.2234039274 | Q156: 0 | R156: 0 | S156: 0 | T156: 0.511121014 | U156: 0.4271868475 | V156: 0 | W156: 0.2539436457 | X156: 0.9907929925 | Y156: 0.4171936814 | Z156: 0.3802066652 | AA156: 0 | AB156: 0.1942577725 | BB156: Flush - to somewhere else | BC156: 29.710385 | BD156: 33.19686 | BE156: 5.798172 | BF156: 3.54128 | BG156: 0 | BH156: 45.388129 | BI156: 1.524973 | BJ156: 3.54128 | BK156: 0 | BL156: 0 | BM156: 0 | BN156: 0 | BO156: 17.519116 | BP156: 4.273199 | BQ156: 0 | BR156: 0 | BS156: 0 | BT156: 11.266048 | BU156: 6.758656 | BV156: 0 | BW156: 5.562288 | BX156: 21.730311 | BY156: 4.758276 | BZ156: 4.325582 | CA156: 0 | CB156: 17.845536
B157: Flush - don't know where | C157: 0.02030433845 | D157: 0 | E157: 0 | F157: 0 | G157: 0 | H157: 0.03258416395 | I157: 0 | J157: 0 | K157: 0 | L157: 0 | M157: 0 | N157: 0 | O157: 0 | P157: 0 | Q157: 0 | R157: 0 | S157: 0 | T157: 0 | U157: 0 | V157: 0 | W157: 0 | X157: 0 | Y157: 0 | Z157: 0.09039667309 | AA157: 0 | AB157: 0 | BB157: Flush - don't know where | BC157: 1.028436 | BD157: 0 | BE157: 0 | BF157: 0 | BG157: 0 | BH157: 1.028436 | BI157: 0 | BJ157: 0 | BK157: 0 | BL157: 0 | BM157: 0 | BN157: 0 | BO157: 0 | BP157: 0 | BQ157: 0 | BR157: 0 | BS157: 0 | BT157: 0 | BU157: 0 | BV157: 0 | BW157: 0 | BX157: 0 | BY157: 0 | BZ157: 1.028436 | CA157: 0 | CB157: 0
B158: Pit latrine - ventilated improved pit (VIP) | C158: 41.23878057 | D158: 28.33497546 | E158: 19.27269215 | F158: 7.348886574 | G158: 3.383456079 | H158: 8.436045611 | I158: 3.606326394 | J158: 1.307567845 | K158: 0.4113651067 | L158: 0.3479784451 | M158: 55.57165643 | N158: 57.18877639 | O158: 50.83703063 | P158: 41.81167047 | Q158: 35.04648893 | R158: 61.05668431 | S158: 22.76206037 | T158: 35.37189745 | U158: 25.31028391 | V158: 17.31642222 | W158: 28.68849758 | X158: 24.76404246 | Y158: 24.18307703 | Z158: 57.98630043 | AA158: 53.1415584 | AB158: 0.1003433993 | BB158: Pit latrine - ventilated improved pit (VIP) | BC158: 2088.787411 | BD158: 1440.659171 | BE158: 979.238728 | BF158: 373.280983 | BG158: 171.899761 | BH158: 266.262256 | BI158: 113.935588 | BJ158: 41.408617 | BK158: 12.968205 | BL158: 11.038961 | BM158: 1062.468751 | BN158: 1096.865925 | BO158: 975.977265 | BP158: 799.760284 | BQ158: 673.180202 | BR158: 668.840118 | BS158: 484.919869 | BT158: 779.661731 | BU158: 400.441875 | BV158: 358.036919 | BW158: 628.382275 | BX158: 543.130955 | BY158: 275.818547 | BZ158: 659.705682 | CA158: 245.710013 | CB158: 9.21807
B159: Pit latrine - with slab | C159: 4.728002152 | D159: 3.266571339 | E159: 4.252167594 | F159: 2.319575636 | G159: 1.205652456 | H159: 1.395855739 | I159: 0.9355136517 | J159: 0.5049949888 | K159: 0.2117206398 | L159: 0.06273800228 | M159: 5.918753347 | N159: 6.155974128 | O159: 5.297194891 | P159: 9.896132865 | Q159: 9.38160101 | R159: 5.677439467 | S159: 0.8533059475 | T159: 10.76203832 | U159: 20.96016958 | V159: 1.744211202 | W159: 4.135065896 | X159: 0.1189561506 | Y159: 1.559357957 | Z159: 0 | AA159: 0.1836421286 | AB159: 0.0392514751 | BB159: Pit latrine - with slab | BC159: 239.478259 | BD159: 166.085055 | BE159: 216.051144 | BF159: 117.821042 | BG159: 61.25434 | BH159: 44.056625 | BI159: 29.555921 | BJ159: 15.992397 | BK159: 6.674452 | BL159: 1.990245 | BM159: 113.160033 | BN159: 118.06999 | BO159: 101.696376 | BP159: 189.29007 | BQ159: 180.203731 | BR159: 62.193015 | BS159: 18.178715 | BT159: 237.215135 | BU159: 331.617363 | BV159: 36.06357 | BW159: 90.572959 | BX159: 2.608975 | BY159: 17.785158 | BZ159: 0 | CA159: 0.849104 | CB159: 3.605846
B160: Pit latrine - without slab / open pit | C160: 12.01898211 | D160: 10.7124879 | E160: 8.748883776 | F160: 3.320605223 | G160: 0.5330990651 | H160: 1.45937863 | I160: 0.6614124518 | J160: 0.1188612237 | K160: 0.06313266538 | L160: 0 | M160: 20.48002204 | N160: 15.40990201 | O160: 19.68059272 | P160: 21.41237694 | Q160: 12.83265717 | R160: 2.332515006 | S160: 42.8264517 | T160: 18.23159138 | U160: 0.5573594983 | V160: 5.456318543 | W160: 2.546667131 | X160: 12.54785775 | Y160: 0 | Z160: 0 | AA160: 0.2859580608 | AB160: 0 | BB160: Pit latrine - without slab / open pit | BC160: 608.774027 | BD160: 544.664101 | BE160: 444.527716 | BF160: 168.667562 | BG160: 27.084614 | BH160: 46.061563 | BI160: 20.896172 | BJ160: 3.764148 | BK160: 1.990245 | BL160: 0 | BM160: 391.555423 | BN160: 295.557931 | BO160: 377.831097 | BP160: 409.56911 | BQ160: 246.492331 | BR160: 25.551332 | BS160: 912.36896 | BT160: 401.857834 | BU160: 8.818158 | BV160: 112.815653 | BW160: 55.781258 | BX160: 275.202644 | BY160: 0 | BZ160: 0 | CA160: 1.322181 | CB160: 0
B161: No facility/ Bush/ Field | C161: 0.2798547879 | D161: 0 | E161: 0 | F161: 0 | G161: 0 | H161: 0.4491076779 | I161: 0 | J161: 0 | K161: 0 | L161: 0 | M161: 0 | N161: 0 | O161: 0 | P161: 0 | Q161: 0 | R161: 0 | S161: 0 | T161: 0 | U161: 0 | V161: 0 | W161: 0.2046605847 | X161: 0.4419123364 | Y161: 0 | Z161: 0 | AA161: 0 | AB161: 0 | BB161: No facility/ Bush/ Field | BC161: 14.174938 | BD161: 0 | BE161: 0 | BF161: 0 | BG161: 0 | BH161: 14.174938 | BI161: 0 | BJ161: 0 | BK161: 0 | BL161: 0 | BM161: 0 | BN161: 0 | BO161: 0 | BP161: 0 | BQ161: 0 | BR161: 0 | BS161: 0 | BT161: 0 | BU161: 0 | BV161: 0 | BW161: 4.48281 | BX161: 9.692128 | BY161: 0 | BZ161: 0 | CA161: 0 | CB161: 0
B162: Bucket toilet | C162: 0.3815738502 | D162: 0 | E162: 0 | F162: 0 | G162: 0 | H162: 0.5698402626 | I162: 0 | J162: 0 | K162: 0 | L162: 0 | M162: 0.07016937383 | N162: 0 | O162: 0 | P162: 0 | Q162: 0 | R162: 0.06112605197 | S162: 0 | T162: 0 | U162: 0 | V162: 0 | W162: 0.06124833725 | X162: 0.7895204943 | Y162: 0 | Z162: 0 | AA162: 0 | AB162: 0 | BB162: Bucket toilet | BC162: 19.327115 | BD162: 0 | BE162: 0 | BF162: 0 | BG162: 0 | BH162: 17.985554 | BI162: 0 | BJ162: 0 | BK162: 0 | BL162: 0 | BM162: 1.341561 | BN162: 0 | BO162: 0 | BP162: 0 | BQ162: 0 | BR162: 0.6696 | BS162: 0 | BT162: 0 | BU162: 0 | BV162: 0 | BW162: 1.341561 | BX162: 17.315954 | BY162: 0 | BZ162: 0 | CA162: 0 | CB162: 0
B163: OTHER | C163: 0.1865237259 | D163: 0 | E163: 0 | F163: 0 | G163: 0 | H163: 0.2240272322 | I163: 0 | J163: 0 | K163: 0 | L163: 0 | M163: 0 | N163: 0.1239210679 | O163: 0 | P163: 0 | Q163: 0 | R163: 0 | S163: 0 | T163: 0 | U163: 0 | V163: 0 | W163: 0 | X163: 0.1399509497 | Y163: 0 | Z163: 0 | AA163: 0 | AB163: 0.06942978998 | BB163: OTHER | BC163: 9.447622 | BD163: 0 | BE163: 0 | BF163: 0 | BG163: 0 | BH163: 7.070848 | BI163: 0 | BJ163: 0 | BK163: 0 | BL163: 0 | BM163: 0 | BN163: 2.376774 | BO163: 0 | BP163: 0 | BQ163: 0 | BR163: 0 | BS163: 0 | BT163: 0 | BU163: 0 | BV163: 0 | BW163: 0 | BX163: 3.069438 | BY163: 0 | BZ163: 0 | CA163: 0 | CB163: 6.378184
BB164: Total | BC164: 5065.104695 | BD164: 5084.38475 | BE164: 5080.964925 | BF164: 5079.422294 | BG164: 5080.596792 | BH164: 3156.24486 | BI164: 3159.325462 | BJ164: 3166.842712 | BK164: 3152.480555 | BL164: 3172.311721 | BM164: 1911.889656 | BN164: 1917.97411 | BO164: 1919.81564 | BP164: 1912.768074 | BQ164: 1920.820666 | BR164: 1095.44127 | BS164: 2130.386534 | BT164: 2204.184076 | BU164: 1582.131107 | BV164: 2067.61486 | BW164: 2190.363135 | BX164: 2193.224131 | BY164: 1140.54364 | BZ164: 1137.692312 | CA164: 462.368851 | CB164: 9186.52354
A208: =A1026 -> Armenia
A209: =A1034 -> 2005
A210: Access to hygiene facilities
A211: by wealth quintile and sub-national region
A212: Notes:
A213: WHO/UNICEF JMP customised wealth index excludes water,
A214: sanitation and hygiene assets.
A215: Survey used for analysis: | B215: =A1025 -> DHS05
A220: Access to handwashing | C220: NATIONAL wealth index quintile | H220: URBAN wealth index quintile | M220: RURAL wealth index quintile | R220: SUB-REGIONS: | BA220: Raw numbers of respondents: | BB220: Access to handwashing | BC220: NATIONAL wealth index quintile | BH220: URBAN wealth index quintile | BM220: RURAL wealth index quintile | BR220: SUB-REGIONS:
A221: Weighted percentage (used in graphs) | C221: Poorest | D221: Poor | E221: Middle | F221: Rich | G221: Richest | H221: Poorest | I221: Poor | J221: Middle | K221: Rich | L221: Richest | M221: Poorest | N221: Poor | O221: Middle | P221: Rich | Q221: Richest | R221: Aragatsotn | S221: Ararat | T221: Armavir | U221: Gegharkunik | V221: Kotayk | W221: Lori | X221: Shirak | Y221: Syunik | Z221: Tavush | AA221: Vayots Dzor | AB221: Yerevan | BA221: Hygiene data, raw numbers (weighted) | BC221: Poorest | BD221: Poor | BE221: Middle | BF221: Rich | BG221: Richest | BH221: Poorest | BI221: Poor | BJ221: Middle | BK221: Rich | BL221: Richest | BM221: Poorest | BN221: Poor | BO221: Middle | BP221: Rich | BQ221: Richest | BR221: Aragatsotn | BS221: Ararat | BT221: Armavir | BU221: Gegharkunik | BV221: Kotayk | BW221: Lori | BX221: Shirak | BY221: Syunik | BZ221: Tavush | CA221: Vayots Dzor | CB221: Yerevan
A222: Hygiene ladder | B222: Basic | C222: N/A | D222: N/A | E222: N/A | F222: N/A | G222: N/A | H222: N/A | I222: N/A | J222: N/A | K222: N/A | L222: N/A | M222: N/A | N222: N/A | O222: N/A | P222: N/A | Q222: N/A | R222: N/A | S222: N/A | T222: N/A | U222: N/A | V222: N/A | W222: N/A | X222: N/A | Y222: N/A | Z222: N/A | AA222: N/A | AB222: N/A | BA222: Hygiene ladder | BB222: Basic | BC222: N/A | BD222: N/A | BE222: N/A | BF222: N/A | BG222: N/A | BH222: N/A | BI222: N/A | BJ222: N/A | BK222: N/A | BL222: N/A | BM222: N/A | BN222: N/A | BO222: N/A | BP222: N/A | BQ222: N/A | BR222: N/A | BS222: N/A | BT222: N/A | BU222: N/A | BV222: N/A | BW222: N/A | BX222: N/A | BY222: N/A | BZ222: N/A | CA222: N/A | CB222: N/A
B223: Limited | C223: N/A | D223: N/A | E223: N/A | F223: N/A | G223: N/A | H223: N/A | I223: N/A | J223: N/A | K223: N/A | L223: N/A | M223: N/A | N223: N/A | O223: N/A | P223: N/A | Q223: N/A | R223: N/A | S223: N/A | T223: N/A | U223: N/A | V223: N/A | W223: N/A | X223: N/A | Y223: N/A | Z223: N/A | AA223: N/A | AB223: N/A | BB223: Limited | BC223: N/A | BD223: N/A | BE223: N/A | BF223: N/A | BG223: N/A | BH223: N/A | BI223: N/A | BJ223: N/A | BK223: N/A | BL223: N/A | BM223: N/A | BN223: N/A | BO223: N/A | BP223: N/A | BQ223: N/A | BR223: N/A | BS223: N/A | BT223: N/A | BU223: N/A | BV223: N/A | BW223: N/A | BX223: N/A | BY223: N/A | BZ223: N/A | CA223: N/A | CB223: N/A
B224: No facility | C224: N/A | D224: N/A | E224: N/A | F224: N/A | G224: N/A | H224: N/A | I224: N/A | J224: N/A | K224: N/A | L224: N/A | M224: N/A | N224: N/A | O224: N/A | P224: N/A | Q224: N/A | R224: N/A | S224: N/A | T224: N/A | U224: N/A | V224: N/A | W224: N/A | X224: N/A | Y224: N/A | Z224: N/A | AA224: N/A | AB224: N/A | BB224: No facility | BC224: N/A | BD224: N/A | BE224: N/A | BF224: N/A | BG224: N/A | BH224: N/A | BI224: N/A | BJ224: N/A | BK224: N/A | BL224: N/A | BM224: N/A | BN224: N/A | BO224: N/A | BP224: N/A | BQ224: N/A | BR224: N/A | BS224: N/A | BT224: N/A | BU224: N/A | BV224: N/A | BW224: N/A | BX224: N/A | BY224: N/A | BZ224: N/A | CA224: N/A | CB224: N/A
BA225: Observed handwashing place | BB225: Fixed | BC225: N/A | BD225: N/A | BE225: N/A | BF225: N/A | BG225: N/A | BH225: N/A | BI225: N/A | BJ225: N/A | BK225: N/A | BL225: N/A | BM225: N/A | BN225: N/A | BO225: N/A | BP225: N/A | BQ225: N/A | BR225: N/A | BS225: N/A | BT225: N/A | BU225: N/A | BV225: N/A | BW225: N/A | BX225: N/A | BY225: N/A | BZ225: N/A | CA225: N/A | CB225: N/A
BB226: Mobile | BC226: N/A | BD226: N/A | BE226: N/A | BF226: N/A | BG226: N/A | BH226: N/A | BI226: N/A | BJ226: N/A | BK226: N/A | BL226: N/A | BM226: N/A | BN226: N/A | BO226: N/A | BP226: N/A | BQ226: N/A | BR226: N/A | BS226: N/A | BT226: N/A | BU226: N/A | BV226: N/A | BW226: N/A | BX226: N/A | BY226: N/A | BZ226: N/A | CA226: N/A | CB226: N/A
BA227: Water / Soap | BB227: Water and soap | BC227: N/A | BD227: N/A | BE227: N/A | BF227: N/A | BG227: N/A | BH227: N/A | BI227: N/A | BJ227: N/A | BK227: N/A | BL227: N/A | BM227: N/A | BN227: N/A | BO227: N/A | BP227: N/A | BQ227: N/A | BR227: N/A | BS227: N/A | BT227: N/A | BU227: N/A | BV227: N/A | BW227: N/A | BX227: N/A | BY227: N/A | BZ227: N/A | CA227: N/A | CB227: N/A
BB228: Water only | BC228: N/A | BD228: N/A | BE228: N/A | BF228: N/A | BG228: N/A | BH228: N/A | BI228: N/A | BJ228: N/A | BK228: N/A | BL228: N/A | BM228: N/A | BN228: N/A | BO228: N/A | BP228: N/A | BQ228: N/A | BR228: N/A | BS228: N/A | BT228: N/A | BU228: N/A | BV228: N/A | BW228: N/A | BX228: N/A | BY228: N/A | BZ228: N/A | CA228: N/A | CB228: N/A
BB229: Soap only | BC229: N/A | BD229: N/A | BE229: N/A | BF229: N/A | BG229: N/A | BH229: N/A | BI229: N/A | BJ229: N/A | BK229: N/A | BL229: N/A | BM229: N/A | BN229: N/A | BO229: N/A | BP229: N/A | BQ229: N/A | BR229: N/A | BS229: N/A | BT229: N/A | BU229: N/A | BV229: N/A | BW229: N/A | BX229: N/A | BY229: N/A | BZ229: N/A | CA229: N/A | CB229: N/A
BB230: Neither | BC230: N/A | BD230: N/A | BE230: N/A | BF230: N/A | BG230: N/A | BH230: N/A | BI230: N/A | BJ230: N/A | BK230: N/A | BL230: N/A | BM230: N/A | BN230: N/A | BO230: N/A | BP230: N/A | BQ230: N/A | BR230: N/A | BS230: N/A | BT230: N/A | BU230: N/A | BV230: N/A | BW230: N/A | BX230: N/A | BY230: N/A | BZ230: N/A | CA230: N/A | CB230: N/A
BA259: Raw numbers of respondents: | BB259: Menstrual health and hygiene | BC259: NATIONAL wealth index quintile | BH259: URBAN wealth index quintile | BM259: RURAL wealth index quintile | BR259: SUB-REGIONS:
BA260: MHH data, raw numbers (weighted) | BC260: Poorest | BD260: Poor | BE260: Middle | BF260: Rich | BG260: Richest | BH260: Poorest | BI260: Poor | BJ260: Middle | BK260: Rich | BL260: Richest | BM260: Poorest | BN260: Poor | BO260: Middle | BP260: Rich | BQ260: Richest | BR260: Aragatsotn | BS260: Ararat | BT260: Armavir | BU260: Gegharkunik | BV260: Kotayk | BW260: Lori | BX260: Shirak | BY260: Syunik | BZ260: Tavush | CA260: Vayots Dzor | CB260: Yerevan
BA261: Private place to wash and change | BB261: Yes | BC261: N/A | BD261: N/A | BE261: N/A | BF261: N/A | BG261: N/A | BH261: N/A | BI261: N/A | BJ261: N/A | BK261: N/A | BL261: N/A | BM261: N/A | BN261: N/A | BO261: N/A | BP261: N/A | BQ261: N/A | BR261: N/A | BS261: N/A | BT261: N/A | BU261: N/A | BV261: N/A | BW261: N/A | BX261: N/A | BY261: N/A | BZ261: N/A | CA261: N/A | CB261: N/A
BB262: No | BC262: N/A | BD262: N/A | BE262: N/A | BF262: N/A | BG262: N/A | BH262: N/A | BI262: N/A | BJ262: N/A | BK262: N/A | BL262: N/A | BM262: N/A | BN262: N/A | BO262: N/A | BP262: N/A | BQ262: N/A | BR262: N/A | BS262: N/A | BT262: N/A | BU262: N/A | BV262: N/A | BW262: N/A | BX262: N/A | BY262: N/A | BZ262: N/A | CA262: N/A | CB262: N/A
BB263: DK/not sure/missing | BC263: N/A | BD263: N/A | BE263: N/A | BF263: N/A | BG263: N/A | BH263: N/A | BI263: N/A | BJ263: N/A | BK263: N/A | BL263: N/A | BM263: N/A | BN263: N/A | BO263: N/A | BP263: N/A | BQ263: N/A | BR263: N/A | BS263: N/A | BT263: N/A | BU263: N/A | BV263: N/A | BW263: N/A | BX263: N/A | BY263: N/A | BZ263: N/A | CA263: N/A | CB263: N/A
BA264: Use of menstrual materials | BB264: Materials reusable | BC264: N/A | BD264: N/A | BE264: N/A | BF264: N/A | BG264: N/A | BH264: N/A | BI264: N/A | BJ264: N/A | BK264: N/A | BL264: N/A | BM264: N/A | BN264: N/A | BO264: N/A | BP264: N/A | BQ264: N/A | BR264: N/A | BS264: N/A | BT264: N/A | BU264: N/A | BV264: N/A | BW264: N/A | BX264: N/A | BY264: N/A | BZ264: N/A | CA264: N/A | CB264: N/A
BB265: Materials not reusable | BC265: N/A | BD265: N/A | BE265: N/A | BF265: N/A | BG265: N/A | BH265: N/A | BI265: N/A | BJ265: N/A | BK265: N/A | BL265: N/A | BM265: N/A | BN265: N/A | BO265: N/A | BP265: N/A | BQ265: N/A | BR265: N/A | BS265: N/A | BT265: N/A | BU265: N/A | BV265: N/A | BW265: N/A | BX265: N/A | BY265: N/A | BZ265: N/A | CA265: N/A | CB265: N/A
BB266: No materials used | BC266: N/A | BD266: N/A | BE266: N/A | BF266: N/A | BG266: N/A | BH266: N/A | BI266: N/A | BJ266: N/A | BK266: N/A | BL266: N/A | BM266: N/A | BN266: N/A | BO266: N/A | BP266: N/A | BQ266: N/A | BR266: N/A | BS266: N/A | BT266: N/A | BU266: N/A | BV266: N/A | BW266: N/A | BX266: N/A | BY266: N/A | BZ266: N/A | CA266: N/A | CB266: N/A
BB267: DK/not sure/missing | BC267: N/A | BD267: N/A | BE267: N/A | BF267: N/A | BG267: N/A | BH267: N/A | BI267: N/A | BJ267: N/A | BK267: N/A | BL267: N/A | BM267: N/A | BN267: N/A | BO267: N/A | BP267: N/A | BQ267: N/A | BR267: N/A | BS267: N/A | BT267: N/A | BU267: N/A | BV267: N/A | BW267: N/A | BX267: N/A | BY267: N/A | BZ267: N/A | CA267: N/A | CB267: N/A
BA268: Use of menstrual materials with private place to wash and change | BB268: Materials reusable | BC268: N/A | BD268: N/A | BE268: N/A | BF268: N/A | BG268: N/A | BH268: N/A | BI268: N/A | BJ268: N/A | BK268: N/A | BL268: N/A | BM268: N/A | BN268: N/A | BO268: N/A | BP268: N/A | BQ268: N/A | BR268: N/A | BS268: N/A | BT268: N/A | BU268: N/A | BV268: N/A | BW268: N/A | BX268: N/A | BY268: N/A | BZ268: N/A | CA268: N/A | CB268: N/A
BB269: Materials not reusable | BC269: N/A | BD269: N/A | BE269: N/A | BF269: N/A | BG269: N/A | BH269: N/A | BI269: N/A | BJ269: N/A | BK269: N/A | BL269: N/A | BM269: N/A | BN269: N/A | BO269: N/A | BP269: N/A | BQ269: N/A | BR269: N/A | BS269: N/A | BT269: N/A | BU269: N/A | BV269: N/A | BW269: N/A | BX269: N/A | BY269: N/A | BZ269: N/A | CA269: N/A | CB269: N/A
BB270: No materials used | BC270: N/A | BD270: N/A | BE270: N/A | BF270: N/A | BG270: N/A | BH270: N/A | BI270: N/A | BJ270: N/A | BK270: N/A | BL270: N/A | BM270: N/A | BN270: N/A | BO270: N/A | BP270: N/A | BQ270: N/A | BR270: N/A | BS270: N/A | BT270: N/A | BU270: N/A | BV270: N/A | BW270: N/A | BX270: N/A | BY270: N/A | BZ270: N/A | CA270: N/A | CB270: N/A
BA271: Awareness of menstruation before menarche | BB271: Yes | BC271: N/A | BD271: N/A | BE271: N/A | BF271: N/A | BG271: N/A | BH271: N/A | BI271: N/A | BJ271: N/A | BK271: N/A | BL271: N/A | BM271: N/A | BN271: N/A | BO271: N/A | BP271: N/A | BQ271: N/A | BR271: N/A | BS271: N/A | BT271: N/A | BU271: N/A | BV271: N/A | BW271: N/A | BX271: N/A | BY271: N/A | BZ271: N/A | CA271: N/A | CB271: N/A
BB272: No | BC272: N/A | BD272: N/A | BE272: N/A | BF272: N/A | BG272: N/A | BH272: N/A | BI272: N/A | BJ272: N/A | BK272: N/A | BL272: N/A | BM272: N/A | BN272: N/A | BO272: N/A | BP272: N/A | BQ272: N/A | BR272: N/A | BS272: N/A | BT272: N/A | BU272: N/A | BV272: N/A | BW272: N/A | BX272: N/A | BY272: N/A | BZ272: N/A | CA272: N/A | CB272: N/A
BB273: DK/not sure/missing | BC273: N/A | BD273: N/A | BE273: N/A | BF273: N/A | BG273: N/A | BH273: N/A | BI273: N/A | BJ273: N/A | BK273: N/A | BL273: N/A | BM273: N/A | BN273: N/A | BO273: N/A | BP273: N/A | BQ273: N/A | BR273: N/A | BS273: N/A | BT273: N/A | BU273: N/A | BV273: N/A | BW273: N/A | BX273: N/A | BY273: N/A | BZ273: N/A | CA273: N/A | CB273: N/A
BA274: Participation in (all) activities during menstruation | BB274: Yes | BC274: N/A | BD274: N/A | BE274: N/A | BF274: N/A | BG274: N/A | BH274: N/A | BI274: N/A | BJ274: N/A | BK274: N/A | BL274: N/A | BM274: N/A | BN274: N/A | BO274: N/A | BP274: N/A | BQ274: N/A | BR274: N/A | BS274: N/A | BT274: N/A | BU274: N/A | BV274: N/A | BW274: N/A | BX274: N/A | BY274: N/A | BZ274: N/A | CA274: N/A | CB274: N/A
BB275: No | BC275: N/A | BD275: N/A | BE275: N/A | BF275: N/A | BG275: N/A | BH275: N/A | BI275: N/A | BJ275: N/A | BK275: N/A | BL275: N/A | BM275: N/A | BN275: N/A | BO275: N/A | BP275: N/A | BQ275: N/A | BR275: N/A | BS275: N/A | BT275: N/A | BU275: N/A | BV275: N/A | BW275: N/A | BX275: N/A | BY275: N/A | BZ275: N/A | CA275: N/A | CB275: N/A
BB276: DK/not sure/missing/no such activity | BC276: N/A | BD276: N/A | BE276: N/A | BF276: N/A | BG276: N/A | BH276: N/A | BI276: N/A | BJ276: N/A | BK276: N/A | BL276: N/A | BM276: N/A | BN276: N/A | BO276: N/A | BP276: N/A | BQ276: N/A | BR276: N/A | BS276: N/A | BT276: N/A | BU276: N/A | BV276: N/A | BW276: N/A | BX276: N/A | BY276: N/A | BZ276: N/A | CA276: N/A | CB276: N/A
BA277: Participation in specific activities during menstruation | BB277: Did not go to school (amongst those usually attending school) | BC277: N/A | BD277: N/A | BE277: N/A | BF277: N/A | BG277: N/A | BH277: N/A | BI277: N/A | BJ277: N/A | BK277: N/A | BL277: N/A | BM277: N/A | BN277: N/A | BO277: N/A | BP277: N/A | BQ277: N/A | BR277: N/A | BS277: N/A | BT277: N/A | BU277: N/A | BV277: N/A | BW277: N/A | BX277: N/A | BY277: N/A | BZ277: N/A | CA277: N/A | CB277: N/A
BB278: Did not go to work (amongst those who usually work) | BC278: N/A | BD278: N/A | BE278: N/A | BF278: N/A | BG278: N/A | BH278: N/A | BI278: N/A | BJ278: N/A | BK278: N/A | BL278: N/A | BM278: N/A | BN278: N/A | BO278: N/A | BP278: N/A | BQ278: N/A | BR278: N/A | BS278: N/A | BT278: N/A | BU278: N/A | BV278: N/A | BW278: N/A | BX278: N/A | BY278: N/A | BZ278: N/A | CA278: N/A | CB278: N/A
BB279: Did not participate in social activities | BC279: N/A | BD279: N/A | BE279: N/A | BF279: N/A | BG279: N/A | BH279: N/A | BI279: N/A | BJ279: N/A | BK279: N/A | BL279: N/A | BM279: N/A | BN279: N/A | BO279: N/A | BP279: N/A | BQ279: N/A | BR279: N/A | BS279: N/A | BT279: N/A | BU279: N/A | BV279: N/A | BW279: N/A | BX279: N/A | BY279: N/A | BZ279: N/A | CA279: N/A | CB279: N/A
BB280: Did not cook food | BC280: N/A | BD280: N/A | BE280: N/A | BF280: N/A | BG280: N/A | BH280: N/A | BI280: N/A | BJ280: N/A | BK280: N/A | BL280: N/A | BM280: N/A | BN280: N/A | BO280: N/A | BP280: N/A | BQ280: N/A | BR280: N/A | BS280: N/A | BT280: N/A | BU280: N/A | BV280: N/A | BW280: N/A | BX280: N/A | BY280: N/A | BZ280: N/A | CA280: N/A | CB280: N/A
BB281: Did not eat with others | BC281: N/A | BD281: N/A | BE281: N/A | BF281: N/A | BG281: N/A | BH281: N/A | BI281: N/A | BJ281: N/A | BK281: N/A | BL281: N/A | BM281: N/A | BN281: N/A | BO281: N/A | BP281: N/A | BQ281: N/A | BR281: N/A | BS281: N/A | BT281: N/A | BU281: N/A | BV281: N/A | BW281: N/A | BX281: N/A | BY281: N/A | BZ281: N/A | CA281: N/A | CB281: N/A
BB282: Did not bathe in regular place | BC282: N/A | BD282: N/A | BE282: N/A | BF282: N/A | BG282: N/A | BH282: N/A | BI282: N/A | BJ282: N/A | BK282: N/A | BL282: N/A | BM282: N/A | BN282: N/A | BO282: N/A | BP282: N/A | BQ282: N/A | BR282: N/A | BS282: N/A | BT282: N/A | BU282: N/A | BV282: N/A | BW282: N/A | BX282: N/A | BY282: N/A | BZ282: N/A | CA282: N/A | CB282: N/A
BB283: Did not participate in other activities | BC283: N/A | BD283: N/A | BE283: N/A | BF283: N/A | BG283: N/A | BH283: N/A | BI283: N/A | BJ283: N/A | BK283: N/A | BL283: N/A | BM283: N/A | BN283: N/A | BO283: N/A | BP283: N/A | BQ283: N/A | BR283: N/A | BS283: N/A | BT283: N/A | BU283: N/A | BV283: N/A | BW283: N/A | BX283: N/A | BY283: N/A | BZ283: N/A | CA283: N/A | CB283: N/A
BB284: DK/not sure/missing/no such activity | BC284: N/A | BD284: N/A | BE284: N/A | BF284: N/A | BG284: N/A | BH284: N/A | BI284: N/A | BJ284: N/A | BK284: N/A | BL284: N/A | BM284: N/A | BN284: N/A | BO284: N/A | BP284: N/A | BQ284: N/A | BR284: N/A | BS284: N/A | BT284: N/A | BU284: N/A | BV284: N/A | BW284: N/A | BX284: N/A | BY284: N/A | BZ284: N/A | CA284: N/A | CB284: N/A
BA339: Raw numbers of respondents: | BB339: Basic water, sanitation and hygiene | BC339: NATIONAL wealth index quintile | BH339: URBAN wealth index quintile | BM339: RURAL wealth index quintile | BR339: SUB-REGIONS:
BA340: WatSan data, raw numbers (weighted) | BC340: Poorest | BD340: Poor | BE340: Middle | BF340: Rich | BG340: Richest | BH340: Poorest | BI340: Poor | BJ340: Middle | BK340: Rich | BL340: Richest | BM340: Poorest | BN340: Poor | BO340: Middle | BP340: Rich | BQ340: Richest | BR340: Aragatsotn | BS340: Ararat | BT340: Armavir | BU340: Gegharkunik | BV340: Kotayk | BW340: Lori | BX340: Shirak | BY340: Syunik | BZ340: Tavush | CA340: Vayots Dzor | CB340: Yerevan
BA341: Use of Basic Water Sanitation and Hygiene | BB341: Yes | BC341: N/A | BD341: N/A | BE341: N/A | BF341: N/A | BG341: N/A | BH341: N/A | BI341: N/A | BJ341: N/A | BK341: N/A | BL341: N/A | BM341: N/A | BN341: N/A | BO341: N/A | BP341: N/A | BQ341: N/A | BR341: N/A | BS341: N/A | BT341: N/A | BU341: N/A | BV341: N/A | BW341: N/A | BX341: N/A | BY341: N/A | BZ341: N/A | CA341: N/A | CB341: N/A
BB342: No | BC342: N/A | BD342: N/A | BE342: N/A | BF342: N/A | BG342: N/A | BH342: N/A | BI342: N/A | BJ342: N/A | BK342: N/A | BL342: N/A | BM342: N/A | BN342: N/A | BO342: N/A | BP342: N/A | BQ342: N/A | BR342: N/A | BS342: N/A | BT342: N/A | BU342: N/A | BV342: N/A | BW342: N/A | BX342: N/A | BY342: N/A | BZ342: N/A | CA342: N/A | CB342: N/A
BA343: Use of Basic Water and Sanitation | BB343: Yes | BC343: N/A | BD343: N/A | BE343: N/A | BF343: N/A | BG343: N/A | BH343: N/A | BI343: N/A | BJ343: N/A | BK343: N/A | BL343: N/A | BM343: N/A | BN343: N/A | BO343: N/A | BP343: N/A | BQ343: N/A | BR343: N/A | BS343: N/A | BT343: N/A | BU343: N/A | BV343: N/A | BW343: N/A | BX343: N/A | BY343: N/A | BZ343: N/A | CA343: N/A | CB343: N/A
BB344: No | BC344: N/A | BD344: N/A | BE344: N/A | BF344: N/A | BG344: N/A | BH344: N/A | BI344: N/A | BJ344: N/A | BK344: N/A | BL344: N/A | BM344: N/A | BN344: N/A | BO344: N/A | BP344: N/A | BQ344: N/A | BR344: N/A | BS344: N/A | BT344: N/A | BU344: N/A | BV344: N/A | BW344: N/A | BX344: N/A | BY344: N/A | BZ344: N/A | CA344: N/A | CB344: N/A
BA345: Use of Basic Water and Hygiene | BB345: Yes | BC345: N/A | BD345: N/A | BE345: N/A | BF345: N/A | BG345: N/A | BH345: N/A | BI345: N/A | BJ345: N/A | BK345: N/A | BL345: N/A | BM345: N/A | BN345: N/A | BO345: N/A | BP345: N/A | BQ345: N/A | BR345: N/A | BS345: N/A | BT345: N/A | BU345: N/A | BV345: N/A | BW345: N/A | BX345: N/A | BY345: N/A | BZ345: N/A | CA345: N/A | CB345: N/A
BB346: No | BC346: N/A | BD346: N/A | BE346: N/A | BF346: N/A | BG346: N/A | BH346: N/A | BI346: N/A | BJ346: N/A | BK346: N/A | BL346: N/A | BM346: N/A | BN346: N/A | BO346: N/A | BP346: N/A | BQ346: N/A | BR346: N/A | BS346: N/A | BT346: N/A | BU346: N/A | BV346: N/A | BW346: N/A | BX346: N/A | BY346: N/A | BZ346: N/A | CA346: N/A | CB346: N/A
BA347: Use of Basic Sanitation and Hygiene | BB347: Yes | BC347: N/A | BD347: N/A | BE347: N/A | BF347: N/A | BG347: N/A | BH347: N/A | BI347: N/A | BJ347: N/A | BK347: N/A | BL347: N/A | BM347: N/A | BN347: N/A | BO347: N/A | BP347: N/A | BQ347: N/A | BR347: N/A | BS347: N/A | BT347: N/A | BU347: N/A | BV347: N/A | BW347: N/A | BX347: N/A | BY347: N/A | BZ347: N/A | CA347: N/A | CB347: N/A
BB348: No | BC348: N/A | BD348: N/A | BE348: N/A | BF348: N/A | BG348: N/A | BH348: N/A | BI348: N/A | BJ348: N/A | BK348: N/A | BL348: N/A | BM348: N/A | BN348: N/A | BO348: N/A | BP348: N/A | BQ348: N/A | BR348: N/A | BS348: N/A | BT348: N/A | BU348: N/A | BV348: N/A | BW348: N/A | BX348: N/A | BY348: N/A | BZ348: N/A | CA348: N/A | CB348: N/A
BA349: Use of Basic Water | BB349: Yes | BC349: N/A | BD349: N/A | BE349: N/A | BF349: N/A | BG349: N/A | BH349: N/A | BI349: N/A | BJ349: N/A | BK349: N/A | BL349: N/A | BM349: N/A | BN349: N/A | BO349: N/A | BP349: N/A | BQ349: N/A | BR349: N/A | BS349: N/A | BT349: N/A | BU349: N/A | BV349: N/A | BW349: N/A | BX349: N/A | BY349: N/A | BZ349: N/A | CA349: N/A | CB349: N/A
BB350: No | BC350: N/A | BD350: N/A | BE350: N/A | BF350: N/A | BG350: N/A | BH350: N/A | BI350: N/A | BJ350: N/A | BK350: N/A | BL350: N/A | BM350: N/A | BN350: N/A | BO350: N/A | BP350: N/A | BQ350: N/A | BR350: N/A | BS350: N/A | BT350: N/A | BU350: N/A | BV350: N/A | BW350: N/A | BX350: N/A | BY350: N/A | BZ350: N/A | CA350: N/A | CB350: N/A
BA351: Use of Basic Sanitation | BB351: Yes | BC351: N/A | BD351: N/A | BE351: N/A | BF351: N/A | BG351: N/A | BH351: N/A | BI351: N/A | BJ351: N/A | BK351: N/A | BL351: N/A | BM351: N/A | BN351: N/A | BO351: N/A | BP351: N/A | BQ351: N/A | BR351: N/A | BS351: N/A | BT351: N/A | BU351: N/A | BV351: N/A | BW351: N/A | BX351: N/A | BY351: N/A | BZ351: N/A | CA351: N/A | CB351: N/A
BB352: No | BC352: N/A | BD352: N/A | BE352: N/A | BF352: N/A | BG352: N/A | BH352: N/A | BI352: N/A | BJ352: N/A | BK352: N/A | BL352: N/A | BM352: N/A | BN352: N/A | BO352: N/A | BP352: N/A | BQ352: N/A | BR352: N/A | BS352: N/A | BT352: N/A | BU352: N/A | BV352: N/A | BW352: N/A | BX352: N/A | BY352: N/A | BZ352: N/A | CA352: N/A | CB352: N/A
BA353: Access to Basic Hygiene | BB353: Yes | BC353: N/A | BD353: N/A | BE353: N/A | BF353: N/A | BG353: N/A | BH353: N/A | BI353: N/A | BJ353: N/A | BK353: N/A | BL353: N/A | BM353: N/A | BN353: N/A | BO353: N/A | BP353: N/A | BQ353: N/A | BR353: N/A | BS353: N/A | BT353: N/A | BU353: N/A | BV353: N/A | BW353: N/A | BX353: N/A | BY353: N/A | BZ353: N/A | CA353: N/A | CB353: N/A
BB354: No | BC354: N/A | BD354: N/A | BE354: N/A | BF354: N/A | BG354: N/A | BH354: N/A | BI354: N/A | BJ354: N/A | BK354: N/A | BL354: N/A | BM354: N/A | BN354: N/A | BO354: N/A | BP354: N/A | BQ354: N/A | BR354: N/A | BS354: N/A | BT354: N/A | BU354: N/A | BV354: N/A | BW354: N/A | BX354: N/A | BY354: N/A | BZ354: N/A | CA354: N/A | CB354: N/A
C399: INITIAL (national) Wealth Index | H399: URBAN Wealth Index | M399: RURAL Wealth Index
C400: Component Matrix | H400: Component Matrix | M400: Component Matrix
E401: Component | J401: Component | O401: Component
B402: Note: The INITIAL (national) Wealth Index is based on the first component of the Principal Component Analysis (PCA) which has been obtained at national level. The final national-level (NATIONAL) Wealth Index is based on the URBAN and RURAL specific wealth indexes. Regression procedures are used to establish the relationships between the two sets of scores (urban and rural) and the initial (national) wealth factors. This allows best use of the available information for each area and a better precision of the FINAL (NATIONAL) Wealth Index. For dependency reasons, all WASH variables (contained in the generic MICS and DHS scripts) have been excluded from the sets of asset variables used in the PCAs. The PCA can extracts as many components as there are asset variables in the input. Only the first of the components is used to represent the Wealth Index. The scores represent the weights of the asset variables on the Wealth Index (correlations between the variables and the component). The communalities are the proportion of each variable's variance that can be explained by the component. Proportion of explained variance is the part of the model's total variance that is explained by the component. For more information on the procedure used: The DHS Wealth Index, DHS Comparative Reports No. 6, Shea Oscar Rutstein, Kiersten Johnson, ORC Macro International Inc., 2004. The DHS Wealth Index: Approaches for Rural and Urban Areas, Shea O. Rutstein, ORC Macro International Inc., 2008. MICS Methodological Paper No. 4, Review of options for reporting water, sanitation and hygiene coverage by wealth quintile, UNICEF, 2016. | E402: 1 | J402: 1 | O402: 1
C403: if household has a vacuum | E403: 0.6955838195 | H403: if household has a vacuum | J403: 0.6856389246 | M403: if household has a vacuum | O403: 0.6312404206
C404: if household has cellular phone | E404: 0.6476218245 | H404: if household has cellular phone | J404: 0.656790554 | M404: if household has a camera | O404: 0.5847226323
C405: if household has a camera | E405: 0.63197573 | H405: if household has a camera | J405: 0.6395295636 | M405: if household has a washing machine | O405: 0.5798354479
C406: if household has a washing machine | E406: 0.5979741074 | H406: if household has a washing machine | J406: 0.6131277644 | M406: if household has car or truck | O406: 0.5674779456
C407: if household has fridge | E407: 0.5456167951 | H407: if household has fridge | J407: 0.5540330682 | M407: if household has cellular phone | O407: 0.5435164161
C408: if has parquet/polished wood flooring | E408: 0.5014939162 | H408: if household has a watch | J408: 0.4947639022 | M408: if household has fridge | O408: 0.5101545611
C409: if household has a watch | E409: 0.4924031032 | H409: if household has car or truck | J409: 0.4776066628 | M409: if household has a watch | O409: 0.4773869693
C410: if household has color tv | E410: 0.4835811108 | H410: if household has color tv | J410: 0.4755057163 | M410: if household has color tv | O410: 0.4632125301
C411: if household has car or truck | E411: 0.4451674284 | H411: if household had a vacation for at least 1wk | J411: 0.4387155183 | M411: if uses biogas for cooking | O411: 0.4403876499
C412: if household had a vacation for at least 1wk | E412: 0.4286337334 | H412: if household has a computer | J412: 0.4329128294 | M412: if has parquet/polished wood flooring | O412: 0.3718229527
C413: if household has a computer | E413: 0.4242292128 | H413: if has parquet/polished wood flooring | J413: 0.4250509661 | M413: if uses biomass (dung, some char/coal, wood) for cooking | O413: -0.3017300182
C414: if floor is of wood planks | E414: -0.3866555069 | H414: if household has radio | J414: 0.3766178386 | M414: Cattle | O414: 0.2990535458
C415: if household has radio | E415: 0.3766124278 | H415: if floor is of wood planks | J415: -0.3135661136 | M415: if household has radio | O415: 0.2959227368
C416: if uses biogas for cooking | E416: 0.3126567432 | H416: if uses electricity for cooking | J416: -0.2645190938 | M416: if household has a computer | O416: 0.2938576613
C417: if uses biomass (dung, some char/coal, wood) for cooking | E417: -0.2896627015 | H417: if household has a bank account | J417: 0.2327146331 | M417: if household had a vacation for at least 1wk | O417: 0.2923985227
C418: if uses electricity for cooking | E418: -0.2477518752 | H418: if uses biogas for cooking | J418: 0.2313644595 | M418: Pigs | O418: 0.2776071048
... 160 more rows

Sheet DHS10
A2: =A1026 -> Armenia
A3: =A1034 -> 2010
A4: Use of drinking water sources
A5: by wealth quintile and sub-national region
A6: Notes:
A7: WHO/UNICEF JMP customised wealth index excludes water,
A8: sanitation and hygiene assets.
A9: Survey used for analysis: | B9: =A1025 -> DHS10
A10: =B1028 -> 
A11: =B1027 -> 
A14: Use of drinking water sources | C14: NATIONAL wealth index quintile | H14: URBAN wealth index quintile | M14: RURAL wealth index quintile | R14: SUB-REGIONS: | BA14: Raw numbers of respondents: | BB14: Use of drinking water sources | BC14: NATIONAL wealth index quintile | BH14: URBAN wealth index quintile | BM14: RURAL wealth index quintile | BR14: SUB-REGIONS:
A15: Weighted percentage (used in graphs) | C15: Poorest | D15: Poor | E15: Middle | F15: Rich | G15: Richest | H15: Poorest | I15: Poor | J15: Middle | K15: Rich | L15: Richest | M15: Poorest | N15: Poor | O15: Middle | P15: Rich | Q15: Richest | R15: Aragatsotn | S15: Ararat | T15: Armavir | U15: Gegharkunik | V15: Kotayk | W15: Lori | X15: Shirak | Y15: Syunik | Z15: Tavush | AA15: Vayots Dzor | AB15: Yerevan | BA15: Water data, raw numbers (weighted) | BC15: Poorest | BD15: Poor | BE15: Middle | BF15: Rich | BG15: Richest | BH15: Poorest | BI15: Poor | BJ15: Middle | BK15: Rich | BL15: Richest | BM15: Poorest | BN15: Poor | BO15: Middle | BP15: Rich | BQ15: Richest | BR15: Aragatsotn | BS15: Ararat | BT15: Armavir | BU15: Gegharkunik | BV15: Kotayk | BW15: Lori | BX15: Shirak | BY15: Syunik | BZ15: Tavush | CA15: Vayots Dzor | CB15: Yerevan
A16: Water | B16: Improved | C16: 98.24161791 | D16: 99.4804688 | E16: 99.82269535 | F16: 99.94440792 | G16: 100 | H16: 99.86195577 | I16: 99.75812883 | J16: 99.91055821 | K16: 100 | L16: 100 | M16: 96.38619728 | N16: 99.33883086 | O16: 98.92838581 | P16: 99.51715806 | Q16: 100 | R16: 99.42805049 | S16: 99.0723667 | T16: 99.87410251 | U16: 99.92477833 | V16: 99.95404825 | W16: 99.46581969 | X16: 99.18932965 | Y16: 96.67608009 | Z16: 97.4460203 | AA16: 99.45791564 | AB16: 100 | BA16: Water | BB16: Improved | BC16: N/A | BD16: N/A | BE16: N/A | BF16: N/A | BG16: N/A | BH16: N/A | BI16: N/A | BJ16: N/A | BK16: N/A | BL16: N/A | BM16: N/A | BN16: N/A | BO16: N/A | BP16: N/A | BQ16: N/A | BR16: N/A | BS16: N/A | BT16: N/A | BU16: N/A | BV16: N/A | BW16: N/A | BX16: N/A | BY16: N/A | BZ16: N/A | CA16: N/A | CB16: N/A
B17: Not Improved | C17: 1.758382088 | D17: 0.5195312048 | E17: 0.177304651 | F17: 0.0555920814 | G17: 0 | H17: 0.1380442316 | I17: 0.2418711693 | J17: 0.08944179111 | K17: 0 | L17: 0 | M17: 3.613802718 | N17: 0.6611691407 | O17: 1.071614191 | P17: 0.4828419353 | Q17: 0 | R17: 0.5719495145 | S17: 0.9276333005 | T17: 0.1258974853 | U17: 0.07522166778 | V17: 0.04595174557 | W17: 0.5341803104 | X17: 0.8106703457 | Y17: 3.323919909 | Z17: 2.553979696 | AA17: 0.542084357 | AB17: 0 | BB17: Not Improved | BC17: N/A | BD17: N/A | BE17: N/A | BF17: N/A | BG17: N/A | BH17: N/A | BI17: N/A | BJ17: N/A | BK17: N/A | BL17: N/A | BM17: N/A | BN17: N/A | BO17: N/A | BP17: N/A | BQ17: N/A | BR17: N/A | BS17: N/A | BT17: N/A | BU17: N/A | BV17: N/A | BW17: N/A | BX17: N/A | BY17: N/A | BZ17: N/A | CA17: N/A | CB17: N/A
